Workbook

Sheet AER admendments
A1: No. | B1: Sheet | C1: Cell | D1: Content
A2: 1 | B2: DepnInputs | C2: R22 | D2: 2020 CPI is actuals
A3: 2 | B3: DepnInputs | C3: S22, S23, S27 | D3: Updated 2021 actual CPI and WACC to be consistent with RFM
A4: 3 | B4: DepnInputs | C4: F32:G54 | D4: Inserted 2015 and 2021 lives section in order to apply updated standard lives for ERC from 2016-20 reset (PTRM and depreciation model)
A5: 4 | B5: DepnInputs | C5: D43, D44 | D5: Remaining lives modified to be consistent with 2016-20 reset depreciation model
A6: 5 | B6: DepnInputs | C6: C53, E53 | D6: Removed 'in-house software' asset class as it was not an approved asset class in last reset
A7: 6 | B7: DepnInputs | C7: E54 | D7: Revised 2010 ERC standard life based on 2016-20 reset depreciation model
A8: 7 | B8: 2011_15 | C8: C352:M403 | D8: Added a section to list Capex adjustments and RAB adjustments separately - they have different lives so they should be depreciated separately
A9: 8 | B9: 2016_20 | C9: N47:R67 N75:R95 R326:R346 | D9: Updated figuers to those consistent with 2016-21 RFM
A10: 9 | B10: 2020_21 | C10: S47:S67 S75:S95 M130:M150 S270:S290 S326:S346 | D10: Updated figuers to those consistent with 2016-21 RFM. Included 2021 ERC.
A11: 10 | B11: 2020_21 | C11: C352:S403 | D11: Added a section to list Capex adjustments and RAB adjustments separately - they have different lives so they should be depreciated separately
A12: 11 | B12: 2020_21 | C12: C408:M431 | D12: Added a section to list 2015 actual capex with half year WACC, from RFM
A13: 12 | B13: 2020_21 | C13: C436:S461 | D13: Added a section to calculate real WACC and return difference of net capex
A14: 13 | B14: Capex_2010 | C14: S6 | D14: Changed label to be consistent with mid year representation
A15: 14 | B15: Capex_2010 | C15: M18:M38 | D15: Updated formula to refer to actual 2015 capex as introduced in change #11
A16: 15 | B16: Capex_2010 | C16: C44 | D16: Changed Label to 'Capex Adjustments for final year of prior regulatory period'
A17: 16 | B17: Capex_2010 | C17: M49:S69 | D17: Modified formula to include capex adjustments only
A18: 17 | B18: Capex_2010 | C18: C75:S101 | D18: Added a section to set out RAB adjustments (which were taken out due to change #16)
A19: 18 | B19: Depn_calc | C19: T5, T14 | D19: Modified formula to list all years past 2021 as starting mid-year
A20: 19 | B20: Depn_calc | C20: H30:CC30 H92:CC92 ….. H1235:CC1235 | D20: Modefied formula to account for change #18
A21: 20 | B21: Depn_calc | C21: D32:CC35 D94:CC97 ….. D1237:CC1240 | D21: Added a section to depreciate RAB adjusment (based on change #17)
A22: 21 | B22: Depn_calc | C22: J78:CC78, J80:CC80 J140:CC140, J142:CC142 ….. J1283:CC1283, J1285:CC1285 | D22: Modified formula to account for changes #16 and #20
A23: 22 | B23: Depn_calc | C23: T102, U101:CC101 T722, U721:CC721 | D23: Revised accelerated depreciation adjustment
A24: 23 | B24: Depn_calc | C24: G1257, G1262 | D24: Set standard lives consistent with the numbers updated in change #3
A25: 24 | B25: Depn_calc | C25: J1252:CC1252, J1257:CC1257, J1262:CC1262 | D25: Modified formulae for correct calculation of depreciation schedules for ERC
A26: 25 | B26: Depn_output | C26: F29 | D26: Replaced the hardcoded value with formula
A27: 26 | B27: PTRM_input | C27: F5 | D27: Modefied formula to account for change #18
A29: The AER's draft decision amendments are highlighted in green unless noted.

Sheet DepnInputs
A1: Powercor Depreciation
A2: Assumptions
B4: General Assumptions
C6: Regulatory period length | E6: 5
C7: Half year | E7: 2021
C9: First reg period - base year $ | E9: 2010
C10: Second reg period - base year $ | E10: 2015
C11: Third reg period - base year $ | E11: 2021
C12: Fourth reg period - base year $ | E12: 2026
C14: Conversion | D14: From | E14: To | F14: Factor
C15: ="Conversion from 2010 to "&E15 -> Conversion from 2010 to 2015 | D15: =first_reg_period -> 2010 | E15: =second_reg_period -> 2015 | F15: =INDEX($H$24:$W$25, MATCH($D15, $D$24:$D$25,0), MATCH(E15, $H$21:$W$21,0)) -> 1.134425434
C16: ="Conversion from 2010 to "&E16 -> Conversion from 2010 to 2021 | D16: =first_reg_period -> 2010 | E16: =third_reg_period -> 2021 | F16: =INDEX($H$24:$W$25, MATCH($D16, $D$24:$D$25,0), MATCH(E16, $H$21:$W$21,0)) -> 1.24476143
C17: ="Conversion from 2015 to "&E17 -> Conversion from 2015 to 2021 | D17: =second_reg_period -> 2015 | E17: =third_reg_period -> 2021 | F17: =INDEX($H$24:$W$25, MATCH($D17, $D$24:$D$25,0), MATCH(E17, $H$21:$W$21,0)) -> 1.097261568
B19: Inputs
C21: Inflation | H21: 2010 | I21: =H21+1 -> 2011 | J21: 2012 | K21: 2013 | L21: 2014 | M21: 2015 | N21: 2016 | O21: 2017 | P21: 2018 | Q21: 2019 | R21: 2020 | S21: 2021
H22: Actual | I22: Actual | J22: Actual | K22: Actual | L22: Actual | M22: Actual | N22: Actual | O22: Actual | P22: Actual | Q22: Actual | R22: Actual | S22: Actual
C23: Actual Inflation | H23: 0.01261261261 | I23: 0.02787663108 | J23: 0.03519907675 | K23: 0.02004008016 | L23: 0.02161100196 | M23: 0.02307692308 | N23: 0.01510859301 | O23: 0.01023255814 | P23: 0.01933701657 | Q23: 0.02077687444 | R23: 0.01592920354 | S23: 0.01219512195
C24: ="Cumulative inflation from "&D24&" (one year lagged)" -> Cumulative inflation from 2010 (one year lagged) | D24: 2010 | H24: =IF(H$21=$D24, 1, (#REF!*(1+H$23))) -> 1 | I24: =IF(I$21=$D24, 1, (H24*(1+I$23))) -> 1.027876631 | J24: 1.06405694 | K24: 1.085380726 | L24: 1.108836891 | M24: 1.134425434 | N24: 1.151565007 | O24: 1.163348463 | P24: 1.185844151 | Q24: 1.210482286 | R24: 1.229764305 | S24: 1.24476143
C25: ="Cumulative inflation from "&D25&" (one year lagged)" -> Cumulative inflation from 2015 (one year lagged) | D25: 2015 | H25: =IF(H$21=$D25, 1, (G25*(1+H$23))) -> 0 | I25: =IF(I$21=$D25, 1, (H25*(1+I$23))) -> 0 | J25: 0 | K25: 0 | L25: 0 | M25: 1 | N25: 1.015108593 | O25: 1.025495751 | P25: 1.045325779 | Q25: 1.067044381 | R25: 1.084041549 | S25: 1.097261568
C27: Real Vanilla WACC | I27: 0.06741317032 | J27: 0.06741317032 | K27: 0.06741317032 | L27: 0.06741317032 | M27: 0.06741317032 | N27: 0.0367000241 | O27: 0.03612756881 | P27: 0.03563047885 | Q27: 0.03508047475 | R27: 0.03362104414 | S27: 0.01176700175
C28: Nominal WACC | I28: =(1+I27)*(1+I23)-1 -> 0.09716905348 | J28: 0.1049851284 | K28: 0.08880421582 | L28: 0.09048103844 | M28: 0.09204578194 | N28: 0.05236310284 | O28: 0.0467298044 | P28: 0.05565648259 | Q28: 0.0565862118 | R28: 0.05008580414 | S28: 0.02410562372
C32: Asset categories | D32: Remaining Life (yrs at Dec 2010) | E32: Standard Life (yrs) | F32: Standard Life (yrs) | G32: Standard Life (yrs)
E33: 2010 | F33: 2016-20 | G33: HY2021
C34: Subtransmission | D34: 26.44441797 | E34: 50
C35: Distribution system assets | D35: 25.60619701 | E35: 51
C36: Standard metering | D36: 5.812130397 | E36: n/a
C37: Public lighting | D37: 13.11490672 | E37: n/a
C38: SCADA/Network control | D38: 6.347969985 | E38: 13
C39: Non-network general assets - IT | D39: 5.19083157 | E39: 6
C40: Non-network general assets - Other | D40: 9.69022303 | E40: 15
C41: VBRC | D41: n/a | E41: 25.60619701
C42: Land | D42: 0 | E42: n/a
C43: Supervisory cables | D43: =E43 -> 6 | E43: 6
C44: Old SWER ACRs | D44: =E44 -> 10 | E44: 10
C45: Accelerated depreciation assets | D45: 0 | E45: n/a
C46: 0 | D46: 0 | E46: n/a
C47: 0 | D47: 0 | E47: n/a
C48: 0 | D48: 0 | E48: n/a
C49: 0 | D49: 0 | E49: n/a
C50: 0 | D50: 0 | E50: n/a
C51: 0 | D51: 0 | E51: n/a
C52: 0 | D52: 0 | E52: n/a
C53: 0 | D53: 0 | E53: n/a
C54: Equity raising costs | D54: n/a | E54: 45.18683632 | F54: 42.05966711 | G54: =F54 -> 42.05966711

Sheet 2011_15
A1: =DepnInputs!A1 -> Powercor Depreciation
A2: 2011-2015 Regulatory Period
C4: Opening RAB from: | E4: 2010
C7: Inflation | H7: 2015 | I7: 2015 | J7: 2015 | K7: 2015 | L7: 2015 | M7: 2015 | N7: =M7+1 -> 2016 | O7: =N7+1 -> 2017 | P7: =O7+1 -> 2018 | Q7: =P7+1 -> 2019 | R7: =Q7+1 -> 2020 | S7: 2021 H1
H8: =IF(ISBLANK(DepnInputs!H22), "", DepnInputs!H22) -> Actual | I8: =IF(ISBLANK(DepnInputs!I22), "", DepnInputs!I22) -> Actual | J8: =IF(ISBLANK(DepnInputs!J22), "", DepnInputs!J22) -> Actual | K8: =IF(ISBLANK(DepnInputs!K22), "", DepnInputs!K22) -> Actual | L8: =IF(ISBLANK(DepnInputs!L22), "", DepnInputs!L22) -> Actual | M8: =IF(ISBLANK(DepnInputs!M22), "", DepnInputs!M22) -> Actual | N8: =IF(ISBLANK(DepnInputs!N22), "", DepnInputs!N22) -> Actual | O8: =IF(ISBLANK(DepnInputs!O22), "", DepnInputs!O22) -> Actual | P8: =IF(ISBLANK(DepnInputs!P22), "", DepnInputs!P22) -> Actual | Q8: =IF(ISBLANK(DepnInputs!Q22), "", DepnInputs!Q22) -> Actual | R8: =IF(ISBLANK(DepnInputs!R22), "", DepnInputs!R22) -> Actual | S8: =IF(ISBLANK(DepnInputs!S22), "", DepnInputs!S22) -> Actual
C9: Actual Inflation | H9: =IF(ISBLANK(DepnInputs!H23), "", DepnInputs!H23) -> 0.01261261261 | I9: =IF(ISBLANK(DepnInputs!I23), "", DepnInputs!I23) -> 0.02787663108 | J9: =IF(ISBLANK(DepnInputs!J23), "", DepnInputs!J23) -> 0.03519907675 | K9: =IF(ISBLANK(DepnInputs!K23), "", DepnInputs!K23) -> 0.02004008016 | L9: =IF(ISBLANK(DepnInputs!L23), "", DepnInputs!L23) -> 0.02161100196 | M9: =IF(ISBLANK(DepnInputs!M23), "", DepnInputs!M23) -> 0.02307692308 | N9: =IF(ISBLANK(DepnInputs!N23), "", DepnInputs!N23) -> 0.01510859301 | O9: =IF(ISBLANK(DepnInputs!O23), "", DepnInputs!O23) -> 0.01023255814 | P9: =IF(ISBLANK(DepnInputs!P23), "", DepnInputs!P23) -> 0.01933701657 | Q9: =IF(ISBLANK(DepnInputs!Q23), "", DepnInputs!Q23) -> 0.02077687444 | R9: =IF(ISBLANK(DepnInputs!R23), "", DepnInputs!R23) -> 0.01592920354 | S9: =IF(ISBLANK(DepnInputs!S23), "", DepnInputs!S23) -> 0.01219512195
C10: =DepnInputs!C24 -> Cumulative inflation from 2010 (one year lagged) | H10: =IF(ISBLANK(DepnInputs!H24), "", DepnInputs!H24) -> 1 | I10: =IF(ISBLANK(DepnInputs!I24), "", DepnInputs!I24) -> 1.027876631 | J10: =IF(ISBLANK(DepnInputs!J24), "", DepnInputs!J24) -> 1.06405694 | K10: =IF(ISBLANK(DepnInputs!K24), "", DepnInputs!K24) -> 1.085380726 | L10: =IF(ISBLANK(DepnInputs!L24), "", DepnInputs!L24) -> 1.108836891 | M10: =IF(ISBLANK(DepnInputs!M24), "", DepnInputs!M24) -> 1.134425434 | N10: =IF(ISBLANK(DepnInputs!N24), "", DepnInputs!N24) -> 1.151565007 | O10: =IF(ISBLANK(DepnInputs!O24), "", DepnInputs!O24) -> 1.163348463 | P10: =IF(ISBLANK(DepnInputs!P24), "", DepnInputs!P24) -> 1.185844151 | Q10: =IF(ISBLANK(DepnInputs!Q24), "", DepnInputs!Q24) -> 1.210482286 | R10: =IF(ISBLANK(DepnInputs!R24), "", DepnInputs!R24) -> 1.229764305 | S10: =IF(ISBLANK(DepnInputs!S24), "", DepnInputs!S24) -> 1.24476143
C11: =DepnInputs!C25 -> Cumulative inflation from 2015 (one year lagged) | H11: =IF(ISBLANK(DepnInputs!H25), "", DepnInputs!H25) -> 0 | I11: =IF(ISBLANK(DepnInputs!I25), "", DepnInputs!I25) -> 0 | J11: =IF(ISBLANK(DepnInputs!J25), "", DepnInputs!J25) -> 0 | K11: =IF(ISBLANK(DepnInputs!K25), "", DepnInputs!K25) -> 0 | L11: =IF(ISBLANK(DepnInputs!L25), "", DepnInputs!L25) -> 0 | M11: =IF(ISBLANK(DepnInputs!M25), "", DepnInputs!M25) -> 1 | N11: =IF(ISBLANK(DepnInputs!N25), "", DepnInputs!N25) -> 1.015108593 | O11: =IF(ISBLANK(DepnInputs!O25), "", DepnInputs!O25) -> 1.025495751 | P11: =IF(ISBLANK(DepnInputs!P25), "", DepnInputs!P25) -> 1.045325779 | Q11: =IF(ISBLANK(DepnInputs!Q25), "", DepnInputs!Q25) -> 1.067044381 | R11: =IF(ISBLANK(DepnInputs!R25), "", DepnInputs!R25) -> 1.084041549 | S11: =IF(ISBLANK(DepnInputs!S25), "", DepnInputs!S25) -> 1.097261568
C13: Real Vanilla WACC | H13: =IF(ISBLANK(DepnInputs!H27), "", DepnInputs!H27) ->  | I13: =IF(ISBLANK(DepnInputs!I27), "", DepnInputs!I27) -> 0.06741317032 | J13: =IF(ISBLANK(DepnInputs!J27), "", DepnInputs!J27) -> 0.06741317032 | K13: =IF(ISBLANK(DepnInputs!K27), "", DepnInputs!K27) -> 0.06741317032 | L13: =IF(ISBLANK(DepnInputs!L27), "", DepnInputs!L27) -> 0.06741317032 | M13: =IF(ISBLANK(DepnInputs!M27), "", DepnInputs!M27) -> 0.06741317032 | N13: =IF(ISBLANK(DepnInputs!N27), "", DepnInputs!N27) -> 0.0367000241 | O13: =IF(ISBLANK(DepnInputs!O27), "", DepnInputs!O27) -> 0.03612756881 | P13: =IF(ISBLANK(DepnInputs!P27), "", DepnInputs!P27) -> 0.03563047885 | Q13: =IF(ISBLANK(DepnInputs!Q27), "", DepnInputs!Q27) -> 0.03508047475 | R13: =IF(ISBLANK(DepnInputs!R27), "", DepnInputs!R27) -> 0.03362104414 | S13: =IF(ISBLANK(DepnInputs!S27), "", DepnInputs!S27) -> 0.01176700175
C14: Nominal WACC | H14: =IF(ISBLANK(DepnInputs!H28), "", DepnInputs!H28) ->  | I14: =IF(ISBLANK(DepnInputs!I28), "", DepnInputs!I28) -> 0.09716905348 | J14: =IF(ISBLANK(DepnInputs!J28), "", DepnInputs!J28) -> 0.1049851284 | K14: =IF(ISBLANK(DepnInputs!K28), "", DepnInputs!K28) -> 0.08880421582 | L14: =IF(ISBLANK(DepnInputs!L28), "", DepnInputs!L28) -> 0.09048103844 | M14: =IF(ISBLANK(DepnInputs!M28), "", DepnInputs!M28) -> 0.09204578194 | N14: =IF(ISBLANK(DepnInputs!N28), "", DepnInputs!N28) -> 0.05236310284 | O14: =IF(ISBLANK(DepnInputs!O28), "", DepnInputs!O28) -> 0.0467298044 | P14: =IF(ISBLANK(DepnInputs!P28), "", DepnInputs!P28) -> 0.05565648259 | Q14: =IF(ISBLANK(DepnInputs!Q28), "", DepnInputs!Q28) -> 0.0565862118 | R14: =IF(ISBLANK(DepnInputs!R28), "", DepnInputs!R28) -> 0.05008580414 | S14: =IF(ISBLANK(DepnInputs!S28), "", DepnInputs!S28) -> 0.02410562372
C17: Closing RAB | H17: 2010
C18: From 2011-15 determination RFM for 2006-2010 | H18: $m nominal
C19: =DepnInputs!$C34 -> Subtransmission | E19: $m 2010 | H19: 181.8796403
C20: =DepnInputs!$C35 -> Distribution system assets | E20: $m 2010 | H20: 1732.467128
C21: =DepnInputs!$C36 -> Standard metering | E21: $m 2010 | H21: 71.88178788
C22: =DepnInputs!$C37 -> Public lighting | E22: $m 2010 | H22: 17.47107389
C23: =DepnInputs!$C38 -> SCADA/Network control | E23: $m 2010 | H23: 9.805343502
C24: =DepnInputs!$C39 -> Non-network general assets - IT | E24: $m 2010 | H24: 64.04314229
C25: =DepnInputs!$C40 -> Non-network general assets - Other | E25: $m 2010 | H25: 135.2810595
C26: =DepnInputs!$C41 -> VBRC | E26: $m 2010 | H26: 0
C27: =DepnInputs!$C42 -> Land | E27: $m 2010 | H27: 0
C28: =DepnInputs!$C43 -> Supervisory cables | E28: $m 2010 | H28: 0
C29: =DepnInputs!$C44 -> Old SWER ACRs | E29: $m 2010 | H29: 0
C30: =DepnInputs!$C45 -> Accelerated depreciation assets | E30: $m 2010
C31: =DepnInputs!$C46 -> 0 | E31: $m 2010
C32: =DepnInputs!$C47 -> 0 | E32: $m 2010
C33: =DepnInputs!$C48 -> 0 | E33: $m 2010
C34: =DepnInputs!$C49 -> 0 | E34: $m 2010
C35: =DepnInputs!$C50 -> 0 | E35: $m 2010
C36: =DepnInputs!$C51 -> 0 | E36: $m 2010
C37: =DepnInputs!$C52 -> 0 | E37: $m 2010
C38: =DepnInputs!$C53 -> 0 | E38: $m 2010
C39: =DepnInputs!$C54 -> Equity raising costs | E39: $m 2010 | H39: 0
C45: Net Nominal Capex with half year WACC | H45: =DepnInputs!H$21 -> 2010 | I45: =DepnInputs!I$21 -> 2011 | J45: =DepnInputs!J$21 -> 2012 | K45: =DepnInputs!K$21 -> 2013 | L45: =DepnInputs!L$21 -> 2014 | M45: =DepnInputs!M$21 -> 2015
C46: From 2016-20 determination RFM for 2011-2015 | I46: $m Nominal | J46: $m Nominal | K46: $m Nominal | L46: $m Nominal | M46: $m Nominal
C47: =DepnInputs!$C34 -> Subtransmission | E47: $m Nominal | I47: 56.35712989 | J47: 33.36180045 | K47: 95.87779139 | L47: 20.10176803 | M47: 38.66412894
C48: =DepnInputs!$C35 -> Distribution system assets | E48: $m Nominal | I48: 144.4981219 | J48: 203.5747045 | K48: 155.2740802 | L48: 229.5960313 | M48: 183.8458558
C49: =DepnInputs!$C36 -> Standard metering | E49: $m Nominal | I49: 0 | J49: 0 | K49: 0 | L49: 0 | M49: 0
C50: =DepnInputs!$C37 -> Public lighting | E50: $m Nominal | I50: 0 | J50: 0 | K50: 0 | L50: 0 | M50: 0
C51: =DepnInputs!$C38 -> SCADA/Network control | E51: $m Nominal | I51: 4.392476103 | J51: 2.756483114 | K51: 3.128672069 | L51: 3.239644728 | M51: 3.426813721
C52: =DepnInputs!$C39 -> Non-network general assets - IT | E52: $m Nominal | I52: 18.38608612 | J52: 13.8630858 | K52: 13.86179118 | L52: 20.51529095 | M52: 46.63188759
C53: =DepnInputs!$C40 -> Non-network general assets - Other | E53: $m Nominal | I53: 13.57137796 | J53: 7.284537758 | K53: 9.909028882 | L53: 28.57930813 | M53: 28.47558502
C54: =DepnInputs!$C41 -> VBRC | E54: $m Nominal | I54: 0 | J54: 10.09836328 | K54: 24.05220331 | L54: 45.75392186 | M54: 24.01279076
C55: =DepnInputs!$C42 -> Land | E55: $m Nominal | I55: 0 | J55: 0 | K55: 0 | L55: 0 | M55: 0
C56: =DepnInputs!$C43 -> Supervisory cables | E56: $m Nominal | I56: 0 | J56: 0 | K56: 0 | L56: 0 | M56: 0
C57: =DepnInputs!$C44 -> Old SWER ACRs | E57: $m Nominal | I57: 0 | J57: 0 | K57: 0 | L57: 0 | M57: 0
C58: =DepnInputs!$C45 -> Accelerated depreciation assets | E58: $m Nominal | I58: 0 | J58: 0 | K58: 0 | L58: 0 | M58: 0
C59: =DepnInputs!$C46 -> 0 | E59: $m Nominal | I59: 0 | J59: 0 | K59: 0 | L59: 0 | M59: 0
C60: =DepnInputs!$C47 -> 0 | E60: $m Nominal | I60: 0 | J60: 0 | K60: 0 | L60: 0 | M60: 0
C61: =DepnInputs!$C48 -> 0 | E61: $m Nominal | I61: 0 | J61: 0 | K61: 0 | L61: 0 | M61: 0
C62: =DepnInputs!$C49 -> 0 | E62: $m Nominal | I62: 0 | J62: 0 | K62: 0 | L62: 0 | M62: 0
C63: =DepnInputs!$C50 -> 0 | E63: $m Nominal | I63: 0 | J63: 0 | K63: 0 | L63: 0 | M63: 0
C64: =DepnInputs!$C51 -> 0 | E64: $m Nominal | I64: 0 | J64: 0 | K64: 0 | L64: 0 | M64: 0
C65: =DepnInputs!$C52 -> 0 | E65: $m Nominal | I65: 0 | J65: 0 | K65: 0 | L65: 0 | M65: 0
C66: =DepnInputs!$C53 -> 0 | E66: $m Nominal | I66: 0 | J66: 0 | K66: 0 | L66: 0 | M66: 0
C67: =DepnInputs!$C54 -> Equity raising costs | E67: $m Nominal | I67: 5.491007607 | J67: 0 | K67: 0 | L67: 0 | M67: 0
C73: Nominal depreciation | H73: =DepnInputs!H$21 -> 2010 | I73: =DepnInputs!I$21 -> 2011 | J73: =DepnInputs!J$21 -> 2012 | K73: =DepnInputs!K$21 -> 2013 | L73: =DepnInputs!L$21 -> 2014 | M73: =DepnInputs!M$21 -> 2015
C74: From 2016-20 determination RFM for 2011-2015 | I74: $m Nominal | J74: $m Nominal | K74: $m Nominal | L74: $m Nominal | M74: $m Nominal
C75: =DepnInputs!$C34 -> Subtransmission | E75: $m Nominal | I75: 7.069538537 | J75: 8.485196744 | K75: 9.335848239 | L75: 11.4966014 | M75: 12.17322069
C76: =DepnInputs!$C35 -> Distribution system assets | E76: $m Nominal | I76: 69.54419956 | J76: 74.92511711 | K76: 80.49827654 | L76: 85.34831139 | M76: 91.92366038
C77: =DepnInputs!$C36 -> Standard metering | E77: $m Nominal | I77: 12.71231114 | J77: 13.15977275 | K77: 13.42349565 | L77: 13.71359084 | M77: 14.03005832
C78: =DepnInputs!$C37 -> Public lighting | E78: $m Nominal | I78: 1.369289843 | J78: 1.417487582 | K78: 1.445894146 | L78: 1.477141368 | M78: 1.511229245
C79: =DepnInputs!$C38 -> SCADA/Network control | E79: $m Nominal | I79: 1.587701812 | J79: 1.993363388 | K79: 2.249596955 | L79: 2.544081138 | M79: 2.857744992
C80: =DepnInputs!$C39 -> Non-network general assets - IT | E80: $m Nominal | I80: 12.681677 | J80: 16.30027022 | K80: 18.98374613 | L80: 21.7542303 | M80: 25.75437113
C81: =DepnInputs!$C40 -> Non-network general assets - Other | E81: $m Nominal | I81: 14.34974605 | J81: 15.79144906 | K81: 16.603279 | L81: 17.63697069 | M81: 19.99323308
C82: =DepnInputs!$C41 -> VBRC | E82: $m Nominal | I82: 0 | J82: 0 | K82: 0.402275093 | L82: 1.370579942 | M82: 3.230273282
C83: =DepnInputs!$C42 -> Land | E83: $m Nominal | I83: 0 | J83: 0 | K83: 0 | L83: 0 | M83: 0
C84: =DepnInputs!$C43 -> Supervisory cables | E84: $m Nominal | I84: 0 | J84: 0 | K84: 0 | L84: 0 | M84: 0
C85: =DepnInputs!$C44 -> Old SWER ACRs | E85: $m Nominal | I85: 0 | J85: 0 | K85: 0 | L85: 0 | M85: 0
C86: =DepnInputs!$C45 -> Accelerated depreciation assets | E86: $m Nominal | I86: 0 | J86: 0 | K86: 0 | L86: 0 | M86: 0
C87: =DepnInputs!$C46 -> 0 | E87: $m Nominal | I87: 0 | J87: 0 | K87: 0 | L87: 0 | M87: 0
C88: =DepnInputs!$C47 -> 0 | E88: $m Nominal | I88: 0 | J88: 0 | K88: 0 | L88: 0 | M88: 0
C89: =DepnInputs!$C48 -> 0 | E89: $m Nominal | I89: 0 | J89: 0 | K89: 0 | L89: 0 | M89: 0
C90: =DepnInputs!$C49 -> 0 | E90: $m Nominal | I90: 0 | J90: 0 | K90: 0 | L90: 0 | M90: 0
C91: =DepnInputs!$C50 -> 0 | E91: $m Nominal | I91: 0 | J91: 0 | K91: 0 | L91: 0 | M91: 0
C92: =DepnInputs!$C51 -> 0 | E92: $m Nominal | I92: 0 | J92: 0 | K92: 0 | L92: 0 | M92: 0
C93: =DepnInputs!$C52 -> 0 | E93: $m Nominal | I93: 0 | J93: 0 | K93: 0 | L93: 0 | M93: 0
C94: =DepnInputs!$C53 -> 0 | E94: $m Nominal | I94: 0 | J94: 0 | K94: 0 | L94: 0 | M94: 0
C95: =DepnInputs!$C54 -> Equity raising costs | E95: $m Nominal | I95: 0 | J95: 0.1257951755 | K95: 0.1283161209 | L95: 0.1310891608 | M95: 0.1341142953
C100: Nominal Closing Balance | H100: =DepnInputs!H$21 -> 2010 | I100: =DepnInputs!I$21 -> 2011 | J100: =DepnInputs!J$21 -> 2012 | K100: =DepnInputs!K$21 -> 2013 | L100: =DepnInputs!L$21 -> 2014 | M100: =DepnInputs!M$21 -> 2015
I101: $m Nominal | J101: $m Nominal | K101: $m Nominal | L101: $m Nominal | M101: $m Nominal
C102: =DepnInputs!$C34 -> Subtransmission | E102: $m Nominal | H102: =IF(H$100=$E$4, H19, G102+H47-H75+H$9*G102 ) -> 181.8796403 | I102: 236.2374233 | J102: 269.4293662 | K102: 361.3706955 | L102: 377.7854449 | M102: 412.9944788
C103: =DepnInputs!$C35 -> Distribution system assets | E103: $m Nominal | H103: 1732.467128 | I103: 1855.716397 | J103: 2049.685489 | K103: 2165.537154 | L103: 2356.584302 | M103: 2502.889212
C104: =DepnInputs!$C36 -> Standard metering | E104: $m Nominal | H104: 71.88178788 | I104: 61.17329883 | J104: 50.16676972 | K104: 37.74862016 | L104: 24.85081482 | M104: 11.39423684
C105: =DepnInputs!$C37 -> Public lighting | E105: $m Nominal | H105: 17.47107389 | I105: 16.58881873 | J105: 15.75524225 | K105: 14.62508442 | L105: 13.46400578 | M105: 12.26348436
C106: =DepnInputs!$C38 -> SCADA/Network control | E106: $m Nominal | H106: 9.805343502 | I106: 12.88345774 | J106: 14.10006328 | K106: 15.26170479 | L106: 16.28708912 | M106: 17.23201375
C107: =DepnInputs!$C39 -> Non-network general assets - IT | E107: $m Nominal | H107: 64.04314229 | I107: 71.53285846 | J107: 71.61356461 | K107: 67.92675123 | L107: 68.15577703 | M107: 90.60611911
C108: =DepnInputs!$C40 -> Non-network general assets - Other | E108: $m Nominal | H108: 135.2810595 | I108: 138.2738716 | J108: 134.6340729 | K108: 130.6379004 | L108: 144.4034538 | M108: 156.2181931
C109: =DepnInputs!$C41 -> VBRC | E109: $m Nominal | H109: 0 | I109: 0 | J109: 10.09836328 | K109: 33.9506635 | L109: 79.06771327 | M109: 101.6748703
C110: =DepnInputs!$C42 -> Land | E110: $m Nominal | H110: 0 | I110: 0 | J110: 0 | K110: 0 | L110: 0 | M110: 0
C111: =DepnInputs!$C43 -> Supervisory cables | E111: $m Nominal | H111: 0 | I111: 0 | J111: 0 | K111: 0 | L111: 0 | M111: 0
C112: =DepnInputs!$C44 -> Old SWER ACRs | E112: $m Nominal | H112: =IF(H$100=$E$4, H29, G112+H57-H85+H$9*G112 ) -> 0 | I112: 0 | J112: 0 | K112: 0 | L112: 0 | M112: 0
C113: =DepnInputs!$C45 -> Accelerated depreciation assets | E113: $m Nominal | H113: 0 | I113: 0 | J113: 0 | K113: 0 | L113: 0 | M113: 0
C114: =DepnInputs!$C46 -> 0 | E114: $m Nominal | H114: 0 | I114: 0 | J114: 0 | K114: 0 | L114: 0 | M114: 0
C115: =DepnInputs!$C47 -> 0 | E115: $m Nominal | H115: 0 | I115: 0 | J115: 0 | K115: 0 | L115: 0 | M115: 0
C116: =DepnInputs!$C48 -> 0 | E116: $m Nominal | H116: 0 | I116: 0 | J116: 0 | K116: 0 | L116: 0 | M116: 0
C117: =DepnInputs!$C49 -> 0 | E117: $m Nominal | H117: 0 | I117: 0 | J117: 0 | K117: 0 | L117: 0 | M117: 0
C118: =DepnInputs!$C50 -> 0 | E118: $m Nominal | H118: 0 | I118: 0 | J118: 0 | K118: 0 | L118: 0 | M118: 0
C119: =DepnInputs!$C51 -> 0 | E119: $m Nominal | H119: 0 | I119: 0 | J119: 0 | K119: 0 | L119: 0 | M119: 0
C120: =DepnInputs!$C52 -> 0 | E120: $m Nominal | H120: 0 | I120: 0 | J120: 0 | K120: 0 | L120: 0 | M120: 0
C121: =DepnInputs!$C53 -> 0 | E121: $m Nominal | H121: 0 | I121: 0 | J121: 0 | K121: 0 | L121: 0 | M121: 0
C122: =DepnInputs!$C54 -> Equity raising costs | E122: $m Nominal | H122: =IF(H$100=$E$4, H39, G122+H67-H95+H$9*G122 ) -> 0 | I122: 5.491007607 | J122: 5.55849083 | K122: 5.541567311 | L122: 5.530236972 | M122: 5.52374353
C123: Total | H123: =SUM(H102:H122) -> 2212.829175 | I123: 2397.897134 | J123: 2621.041422 | K123: 2832.600141 | L123: 3086.128837 | M123: 3310.796351
C128: Difference Between Actual and Forecast Net Capex
C129: From 2016-20 determination RFM for 2011-2015 | I129: $m Nominal | J129: $m Nominal | K129: $m Nominal | L129: $m Nominal | M129: $m Nominal
C130: =DepnInputs!$C34 -> Subtransmission | E130: $m Nominal | H130: -10.78883131
C131: =DepnInputs!$C35 -> Distribution system assets | E131: $m Nominal | H131: -2.284799508
C132: =DepnInputs!$C36 -> Standard metering | E132: $m Nominal | H132: 0
C133: =DepnInputs!$C37 -> Public lighting | E133: $m Nominal | H133: 0
C134: =DepnInputs!$C38 -> SCADA/Network control | E134: $m Nominal | H134: -1.12148576
C135: =DepnInputs!$C39 -> Non-network general assets - IT | E135: $m Nominal | H135: 0.9563313837
C136: =DepnInputs!$C40 -> Non-network general assets - Other | E136: $m Nominal | H136: -5.414575235
C137: =DepnInputs!$C41 -> VBRC | E137: $m Nominal | H137: 0
C138: =DepnInputs!$C42 -> Land | E138: $m Nominal | H138: 0
C139: =DepnInputs!$C43 -> Supervisory cables | E139: $m Nominal | H139: 0
C140: =DepnInputs!$C44 -> Old SWER ACRs | E140: $m Nominal | H140: 0
C141: =DepnInputs!$C45 -> Accelerated depreciation assets | E141: $m Nominal | H141: 0
C142: =DepnInputs!$C46 -> 0 | E142: $m Nominal | H142: 0
C143: =DepnInputs!$C47 -> 0 | E143: $m Nominal | H143: 0
C144: =DepnInputs!$C48 -> 0 | E144: $m Nominal | H144: 0
C145: =DepnInputs!$C49 -> 0 | E145: $m Nominal | H145: 0
C146: =DepnInputs!$C50 -> 0 | E146: $m Nominal | H146: 0
C147: =DepnInputs!$C51 -> 0 | E147: $m Nominal | H147: 0
C148: =DepnInputs!$C52 -> 0 | E148: $m Nominal | H148: 0
C149: =DepnInputs!$C53 -> 0 | E149: $m Nominal | H149: 0
C150: =DepnInputs!$C54 -> Equity raising costs | E150: $m Nominal | H150: 0
C151: Total | H151: =SUM(H130:H150) -> -18.65336043 | M151: =SUM(M130:M150) -> 0
C156: Return on Difference - Net Capex | H156: =DepnInputs!H$21 -> 2010 | I156: =DepnInputs!I$21 -> 2011 | J156: =DepnInputs!J$21 -> 2012 | K156: =DepnInputs!K$21 -> 2013 | L156: =DepnInputs!L$21 -> 2014 | M156: =DepnInputs!M$21 -> 2015
I157: $m Nominal | J157: $m Nominal | K157: $m Nominal | L157: $m Nominal | M157: $m Nominal
C158: =DepnInputs!$C34 -> Subtransmission | E158: $m Nominal | I158: =($H130+SUM($H158:H158))*DepnInputs!I$28 -> -1.048340527 | J158: =($H130+SUM($H158:I158))*DepnInputs!J$28 -> -1.242727005 | K158: =($H130+SUM($H158:J158))*DepnInputs!K$28 -> -1.16155016 | L158: =($H130+SUM($H158:K158))*DepnInputs!L$28 -> -1.288581095 | M158: =($H130+SUM($H158:L158))*DepnInputs!M$28 -> -1.429473764
C159: =DepnInputs!$C35 -> Distribution system assets | E159: $m Nominal | I159: =($H131+SUM($H159:H159))*DepnInputs!I$28 -> -0.2220118056 | J159: =($H131+SUM($H159:I159))*DepnInputs!J$28 -> -0.2631779077 | K159: =($H131+SUM($H159:J159))*DepnInputs!K$28 -> -0.2459867206 | L159: =($H131+SUM($H159:K159))*DepnInputs!L$28 -> -0.2728886351 | M159: =($H131+SUM($H159:L159))*DepnInputs!M$28 -> -0.3027261117
C160: =DepnInputs!$C36 -> Standard metering | E160: $m Nominal | I160: =($H132+SUM($H160:H160))*DepnInputs!I$28 -> 0 | J160: =($H132+SUM($H160:I160))*DepnInputs!J$28 -> 0 | K160: =($H132+SUM($H160:J160))*DepnInputs!K$28 -> 0 | L160: =($H132+SUM($H160:K160))*DepnInputs!L$28 -> 0 | M160: =($H132+SUM($H160:L160))*DepnInputs!M$28 -> 0
C161: =DepnInputs!$C37 -> Public lighting | E161: $m Nominal | I161: =($H133+SUM($H161:H161))*DepnInputs!I$28 -> 0 | J161: =($H133+SUM($H161:I161))*DepnInputs!J$28 -> 0 | K161: =($H133+SUM($H161:J161))*DepnInputs!K$28 -> 0 | L161: =($H133+SUM($H161:K161))*DepnInputs!L$28 -> 0 | M161: =($H133+SUM($H161:L161))*DepnInputs!M$28 -> 0
C162: =DepnInputs!$C38 -> SCADA/Network control | E162: $m Nominal | I162: =($H134+SUM($H162:H162))*DepnInputs!I$28 -> -0.1089737098 | J162: =($H134+SUM($H162:I162))*DepnInputs!J$28 -> -0.1291799455 | K162: =($H134+SUM($H162:J162))*DepnInputs!K$28 -> -0.1207417121 | L162: =($H134+SUM($H162:K162))*DepnInputs!L$28 -> -0.1339464217 | M162: =($H134+SUM($H162:L162))*DepnInputs!M$28 -> -0.1485920416
C163: =DepnInputs!$C39 -> Non-network general assets - IT | E163: $m Nominal | I163: =($H135+SUM($H163:H163))*DepnInputs!I$28 -> 0.09292581536 | J163: =($H135+SUM($H163:I163))*DepnInputs!J$28 -> 0.1101564018 | K163: =($H135+SUM($H163:J163))*DepnInputs!K$28 -> 0.1029608156 | L163: =($H135+SUM($H163:K163))*DepnInputs!L$28 -> 0.1142209481 | M163: =($H135+SUM($H163:L163))*DepnInputs!M$28 -> 0.1267097967
C164: =DepnInputs!$C40 -> Non-network general assets - Other | E164: $m Nominal | I164: =($H136+SUM($H164:H164))*DepnInputs!I$28 -> -0.5261291505 | J164: =($H136+SUM($H164:I164))*DepnInputs!J$28 -> -0.6236856128 | K164: =($H136+SUM($H164:J164))*DepnInputs!K$28 -> -0.5829455061 | L164: =($H136+SUM($H164:K164))*DepnInputs!L$28 -> -0.6466983385 | M164: =($H136+SUM($H164:L164))*DepnInputs!M$28 -> -0.7174079395
C165: =DepnInputs!$C41 -> VBRC | E165: $m Nominal | I165: =($H137+SUM($H165:H165))*DepnInputs!I$28 -> 0 | J165: =($H137+SUM($H165:I165))*DepnInputs!J$28 -> 0 | K165: =($H137+SUM($H165:J165))*DepnInputs!K$28 -> 0 | L165: =($H137+SUM($H165:K165))*DepnInputs!L$28 -> 0 | M165: =($H137+SUM($H165:L165))*DepnInputs!M$28 -> 0
C166: =DepnInputs!$C42 -> Land | E166: $m Nominal | I166: =($H138+SUM($H166:H166))*DepnInputs!I$28 -> 0 | J166: =($H138+SUM($H166:I166))*DepnInputs!J$28 -> 0 | K166: =($H138+SUM($H166:J166))*DepnInputs!K$28 -> 0 | L166: =($H138+SUM($H166:K166))*DepnInputs!L$28 -> 0 | M166: =($H138+SUM($H166:L166))*DepnInputs!M$28 -> 0
C167: =DepnInputs!$C43 -> Supervisory cables | E167: $m Nominal | I167: =($H139+SUM($H167:H167))*DepnInputs!I$28 -> 0 | J167: =($H139+SUM($H167:I167))*DepnInputs!J$28 -> 0 | K167: =($H139+SUM($H167:J167))*DepnInputs!K$28 -> 0 | L167: =($H139+SUM($H167:K167))*DepnInputs!L$28 -> 0 | M167: =($H139+SUM($H167:L167))*DepnInputs!M$28 -> 0
C168: =DepnInputs!$C44 -> Old SWER ACRs | E168: $m Nominal | I168: =($H140+SUM($H168:H168))*DepnInputs!I$28 -> 0 | J168: =($H140+SUM($H168:I168))*DepnInputs!J$28 -> 0 | K168: =($H140+SUM($H168:J168))*DepnInputs!K$28 -> 0 | L168: =($H140+SUM($H168:K168))*DepnInputs!L$28 -> 0 | M168: =($H140+SUM($H168:L168))*DepnInputs!M$28 -> 0
C169: =DepnInputs!$C45 -> Accelerated depreciation assets | E169: $m Nominal | I169: =($H141+SUM($H169:H169))*DepnInputs!I$28 -> 0 | J169: =($H141+SUM($H169:I169))*DepnInputs!J$28 -> 0 | K169: =($H141+SUM($H169:J169))*DepnInputs!K$28 -> 0 | L169: =($H141+SUM($H169:K169))*DepnInputs!L$28 -> 0 | M169: =($H141+SUM($H169:L169))*DepnInputs!M$28 -> 0
C170: =DepnInputs!$C46 -> 0 | E170: $m Nominal | I170: =($H142+SUM($H170:H170))*DepnInputs!I$28 -> 0 | J170: =($H142+SUM($H170:I170))*DepnInputs!J$28 -> 0 | K170: =($H142+SUM($H170:J170))*DepnInputs!K$28 -> 0 | L170: =($H142+SUM($H170:K170))*DepnInputs!L$28 -> 0 | M170: =($H142+SUM($H170:L170))*DepnInputs!M$28 -> 0
C171: =DepnInputs!$C47 -> 0 | E171: $m Nominal | I171: =($H143+SUM($H171:H171))*DepnInputs!I$28 -> 0 | J171: =($H143+SUM($H171:I171))*DepnInputs!J$28 -> 0 | K171: =($H143+SUM($H171:J171))*DepnInputs!K$28 -> 0 | L171: =($H143+SUM($H171:K171))*DepnInputs!L$28 -> 0 | M171: =($H143+SUM($H171:L171))*DepnInputs!M$28 -> 0
C172: =DepnInputs!$C48 -> 0 | E172: $m Nominal | I172: =($H144+SUM($H172:H172))*DepnInputs!I$28 -> 0 | J172: =($H144+SUM($H172:I172))*DepnInputs!J$28 -> 0 | K172: =($H144+SUM($H172:J172))*DepnInputs!K$28 -> 0 | L172: =($H144+SUM($H172:K172))*DepnInputs!L$28 -> 0 | M172: =($H144+SUM($H172:L172))*DepnInputs!M$28 -> 0
C173: =DepnInputs!$C49 -> 0 | E173: $m Nominal | I173: =($H145+SUM($H173:H173))*DepnInputs!I$28 -> 0 | J173: =($H145+SUM($H173:I173))*DepnInputs!J$28 -> 0 | K173: =($H145+SUM($H173:J173))*DepnInputs!K$28 -> 0 | L173: =($H145+SUM($H173:K173))*DepnInputs!L$28 -> 0 | M173: =($H145+SUM($H173:L173))*DepnInputs!M$28 -> 0
C174: =DepnInputs!$C50 -> 0 | E174: $m Nominal | I174: =($H146+SUM($H174:H174))*DepnInputs!I$28 -> 0 | J174: =($H146+SUM($H174:I174))*DepnInputs!J$28 -> 0 | K174: =($H146+SUM($H174:J174))*DepnInputs!K$28 -> 0 | L174: =($H146+SUM($H174:K174))*DepnInputs!L$28 -> 0 | M174: =($H146+SUM($H174:L174))*DepnInputs!M$28 -> 0
C175: =DepnInputs!$C51 -> 0 | E175: $m Nominal | I175: =($H147+SUM($H175:H175))*DepnInputs!I$28 -> 0 | J175: =($H147+SUM($H175:I175))*DepnInputs!J$28 -> 0 | K175: =($H147+SUM($H175:J175))*DepnInputs!K$28 -> 0 | L175: =($H147+SUM($H175:K175))*DepnInputs!L$28 -> 0 | M175: =($H147+SUM($H175:L175))*DepnInputs!M$28 -> 0
C176: =DepnInputs!$C52 -> 0 | E176: $m Nominal | I176: =($H148+SUM($H176:H176))*DepnInputs!I$28 -> 0 | J176: =($H148+SUM($H176:I176))*DepnInputs!J$28 -> 0 | K176: =($H148+SUM($H176:J176))*DepnInputs!K$28 -> 0 | L176: =($H148+SUM($H176:K176))*DepnInputs!L$28 -> 0 | M176: =($H148+SUM($H176:L176))*DepnInputs!M$28 -> 0
C177: =DepnInputs!$C53 -> 0 | E177: $m Nominal | I177: =($H149+SUM($H177:H177))*DepnInputs!I$28 -> 0 | J177: =($H149+SUM($H177:I177))*DepnInputs!J$28 -> 0 | K177: =($H149+SUM($H177:J177))*DepnInputs!K$28 -> 0 | L177: =($H149+SUM($H177:K177))*DepnInputs!L$28 -> 0 | M177: =($H149+SUM($H177:L177))*DepnInputs!M$28 -> 0
C178: =DepnInputs!$C54 -> Equity raising costs | E178: $m Nominal | I178: =($H150+SUM($H178:H178))*DepnInputs!I$28 -> 0 | J178: =($H150+SUM($H178:I178))*DepnInputs!J$28 -> 0 | K178: =($H150+SUM($H178:J178))*DepnInputs!K$28 -> 0 | L178: =($H150+SUM($H178:K178))*DepnInputs!L$28 -> 0 | M178: =($H150+SUM($H178:L178))*DepnInputs!M$28 -> 0
C179: Total | H179: =SUM(H158:H178) -> 0 | I179: -1.812529377 | J179: -2.14861407 | K179: -2.008263283 | L179: -2.227893542 | M179: -2.47149006
C184: Adjustments for Supervisory cables and Older SWER ACRs | H184: =DepnInputs!H$21 -> 2010 | I184: =DepnInputs!I$21 -> 2011 | J184: =DepnInputs!J$21 -> 2012 | K184: =DepnInputs!K$21 -> 2013 | L184: =DepnInputs!L$21 -> 2014 | M184: =DepnInputs!M$21 -> 2015
C185: From 2016-20 determination RFM for 2011-2015 | I185: $m Nominal | J185: $m Nominal | K185: $m Nominal | L185: $m Nominal | M185: $m Nominal
C186: =DepnInputs!$C34 -> Subtransmission | E186: $m Nominal
C187: =DepnInputs!$C35 -> Distribution system assets | E187: $m Nominal | M187: =-SUM(M193:M205) -> -17.85310726
C188: =DepnInputs!$C36 -> Standard metering | E188: $m Nominal
C189: =DepnInputs!$C37 -> Public lighting | E189: $m Nominal
C190: =DepnInputs!$C38 -> SCADA/Network control | E190: $m Nominal
C191: =DepnInputs!$C39 -> Non-network general assets - IT | E191: $m Nominal
C192: =DepnInputs!$C40 -> Non-network general assets - Other | E192: $m Nominal
C193: =DepnInputs!$C41 -> VBRC | E193: $m Nominal
C194: =DepnInputs!$C42 -> Land | E194: $m Nominal | M194: 0
C195: =DepnInputs!$C43 -> Supervisory cables | E195: $m Nominal | M195: 3.339696637
C196: =DepnInputs!$C44 -> Old SWER ACRs | E196: $m Nominal | M196: 14.51341062
C197: =DepnInputs!$C45 -> Accelerated depreciation assets | E197: $m Nominal | M197: 0
C198: =DepnInputs!$C46 -> 0 | E198: $m Nominal | M198: 0
C199: =DepnInputs!$C47 -> 0 | E199: $m Nominal
C200: =DepnInputs!$C48 -> 0 | E200: $m Nominal
C201: =DepnInputs!$C49 -> 0 | E201: $m Nominal
C202: =DepnInputs!$C50 -> 0 | E202: $m Nominal
C203: =DepnInputs!$C51 -> 0 | E203: $m Nominal
C204: =DepnInputs!$C52 -> 0 | E204: $m Nominal
C205: =DepnInputs!$C53 -> 0 | E205: $m Nominal
C206: =DepnInputs!$C54 -> Equity raising costs | E206: $m Nominal
C207: Total | H207: =SUM(H186:H206) -> 0 | I207: 0 | J207: 0 | K207: 0 | L207: 0 | M207: 0
C212: Adjustment for 6 month indexation | H212: =DepnInputs!H$21 -> 2010 | I212: =DepnInputs!I$21 -> 2011 | J212: =DepnInputs!J$21 -> 2012 | K212: =DepnInputs!K$21 -> 2013 | L212: =DepnInputs!L$21 -> 2014 | M212: =DepnInputs!M$21 -> 2015
C213: From 2016-20 determination RFM for 2011-2015 | H213: $m Nominal | I213: $m Nominal | J213: $m Nominal | K213: $m Nominal | L213: $m Nominal | M213: $m Nominal
C214: =DepnInputs!$C34 -> Subtransmission | E214: $m Nominal | M214: 1.832661168
C215: =DepnInputs!$C35 -> Distribution system assets | E215: $m Nominal | M215: 18.80767959
C216: =DepnInputs!$C36 -> Standard metering | E216: $m Nominal | M216: 1.94490761
C217: =DepnInputs!$C37 -> Public lighting | E217: $m Nominal | M217: 0.3853671565
C218: =DepnInputs!$C38 -> SCADA/Network control | E218: $m Nominal | M218: 0.1732511026
C219: =DepnInputs!$C39 -> Non-network general assets - IT | E219: $m Nominal | M219: 1.394049642
C220: =DepnInputs!$C40 -> Non-network general assets - Other | E220: $m Nominal | M220: 0.9914581471
C221: =DepnInputs!$C41 -> VBRC | E221: $m Nominal | M221: 0
C222: =DepnInputs!$C42 -> Land | E222: $m Nominal | M222: 0
C223: =DepnInputs!$C43 -> Supervisory cables | E223: $m Nominal | M223: 0
C224: =DepnInputs!$C44 -> Old SWER ACRs | E224: $m Nominal | M224: 0
C225: =DepnInputs!$C45 -> Accelerated depreciation assets | E225: $m Nominal | M225: 0
C226: =DepnInputs!$C46 -> 0 | E226: $m Nominal | M226: 0
C227: =DepnInputs!$C47 -> 0 | E227: $m Nominal | M227: 0
C228: =DepnInputs!$C48 -> 0 | E228: $m Nominal | M228: 0
C229: =DepnInputs!$C49 -> 0 | E229: $m Nominal | M229: 0
C230: =DepnInputs!$C50 -> 0 | E230: $m Nominal | M230: 0
C231: =DepnInputs!$C51 -> 0 | E231: $m Nominal | M231: 0
C232: =DepnInputs!$C52 -> 0 | E232: $m Nominal | M232: 0
C233: =DepnInputs!$C53 -> 0 | E233: $m Nominal | M233: 0
C234: =DepnInputs!$C54 -> Equity raising costs | E234: $m Nominal | M234: 0
C235: Total | H235: =SUM(H214:H234) -> 0 | I235: 0 | J235: 0 | K235: 0 | L235: 0 | M235: 25.52937442
C240: Total Adjustments | H240: =DepnInputs!H$21 -> 2010 | I240: =DepnInputs!I$21 -> 2011 | J240: =DepnInputs!J$21 -> 2012 | K240: =DepnInputs!K$21 -> 2013 | L240: =DepnInputs!L$21 -> 2014 | M240: =DepnInputs!M$21 -> 2015
... 143 more rows

Sheet 2020_21
A1: =DepnInputs!A1 -> Powercor Depreciation
A2: 2020-21 Half year period
C4: Opening RAB from: | E4: 2020
C7: Inflation | M7: 2015 | N7: =M7+1 -> 2016 | O7: =N7+1 -> 2017 | P7: =O7+1 -> 2018 | Q7: =P7+1 -> 2019 | R7: =Q7+1 -> 2020 | S7: 2021
M8: =IF(ISBLANK(DepnInputs!M22), "", DepnInputs!M22) -> Actual | N8: =IF(ISBLANK(DepnInputs!N22), "", DepnInputs!N22) -> Actual | O8: =IF(ISBLANK(DepnInputs!O22), "", DepnInputs!O22) -> Actual | P8: =IF(ISBLANK(DepnInputs!P22), "", DepnInputs!P22) -> Actual | Q8: =IF(ISBLANK(DepnInputs!Q22), "", DepnInputs!Q22) -> Actual | R8: =IF(ISBLANK(DepnInputs!R22), "", DepnInputs!R22) -> Actual | S8: =IF(ISBLANK(DepnInputs!S22), "", DepnInputs!S22) -> Actual
C9: Actual Inflation | M9: =IF(ISBLANK(DepnInputs!M23), "", DepnInputs!M23) -> 0.02307692308 | N9: =IF(ISBLANK(DepnInputs!N23), "", DepnInputs!N23) -> 0.01510859301 | O9: =IF(ISBLANK(DepnInputs!O23), "", DepnInputs!O23) -> 0.01023255814 | P9: =IF(ISBLANK(DepnInputs!P23), "", DepnInputs!P23) -> 0.01933701657 | Q9: =IF(ISBLANK(DepnInputs!Q23), "", DepnInputs!Q23) -> 0.02077687444 | R9: =IF(ISBLANK(DepnInputs!R23), "", DepnInputs!R23) -> 0.01592920354 | S9: =IF(ISBLANK(DepnInputs!S23), "", DepnInputs!S23) -> 0.01219512195
C10: =DepnInputs!C24 -> Cumulative inflation from 2010 (one year lagged) | M10: =IF(ISBLANK(DepnInputs!M24), "", DepnInputs!M24) -> 1.134425434 | N10: =IF(ISBLANK(DepnInputs!N24), "", DepnInputs!N24) -> 1.151565007 | O10: =IF(ISBLANK(DepnInputs!O24), "", DepnInputs!O24) -> 1.163348463 | P10: =IF(ISBLANK(DepnInputs!P24), "", DepnInputs!P24) -> 1.185844151 | Q10: =IF(ISBLANK(DepnInputs!Q24), "", DepnInputs!Q24) -> 1.210482286 | R10: =IF(ISBLANK(DepnInputs!R24), "", DepnInputs!R24) -> 1.229764305 | S10: =IF(ISBLANK(DepnInputs!S24), "", DepnInputs!S24) -> 1.24476143
C11: =DepnInputs!C25 -> Cumulative inflation from 2015 (one year lagged) | M11: =IF(ISBLANK(DepnInputs!M25), "", DepnInputs!M25) -> 1 | N11: =IF(ISBLANK(DepnInputs!N25), "", DepnInputs!N25) -> 1.015108593 | O11: =IF(ISBLANK(DepnInputs!O25), "", DepnInputs!O25) -> 1.025495751 | P11: =IF(ISBLANK(DepnInputs!P25), "", DepnInputs!P25) -> 1.045325779 | Q11: =IF(ISBLANK(DepnInputs!Q25), "", DepnInputs!Q25) -> 1.067044381 | R11: =IF(ISBLANK(DepnInputs!R25), "", DepnInputs!R25) -> 1.084041549 | S11: =IF(ISBLANK(DepnInputs!S25), "", DepnInputs!S25) -> 1.097261568
C13: Real Vanilla WACC | M13: =IF(ISBLANK(DepnInputs!M27), "", DepnInputs!M27) -> 0.06741317032 | N13: =IF(ISBLANK(DepnInputs!N27), "", DepnInputs!N27) -> 0.0367000241 | O13: =IF(ISBLANK(DepnInputs!O27), "", DepnInputs!O27) -> 0.03612756881 | P13: =IF(ISBLANK(DepnInputs!P27), "", DepnInputs!P27) -> 0.03563047885 | Q13: =IF(ISBLANK(DepnInputs!Q27), "", DepnInputs!Q27) -> 0.03508047475 | R13: =IF(ISBLANK(DepnInputs!R27), "", DepnInputs!R27) -> 0.03362104414 | S13: =IF(ISBLANK(DepnInputs!S27), "", DepnInputs!S27) -> 0.01176700175 | T13: =IF(ISBLANK(DepnInputs!T27), "", DepnInputs!T27) ->  | U13: =IF(ISBLANK(DepnInputs!U27), "", DepnInputs!U27) ->  | V13: =IF(ISBLANK(DepnInputs!V27), "", DepnInputs!V27) ->  | W13: =IF(ISBLANK(DepnInputs!W27), "", DepnInputs!W27) ->  | X13: =IF(ISBLANK(DepnInputs!X27), "", DepnInputs!X27) ->  | Y13: =IF(ISBLANK(DepnInputs!Y27), "", DepnInputs!Y27) ->  | Z13: =IF(ISBLANK(DepnInputs!Z27), "", DepnInputs!Z27) ->  | AA13: =IF(ISBLANK(DepnInputs!AA27), "", DepnInputs!AA27) ->  | AB13: =IF(ISBLANK(DepnInputs!AB27), "", DepnInputs!AB27) -> 
C14: Nominal WACC | M14: =IF(ISBLANK(DepnInputs!M28), "", DepnInputs!M28) -> 0.09204578194 | N14: =IF(ISBLANK(DepnInputs!N28), "", DepnInputs!N28) -> 0.05236310284 | O14: =IF(ISBLANK(DepnInputs!O28), "", DepnInputs!O28) -> 0.0467298044 | P14: =IF(ISBLANK(DepnInputs!P28), "", DepnInputs!P28) -> 0.05565648259 | Q14: =IF(ISBLANK(DepnInputs!Q28), "", DepnInputs!Q28) -> 0.0565862118 | R14: =IF(ISBLANK(DepnInputs!R28), "", DepnInputs!R28) -> 0.05008580414 | S14: =IF(ISBLANK(DepnInputs!S28), "", DepnInputs!S28) -> 0.02410562372 | T14: =IF(ISBLANK(DepnInputs!T28), "", DepnInputs!T28) ->  | U14: =IF(ISBLANK(DepnInputs!U28), "", DepnInputs!U28) ->  | V14: =IF(ISBLANK(DepnInputs!V28), "", DepnInputs!V28) ->  | W14: =IF(ISBLANK(DepnInputs!W28), "", DepnInputs!W28) ->  | X14: =IF(ISBLANK(DepnInputs!X28), "", DepnInputs!X28) ->  | Y14: =IF(ISBLANK(DepnInputs!Y28), "", DepnInputs!Y28) ->  | Z14: =IF(ISBLANK(DepnInputs!Z28), "", DepnInputs!Z28) ->  | AA14: =IF(ISBLANK(DepnInputs!AA28), "", DepnInputs!AA28) ->  | AB14: =IF(ISBLANK(DepnInputs!AB28), "", DepnInputs!AB28) -> 
C17: ='2011_15'!C296 -> Adjusted Closing Balance | R17: =R7 -> 2020
R18: ='2016_20'!R297 -> $m Nominal
C19: =DepnInputs!$C34 -> Subtransmission | E19: $m 2010 | R19: ='2016_20'!R298 -> 601.5962897
C20: =DepnInputs!$C35 -> Distribution system assets | E20: $m 2010 | R20: ='2016_20'!R299 -> 3098.540019
C21: =DepnInputs!$C36 -> Standard metering | E21: $m 2010 | R21: ='2016_20'!R300 -> 1.5501915e-14
C22: =DepnInputs!$C37 -> Public lighting | E22: $m 2010 | R22: ='2016_20'!R301 -> 5.26330499
C23: =DepnInputs!$C38 -> SCADA/Network control | E23: $m 2010 | R23: ='2016_20'!R302 -> 85.66132446
C24: =DepnInputs!$C39 -> Non-network general assets - IT | E24: $m 2010 | R24: ='2016_20'!R303 -> 87.36239218
C25: =DepnInputs!$C40 -> Non-network general assets - Other | E25: $m 2010 | R25: ='2016_20'!R304 -> 246.5490171
C26: =DepnInputs!$C41 -> VBRC | E26: $m 2010 | R26: ='2016_20'!R305 -> 150.6640396
C27: =DepnInputs!$C42 -> Land | E27: $m 2010 | R27: ='2016_20'!R306 -> 24.27123113
C28: =DepnInputs!$C43 -> Supervisory cables | E28: $m 2010 | R28: ='2016_20'!R307 -> -1.482018642e-16
C29: =DepnInputs!$C44 -> Old SWER ACRs | E29: $m 2010 | R29: ='2016_20'!R308 -> 1.58206781e-15
C30: =DepnInputs!$C45 -> Accelerated depreciation assets | E30: $m 2010 | R30: ='2016_20'!R309 -> 0
C31: =DepnInputs!$C46 -> 0 | E31: $m 2010 | R31: ='2016_20'!R310 -> 0
C32: =DepnInputs!$C47 -> 0 | E32: $m 2010 | R32: ='2016_20'!R311 -> 0
C33: =DepnInputs!$C48 -> 0 | E33: $m 2010 | R33: ='2016_20'!R312 -> 0
C34: =DepnInputs!$C49 -> 0 | E34: $m 2010 | R34: ='2016_20'!R313 -> 0
C35: =DepnInputs!$C50 -> 0 | E35: $m 2010 | R35: ='2016_20'!R314 -> 0
C36: =DepnInputs!$C51 -> 0 | E36: $m 2010 | R36: ='2016_20'!R315 -> 0
C37: =DepnInputs!$C52 -> 0 | E37: $m 2010 | R37: ='2016_20'!R316 -> 0
C38: =DepnInputs!$C53 -> 0 | E38: $m 2010 | R38: ='2016_20'!R317 -> 0
C39: =DepnInputs!$C54 -> Equity raising costs | E39: $m 2010 | R39: ='2016_20'!R318 -> 18.88821192
C45: Net Nominal Capex with half year WACC | M45: =M$7 -> 2015 | N45: 2016 | O45: 2017 | P45: 2018 | Q45: 2019 | R45: 2020 | S45: 2021
N46: $m Nominal | O46: $m Nominal | P46: $m Nominal | Q46: $m Nominal | R46: $m Nominal | S46: $m Nominal
C47: =DepnInputs!$C34 -> Subtransmission | E47: $m Nominal | S47: 32.1507837
C48: =DepnInputs!$C35 -> Distribution system assets | E48: $m Nominal | S48: 147.4458017
C49: =DepnInputs!$C36 -> Standard metering | E49: $m Nominal | S49: 0
C50: =DepnInputs!$C37 -> Public lighting | E50: $m Nominal | S50: 0
C51: =DepnInputs!$C38 -> SCADA/Network control | E51: $m Nominal | S51: 12.22016466
C52: =DepnInputs!$C39 -> Non-network general assets - IT | E52: $m Nominal | S52: 17.76716166
C53: =DepnInputs!$C40 -> Non-network general assets - Other | E53: $m Nominal | S53: 22.13447343
C54: =DepnInputs!$C41 -> VBRC | E54: $m Nominal | S54: 0
C55: =DepnInputs!$C42 -> Land | E55: $m Nominal | S55: 0
C56: =DepnInputs!$C43 -> Supervisory cables | E56: $m Nominal | S56: 0
C57: =DepnInputs!$C44 -> Old SWER ACRs | E57: $m Nominal | S57: 0
C58: =DepnInputs!$C45 -> Accelerated depreciation assets | E58: $m Nominal | S58: 0
C59: =DepnInputs!$C46 -> 0 | E59: $m Nominal | S59: 0
C60: =DepnInputs!$C47 -> 0 | E60: $m Nominal | S60: 0
C61: =DepnInputs!$C48 -> 0 | E61: $m Nominal | S61: 0
C62: =DepnInputs!$C49 -> 0 | E62: $m Nominal | S62: 0
C63: =DepnInputs!$C50 -> 0 | E63: $m Nominal | S63: 0
C64: =DepnInputs!$C51 -> 0 | E64: $m Nominal | S64: 0
C65: =DepnInputs!$C52 -> 0 | E65: $m Nominal | S65: 0
C66: =DepnInputs!$C53 -> 0 | E66: $m Nominal | S66: 0
C67: =DepnInputs!$C54 -> Equity raising costs | E67: $m Nominal | S67: 1.747586326
C73: Nominal depreciation | M73: =M$7 -> 2015 | N73: 2016 | O73: 2017 | P73: 2018 | Q73: 2019 | R73: 2020 | S73: 2021
S74: $m Nominal
C75: =DepnInputs!$C34 -> Subtransmission | E75: $m Nominal | S75: 9.433760522
C76: =DepnInputs!$C35 -> Distribution system assets | E76: $m Nominal | S76: 61.38273761
C77: =DepnInputs!$C36 -> Standard metering | E77: $m Nominal | S77: 0
C78: =DepnInputs!$C37 -> Public lighting | E78: $m Nominal | S78: 0.8551607011
C79: =DepnInputs!$C38 -> SCADA/Network control | E79: $m Nominal | S79: 4.045517537
C80: =DepnInputs!$C39 -> Non-network general assets - IT | E80: $m Nominal | S80: 13.65576645
C81: =DepnInputs!$C40 -> Non-network general assets - Other | E81: $m Nominal | S81: 10.45523747
C82: =DepnInputs!$C41 -> VBRC | E82: $m Nominal | S82: 3.700768611
C83: =DepnInputs!$C42 -> Land | E83: $m Nominal | S83: 0
C84: =DepnInputs!$C43 -> Supervisory cables | E84: $m Nominal | S84: 0
C85: =DepnInputs!$C44 -> Old SWER ACRs | E85: $m Nominal | S85: 0
C86: =DepnInputs!$C45 -> Accelerated depreciation assets | E86: $m Nominal | S86: 0
C87: =DepnInputs!$C46 -> 0 | E87: $m Nominal | S87: 0
C88: =DepnInputs!$C47 -> 0 | E88: $m Nominal | S88: 0
C89: =DepnInputs!$C48 -> 0 | E89: $m Nominal | S89: 0
C90: =DepnInputs!$C49 -> 0 | E90: $m Nominal | S90: 0
C91: =DepnInputs!$C50 -> 0 | E91: $m Nominal | S91: 0
C92: =DepnInputs!$C51 -> 0 | E92: $m Nominal | S92: 0
C93: =DepnInputs!$C52 -> 0 | E93: $m Nominal | S93: 0
C94: =DepnInputs!$C53 -> 0 | E94: $m Nominal | S94: 0
C95: =DepnInputs!$C54 -> Equity raising costs | E95: $m Nominal | S95: 0.2547862388
C100: Nominal Closing Balance | M100: =M$7 -> 2015 | N100: 2016 | O100: 2017 | P100: 2018 | Q100: 2019 | R100: 2020 | S100: 2021
S101: $m Nominal
C102: =DepnInputs!$C34 -> Subtransmission | E102: $m Nominal | R102: =IF(R$100=$E$4, R19, Q102+R47-R75+R$9*Q102 ) -> 601.5962897 | S102: 631.649853
C103: =DepnInputs!$C35 -> Distribution system assets | E103: $m Nominal | R103: 3098.540019 | S103: 3222.390156
C104: =DepnInputs!$C36 -> Standard metering | E104: $m Nominal | R104: 1.5501915e-14 | S104: 1.569096274e-14
C105: =DepnInputs!$C37 -> Public lighting | E105: $m Nominal | R105: 5.26330499 | S105: 4.472330935
C106: =DepnInputs!$C38 -> SCADA/Network control | E106: $m Nominal | R106: 85.66132446 | S106: 94.88062188
C107: =DepnInputs!$C39 -> Non-network general assets - IT | E107: $m Nominal | R107: 87.36239218 | S107: 92.53918241
C108: =DepnInputs!$C40 -> Non-network general assets - Other | E108: $m Nominal | R108: 246.5490171 | S108: 261.2349484
C109: =DepnInputs!$C41 -> VBRC | E109: $m Nominal | R109: 150.6640396 | S109: 148.8006373
C110: =DepnInputs!$C42 -> Land | E110: $m Nominal | R110: 24.27123113 | S110: 24.56722176
C111: =DepnInputs!$C43 -> Supervisory cables | E111: $m Nominal | R111: -1.482018642e-16 | S111: -1.50009204e-16
C112: =DepnInputs!$C44 -> Old SWER ACRs | E112: $m Nominal | R112: 1.58206781e-15 | S112: 1.60136132e-15
C113: =DepnInputs!$C45 -> Accelerated depreciation assets | E113: $m Nominal | R113: 0 | S113: 0
C114: =DepnInputs!$C46 -> 0 | E114: $m Nominal | R114: 0 | S114: 0
C115: =DepnInputs!$C47 -> 0 | E115: $m Nominal | R115: 0 | S115: 0
C116: =DepnInputs!$C48 -> 0 | E116: $m Nominal | R116: 0 | S116: 0
C117: =DepnInputs!$C49 -> 0 | E117: $m Nominal | R117: 0 | S117: 0
C118: =DepnInputs!$C50 -> 0 | E118: $m Nominal | R118: =IF(R$100=$E$4, R35, Q118+R63-R91+R$9*Q118 ) -> 0 | S118: 0
C119: =DepnInputs!$C51 -> 0 | E119: $m Nominal | R119: 0 | S119: 0
C120: =DepnInputs!$C52 -> 0 | E120: $m Nominal | R120: 0 | S120: 0
C121: =DepnInputs!$C53 -> 0 | E121: $m Nominal | R121: 0 | S121: 0
C122: =DepnInputs!$C54 -> Equity raising costs | E122: $m Nominal | R122: 18.88821192 | S122: 20.61135606
C123: Total | R123: =SUM(R102:R122) -> 4318.79583 | S123: =SUM(S102:S122) -> 4501.146308
C128: Difference Between Actual and Forecast Net Capex | M128: =M$7 -> 2015 | N128: 2016 | O128: 2017 | P128: 2018 | Q128: 2019 | R128: 2020 | S128: 2021
C130: =DepnInputs!$C34 -> Subtransmission | E130: $m Nominal | M130: -0.462939405
C131: =DepnInputs!$C35 -> Distribution system assets | E131: $m Nominal | M131: -2.758256397
C132: =DepnInputs!$C36 -> Standard metering | E132: $m Nominal | M132: 0
C133: =DepnInputs!$C37 -> Public lighting | E133: $m Nominal | M133: 0
C134: =DepnInputs!$C38 -> SCADA/Network control | E134: $m Nominal | M134: 0
C135: =DepnInputs!$C39 -> Non-network general assets - IT | E135: $m Nominal | M135: 0
C136: =DepnInputs!$C40 -> Non-network general assets - Other | E136: $m Nominal | M136: 0
C137: =DepnInputs!$C41 -> VBRC | E137: $m Nominal | M137: 0
C138: =DepnInputs!$C42 -> Land | E138: $m Nominal | M138: 0
C139: =DepnInputs!$C43 -> Supervisory cables | E139: $m Nominal | M139: 0
C140: =DepnInputs!$C44 -> Old SWER ACRs | E140: $m Nominal | M140: 0
C141: =DepnInputs!$C45 -> Accelerated depreciation assets | E141: $m Nominal | M141: 0
C142: =DepnInputs!$C46 -> 0 | E142: $m Nominal | M142: 0
C143: =DepnInputs!$C47 -> 0 | E143: $m Nominal | M143: 0
C144: =DepnInputs!$C48 -> 0 | E144: $m Nominal | M144: 0
C145: =DepnInputs!$C49 -> 0 | E145: $m Nominal | M145: 0
C146: =DepnInputs!$C50 -> 0 | E146: $m Nominal | M146: 0
C147: =DepnInputs!$C51 -> 0 | E147: $m Nominal | M147: 0
C148: =DepnInputs!$C52 -> 0 | E148: $m Nominal | M148: 0
C149: =DepnInputs!$C53 -> 0 | E149: $m Nominal | M149: 0
C150: =DepnInputs!$C54 -> Equity raising costs | E150: $m Nominal | M150: 0
C151: Total
C156: Return on Difference - Net Capex | M156: =M$7 -> 2015 | N156: 2016 | O156: 2017 | P156: 2018 | Q156: 2019 | R156: 2020 | S156: 2021
N157: $m Nominal | O157: $m Nominal | P157: $m Nominal | Q157: $m Nominal | R157: $m Nominal | S157: $m Nominal
C158: =DepnInputs!$C34 -> Subtransmission | E158: $m Nominal | N158: =($M130+SUM($M158:M158))*N$14 -> -0.02424094367 | O158: =($M130+SUM($M158:N158))*O$14 -> -0.0227658424 | P158: =($M130+SUM($M158:O158))*P$14 -> -0.0283818113 | Q158: =($M130+SUM($M158:P158))*Q$14 -> -0.03046194236 | R158: =($M130+SUM($M158:Q158))*R$14 -> -0.02848830177 | S158: =($M130+SUM($M158:R158))*S$14 -> -0.01439776467
C159: =DepnInputs!$C35 -> Distribution system assets | E159: $m Nominal | N159: =($M131+SUM($M159:M159))*N$14 -> -0.1444308634 | O159: =($M131+SUM($M159:N159))*O$14 -> -0.1356420079 | P159: =($M131+SUM($M159:O159))*P$14 -> -0.16910272 | Q159: =($M131+SUM($M159:P159))*Q$14 -> -0.1814964258 | R159: =($M131+SUM($M159:Q159))*R$14 -> -0.1697372048 | S159: =($M131+SUM($M159:R159))*S$14 -> -0.08578385436
C160: =DepnInputs!$C36 -> Standard metering | E160: $m Nominal | N160: =($M132+SUM($M160:M160))*N$14 -> 0 | O160: =($M132+SUM($M160:N160))*O$14 -> 0 | P160: =($M132+SUM($M160:O160))*P$14 -> 0 | Q160: =($M132+SUM($M160:P160))*Q$14 -> 0 | R160: =($M132+SUM($M160:Q160))*R$14 -> 0 | S160: =($M132+SUM($M160:R160))*S$14 -> 0
C161: =DepnInputs!$C37 -> Public lighting | E161: $m Nominal | N161: =($M133+SUM($M161:M161))*N$14 -> 0 | O161: =($M133+SUM($M161:N161))*O$14 -> 0 | P161: =($M133+SUM($M161:O161))*P$14 -> 0 | Q161: =($M133+SUM($M161:P161))*Q$14 -> 0 | R161: =($M133+SUM($M161:Q161))*R$14 -> 0 | S161: =($M133+SUM($M161:R161))*S$14 -> 0
C162: =DepnInputs!$C38 -> SCADA/Network control | E162: $m Nominal | N162: =($M134+SUM($M162:M162))*N$14 -> 0 | O162: =($M134+SUM($M162:N162))*O$14 -> 0 | P162: =($M134+SUM($M162:O162))*P$14 -> 0 | Q162: =($M134+SUM($M162:P162))*Q$14 -> 0 | R162: =($M134+SUM($M162:Q162))*R$14 -> 0 | S162: =($M134+SUM($M162:R162))*S$14 -> 0
C163: =DepnInputs!$C39 -> Non-network general assets - IT | E163: $m Nominal | N163: =($M135+SUM($M163:M163))*N$14 -> 0 | O163: =($M135+SUM($M163:N163))*O$14 -> 0 | P163: =($M135+SUM($M163:O163))*P$14 -> 0 | Q163: =($M135+SUM($M163:P163))*Q$14 -> 0 | R163: =($M135+SUM($M163:Q163))*R$14 -> 0 | S163: =($M135+SUM($M163:R163))*S$14 -> 0
C164: =DepnInputs!$C40 -> Non-network general assets - Other | E164: $m Nominal | N164: =($M136+SUM($M164:M164))*N$14 -> 0 | O164: =($M136+SUM($M164:N164))*O$14 -> 0 | P164: =($M136+SUM($M164:O164))*P$14 -> 0 | Q164: =($M136+SUM($M164:P164))*Q$14 -> 0 | R164: =($M136+SUM($M164:Q164))*R$14 -> 0 | S164: =($M136+SUM($M164:R164))*S$14 -> 0
C165: =DepnInputs!$C41 -> VBRC | E165: $m Nominal | N165: =($M137+SUM($M165:M165))*N$14 -> 0 | O165: =($M137+SUM($M165:N165))*O$14 -> 0 | P165: =($M137+SUM($M165:O165))*P$14 -> 0 | Q165: =($M137+SUM($M165:P165))*Q$14 -> 0 | R165: =($M137+SUM($M165:Q165))*R$14 -> 0 | S165: =($M137+SUM($M165:R165))*S$14 -> 0
C166: =DepnInputs!$C42 -> Land | E166: $m Nominal | N166: =($M138+SUM($M166:M166))*N$14 -> 0 | O166: =($M138+SUM($M166:N166))*O$14 -> 0 | P166: =($M138+SUM($M166:O166))*P$14 -> 0 | Q166: =($M138+SUM($M166:P166))*Q$14 -> 0 | R166: =($M138+SUM($M166:Q166))*R$14 -> 0 | S166: =($M138+SUM($M166:R166))*S$14 -> 0
C167: =DepnInputs!$C43 -> Supervisory cables | E167: $m Nominal | N167: =($M139+SUM($M167:M167))*N$14 -> 0 | O167: =($M139+SUM($M167:N167))*O$14 -> 0 | P167: =($M139+SUM($M167:O167))*P$14 -> 0 | Q167: =($M139+SUM($M167:P167))*Q$14 -> 0 | R167: =($M139+SUM($M167:Q167))*R$14 -> 0 | S167: =($M139+SUM($M167:R167))*S$14 -> 0
C168: =DepnInputs!$C44 -> Old SWER ACRs | E168: $m Nominal | N168: =($M140+SUM($M168:M168))*N$14 -> 0 | O168: =($M140+SUM($M168:N168))*O$14 -> 0 | P168: =($M140+SUM($M168:O168))*P$14 -> 0 | Q168: =($M140+SUM($M168:P168))*Q$14 -> 0 | R168: =($M140+SUM($M168:Q168))*R$14 -> 0 | S168: =($M140+SUM($M168:R168))*S$14 -> 0
C169: =DepnInputs!$C45 -> Accelerated depreciation assets | E169: $m Nominal | N169: =($M141+SUM($M169:M169))*N$14 -> 0 | O169: =($M141+SUM($M169:N169))*O$14 -> 0 | P169: =($M141+SUM($M169:O169))*P$14 -> 0 | Q169: =($M141+SUM($M169:P169))*Q$14 -> 0 | R169: =($M141+SUM($M169:Q169))*R$14 -> 0 | S169: =($M141+SUM($M169:R169))*S$14 -> 0
C170: =DepnInputs!$C46 -> 0 | E170: $m Nominal | N170: =($M142+SUM($M170:M170))*N$14 -> 0 | O170: =($M142+SUM($M170:N170))*O$14 -> 0 | P170: =($M142+SUM($M170:O170))*P$14 -> 0 | Q170: =($M142+SUM($M170:P170))*Q$14 -> 0 | R170: =($M142+SUM($M170:Q170))*R$14 -> 0 | S170: =($M142+SUM($M170:R170))*S$14 -> 0
C171: =DepnInputs!$C47 -> 0 | E171: $m Nominal | N171: =($M143+SUM($M171:M171))*N$14 -> 0 | O171: =($M143+SUM($M171:N171))*O$14 -> 0 | P171: =($M143+SUM($M171:O171))*P$14 -> 0 | Q171: =($M143+SUM($M171:P171))*Q$14 -> 0 | R171: =($M143+SUM($M171:Q171))*R$14 -> 0 | S171: =($M143+SUM($M171:R171))*S$14 -> 0
C172: =DepnInputs!$C48 -> 0 | E172: $m Nominal | N172: =($M144+SUM($M172:M172))*N$14 -> 0 | O172: =($M144+SUM($M172:N172))*O$14 -> 0 | P172: =($M144+SUM($M172:O172))*P$14 -> 0 | Q172: =($M144+SUM($M172:P172))*Q$14 -> 0 | R172: =($M144+SUM($M172:Q172))*R$14 -> 0 | S172: =($M144+SUM($M172:R172))*S$14 -> 0
C173: =DepnInputs!$C49 -> 0 | E173: $m Nominal | N173: =($M145+SUM($M173:M173))*N$14 -> 0 | O173: =($M145+SUM($M173:N173))*O$14 -> 0 | P173: =($M145+SUM($M173:O173))*P$14 -> 0 | Q173: =($M145+SUM($M173:P173))*Q$14 -> 0 | R173: =($M145+SUM($M173:Q173))*R$14 -> 0 | S173: =($M145+SUM($M173:R173))*S$14 -> 0
C174: =DepnInputs!$C50 -> 0 | E174: $m Nominal | N174: =($M146+SUM($M174:M174))*N$14 -> 0 | O174: =($M146+SUM($M174:N174))*O$14 -> 0 | P174: =($M146+SUM($M174:O174))*P$14 -> 0 | Q174: =($M146+SUM($M174:P174))*Q$14 -> 0 | R174: =($M146+SUM($M174:Q174))*R$14 -> 0 | S174: =($M146+SUM($M174:R174))*S$14 -> 0
C175: =DepnInputs!$C51 -> 0 | E175: $m Nominal | N175: =($M147+SUM($M175:M175))*N$14 -> 0 | O175: =($M147+SUM($M175:N175))*O$14 -> 0 | P175: =($M147+SUM($M175:O175))*P$14 -> 0 | Q175: =($M147+SUM($M175:P175))*Q$14 -> 0 | R175: =($M147+SUM($M175:Q175))*R$14 -> 0 | S175: =($M147+SUM($M175:R175))*S$14 -> 0
C176: =DepnInputs!$C52 -> 0 | E176: $m Nominal | N176: =($M148+SUM($M176:M176))*N$14 -> 0 | O176: =($M148+SUM($M176:N176))*O$14 -> 0 | P176: =($M148+SUM($M176:O176))*P$14 -> 0 | Q176: =($M148+SUM($M176:P176))*Q$14 -> 0 | R176: =($M148+SUM($M176:Q176))*R$14 -> 0 | S176: =($M148+SUM($M176:R176))*S$14 -> 0
C177: =DepnInputs!$C53 -> 0 | E177: $m Nominal | N177: =($M149+SUM($M177:M177))*N$14 -> 0 | O177: =($M149+SUM($M177:N177))*O$14 -> 0 | P177: =($M149+SUM($M177:O177))*P$14 -> 0 | Q177: =($M149+SUM($M177:P177))*Q$14 -> 0 | R177: =($M149+SUM($M177:Q177))*R$14 -> 0 | S177: =($M149+SUM($M177:R177))*S$14 -> 0
C178: =DepnInputs!$C54 -> Equity raising costs | E178: $m Nominal | N178: =($M150+SUM($M178:M178))*N$14 -> 0 | O178: =($M150+SUM($M178:N178))*O$14 -> 0 | P178: =($M150+SUM($M178:O178))*P$14 -> 0 | Q178: =($M150+SUM($M178:P178))*Q$14 -> 0 | R178: =($M150+SUM($M178:Q178))*R$14 -> 0 | S178: =($M150+SUM($M178:R178))*S$14 -> 0
C179: Total | N179: =SUM(N158:N178) -> -0.168671807 | O179: -0.1584078503 | P179: -0.1974845313 | Q179: -0.2119583682 | R179: -0.1982255065 | S179: -0.100181619
C184: Adjustments for Supervisory cables and Older SWER ACRs | M184: =M$7 -> 2015 | N184: 2016 | O184: 2017 | P184: 2018 | Q184: 2019 | R184: 2020 | S184: 2021
N185: $m Nominal | O185: $m Nominal | P185: $m Nominal | Q185: $m Nominal | R185: $m Nominal | S185: $m Nominal
C186: =DepnInputs!$C34 -> Subtransmission | E186: $m Nominal
C187: =DepnInputs!$C35 -> Distribution system assets | E187: $m Nominal
C188: =DepnInputs!$C36 -> Standard metering | E188: $m Nominal
C189: =DepnInputs!$C37 -> Public lighting | E189: $m Nominal
C190: =DepnInputs!$C38 -> SCADA/Network control | E190: $m Nominal
C191: =DepnInputs!$C39 -> Non-network general assets - IT | E191: $m Nominal
C192: =DepnInputs!$C40 -> Non-network general assets - Other | E192: $m Nominal
C193: =DepnInputs!$C41 -> VBRC | E193: $m Nominal
C194: =DepnInputs!$C42 -> Land | E194: $m Nominal
C195: =DepnInputs!$C43 -> Supervisory cables | E195: $m Nominal
C196: =DepnInputs!$C44 -> Old SWER ACRs | E196: $m Nominal
C197: =DepnInputs!$C45 -> Accelerated depreciation assets | E197: $m Nominal
C198: =DepnInputs!$C46 -> 0 | E198: $m Nominal
C199: =DepnInputs!$C47 -> 0 | E199: $m Nominal
C200: =DepnInputs!$C48 -> 0 | E200: $m Nominal
C201: =DepnInputs!$C49 -> 0 | E201: $m Nominal
C202: =DepnInputs!$C50 -> 0 | E202: $m Nominal
C203: =DepnInputs!$C51 -> 0 | E203: $m Nominal
C204: =DepnInputs!$C52 -> 0 | E204: $m Nominal
C205: =DepnInputs!$C53 -> 0 | E205: $m Nominal
C206: =DepnInputs!$C54 -> Equity raising costs | E206: $m Nominal
C207: Total | M207: =SUM(M186:M206) -> 0 | N207: 0 | O207: 0 | P207: 0 | Q207: 0 | R207: 0 | S207: =SUM(S186:S206) -> 0
C212: Adjustment for 6 month indexation | M212: =M$7 -> 2015 | N212: 2016 | O212: 2017 | P212: 2018 | Q212: 2019 | R212: 2020 | S212: 2021
M213: $m Nominal | N213: $m Nominal | O213: $m Nominal | P213: $m Nominal | Q213: $m Nominal | R213: $m Nominal | S213: $m Nominal
C214: =DepnInputs!$C34 -> Subtransmission | E214: $m Nominal
C215: =DepnInputs!$C35 -> Distribution system assets | E215: $m Nominal
C216: =DepnInputs!$C36 -> Standard metering | E216: $m Nominal
C217: =DepnInputs!$C37 -> Public lighting | E217: $m Nominal
C218: =DepnInputs!$C38 -> SCADA/Network control | E218: $m Nominal
C219: =DepnInputs!$C39 -> Non-network general assets - IT | E219: $m Nominal
C220: =DepnInputs!$C40 -> Non-network general assets - Other | E220: $m Nominal
C221: =DepnInputs!$C41 -> VBRC | E221: $m Nominal
C222: =DepnInputs!$C42 -> Land | E222: $m Nominal
C223: =DepnInputs!$C43 -> Supervisory cables | E223: $m Nominal
C224: =DepnInputs!$C44 -> Old SWER ACRs | E224: $m Nominal
C225: =DepnInputs!$C45 -> Accelerated depreciation assets | E225: $m Nominal
C226: =DepnInputs!$C46 -> 0 | E226: $m Nominal
C227: =DepnInputs!$C47 -> 0 | E227: $m Nominal
C228: =DepnInputs!$C48 -> 0 | E228: $m Nominal
C229: =DepnInputs!$C49 -> 0 | E229: $m Nominal
C230: =DepnInputs!$C50 -> 0 | E230: $m Nominal
C231: =DepnInputs!$C51 -> 0 | E231: $m Nominal
C232: =DepnInputs!$C52 -> 0 | E232: $m Nominal
C233: =DepnInputs!$C53 -> 0 | E233: $m Nominal
C234: =DepnInputs!$C54 -> Equity raising costs | E234: $m Nominal
C235: Total | M235: =SUM(M214:M234) -> 0 | N235: 0 | O235: 0 | P235: 0 | Q235: 0 | R235: 0 | S235: =SUM(S214:S234) -> 0
C240: Total Adjustments | M240: =M$7 -> 2015 | N240: =N$7 -> 2016 | O240: 2017 | P240: 2018 | Q240: 2019 | R240: 2020 | S240: 2021
M241: $m Nominal | N241: $m Nominal | O241: $m Nominal | P241: $m Nominal | Q241: $m Nominal | R241: $m Nominal | S241: $m Nominal
... 190 more rows

Sheet 2016_20
A1: =DepnInputs!A1 -> Powercor Depreciation
A2: 2016-2020 Regulatory Period
C4: Opening RAB from: | E4: 2015
C7: Inflation | M7: 2015 | N7: =M7+1 -> 2016 | O7: =N7+1 -> 2017 | P7: =O7+1 -> 2018 | Q7: =P7+1 -> 2019 | R7: =Q7+1 -> 2020
M8: =IF(ISBLANK(DepnInputs!M22), "", DepnInputs!M22) -> Actual | N8: =IF(ISBLANK(DepnInputs!N22), "", DepnInputs!N22) -> Actual | O8: =IF(ISBLANK(DepnInputs!O22), "", DepnInputs!O22) -> Actual | P8: =IF(ISBLANK(DepnInputs!P22), "", DepnInputs!P22) -> Actual | Q8: =IF(ISBLANK(DepnInputs!Q22), "", DepnInputs!Q22) -> Actual | R8: =IF(ISBLANK(DepnInputs!R22), "", DepnInputs!R22) -> Actual
C9: Actual Inflation | M9: =IF(ISBLANK(DepnInputs!M23), "", DepnInputs!M23) -> 0.02307692308 | N9: =IF(ISBLANK(DepnInputs!N23), "", DepnInputs!N23) -> 0.01510859301 | O9: =IF(ISBLANK(DepnInputs!O23), "", DepnInputs!O23) -> 0.01023255814 | P9: =IF(ISBLANK(DepnInputs!P23), "", DepnInputs!P23) -> 0.01933701657 | Q9: =IF(ISBLANK(DepnInputs!Q23), "", DepnInputs!Q23) -> 0.02077687444 | R9: =IF(ISBLANK(DepnInputs!R23), "", DepnInputs!R23) -> 0.01592920354
C10: =DepnInputs!C24 -> Cumulative inflation from 2010 (one year lagged) | M10: =IF(ISBLANK(DepnInputs!M24), "", DepnInputs!M24) -> 1.134425434 | N10: =IF(ISBLANK(DepnInputs!N24), "", DepnInputs!N24) -> 1.151565007 | O10: =IF(ISBLANK(DepnInputs!O24), "", DepnInputs!O24) -> 1.163348463 | P10: =IF(ISBLANK(DepnInputs!P24), "", DepnInputs!P24) -> 1.185844151 | Q10: =IF(ISBLANK(DepnInputs!Q24), "", DepnInputs!Q24) -> 1.210482286 | R10: =IF(ISBLANK(DepnInputs!R24), "", DepnInputs!R24) -> 1.229764305
C11: =DepnInputs!C25 -> Cumulative inflation from 2015 (one year lagged) | M11: =IF(ISBLANK(DepnInputs!M25), "", DepnInputs!M25) -> 1 | N11: =IF(ISBLANK(DepnInputs!N25), "", DepnInputs!N25) -> 1.015108593 | O11: =IF(ISBLANK(DepnInputs!O25), "", DepnInputs!O25) -> 1.025495751 | P11: =IF(ISBLANK(DepnInputs!P25), "", DepnInputs!P25) -> 1.045325779 | Q11: =IF(ISBLANK(DepnInputs!Q25), "", DepnInputs!Q25) -> 1.067044381 | R11: =IF(ISBLANK(DepnInputs!R25), "", DepnInputs!R25) -> 1.084041549
C13: Real Vanilla WACC | M13: =IF(ISBLANK(DepnInputs!M27), "", DepnInputs!M27) -> 0.06741317032 | N13: =IF(ISBLANK(DepnInputs!N27), "", DepnInputs!N27) -> 0.0367000241 | O13: =IF(ISBLANK(DepnInputs!O27), "", DepnInputs!O27) -> 0.03612756881 | P13: =IF(ISBLANK(DepnInputs!P27), "", DepnInputs!P27) -> 0.03563047885 | Q13: =IF(ISBLANK(DepnInputs!Q27), "", DepnInputs!Q27) -> 0.03508047475 | R13: =IF(ISBLANK(DepnInputs!R27), "", DepnInputs!R27) -> 0.03362104414
C14: Nominal WACC | M14: =IF(ISBLANK(DepnInputs!M28), "", DepnInputs!M28) -> 0.09204578194 | N14: =IF(ISBLANK(DepnInputs!N28), "", DepnInputs!N28) -> 0.05236310284 | O14: =IF(ISBLANK(DepnInputs!O28), "", DepnInputs!O28) -> 0.0467298044 | P14: =IF(ISBLANK(DepnInputs!P28), "", DepnInputs!P28) -> 0.05565648259 | Q14: =IF(ISBLANK(DepnInputs!Q28), "", DepnInputs!Q28) -> 0.0565862118 | R14: =IF(ISBLANK(DepnInputs!R28), "", DepnInputs!R28) -> 0.05008580414
C17: ='2011_15'!C296 -> Adjusted Closing Balance | M17: ='2011_15'!M296 -> 2015
M18: ='2011_15'!M297 -> $m Nominal
C19: =DepnInputs!$C34 -> Subtransmission | E19: $m 2010 | M19: ='2011_15'!M298 -> 397.8676361
C20: =DepnInputs!$C35 -> Distribution system assets | E20: $m 2010 | M20: ='2011_15'!M299 -> 2500.252193
C21: =DepnInputs!$C36 -> Standard metering | E21: $m 2010 | M21: ='2011_15'!M300 -> 13.33914445
C22: =DepnInputs!$C37 -> Public lighting | E22: $m 2010 | M22: ='2011_15'!M301 -> 12.64885152
C23: =DepnInputs!$C38 -> SCADA/Network control | E23: $m 2010 | M23: ='2011_15'!M302 -> 15.64234526
C24: =DepnInputs!$C39 -> Non-network general assets - IT | E24: $m 2010 | M24: ='2011_15'!M303 -> 93.50347392
C25: =DepnInputs!$C40 -> Non-network general assets - Other | E25: $m 2010 | M25: ='2011_15'!M304 -> 148.6982095
C26: =DepnInputs!$C41 -> VBRC | E26: $m 2010 | M26: ='2011_15'!M305 -> 101.6748703
C27: =DepnInputs!$C42 -> Land | E27: $m 2010 | M27: ='2011_15'!M306 -> 0
C28: =DepnInputs!$C43 -> Supervisory cables | E28: $m 2010 | M28: ='2011_15'!M307 -> 3.339696637
C29: =DepnInputs!$C44 -> Old SWER ACRs | E29: $m 2010 | M29: ='2011_15'!M308 -> 14.51341062
C30: =DepnInputs!$C45 -> Accelerated depreciation assets | E30: $m 2010 | M30: ='2011_15'!M309 -> 0
C31: =DepnInputs!$C46 -> 0 | E31: $m 2010 | M31: ='2011_15'!M310 -> 0
C32: =DepnInputs!$C47 -> 0 | E32: $m 2010 | M32: ='2011_15'!M311 -> 0
C33: =DepnInputs!$C48 -> 0 | E33: $m 2010 | M33: ='2011_15'!M312 -> 0
C34: =DepnInputs!$C49 -> 0 | E34: $m 2010 | M34: ='2011_15'!M313 -> 0
C35: =DepnInputs!$C50 -> 0 | E35: $m 2010 | M35: ='2011_15'!M314 -> 0
C36: =DepnInputs!$C51 -> 0 | E36: $m 2010 | M36: ='2011_15'!M315 -> 0
C37: =DepnInputs!$C52 -> 0 | E37: $m 2010 | M37: ='2011_15'!M316 -> 0
C38: =DepnInputs!$C53 -> 0 | E38: $m 2010 | M38: ='2011_15'!M317 -> 0
C39: =DepnInputs!$C54 -> Equity raising costs | E39: $m 2010 | M39: ='2011_15'!M318 -> 5.52374353
C45: Net Nominal Capex with half year WACC | M45: =M$7 -> 2015 | N45: 2016 | O45: 2017 | P45: 2018 | Q45: 2019 | R45: 2020
N46: $m Nominal | O46: $m Nominal | P46: $m Nominal | Q46: $m Nominal | R46: $m Nominal
C47: =DepnInputs!$C34 -> Subtransmission | E47: $m Nominal | N47: 19.03620774 | O47: 42.3352049 | P47: 49.59091912 | Q47: 76.14985737 | R47: 52.99487147
C48: =DepnInputs!$C35 -> Distribution system assets | E48: $m Nominal | N48: 145.8773821 | O48: 186.6557029 | P48: 205.8472261 | Q48: 159.8112158 | R48: 243.2615733
C49: =DepnInputs!$C36 -> Standard metering | E49: $m Nominal | N49: 0 | O49: 0 | P49: 0 | Q49: 0 | R49: 0
C50: =DepnInputs!$C37 -> Public lighting | E50: $m Nominal | N50: 0 | O50: 0 | P50: 0 | Q50: 0 | R50: 0
C51: =DepnInputs!$C38 -> SCADA/Network control | E51: $m Nominal | N51: 3.806006441 | O51: 17.72381149 | P51: 23.7697259 | Q51: 25.73706017 | R51: 21.6942879
C52: =DepnInputs!$C39 -> Non-network general assets - IT | E52: $m Nominal | N52: 34.09517397 | O52: 23.19450652 | P52: 22.13385563 | Q52: 27.51840627 | R52: 35.20772825
C53: =DepnInputs!$C40 -> Non-network general assets - Other | E53: $m Nominal | N53: 32.42730076 | O53: 40.30758964 | P53: 37.63555862 | Q53: 48.18918247 | R53: 41.00067965
C54: =DepnInputs!$C41 -> VBRC | E54: $m Nominal | N54: 31.78936417 | O54: 13.58697861 | P54: 2.286558421 | Q54: 17.24342756 | R54: 0
C55: =DepnInputs!$C42 -> Land | E55: $m Nominal | N55: 0.8653209397 | O55: 12.15483254 | P55: 9.133313121 | Q55: 1.010710241 | R55: 0
C56: =DepnInputs!$C43 -> Supervisory cables | E56: $m Nominal | N56: 0 | O56: 0 | P56: 0 | Q56: 0 | R56: 0
C57: =DepnInputs!$C44 -> Old SWER ACRs | E57: $m Nominal | N57: 0 | O57: 0 | P57: 0 | Q57: 0 | R57: 0
C58: =DepnInputs!$C45 -> Accelerated depreciation assets | E58: $m Nominal | N58: 0 | O58: 0 | P58: 0 | Q58: 0 | R58: 0
C59: =DepnInputs!$C46 -> 0 | E59: $m Nominal | N59: 0 | O59: 0 | P59: 0 | Q59: 0 | R59: 0
C60: =DepnInputs!$C47 -> 0 | E60: $m Nominal | N60: 0 | O60: 0 | P60: 0 | Q60: 0 | R60: 0
C61: =DepnInputs!$C48 -> 0 | E61: $m Nominal | N61: 0 | O61: 0 | P61: 0 | Q61: 0 | R61: 0
C62: =DepnInputs!$C49 -> 0 | E62: $m Nominal | N62: 0 | O62: 0 | P62: 0 | Q62: 0 | R62: 0
C63: =DepnInputs!$C50 -> 0 | E63: $m Nominal | N63: 0 | O63: 0 | P63: 0 | Q63: 0 | R63: 0
C64: =DepnInputs!$C51 -> 0 | E64: $m Nominal | N64: 0 | O64: 0 | P64: 0 | Q64: 0 | R64: 0
C65: =DepnInputs!$C52 -> 0 | E65: $m Nominal | N65: 0 | O65: 0 | P65: 0 | Q65: 0 | R65: 0
C66: =DepnInputs!$C53 -> 0 | E66: $m Nominal | N66: 0 | O66: 0 | P66: 0 | Q66: 0 | R66: 0
C67: =DepnInputs!$C54 -> Equity raising costs | E67: $m Nominal | N67: 14.10175458 | O67: 0 | P67: 0 | Q67: 0 | R67: 0
C73: Nominal depreciation | M73: =M$7 -> 2015 | N73: 2016 | O73: 2017 | P73: 2018 | Q73: 2019 | R73: 2020
N74: $m Nominal | O74: $m Nominal | P74: $m Nominal | Q74: $m Nominal | R74: $m Nominal
C75: =DepnInputs!$C34 -> Subtransmission | E75: $m Nominal | N75: 12.84628694 | O75: 13.71790338 | P75: 14.78477393 | Q75: 15.85496638 | R75: 16.91556219
C76: =DepnInputs!$C35 -> Distribution system assets | E76: $m Nominal | N76: 96.93954874 | O76: 102.6011279 | P76: 111.6584942 | Q76: 123.4438507 | R76: 130.8370103
C77: =DepnInputs!$C36 -> Standard metering | E77: $m Nominal | N77: 13.54068015 | O77: 0 | P77: 0 | Q77: 0 | R77: 0
C78: =DepnInputs!$C37 -> Public lighting | E78: $m Nominal | N78: 1.582268079 | O78: 1.598458729 | P78: 1.629368152 | Q78: 1.663221329 | R78: 1.68971512
C79: =DepnInputs!$C38 -> SCADA/Network control | E79: $m Nominal | N79: 3.075280129 | O79: 2.326728903 | P79: 3.177526228 | Q79: 7.064706582 | R79: 10.3710321
C80: =DepnInputs!$C39 -> Non-network general assets - IT | E80: $m Nominal | N80: 25.4775859 | O80: 26.96052379 | P80: 30.98522935 | Q80: 35.06225042 | R80: 37.5855351
C81: =DepnInputs!$C40 -> Non-network general assets - Other | E81: $m Nominal | N81: 21.57293505 | O81: 22.84085243 | P81: 24.3488821 | Q81: 25.94464673 | R81: 22.07971923
C82: =DepnInputs!$C41 -> VBRC | E82: $m Nominal | N82: 4.231019223 | O82: 4.754234669 | P82: 5.389389476 | Q82: 5.932036765 | R82: 6.596322058
C83: =DepnInputs!$C42 -> Land | E83: $m Nominal | N83: 0 | O83: 0 | P83: 0 | Q83: 0 | R83: 0
C84: =DepnInputs!$C43 -> Supervisory cables | E84: $m Nominal | N84: 3.390154755 | O84: 0 | P84: 0 | Q84: 0 | R84: 0
C85: =DepnInputs!$C44 -> Old SWER ACRs | E85: $m Nominal | N85: 2.946537566 | O85: 2.976688183 | P85: 3.034248452 | Q85: 3.097290651 | R85: 3.146628024
C86: =DepnInputs!$C45 -> Accelerated depreciation assets | E86: $m Nominal | N86: 0 | O86: 0 | P86: 0 | Q86: 0 | R86: 0
C87: =DepnInputs!$C46 -> 0 | E87: $m Nominal | N87: 0 | O87: 0 | P87: 0 | Q87: 0 | R87: 0
C88: =DepnInputs!$C47 -> 0 | E88: $m Nominal | N88: 0 | O88: 0 | P88: 0 | Q88: 0 | R88: 0
C89: =DepnInputs!$C48 -> 0 | E89: $m Nominal | N89: 0 | O89: 0 | P89: 0 | Q89: 0 | R89: 0
C90: =DepnInputs!$C49 -> 0 | E90: $m Nominal | N90: 0 | O90: 0 | P90: 0 | Q90: 0 | R90: 0
C91: =DepnInputs!$C50 -> 0 | E91: $m Nominal | N91: 0 | O91: 0 | P91: 0 | Q91: 0 | R91: 0
C92: =DepnInputs!$C51 -> 0 | E92: $m Nominal | N92: 0 | O92: 0 | P92: 0 | Q92: 0 | R92: 0
C93: =DepnInputs!$C52 -> 0 | E93: $m Nominal | N93: 0 | O93: 0 | P93: 0 | Q93: 0 | R93: 0
C94: =DepnInputs!$C53 -> 0 | E94: $m Nominal | N94: 0 | O94: 0 | P94: 0 | Q94: 0 | R94: 0
C95: =DepnInputs!$C54 -> Equity raising costs | E95: $m Nominal | N95: 0.1361405736 | O95: 0.4762441573 | P95: 0.4854532984 | Q95: 0.4955395007 | R95: 0.5034330502
C100: Nominal Closing Balance | M100: =M$7 -> 2015 | N100: 2016 | O100: 2017 | P100: 2018 | Q100: 2019 | R100: 2020
N101: $m Nominal | O101: $m Nominal | P101: $m Nominal | Q101: $m Nominal | R101: $m Nominal
C102: =DepnInputs!$C34 -> Subtransmission | E102: $m Nominal | M102: =IF(M$100=$E$4, M19, L102+M47-M75+M$9*L102 ) -> 397.8676361 | N102: 410.0687771 | O102: 442.8821312 | P102: 486.2522955 | Q102: 556.6499894 | R102: 601.5962897
C103: =DepnInputs!$C35 -> Distribution system assets | E103: $m Nominal | M103: 2500.252193 | N103: 2586.965319 | O103: 2697.491167 | P103: 2843.841331 | Q103: 2939.29483 | R103: 3098.540019
C104: =DepnInputs!$C36 -> Standard metering | E104: $m Nominal | M104: 13.33914445 | N104: 1.451616605e-14 | O104: 1.466470356e-14 | P104: 1.494827518e-14 | Q104: 1.525885361e-14 | R104: 1.5501915e-14
C105: =DepnInputs!$C37 -> Public lighting | E105: $m Nominal | M105: 12.64885152 | N105: 11.25768979 | O105: 9.774426028 | P105: 8.334066115 | Q105: 6.844000631 | R105: 5.26330499
C106: =DepnInputs!$C38 -> SCADA/Network control | E106: $m Nominal | M106: 15.64234526 | N106: 16.6094054 | O106: 32.17644469 | P106: 53.39084081 | Q106: 73.17248919 | R106: 85.66132446
C107: =DepnInputs!$C39 -> Non-network general assets - IT | E107: $m Nominal | M107: 93.50347392 | N107: 103.5337679 | O107: 100.8271659 | P107: 93.9254888 | Q107: 88.33312274 | R107: 87.36239218
C108: =DepnInputs!$C40 -> Non-network general assets - Other | E108: $m Nominal | M108: 148.6982095 | N108: 161.7991959 | O108: 180.9215528 | P108: 197.7067124 | Q108: 224.0589757 | R108: 246.5490171
C109: =DepnInputs!$C41 -> VBRC | E109: $m Nominal | M109: 101.6748703 | N109: 130.7693795 | O109: 140.9402287 | P109: 140.5627612 | Q109: 154.7946068 | R109: 150.6640396
C110: =DepnInputs!$C42 -> Land | E110: $m Nominal | M110: 0 | N110: 0.8653209397 | O110: 13.02900792 | P110: 22.41426319 | Q110: 23.89067176 | R110: 24.27123113
C111: =DepnInputs!$C43 -> Supervisory cables | E111: $m Nominal | M111: 3.339696637 | N111: -1.387778781e-16 | O111: -1.401979308e-16 | P111: -1.429089405e-16 | Q111: -1.458781416e-16 | R111: -1.482018642e-16
C112: =DepnInputs!$C44 -> Old SWER ACRs | E112: $m Nominal | M112: =IF(M$100=$E$4, M29, L112+M57-M85+M$9*L112 ) -> 14.51341062 | N112: 11.78615027 | O112: 8.93006455 | P112: 6.068496904 | Q112: 3.097290651 | R112: 1.58206781e-15
C113: =DepnInputs!$C45 -> Accelerated depreciation assets | E113: $m Nominal | M113: 0 | N113: 0 | O113: 0 | P113: 0 | Q113: 0 | R113: 0
C114: =DepnInputs!$C46 -> 0 | E114: $m Nominal | M114: 0 | N114: 0 | O114: 0 | P114: 0 | Q114: 0 | R114: 0
C115: =DepnInputs!$C47 -> 0 | E115: $m Nominal | M115: 0 | N115: 0 | O115: 0 | P115: 0 | Q115: 0 | R115: 0
C116: =DepnInputs!$C48 -> 0 | E116: $m Nominal | M116: 0 | N116: 0 | O116: 0 | P116: 0 | Q116: 0 | R116: 0
C117: =DepnInputs!$C49 -> 0 | E117: $m Nominal | M117: 0 | N117: 0 | O117: 0 | P117: 0 | Q117: 0 | R117: 0
C118: =DepnInputs!$C50 -> 0 | E118: $m Nominal | M118: 0 | N118: 0 | O118: 0 | P118: 0 | Q118: 0 | R118: 0
C119: =DepnInputs!$C51 -> 0 | E119: $m Nominal | M119: 0 | N119: 0 | O119: 0 | P119: 0 | Q119: 0 | R119: 0
C120: =DepnInputs!$C52 -> 0 | E120: $m Nominal | M120: 0 | N120: 0 | O120: 0 | P120: 0 | Q120: 0 | R120: 0
C121: =DepnInputs!$C53 -> 0 | E121: $m Nominal | M121: 0 | N121: 0 | O121: 0 | P121: 0 | Q121: 0 | R121: 0
C122: =DepnInputs!$C54 -> Equity raising costs | E122: $m Nominal | M122: =IF(M$100=$E$4, M39, L122+M67-M95+M$9*L122 ) -> 5.52374353 | N122: 19.57281353 | O122: 19.29684933 | P122: 19.18453952 | Q122: 19.08759479 | R122: 18.88821192
C123: Total | M123: =SUM(M102:M122) -> 3307.003575 | N123: 3453.22782 | O123: 3646.269039 | P123: 3871.680795 | Q123: 4089.223572 | R123: 4318.79583
C128: Difference Between Actual and Forecast Net Capex
N129: $m Nominal | O129: $m Nominal | P129: $m Nominal | Q129: $m Nominal | R129: $m Nominal
C130: =DepnInputs!$C34 -> Subtransmission | E130: $m Nominal
C131: =DepnInputs!$C35 -> Distribution system assets | E131: $m Nominal
C132: =DepnInputs!$C36 -> Standard metering | E132: $m Nominal
C133: =DepnInputs!$C37 -> Public lighting | E133: $m Nominal
C134: =DepnInputs!$C38 -> SCADA/Network control | E134: $m Nominal
C135: =DepnInputs!$C39 -> Non-network general assets - IT | E135: $m Nominal
C136: =DepnInputs!$C40 -> Non-network general assets - Other | E136: $m Nominal
C137: =DepnInputs!$C41 -> VBRC | E137: $m Nominal
C138: =DepnInputs!$C42 -> Land | E138: $m Nominal
C139: =DepnInputs!$C43 -> Supervisory cables | E139: $m Nominal
C140: =DepnInputs!$C44 -> Old SWER ACRs | E140: $m Nominal
C141: =DepnInputs!$C45 -> Accelerated depreciation assets | E141: $m Nominal
C142: =DepnInputs!$C46 -> 0 | E142: $m Nominal
C143: =DepnInputs!$C47 -> 0 | E143: $m Nominal
C144: =DepnInputs!$C48 -> 0 | E144: $m Nominal
C145: =DepnInputs!$C49 -> 0 | E145: $m Nominal
C146: =DepnInputs!$C50 -> 0 | E146: $m Nominal
C147: =DepnInputs!$C51 -> 0 | E147: $m Nominal
C148: =DepnInputs!$C52 -> 0 | E148: $m Nominal
C149: =DepnInputs!$C53 -> 0 | E149: $m Nominal
C150: =DepnInputs!$C54 -> Equity raising costs | E150: $m Nominal
C151: Total | M151: =SUM(M130:M150) -> 0 | R151: =SUM(R130:R150) -> 0
C156: Return on Difference - Net Capex | M156: =M$7 -> 2015 | N156: 2016 | O156: 2017 | P156: 2018 | Q156: 2019 | R156: 2020
N157: $m Nominal | O157: $m Nominal | P157: $m Nominal | Q157: $m Nominal | R157: $m Nominal
C158: =DepnInputs!$C34 -> Subtransmission | E158: $m Nominal | N158: =($M130+SUM($M158:M158))*N$14 -> 0 | O158: =($M130+SUM($M158:N158))*O$14 -> 0 | P158: =($M130+SUM($M158:O158))*P$14 -> 0 | Q158: =($M130+SUM($M158:P158))*Q$14 -> 0 | R158: =($M130+SUM($M158:Q158))*R$14 -> 0
C159: =DepnInputs!$C35 -> Distribution system assets | E159: $m Nominal | N159: =($M131+SUM($M159:M159))*N$14 -> 0 | O159: =($M131+SUM($M159:N159))*O$14 -> 0 | P159: =($M131+SUM($M159:O159))*P$14 -> 0 | Q159: =($M131+SUM($M159:P159))*Q$14 -> 0 | R159: =($M131+SUM($M159:Q159))*R$14 -> 0
C160: =DepnInputs!$C36 -> Standard metering | E160: $m Nominal | N160: =($M132+SUM($M160:M160))*N$14 -> 0 | O160: =($M132+SUM($M160:N160))*O$14 -> 0 | P160: =($M132+SUM($M160:O160))*P$14 -> 0 | Q160: =($M132+SUM($M160:P160))*Q$14 -> 0 | R160: =($M132+SUM($M160:Q160))*R$14 -> 0
C161: =DepnInputs!$C37 -> Public lighting | E161: $m Nominal | N161: =($M133+SUM($M161:M161))*N$14 -> 0 | O161: =($M133+SUM($M161:N161))*O$14 -> 0 | P161: =($M133+SUM($M161:O161))*P$14 -> 0 | Q161: =($M133+SUM($M161:P161))*Q$14 -> 0 | R161: =($M133+SUM($M161:Q161))*R$14 -> 0
C162: =DepnInputs!$C38 -> SCADA/Network control | E162: $m Nominal | N162: =($M134+SUM($M162:M162))*N$14 -> 0 | O162: =($M134+SUM($M162:N162))*O$14 -> 0 | P162: =($M134+SUM($M162:O162))*P$14 -> 0 | Q162: =($M134+SUM($M162:P162))*Q$14 -> 0 | R162: =($M134+SUM($M162:Q162))*R$14 -> 0
C163: =DepnInputs!$C39 -> Non-network general assets - IT | E163: $m Nominal | N163: =($M135+SUM($M163:M163))*N$14 -> 0 | O163: =($M135+SUM($M163:N163))*O$14 -> 0 | P163: =($M135+SUM($M163:O163))*P$14 -> 0 | Q163: =($M135+SUM($M163:P163))*Q$14 -> 0 | R163: =($M135+SUM($M163:Q163))*R$14 -> 0
C164: =DepnInputs!$C40 -> Non-network general assets - Other | E164: $m Nominal | N164: =($M136+SUM($M164:M164))*N$14 -> 0 | O164: =($M136+SUM($M164:N164))*O$14 -> 0 | P164: =($M136+SUM($M164:O164))*P$14 -> 0 | Q164: =($M136+SUM($M164:P164))*Q$14 -> 0 | R164: =($M136+SUM($M164:Q164))*R$14 -> 0
C165: =DepnInputs!$C41 -> VBRC | E165: $m Nominal | N165: =($M137+SUM($M165:M165))*N$14 -> 0 | O165: =($M137+SUM($M165:N165))*O$14 -> 0 | P165: =($M137+SUM($M165:O165))*P$14 -> 0 | Q165: =($M137+SUM($M165:P165))*Q$14 -> 0 | R165: =($M137+SUM($M165:Q165))*R$14 -> 0
C166: =DepnInputs!$C42 -> Land | E166: $m Nominal | N166: =($M138+SUM($M166:M166))*N$14 -> 0 | O166: =($M138+SUM($M166:N166))*O$14 -> 0 | P166: =($M138+SUM($M166:O166))*P$14 -> 0 | Q166: =($M138+SUM($M166:P166))*Q$14 -> 0 | R166: =($M138+SUM($M166:Q166))*R$14 -> 0
C167: =DepnInputs!$C43 -> Supervisory cables | E167: $m Nominal | N167: =($M139+SUM($M167:M167))*N$14 -> 0 | O167: =($M139+SUM($M167:N167))*O$14 -> 0 | P167: =($M139+SUM($M167:O167))*P$14 -> 0 | Q167: =($M139+SUM($M167:P167))*Q$14 -> 0 | R167: =($M139+SUM($M167:Q167))*R$14 -> 0
C168: =DepnInputs!$C44 -> Old SWER ACRs | E168: $m Nominal | N168: =($M140+SUM($M168:M168))*N$14 -> 0 | O168: =($M140+SUM($M168:N168))*O$14 -> 0 | P168: =($M140+SUM($M168:O168))*P$14 -> 0 | Q168: =($M140+SUM($M168:P168))*Q$14 -> 0 | R168: =($M140+SUM($M168:Q168))*R$14 -> 0
C169: =DepnInputs!$C45 -> Accelerated depreciation assets | E169: $m Nominal | N169: =($M141+SUM($M169:M169))*N$14 -> 0 | O169: =($M141+SUM($M169:N169))*O$14 -> 0 | P169: =($M141+SUM($M169:O169))*P$14 -> 0 | Q169: =($M141+SUM($M169:P169))*Q$14 -> 0 | R169: =($M141+SUM($M169:Q169))*R$14 -> 0
C170: =DepnInputs!$C46 -> 0 | E170: $m Nominal | N170: =($M142+SUM($M170:M170))*N$14 -> 0 | O170: =($M142+SUM($M170:N170))*O$14 -> 0 | P170: =($M142+SUM($M170:O170))*P$14 -> 0 | Q170: =($M142+SUM($M170:P170))*Q$14 -> 0 | R170: =($M142+SUM($M170:Q170))*R$14 -> 0
C171: =DepnInputs!$C47 -> 0 | E171: $m Nominal | N171: =($M143+SUM($M171:M171))*N$14 -> 0 | O171: =($M143+SUM($M171:N171))*O$14 -> 0 | P171: =($M143+SUM($M171:O171))*P$14 -> 0 | Q171: =($M143+SUM($M171:P171))*Q$14 -> 0 | R171: =($M143+SUM($M171:Q171))*R$14 -> 0
C172: =DepnInputs!$C48 -> 0 | E172: $m Nominal | N172: =($M144+SUM($M172:M172))*N$14 -> 0 | O172: =($M144+SUM($M172:N172))*O$14 -> 0 | P172: =($M144+SUM($M172:O172))*P$14 -> 0 | Q172: =($M144+SUM($M172:P172))*Q$14 -> 0 | R172: =($M144+SUM($M172:Q172))*R$14 -> 0
C173: =DepnInputs!$C49 -> 0 | E173: $m Nominal | N173: =($M145+SUM($M173:M173))*N$14 -> 0 | O173: =($M145+SUM($M173:N173))*O$14 -> 0 | P173: =($M145+SUM($M173:O173))*P$14 -> 0 | Q173: =($M145+SUM($M173:P173))*Q$14 -> 0 | R173: =($M145+SUM($M173:Q173))*R$14 -> 0
C174: =DepnInputs!$C50 -> 0 | E174: $m Nominal | N174: =($M146+SUM($M174:M174))*N$14 -> 0 | O174: =($M146+SUM($M174:N174))*O$14 -> 0 | P174: =($M146+SUM($M174:O174))*P$14 -> 0 | Q174: =($M146+SUM($M174:P174))*Q$14 -> 0 | R174: =($M146+SUM($M174:Q174))*R$14 -> 0
C175: =DepnInputs!$C51 -> 0 | E175: $m Nominal | N175: =($M147+SUM($M175:M175))*N$14 -> 0 | O175: =($M147+SUM($M175:N175))*O$14 -> 0 | P175: =($M147+SUM($M175:O175))*P$14 -> 0 | Q175: =($M147+SUM($M175:P175))*Q$14 -> 0 | R175: =($M147+SUM($M175:Q175))*R$14 -> 0
C176: =DepnInputs!$C52 -> 0 | E176: $m Nominal | N176: =($M148+SUM($M176:M176))*N$14 -> 0 | O176: =($M148+SUM($M176:N176))*O$14 -> 0 | P176: =($M148+SUM($M176:O176))*P$14 -> 0 | Q176: =($M148+SUM($M176:P176))*Q$14 -> 0 | R176: =($M148+SUM($M176:Q176))*R$14 -> 0
C177: =DepnInputs!$C53 -> 0 | E177: $m Nominal | N177: =($M149+SUM($M177:M177))*N$14 -> 0 | O177: =($M149+SUM($M177:N177))*O$14 -> 0 | P177: =($M149+SUM($M177:O177))*P$14 -> 0 | Q177: =($M149+SUM($M177:P177))*Q$14 -> 0 | R177: =($M149+SUM($M177:Q177))*R$14 -> 0
C178: =DepnInputs!$C54 -> Equity raising costs | E178: $m Nominal | N178: =($M150+SUM($M178:M178))*N$14 -> 0 | O178: =($M150+SUM($M178:N178))*O$14 -> 0 | P178: =($M150+SUM($M178:O178))*P$14 -> 0 | Q178: =($M150+SUM($M178:P178))*Q$14 -> 0 | R178: =($M150+SUM($M178:Q178))*R$14 -> 0
C179: Total | M179: =SUM(M158:M178) -> 0 | N179: 0 | O179: 0 | P179: 0 | Q179: 0 | R179: 0
C184: Adjustments for Supervisory cables and Older SWER ACRs | M184: =M$7 -> 2015 | N184: 2016 | O184: 2017 | P184: 2018 | Q184: 2019 | R184: 2020
N185: $m Nominal | O185: $m Nominal | P185: $m Nominal | Q185: $m Nominal | R185: $m Nominal
C186: =DepnInputs!$C34 -> Subtransmission | E186: $m Nominal
C187: =DepnInputs!$C35 -> Distribution system assets | E187: $m Nominal
C188: =DepnInputs!$C36 -> Standard metering | E188: $m Nominal
C189: =DepnInputs!$C37 -> Public lighting | E189: $m Nominal
C190: =DepnInputs!$C38 -> SCADA/Network control | E190: $m Nominal
C191: =DepnInputs!$C39 -> Non-network general assets - IT | E191: $m Nominal
C192: =DepnInputs!$C40 -> Non-network general assets - Other | E192: $m Nominal
C193: =DepnInputs!$C41 -> VBRC | E193: $m Nominal
C194: =DepnInputs!$C42 -> Land | E194: $m Nominal
C195: =DepnInputs!$C43 -> Supervisory cables | E195: $m Nominal
C196: =DepnInputs!$C44 -> Old SWER ACRs | E196: $m Nominal
C197: =DepnInputs!$C45 -> Accelerated depreciation assets | E197: $m Nominal
C198: =DepnInputs!$C46 -> 0 | E198: $m Nominal
C199: =DepnInputs!$C47 -> 0 | E199: $m Nominal
C200: =DepnInputs!$C48 -> 0 | E200: $m Nominal
C201: =DepnInputs!$C49 -> 0 | E201: $m Nominal
C202: =DepnInputs!$C50 -> 0 | E202: $m Nominal
C203: =DepnInputs!$C51 -> 0 | E203: $m Nominal
C204: =DepnInputs!$C52 -> 0 | E204: $m Nominal
C205: =DepnInputs!$C53 -> 0 | E205: $m Nominal
C206: =DepnInputs!$C54 -> Equity raising costs | E206: $m Nominal
C207: Total | M207: =SUM(M186:M206) -> 0 | N207: 0 | O207: 0 | P207: 0 | Q207: 0 | R207: 0
C212: Adjustment for 6 month indexation | M212: =M$7 -> 2015 | N212: 2016 | O212: 2017 | P212: 2018 | Q212: 2019 | R212: 2020
M213: $m Nominal | N213: $m Nominal | O213: $m Nominal | P213: $m Nominal | Q213: $m Nominal | R213: $m Nominal
C214: =DepnInputs!$C34 -> Subtransmission | E214: $m Nominal
C215: =DepnInputs!$C35 -> Distribution system assets | E215: $m Nominal
C216: =DepnInputs!$C36 -> Standard metering | E216: $m Nominal
C217: =DepnInputs!$C37 -> Public lighting | E217: $m Nominal
C218: =DepnInputs!$C38 -> SCADA/Network control | E218: $m Nominal
C219: =DepnInputs!$C39 -> Non-network general assets - IT | E219: $m Nominal
C220: =DepnInputs!$C40 -> Non-network general assets - Other | E220: $m Nominal
C221: =DepnInputs!$C41 -> VBRC | E221: $m Nominal
C222: =DepnInputs!$C42 -> Land | E222: $m Nominal
C223: =DepnInputs!$C43 -> Supervisory cables | E223: $m Nominal
C224: =DepnInputs!$C44 -> Old SWER ACRs | E224: $m Nominal
C225: =DepnInputs!$C45 -> Accelerated depreciation assets | E225: $m Nominal
C226: =DepnInputs!$C46 -> 0 | E226: $m Nominal
C227: =DepnInputs!$C47 -> 0 | E227: $m Nominal
C228: =DepnInputs!$C48 -> 0 | E228: $m Nominal
C229: =DepnInputs!$C49 -> 0 | E229: $m Nominal
C230: =DepnInputs!$C50 -> 0 | E230: $m Nominal
C231: =DepnInputs!$C51 -> 0 | E231: $m Nominal
C232: =DepnInputs!$C52 -> 0 | E232: $m Nominal
C233: =DepnInputs!$C53 -> 0 | E233: $m Nominal
C234: =DepnInputs!$C54 -> Equity raising costs | E234: $m Nominal
C235: Total | M235: =SUM(M214:M234) -> 0 | N235: 0 | O235: 0 | P235: 0 | Q235: 0 | R235: 0
C240: Total Adjustments | M240: =M$7 -> 2015 | N240: 2016 | O240: 2017 | P240: 2018 | Q240: 2019 | R240: 2020
... 95 more rows

Sheet Capex_2010
A1: =DepnInputs!A1 -> Powercor Depreciation
A2: All capex in 2010 dollars
C4: Escalation Inputs
C6: Inflation | H6: 2010 | I6: =H6+1 -> 2011 | J6: =I6+1 -> 2012 | K6: 2013 | L6: 2014 | M6: 2015 | N6: 2016 | O6: 2017 | P6: 2018 | Q6: 2019 | R6: 2020 | S6: 2020.5
I7: =DepnInputs!I22 -> Actual | J7: =DepnInputs!J22 -> Actual | K7: =DepnInputs!K22 -> Actual | L7: =DepnInputs!L22 -> Actual | M7: =DepnInputs!M22 -> Actual | N7: =DepnInputs!N22 -> Actual | O7: =DepnInputs!O22 -> Actual | P7: =DepnInputs!P22 -> Actual | Q7: =DepnInputs!Q22 -> Actual | R7: =DepnInputs!R22 -> Actual | S7: =DepnInputs!S22 -> Actual
C8: Actual Inflation | I8: =DepnInputs!I23 -> 0.02787663108 | J8: =DepnInputs!J23 -> 0.03519907675 | K8: =DepnInputs!K23 -> 0.02004008016 | L8: =DepnInputs!L23 -> 0.02161100196 | M8: =DepnInputs!M23 -> 0.02307692308 | N8: =DepnInputs!N23 -> 0.01510859301 | O8: =DepnInputs!O23 -> 0.01023255814 | P8: =DepnInputs!P23 -> 0.01933701657 | Q8: =DepnInputs!Q23 -> 0.02077687444 | R8: =DepnInputs!R23 -> 0.01592920354 | S8: =DepnInputs!S23 -> 0.01219512195
C9: Cumulative inflation (one year lagged)-2010 | H9: =DepnInputs!H24 -> 1 | I9: =DepnInputs!I24 -> 1.027876631 | J9: =DepnInputs!J24 -> 1.06405694 | K9: =DepnInputs!K24 -> 1.085380726 | L9: =DepnInputs!L24 -> 1.108836891 | M9: =DepnInputs!M24 -> 1.134425434 | N9: =DepnInputs!N24 -> 1.151565007 | O9: =DepnInputs!O24 -> 1.163348463 | P9: =DepnInputs!P24 -> 1.185844151 | Q9: =DepnInputs!Q24 -> 1.210482286 | R9: =DepnInputs!R24 -> 1.229764305 | S9: =DepnInputs!S24 -> 1.24476143
C14: Actual capex
C16: 2011-20 Net Capex | E16: Unit | F16: Basis | I16: =I$6 -> 2011 | J16: =J$6 -> 2012 | K16: 2013 | L16: 2014 | M16: 2015 | N16: 2016 | O16: 2017 | P16: 2018 | Q16: 2019 | R16: 2020 | S16: 2020.5
C18: =DepnInputs!$C34 -> Subtransmission | E18: $m | F18: Real 2010 | I18: ='2011_15'!I47/DepnInputs!I$24+IF(I$16>second_reg_period, ('2016_20'!I47+'2020_21'!I47)/I$9,0) -> 54.82869071 | J18: ='2011_15'!J47/DepnInputs!J$24+IF(J$16>second_reg_period, ('2016_20'!J47+'2020_21'!J47)/J$9,0) -> 31.35339775 | K18: ='2011_15'!K47/DepnInputs!K$24+IF(K$16>second_reg_period, ('2016_20'!K47+'2020_21'!K47)/K$9,0) -> 88.33563109 | L18: ='2011_15'!L47/DepnInputs!L$24+IF(L$16>second_reg_period, ('2016_20'!L47+'2020_21'!L47)/L$9,0) -> 18.12869702 | M18: ='2020_21'!M410/M$9 -> 33.67448258 | N18: ='2011_15'!N47/DepnInputs!N$24+IF(N$16>second_reg_period, ('2016_20'!N47+'2020_21'!N47)/N$9,0) -> 16.53072786 | O18: ='2011_15'!O47/DepnInputs!O$24+IF(O$16>second_reg_period, ('2016_20'!O47+'2020_21'!O47)/O$9,0) -> 36.39082035 | P18: ='2011_15'!P47/DepnInputs!P$24+IF(P$16>second_reg_period, ('2016_20'!P47+'2020_21'!P47)/P$9,0) -> 41.81908649 | Q18: ='2011_15'!Q47/DepnInputs!Q$24+IF(Q$16>second_reg_period, ('2016_20'!Q47+'2020_21'!Q47)/Q$9,0) -> 62.90869205 | R18: ='2011_15'!R47/DepnInputs!R$24+IF(R$16>second_reg_period, ('2016_20'!R47+'2020_21'!R47)/R$9,0) -> 43.09351903 | S18: ='2011_15'!S47/DepnInputs!S$24+IF(S$16>second_reg_period, ('2016_20'!S47+'2020_21'!S47)/S$9,0) -> 25.82887203
C19: =DepnInputs!$C35 -> Distribution system assets | E19: $m | F19: Real 2010 | I19: ='2011_15'!I48/DepnInputs!I$24+IF(I$16>second_reg_period, ('2016_20'!I48+'2020_21'!I48)/I$9,0) -> 140.5792461 | J19: ='2011_15'!J48/DepnInputs!J$24+IF(J$16>second_reg_period, ('2016_20'!J48+'2020_21'!J48)/J$9,0) -> 191.3193711 | K19: ='2011_15'!K48/DepnInputs!K$24+IF(K$16>second_reg_period, ('2016_20'!K48+'2020_21'!K48)/K$9,0) -> 143.0595518 | L19: ='2011_15'!L48/DepnInputs!L$24+IF(L$16>second_reg_period, ('2016_20'!L48+'2020_21'!L48)/L$9,0) -> 207.0602387 | M19: ='2020_21'!M411/M$9 -> 159.6293541 | N19: ='2011_15'!N48/DepnInputs!N$24+IF(N$16>second_reg_period, ('2016_20'!N48+'2020_21'!N48)/N$9,0) -> 126.6775052 | O19: ='2011_15'!O48/DepnInputs!O$24+IF(O$16>second_reg_period, ('2016_20'!O48+'2020_21'!O48)/O$9,0) -> 160.4469417 | P19: ='2011_15'!P48/DepnInputs!P$24+IF(P$16>second_reg_period, ('2016_20'!P48+'2020_21'!P48)/P$9,0) -> 173.5870822 | Q19: ='2011_15'!Q48/DepnInputs!Q$24+IF(Q$16>second_reg_period, ('2016_20'!Q48+'2020_21'!Q48)/Q$9,0) -> 132.0227629 | R19: ='2011_15'!R48/DepnInputs!R$24+IF(R$16>second_reg_period, ('2016_20'!R48+'2020_21'!R48)/R$9,0) -> 197.8115419 | S19: ='2011_15'!S48/DepnInputs!S$24+IF(S$16>second_reg_period, ('2016_20'!S48+'2020_21'!S48)/S$9,0) -> 118.453061
C20: =DepnInputs!$C36 -> Standard metering | E20: $m | F20: Real 2010 | I20: ='2011_15'!I49/DepnInputs!I$24+IF(I$16>second_reg_period, ('2016_20'!I49+'2020_21'!I49)/I$9,0) -> 0 | J20: ='2011_15'!J49/DepnInputs!J$24+IF(J$16>second_reg_period, ('2016_20'!J49+'2020_21'!J49)/J$9,0) -> 0 | K20: ='2011_15'!K49/DepnInputs!K$24+IF(K$16>second_reg_period, ('2016_20'!K49+'2020_21'!K49)/K$9,0) -> 0 | L20: ='2011_15'!L49/DepnInputs!L$24+IF(L$16>second_reg_period, ('2016_20'!L49+'2020_21'!L49)/L$9,0) -> 0 | M20: ='2020_21'!M412/M$9 -> 0 | N20: ='2011_15'!N49/DepnInputs!N$24+IF(N$16>second_reg_period, ('2016_20'!N49+'2020_21'!N49)/N$9,0) -> 0 | O20: ='2011_15'!O49/DepnInputs!O$24+IF(O$16>second_reg_period, ('2016_20'!O49+'2020_21'!O49)/O$9,0) -> 0 | P20: ='2011_15'!P49/DepnInputs!P$24+IF(P$16>second_reg_period, ('2016_20'!P49+'2020_21'!P49)/P$9,0) -> 0 | Q20: ='2011_15'!Q49/DepnInputs!Q$24+IF(Q$16>second_reg_period, ('2016_20'!Q49+'2020_21'!Q49)/Q$9,0) -> 0 | R20: ='2011_15'!R49/DepnInputs!R$24+IF(R$16>second_reg_period, ('2016_20'!R49+'2020_21'!R49)/R$9,0) -> 0 | S20: ='2011_15'!S49/DepnInputs!S$24+IF(S$16>second_reg_period, ('2016_20'!S49+'2020_21'!S49)/S$9,0) -> 0
C21: =DepnInputs!$C37 -> Public lighting | E21: $m | F21: Real 2010 | I21: ='2011_15'!I50/DepnInputs!I$24+IF(I$16>second_reg_period, ('2016_20'!I50+'2020_21'!I50)/I$9,0) -> 0 | J21: ='2011_15'!J50/DepnInputs!J$24+IF(J$16>second_reg_period, ('2016_20'!J50+'2020_21'!J50)/J$9,0) -> 0 | K21: ='2011_15'!K50/DepnInputs!K$24+IF(K$16>second_reg_period, ('2016_20'!K50+'2020_21'!K50)/K$9,0) -> 0 | L21: ='2011_15'!L50/DepnInputs!L$24+IF(L$16>second_reg_period, ('2016_20'!L50+'2020_21'!L50)/L$9,0) -> 0 | M21: ='2020_21'!M413/M$9 -> 0 | N21: ='2011_15'!N50/DepnInputs!N$24+IF(N$16>second_reg_period, ('2016_20'!N50+'2020_21'!N50)/N$9,0) -> 0 | O21: ='2011_15'!O50/DepnInputs!O$24+IF(O$16>second_reg_period, ('2016_20'!O50+'2020_21'!O50)/O$9,0) -> 0 | P21: ='2011_15'!P50/DepnInputs!P$24+IF(P$16>second_reg_period, ('2016_20'!P50+'2020_21'!P50)/P$9,0) -> 0 | Q21: ='2011_15'!Q50/DepnInputs!Q$24+IF(Q$16>second_reg_period, ('2016_20'!Q50+'2020_21'!Q50)/Q$9,0) -> 0 | R21: ='2011_15'!R50/DepnInputs!R$24+IF(R$16>second_reg_period, ('2016_20'!R50+'2020_21'!R50)/R$9,0) -> 0 | S21: ='2011_15'!S50/DepnInputs!S$24+IF(S$16>second_reg_period, ('2016_20'!S50+'2020_21'!S50)/S$9,0) -> 0
C22: =DepnInputs!$C38 -> SCADA/Network control | E22: $m | F22: Real 2010 | I22: ='2011_15'!I51/DepnInputs!I$24+IF(I$16>second_reg_period, ('2016_20'!I51+'2020_21'!I51)/I$9,0) -> 4.273349515 | J22: ='2011_15'!J51/DepnInputs!J$24+IF(J$16>second_reg_period, ('2016_20'!J51+'2020_21'!J51)/J$9,0) -> 2.590540986 | K22: ='2011_15'!K51/DepnInputs!K$24+IF(K$16>second_reg_period, ('2016_20'!K51+'2020_21'!K51)/K$9,0) -> 2.88255724 | L22: ='2011_15'!L51/DepnInputs!L$24+IF(L$16>second_reg_period, ('2016_20'!L51+'2020_21'!L51)/L$9,0) -> 2.921660305 | M22: ='2020_21'!M414/M$9 -> 3.020748316 | N22: ='2011_15'!N51/DepnInputs!N$24+IF(N$16>second_reg_period, ('2016_20'!N51+'2020_21'!N51)/N$9,0) -> 3.305073025 | O22: ='2011_15'!O51/DepnInputs!O$24+IF(O$16>second_reg_period, ('2016_20'!O51+'2020_21'!O51)/O$9,0) -> 15.23516991 | P22: ='2011_15'!P51/DepnInputs!P$24+IF(P$16>second_reg_period, ('2016_20'!P51+'2020_21'!P51)/P$9,0) -> 20.0445614 | Q22: ='2011_15'!Q51/DepnInputs!Q$24+IF(Q$16>second_reg_period, ('2016_20'!Q51+'2020_21'!Q51)/Q$9,0) -> 21.26182305 | R22: ='2011_15'!R51/DepnInputs!R$24+IF(R$16>second_reg_period, ('2016_20'!R51+'2020_21'!R51)/R$9,0) -> 17.64101285 | S22: ='2011_15'!S51/DepnInputs!S$24+IF(S$16>second_reg_period, ('2016_20'!S51+'2020_21'!S51)/S$9,0) -> 9.817274505
C23: =DepnInputs!$C39 -> Non-network general assets - IT | E23: $m | F23: Real 2010 | I23: ='2011_15'!I52/DepnInputs!I$24+IF(I$16>second_reg_period, ('2016_20'!I52+'2020_21'!I52)/I$9,0) -> 17.88744443 | J23: ='2011_15'!J52/DepnInputs!J$24+IF(J$16>second_reg_period, ('2016_20'!J52+'2020_21'!J52)/J$9,0) -> 13.02851876 | K23: ='2011_15'!K52/DepnInputs!K$24+IF(K$16>second_reg_period, ('2016_20'!K52+'2020_21'!K52)/K$9,0) -> 12.77136294 | L23: ='2011_15'!L52/DepnInputs!L$24+IF(L$16>second_reg_period, ('2016_20'!L52+'2020_21'!L52)/L$9,0) -> 18.50163096 | M23: ='2020_21'!M415/M$9 -> 41.10617249 | N23: ='2011_15'!N52/DepnInputs!N$24+IF(N$16>second_reg_period, ('2016_20'!N52+'2020_21'!N52)/N$9,0) -> 29.60768499 | O23: ='2011_15'!O52/DepnInputs!O$24+IF(O$16>second_reg_period, ('2016_20'!O52+'2020_21'!O52)/O$9,0) -> 19.93771193 | P23: ='2011_15'!P52/DepnInputs!P$24+IF(P$16>second_reg_period, ('2016_20'!P52+'2020_21'!P52)/P$9,0) -> 18.66506286 | Q23: ='2011_15'!Q52/DepnInputs!Q$24+IF(Q$16>second_reg_period, ('2016_20'!Q52+'2020_21'!Q52)/Q$9,0) -> 22.73342335 | R23: ='2011_15'!R52/DepnInputs!R$24+IF(R$16>second_reg_period, ('2016_20'!R52+'2020_21'!R52)/R$9,0) -> 28.62965538 | S23: ='2011_15'!S52/DepnInputs!S$24+IF(S$16>second_reg_period, ('2016_20'!S52+'2020_21'!S52)/S$9,0) -> 14.2735477
C24: =DepnInputs!$C40 -> Non-network general assets - Other | E24: $m | F24: Real 2010 | I24: ='2011_15'!I53/DepnInputs!I$24+IF(I$16>second_reg_period, ('2016_20'!I53+'2020_21'!I53)/I$9,0) -> 13.20331405 | J24: ='2011_15'!J53/DepnInputs!J$24+IF(J$16>second_reg_period, ('2016_20'!J53+'2020_21'!J53)/J$9,0) -> 6.846003712 | K24: ='2011_15'!K53/DepnInputs!K$24+IF(K$16>second_reg_period, ('2016_20'!K53+'2020_21'!K53)/K$9,0) -> 9.129541963 | L24: ='2011_15'!L53/DepnInputs!L$24+IF(L$16>second_reg_period, ('2016_20'!L53+'2020_21'!L53)/L$9,0) -> 25.77413176 | M24: ='2020_21'!M416/M$9 -> 25.10132808 | N24: ='2011_15'!N53/DepnInputs!N$24+IF(N$16>second_reg_period, ('2016_20'!N53+'2020_21'!N53)/N$9,0) -> 28.1593315 | O24: ='2011_15'!O53/DepnInputs!O$24+IF(O$16>second_reg_period, ('2016_20'!O53+'2020_21'!O53)/O$9,0) -> 34.64790726 | P24: ='2011_15'!P53/DepnInputs!P$24+IF(P$16>second_reg_period, ('2016_20'!P53+'2020_21'!P53)/P$9,0) -> 31.73735654 | Q24: ='2011_15'!Q53/DepnInputs!Q$24+IF(Q$16>second_reg_period, ('2016_20'!Q53+'2020_21'!Q53)/Q$9,0) -> 39.80990306 | R24: ='2011_15'!R53/DepnInputs!R$24+IF(R$16>second_reg_period, ('2016_20'!R53+'2020_21'!R53)/R$9,0) -> 33.34027463 | S24: ='2011_15'!S53/DepnInputs!S$24+IF(S$16>second_reg_period, ('2016_20'!S53+'2020_21'!S53)/S$9,0) -> 17.78210096
C25: =DepnInputs!$C41 -> VBRC | E25: $m | F25: Real 2010 | I25: ='2011_15'!I54/DepnInputs!I$24+IF(I$16>second_reg_period, ('2016_20'!I54+'2020_21'!I54)/I$9,0) -> 0 | J25: ='2011_15'!J54/DepnInputs!J$24+IF(J$16>second_reg_period, ('2016_20'!J54+'2020_21'!J54)/J$9,0) -> 9.490435052 | K25: ='2011_15'!K54/DepnInputs!K$24+IF(K$16>second_reg_period, ('2016_20'!K54+'2020_21'!K54)/K$9,0) -> 22.16015333 | L25: ='2011_15'!L54/DepnInputs!L$24+IF(L$16>second_reg_period, ('2016_20'!L54+'2020_21'!L54)/L$9,0) -> 41.26298668 | M25: ='2020_21'!M417/M$9 -> 21.16735929 | N25: ='2011_15'!N54/DepnInputs!N$24+IF(N$16>second_reg_period, ('2016_20'!N54+'2020_21'!N54)/N$9,0) -> 27.60535791 | O25: ='2011_15'!O54/DepnInputs!O$24+IF(O$16>second_reg_period, ('2016_20'!O54+'2020_21'!O54)/O$9,0) -> 11.67919936 | P25: ='2011_15'!P54/DepnInputs!P$24+IF(P$16>second_reg_period, ('2016_20'!P54+'2020_21'!P54)/P$9,0) -> 1.928211577 | Q25: ='2011_15'!Q54/DepnInputs!Q$24+IF(Q$16>second_reg_period, ('2016_20'!Q54+'2020_21'!Q54)/Q$9,0) -> 14.24508872 | R25: ='2011_15'!R54/DepnInputs!R$24+IF(R$16>second_reg_period, ('2016_20'!R54+'2020_21'!R54)/R$9,0) -> 0 | S25: ='2011_15'!S54/DepnInputs!S$24+IF(S$16>second_reg_period, ('2016_20'!S54+'2020_21'!S54)/S$9,0) -> 0
C26: =DepnInputs!$C42 -> Land | E26: $m | F26: Real 2010 | I26: ='2011_15'!I55/DepnInputs!I$24+IF(I$16>second_reg_period, ('2016_20'!I55+'2020_21'!I55)/I$9,0) -> 0 | J26: ='2011_15'!J55/DepnInputs!J$24+IF(J$16>second_reg_period, ('2016_20'!J55+'2020_21'!J55)/J$9,0) -> 0 | K26: ='2011_15'!K55/DepnInputs!K$24+IF(K$16>second_reg_period, ('2016_20'!K55+'2020_21'!K55)/K$9,0) -> 0 | L26: ='2011_15'!L55/DepnInputs!L$24+IF(L$16>second_reg_period, ('2016_20'!L55+'2020_21'!L55)/L$9,0) -> 0 | M26: ='2020_21'!M418/M$9 -> 0 | N26: ='2011_15'!N55/DepnInputs!N$24+IF(N$16>second_reg_period, ('2016_20'!N55+'2020_21'!N55)/N$9,0) -> 0.7514303879 | O26: ='2011_15'!O55/DepnInputs!O$24+IF(O$16>second_reg_period, ('2016_20'!O55+'2020_21'!O55)/O$9,0) -> 10.44814424 | P26: ='2011_15'!P55/DepnInputs!P$24+IF(P$16>second_reg_period, ('2016_20'!P55+'2020_21'!P55)/P$9,0) -> 7.701950642 | Q26: ='2011_15'!Q55/DepnInputs!Q$24+IF(Q$16>second_reg_period, ('2016_20'!Q55+'2020_21'!Q55)/Q$9,0) -> 0.8349649167 | R26: ='2011_15'!R55/DepnInputs!R$24+IF(R$16>second_reg_period, ('2016_20'!R55+'2020_21'!R55)/R$9,0) -> 0 | S26: ='2011_15'!S55/DepnInputs!S$24+IF(S$16>second_reg_period, ('2016_20'!S55+'2020_21'!S55)/S$9,0) -> 0
C27: =DepnInputs!$C43 -> Supervisory cables | E27: $m | F27: Real 2010 | I27: ='2011_15'!I56/DepnInputs!I$24+IF(I$16>second_reg_period, ('2016_20'!I56+'2020_21'!I56)/I$9,0) -> 0 | J27: ='2011_15'!J56/DepnInputs!J$24+IF(J$16>second_reg_period, ('2016_20'!J56+'2020_21'!J56)/J$9,0) -> 0 | K27: ='2011_15'!K56/DepnInputs!K$24+IF(K$16>second_reg_period, ('2016_20'!K56+'2020_21'!K56)/K$9,0) -> 0 | L27: ='2011_15'!L56/DepnInputs!L$24+IF(L$16>second_reg_period, ('2016_20'!L56+'2020_21'!L56)/L$9,0) -> 0 | M27: ='2020_21'!M419/M$9 -> 0 | N27: ='2011_15'!N56/DepnInputs!N$24+IF(N$16>second_reg_period, ('2016_20'!N56+'2020_21'!N56)/N$9,0) -> 0 | O27: ='2011_15'!O56/DepnInputs!O$24+IF(O$16>second_reg_period, ('2016_20'!O56+'2020_21'!O56)/O$9,0) -> 0 | P27: ='2011_15'!P56/DepnInputs!P$24+IF(P$16>second_reg_period, ('2016_20'!P56+'2020_21'!P56)/P$9,0) -> 0 | Q27: ='2011_15'!Q56/DepnInputs!Q$24+IF(Q$16>second_reg_period, ('2016_20'!Q56+'2020_21'!Q56)/Q$9,0) -> 0 | R27: ='2011_15'!R56/DepnInputs!R$24+IF(R$16>second_reg_period, ('2016_20'!R56+'2020_21'!R56)/R$9,0) -> 0 | S27: ='2011_15'!S56/DepnInputs!S$24+IF(S$16>second_reg_period, ('2016_20'!S56+'2020_21'!S56)/S$9,0) -> 0
C28: =DepnInputs!$C44 -> Old SWER ACRs | E28: $m | F28: Real 2010 | I28: ='2011_15'!I57/DepnInputs!I$24+IF(I$16>second_reg_period, ('2016_20'!I57+'2020_21'!I57)/I$9,0) -> 0 | J28: ='2011_15'!J57/DepnInputs!J$24+IF(J$16>second_reg_period, ('2016_20'!J57+'2020_21'!J57)/J$9,0) -> 0 | K28: ='2011_15'!K57/DepnInputs!K$24+IF(K$16>second_reg_period, ('2016_20'!K57+'2020_21'!K57)/K$9,0) -> 0 | L28: ='2011_15'!L57/DepnInputs!L$24+IF(L$16>second_reg_period, ('2016_20'!L57+'2020_21'!L57)/L$9,0) -> 0 | M28: ='2020_21'!M420/M$9 -> 0 | N28: ='2011_15'!N57/DepnInputs!N$24+IF(N$16>second_reg_period, ('2016_20'!N57+'2020_21'!N57)/N$9,0) -> 0 | O28: ='2011_15'!O57/DepnInputs!O$24+IF(O$16>second_reg_period, ('2016_20'!O57+'2020_21'!O57)/O$9,0) -> 0 | P28: ='2011_15'!P57/DepnInputs!P$24+IF(P$16>second_reg_period, ('2016_20'!P57+'2020_21'!P57)/P$9,0) -> 0 | Q28: ='2011_15'!Q57/DepnInputs!Q$24+IF(Q$16>second_reg_period, ('2016_20'!Q57+'2020_21'!Q57)/Q$9,0) -> 0 | R28: ='2011_15'!R57/DepnInputs!R$24+IF(R$16>second_reg_period, ('2016_20'!R57+'2020_21'!R57)/R$9,0) -> 0 | S28: ='2011_15'!S57/DepnInputs!S$24+IF(S$16>second_reg_period, ('2016_20'!S57+'2020_21'!S57)/S$9,0) -> 0
C29: =DepnInputs!$C45 -> Accelerated depreciation assets | E29: $m | F29: Real 2010 | I29: ='2011_15'!I58/DepnInputs!I$24+IF(I$16>second_reg_period, ('2016_20'!I58+'2020_21'!I58)/I$9,0) -> 0 | J29: ='2011_15'!J58/DepnInputs!J$24+IF(J$16>second_reg_period, ('2016_20'!J58+'2020_21'!J58)/J$9,0) -> 0 | K29: ='2011_15'!K58/DepnInputs!K$24+IF(K$16>second_reg_period, ('2016_20'!K58+'2020_21'!K58)/K$9,0) -> 0 | L29: ='2011_15'!L58/DepnInputs!L$24+IF(L$16>second_reg_period, ('2016_20'!L58+'2020_21'!L58)/L$9,0) -> 0 | M29: ='2020_21'!M421/M$9 -> 0 | N29: ='2011_15'!N58/DepnInputs!N$24+IF(N$16>second_reg_period, ('2016_20'!N58+'2020_21'!N58)/N$9,0) -> 0 | O29: ='2011_15'!O58/DepnInputs!O$24+IF(O$16>second_reg_period, ('2016_20'!O58+'2020_21'!O58)/O$9,0) -> 0 | P29: ='2011_15'!P58/DepnInputs!P$24+IF(P$16>second_reg_period, ('2016_20'!P58+'2020_21'!P58)/P$9,0) -> 0 | Q29: ='2011_15'!Q58/DepnInputs!Q$24+IF(Q$16>second_reg_period, ('2016_20'!Q58+'2020_21'!Q58)/Q$9,0) -> 0 | R29: ='2011_15'!R58/DepnInputs!R$24+IF(R$16>second_reg_period, ('2016_20'!R58+'2020_21'!R58)/R$9,0) -> 0 | S29: ='2011_15'!S58/DepnInputs!S$24+IF(S$16>second_reg_period, ('2016_20'!S58+'2020_21'!S58)/S$9,0) -> 0
C30: =DepnInputs!$C46 -> 0 | E30: $m | F30: Real 2010 | I30: ='2011_15'!I59/DepnInputs!I$24+IF(I$16>second_reg_period, ('2016_20'!I59+'2020_21'!I59)/I$9,0) -> 0 | J30: ='2011_15'!J59/DepnInputs!J$24+IF(J$16>second_reg_period, ('2016_20'!J59+'2020_21'!J59)/J$9,0) -> 0 | K30: ='2011_15'!K59/DepnInputs!K$24+IF(K$16>second_reg_period, ('2016_20'!K59+'2020_21'!K59)/K$9,0) -> 0 | L30: ='2011_15'!L59/DepnInputs!L$24+IF(L$16>second_reg_period, ('2016_20'!L59+'2020_21'!L59)/L$9,0) -> 0 | M30: ='2020_21'!M422/M$9 -> 0 | N30: ='2011_15'!N59/DepnInputs!N$24+IF(N$16>second_reg_period, ('2016_20'!N59+'2020_21'!N59)/N$9,0) -> 0 | O30: ='2011_15'!O59/DepnInputs!O$24+IF(O$16>second_reg_period, ('2016_20'!O59+'2020_21'!O59)/O$9,0) -> 0 | P30: ='2011_15'!P59/DepnInputs!P$24+IF(P$16>second_reg_period, ('2016_20'!P59+'2020_21'!P59)/P$9,0) -> 0 | Q30: ='2011_15'!Q59/DepnInputs!Q$24+IF(Q$16>second_reg_period, ('2016_20'!Q59+'2020_21'!Q59)/Q$9,0) -> 0 | R30: ='2011_15'!R59/DepnInputs!R$24+IF(R$16>second_reg_period, ('2016_20'!R59+'2020_21'!R59)/R$9,0) -> 0 | S30: ='2011_15'!S59/DepnInputs!S$24+IF(S$16>second_reg_period, ('2016_20'!S59+'2020_21'!S59)/S$9,0) -> 0
C31: =DepnInputs!$C47 -> 0 | E31: $m | F31: Real 2010 | I31: ='2011_15'!I60/DepnInputs!I$24+IF(I$16>second_reg_period, ('2016_20'!I60+'2020_21'!I60)/I$9,0) -> 0 | J31: ='2011_15'!J60/DepnInputs!J$24+IF(J$16>second_reg_period, ('2016_20'!J60+'2020_21'!J60)/J$9,0) -> 0 | K31: ='2011_15'!K60/DepnInputs!K$24+IF(K$16>second_reg_period, ('2016_20'!K60+'2020_21'!K60)/K$9,0) -> 0 | L31: ='2011_15'!L60/DepnInputs!L$24+IF(L$16>second_reg_period, ('2016_20'!L60+'2020_21'!L60)/L$9,0) -> 0 | M31: ='2020_21'!M423/M$9 -> 0 | N31: ='2011_15'!N60/DepnInputs!N$24+IF(N$16>second_reg_period, ('2016_20'!N60+'2020_21'!N60)/N$9,0) -> 0 | O31: ='2011_15'!O60/DepnInputs!O$24+IF(O$16>second_reg_period, ('2016_20'!O60+'2020_21'!O60)/O$9,0) -> 0 | P31: ='2011_15'!P60/DepnInputs!P$24+IF(P$16>second_reg_period, ('2016_20'!P60+'2020_21'!P60)/P$9,0) -> 0 | Q31: ='2011_15'!Q60/DepnInputs!Q$24+IF(Q$16>second_reg_period, ('2016_20'!Q60+'2020_21'!Q60)/Q$9,0) -> 0 | R31: ='2011_15'!R60/DepnInputs!R$24+IF(R$16>second_reg_period, ('2016_20'!R60+'2020_21'!R60)/R$9,0) -> 0 | S31: ='2011_15'!S60/DepnInputs!S$24+IF(S$16>second_reg_period, ('2016_20'!S60+'2020_21'!S60)/S$9,0) -> 0
C32: =DepnInputs!$C48 -> 0 | E32: $m | F32: Real 2010 | I32: ='2011_15'!I61/DepnInputs!I$24+IF(I$16>second_reg_period, ('2016_20'!I61+'2020_21'!I61)/I$9,0) -> 0 | J32: ='2011_15'!J61/DepnInputs!J$24+IF(J$16>second_reg_period, ('2016_20'!J61+'2020_21'!J61)/J$9,0) -> 0 | K32: ='2011_15'!K61/DepnInputs!K$24+IF(K$16>second_reg_period, ('2016_20'!K61+'2020_21'!K61)/K$9,0) -> 0 | L32: ='2011_15'!L61/DepnInputs!L$24+IF(L$16>second_reg_period, ('2016_20'!L61+'2020_21'!L61)/L$9,0) -> 0 | M32: ='2020_21'!M424/M$9 -> 0 | N32: ='2011_15'!N61/DepnInputs!N$24+IF(N$16>second_reg_period, ('2016_20'!N61+'2020_21'!N61)/N$9,0) -> 0 | O32: ='2011_15'!O61/DepnInputs!O$24+IF(O$16>second_reg_period, ('2016_20'!O61+'2020_21'!O61)/O$9,0) -> 0 | P32: ='2011_15'!P61/DepnInputs!P$24+IF(P$16>second_reg_period, ('2016_20'!P61+'2020_21'!P61)/P$9,0) -> 0 | Q32: ='2011_15'!Q61/DepnInputs!Q$24+IF(Q$16>second_reg_period, ('2016_20'!Q61+'2020_21'!Q61)/Q$9,0) -> 0 | R32: ='2011_15'!R61/DepnInputs!R$24+IF(R$16>second_reg_period, ('2016_20'!R61+'2020_21'!R61)/R$9,0) -> 0 | S32: ='2011_15'!S61/DepnInputs!S$24+IF(S$16>second_reg_period, ('2016_20'!S61+'2020_21'!S61)/S$9,0) -> 0
C33: =DepnInputs!$C49 -> 0 | E33: $m | F33: Real 2010 | I33: ='2011_15'!I62/DepnInputs!I$24+IF(I$16>second_reg_period, ('2016_20'!I62+'2020_21'!I62)/I$9,0) -> 0 | J33: ='2011_15'!J62/DepnInputs!J$24+IF(J$16>second_reg_period, ('2016_20'!J62+'2020_21'!J62)/J$9,0) -> 0 | K33: ='2011_15'!K62/DepnInputs!K$24+IF(K$16>second_reg_period, ('2016_20'!K62+'2020_21'!K62)/K$9,0) -> 0 | L33: ='2011_15'!L62/DepnInputs!L$24+IF(L$16>second_reg_period, ('2016_20'!L62+'2020_21'!L62)/L$9,0) -> 0 | M33: ='2020_21'!M425/M$9 -> 0 | N33: ='2011_15'!N62/DepnInputs!N$24+IF(N$16>second_reg_period, ('2016_20'!N62+'2020_21'!N62)/N$9,0) -> 0 | O33: ='2011_15'!O62/DepnInputs!O$24+IF(O$16>second_reg_period, ('2016_20'!O62+'2020_21'!O62)/O$9,0) -> 0 | P33: ='2011_15'!P62/DepnInputs!P$24+IF(P$16>second_reg_period, ('2016_20'!P62+'2020_21'!P62)/P$9,0) -> 0 | Q33: ='2011_15'!Q62/DepnInputs!Q$24+IF(Q$16>second_reg_period, ('2016_20'!Q62+'2020_21'!Q62)/Q$9,0) -> 0 | R33: ='2011_15'!R62/DepnInputs!R$24+IF(R$16>second_reg_period, ('2016_20'!R62+'2020_21'!R62)/R$9,0) -> 0 | S33: ='2011_15'!S62/DepnInputs!S$24+IF(S$16>second_reg_period, ('2016_20'!S62+'2020_21'!S62)/S$9,0) -> 0
C34: =DepnInputs!$C50 -> 0 | E34: $m | F34: Real 2010 | I34: ='2011_15'!I63/DepnInputs!I$24+IF(I$16>second_reg_period, ('2016_20'!I63+'2020_21'!I63)/I$9,0) -> 0 | J34: ='2011_15'!J63/DepnInputs!J$24+IF(J$16>second_reg_period, ('2016_20'!J63+'2020_21'!J63)/J$9,0) -> 0 | K34: ='2011_15'!K63/DepnInputs!K$24+IF(K$16>second_reg_period, ('2016_20'!K63+'2020_21'!K63)/K$9,0) -> 0 | L34: ='2011_15'!L63/DepnInputs!L$24+IF(L$16>second_reg_period, ('2016_20'!L63+'2020_21'!L63)/L$9,0) -> 0 | M34: ='2020_21'!M426/M$9 -> 0 | N34: ='2011_15'!N63/DepnInputs!N$24+IF(N$16>second_reg_period, ('2016_20'!N63+'2020_21'!N63)/N$9,0) -> 0 | O34: ='2011_15'!O63/DepnInputs!O$24+IF(O$16>second_reg_period, ('2016_20'!O63+'2020_21'!O63)/O$9,0) -> 0 | P34: ='2011_15'!P63/DepnInputs!P$24+IF(P$16>second_reg_period, ('2016_20'!P63+'2020_21'!P63)/P$9,0) -> 0 | Q34: ='2011_15'!Q63/DepnInputs!Q$24+IF(Q$16>second_reg_period, ('2016_20'!Q63+'2020_21'!Q63)/Q$9,0) -> 0 | R34: ='2011_15'!R63/DepnInputs!R$24+IF(R$16>second_reg_period, ('2016_20'!R63+'2020_21'!R63)/R$9,0) -> 0 | S34: ='2011_15'!S63/DepnInputs!S$24+IF(S$16>second_reg_period, ('2016_20'!S63+'2020_21'!S63)/S$9,0) -> 0
C35: =DepnInputs!$C51 -> 0 | E35: $m | F35: Real 2010 | I35: ='2011_15'!I64/DepnInputs!I$24+IF(I$16>second_reg_period, ('2016_20'!I64+'2020_21'!I64)/I$9,0) -> 0 | J35: ='2011_15'!J64/DepnInputs!J$24+IF(J$16>second_reg_period, ('2016_20'!J64+'2020_21'!J64)/J$9,0) -> 0 | K35: ='2011_15'!K64/DepnInputs!K$24+IF(K$16>second_reg_period, ('2016_20'!K64+'2020_21'!K64)/K$9,0) -> 0 | L35: ='2011_15'!L64/DepnInputs!L$24+IF(L$16>second_reg_period, ('2016_20'!L64+'2020_21'!L64)/L$9,0) -> 0 | M35: ='2020_21'!M427/M$9 -> 0 | N35: ='2011_15'!N64/DepnInputs!N$24+IF(N$16>second_reg_period, ('2016_20'!N64+'2020_21'!N64)/N$9,0) -> 0 | O35: ='2011_15'!O64/DepnInputs!O$24+IF(O$16>second_reg_period, ('2016_20'!O64+'2020_21'!O64)/O$9,0) -> 0 | P35: ='2011_15'!P64/DepnInputs!P$24+IF(P$16>second_reg_period, ('2016_20'!P64+'2020_21'!P64)/P$9,0) -> 0 | Q35: ='2011_15'!Q64/DepnInputs!Q$24+IF(Q$16>second_reg_period, ('2016_20'!Q64+'2020_21'!Q64)/Q$9,0) -> 0 | R35: ='2011_15'!R64/DepnInputs!R$24+IF(R$16>second_reg_period, ('2016_20'!R64+'2020_21'!R64)/R$9,0) -> 0 | S35: ='2011_15'!S64/DepnInputs!S$24+IF(S$16>second_reg_period, ('2016_20'!S64+'2020_21'!S64)/S$9,0) -> 0
C36: =DepnInputs!$C52 -> 0 | E36: $m | F36: Real 2010 | I36: ='2011_15'!I65/DepnInputs!I$24+IF(I$16>second_reg_period, ('2016_20'!I65+'2020_21'!I65)/I$9,0) -> 0 | J36: ='2011_15'!J65/DepnInputs!J$24+IF(J$16>second_reg_period, ('2016_20'!J65+'2020_21'!J65)/J$9,0) -> 0 | K36: ='2011_15'!K65/DepnInputs!K$24+IF(K$16>second_reg_period, ('2016_20'!K65+'2020_21'!K65)/K$9,0) -> 0 | L36: ='2011_15'!L65/DepnInputs!L$24+IF(L$16>second_reg_period, ('2016_20'!L65+'2020_21'!L65)/L$9,0) -> 0 | M36: ='2020_21'!M428/M$9 -> 0 | N36: ='2011_15'!N65/DepnInputs!N$24+IF(N$16>second_reg_period, ('2016_20'!N65+'2020_21'!N65)/N$9,0) -> 0 | O36: ='2011_15'!O65/DepnInputs!O$24+IF(O$16>second_reg_period, ('2016_20'!O65+'2020_21'!O65)/O$9,0) -> 0 | P36: ='2011_15'!P65/DepnInputs!P$24+IF(P$16>second_reg_period, ('2016_20'!P65+'2020_21'!P65)/P$9,0) -> 0 | Q36: ='2011_15'!Q65/DepnInputs!Q$24+IF(Q$16>second_reg_period, ('2016_20'!Q65+'2020_21'!Q65)/Q$9,0) -> 0 | R36: ='2011_15'!R65/DepnInputs!R$24+IF(R$16>second_reg_period, ('2016_20'!R65+'2020_21'!R65)/R$9,0) -> 0 | S36: ='2011_15'!S65/DepnInputs!S$24+IF(S$16>second_reg_period, ('2016_20'!S65+'2020_21'!S65)/S$9,0) -> 0
C37: =DepnInputs!$C53 -> 0 | E37: $m | F37: Real 2010 | I37: ='2011_15'!I66/DepnInputs!I$24+IF(I$16>second_reg_period, ('2016_20'!I66+'2020_21'!I66)/I$9,0) -> 0 | J37: ='2011_15'!J66/DepnInputs!J$24+IF(J$16>second_reg_period, ('2016_20'!J66+'2020_21'!J66)/J$9,0) -> 0 | K37: ='2011_15'!K66/DepnInputs!K$24+IF(K$16>second_reg_period, ('2016_20'!K66+'2020_21'!K66)/K$9,0) -> 0 | L37: ='2011_15'!L66/DepnInputs!L$24+IF(L$16>second_reg_period, ('2016_20'!L66+'2020_21'!L66)/L$9,0) -> 0 | M37: ='2020_21'!M429/M$9 -> 0 | N37: ='2011_15'!N66/DepnInputs!N$24+IF(N$16>second_reg_period, ('2016_20'!N66+'2020_21'!N66)/N$9,0) -> 0 | O37: ='2011_15'!O66/DepnInputs!O$24+IF(O$16>second_reg_period, ('2016_20'!O66+'2020_21'!O66)/O$9,0) -> 0 | P37: ='2011_15'!P66/DepnInputs!P$24+IF(P$16>second_reg_period, ('2016_20'!P66+'2020_21'!P66)/P$9,0) -> 0 | Q37: ='2011_15'!Q66/DepnInputs!Q$24+IF(Q$16>second_reg_period, ('2016_20'!Q66+'2020_21'!Q66)/Q$9,0) -> 0 | R37: ='2011_15'!R66/DepnInputs!R$24+IF(R$16>second_reg_period, ('2016_20'!R66+'2020_21'!R66)/R$9,0) -> 0 | S37: ='2011_15'!S66/DepnInputs!S$24+IF(S$16>second_reg_period, ('2016_20'!S66+'2020_21'!S66)/S$9,0) -> 0
C38: =DepnInputs!$C54 -> Equity raising costs | E38: $m | F38: Real 2010 | I38: ='2011_15'!I67/DepnInputs!I$24+IF(I$16>second_reg_period, ('2016_20'!I67+'2020_21'!I67)/I$9,0) -> 5.342088186 | J38: ='2011_15'!J67/DepnInputs!J$24+IF(J$16>second_reg_period, ('2016_20'!J67+'2020_21'!J67)/J$9,0) -> 0 | K38: ='2011_15'!K67/DepnInputs!K$24+IF(K$16>second_reg_period, ('2016_20'!K67+'2020_21'!K67)/K$9,0) -> 0 | L38: ='2011_15'!L67/DepnInputs!L$24+IF(L$16>second_reg_period, ('2016_20'!L67+'2020_21'!L67)/L$9,0) -> 0 | M38: ='2020_21'!M430/M$9 -> 0 | N38: ='2011_15'!N67/DepnInputs!N$24+IF(N$16>second_reg_period, ('2016_20'!N67+'2020_21'!N67)/N$9,0) -> 12.24573038 | O38: ='2011_15'!O67/DepnInputs!O$24+IF(O$16>second_reg_period, ('2016_20'!O67+'2020_21'!O67)/O$9,0) -> 0 | P38: ='2011_15'!P67/DepnInputs!P$24+IF(P$16>second_reg_period, ('2016_20'!P67+'2020_21'!P67)/P$9,0) -> 0 | Q38: ='2011_15'!Q67/DepnInputs!Q$24+IF(Q$16>second_reg_period, ('2016_20'!Q67+'2020_21'!Q67)/Q$9,0) -> 0 | R38: ='2011_15'!R67/DepnInputs!R$24+IF(R$16>second_reg_period, ('2016_20'!R67+'2020_21'!R67)/R$9,0) -> 0 | S38: ='2011_15'!S67/DepnInputs!S$24+IF(S$16>second_reg_period, ('2016_20'!S67+'2020_21'!S67)/S$9,0) -> 1.403952824
C39: Total | I39: =SUM(I18:I38) -> 236.114133 | J39: =SUM(J18:J38) -> 254.6282674 | K39: 278.3387984 | L39: 313.6493454 | M39: 283.6994449 | N39: 244.8828412 | O39: 288.7858947 | P39: 295.4833117 | Q39: 293.816658 | R39: 320.5160038 | S39: =SUM(S18:S38) -> 187.558809
C44: Capex Adjustments for final year of prior regulatory period
I47: =I$6 -> 2011 | J47: =J$6 -> 2012 | K47: 2013 | L47: 2014 | M47: 2015 | N47: 2016 | O47: 2017 | P47: 2018 | Q47: 2019 | R47: 2020 | S47: 2020.5
C49: =DepnInputs!$C34 -> Subtransmission | E49: $m | F49: Real 2010 | M49: =('2011_15'!M354+'2016_20'!M354)/M$9 -> -14.94986215 | N49: =('2011_15'!N354+'2016_20'!N354)/N$9 -> 0 | O49: =('2011_15'!O354+'2016_20'!O354)/O$9 -> 0 | P49: =('2011_15'!P354+'2016_20'!P354)/P$9 -> 0 | Q49: =('2011_15'!Q354+'2016_20'!Q354)/Q$9 -> 0 | R49: =('2011_15'!R354+'2016_20'!R354)/R$9 -> 0 | S49: =('2011_15'!S354+'2016_20'!S354+'2020_21'!S354)/S$9 -> -0.07760242886
C50: =DepnInputs!$C35 -> Distribution system assets | E50: $m | F50: Real 2010 | M50: =('2011_15'!M355+'2016_20'!M355)/M$9 -> -3.165999791 | N50: =('2011_15'!N355+'2016_20'!N355)/N$9 -> 0 | O50: =('2011_15'!O355+'2016_20'!O355)/O$9 -> 0 | P50: =('2011_15'!P355+'2016_20'!P355)/P$9 -> 0 | Q50: =('2011_15'!Q355+'2016_20'!Q355)/Q$9 -> 0 | R50: =('2011_15'!R355+'2016_20'!R355)/R$9 -> 0 | S50: =('2011_15'!S355+'2016_20'!S355+'2020_21'!S355)/S$9 -> -0.4623659026
C51: =DepnInputs!$C36 -> Standard metering | E51: $m | F51: Real 2010 | M51: =('2011_15'!M356+'2016_20'!M356)/M$9 -> 0 | N51: =('2011_15'!N356+'2016_20'!N356)/N$9 -> 0 | O51: =('2011_15'!O356+'2016_20'!O356)/O$9 -> 0 | P51: =('2011_15'!P356+'2016_20'!P356)/P$9 -> 0 | Q51: =('2011_15'!Q356+'2016_20'!Q356)/Q$9 -> 0 | R51: =('2011_15'!R356+'2016_20'!R356)/R$9 -> 0 | S51: =('2011_15'!S356+'2016_20'!S356+'2020_21'!S356)/S$9 -> 0
C52: =DepnInputs!$C37 -> Public lighting | E52: $m | F52: Real 2010 | M52: =('2011_15'!M357+'2016_20'!M357)/M$9 -> 0 | N52: =('2011_15'!N357+'2016_20'!N357)/N$9 -> 0 | O52: =('2011_15'!O357+'2016_20'!O357)/O$9 -> 0 | P52: =('2011_15'!P357+'2016_20'!P357)/P$9 -> 0 | Q52: =('2011_15'!Q357+'2016_20'!Q357)/Q$9 -> 0 | R52: =('2011_15'!R357+'2016_20'!R357)/R$9 -> 0 | S52: =('2011_15'!S357+'2016_20'!S357+'2020_21'!S357)/S$9 -> 0
C53: =DepnInputs!$C38 -> SCADA/Network control | E53: $m | F53: Real 2010 | M53: =('2011_15'!M358+'2016_20'!M358)/M$9 -> -1.554019804 | N53: =('2011_15'!N358+'2016_20'!N358)/N$9 -> 0 | O53: =('2011_15'!O358+'2016_20'!O358)/O$9 -> 0 | P53: =('2011_15'!P358+'2016_20'!P358)/P$9 -> 0 | Q53: =('2011_15'!Q358+'2016_20'!Q358)/Q$9 -> 0 | R53: =('2011_15'!R358+'2016_20'!R358)/R$9 -> 0 | S53: =('2011_15'!S358+'2016_20'!S358+'2020_21'!S358)/S$9 -> 0
C54: =DepnInputs!$C39 -> Non-network general assets - IT | E54: $m | F54: Real 2010 | M54: =('2011_15'!M359+'2016_20'!M359)/M$9 -> 1.325168773 | N54: =('2011_15'!N359+'2016_20'!N359)/N$9 -> 0 | O54: =('2011_15'!O359+'2016_20'!O359)/O$9 -> 0 | P54: =('2011_15'!P359+'2016_20'!P359)/P$9 -> 0 | Q54: =('2011_15'!Q359+'2016_20'!Q359)/Q$9 -> 0 | R54: =('2011_15'!R359+'2016_20'!R359)/R$9 -> 0 | S54: =('2011_15'!S359+'2016_20'!S359+'2020_21'!S359)/S$9 -> 0
C55: =DepnInputs!$C40 -> Non-network general assets - Other | E55: $m | F55: Real 2010 | M55: =('2011_15'!M360+'2016_20'!M360)/M$9 -> -7.502865788 | N55: =('2011_15'!N360+'2016_20'!N360)/N$9 -> 0 | O55: =('2011_15'!O360+'2016_20'!O360)/O$9 -> 0 | P55: =('2011_15'!P360+'2016_20'!P360)/P$9 -> 0 | Q55: =('2011_15'!Q360+'2016_20'!Q360)/Q$9 -> 0 | R55: =('2011_15'!R360+'2016_20'!R360)/R$9 -> 0 | S55: =('2011_15'!S360+'2016_20'!S360+'2020_21'!S360)/S$9 -> 0
C56: =DepnInputs!$C41 -> VBRC | E56: $m | F56: Real 2010 | M56: =('2011_15'!M361+'2016_20'!M361)/M$9 -> 0 | N56: =('2011_15'!N361+'2016_20'!N361)/N$9 -> 0 | O56: =('2011_15'!O361+'2016_20'!O361)/O$9 -> 0 | P56: =('2011_15'!P361+'2016_20'!P361)/P$9 -> 0 | Q56: =('2011_15'!Q361+'2016_20'!Q361)/Q$9 -> 0 | R56: =('2011_15'!R361+'2016_20'!R361)/R$9 -> 0 | S56: =('2011_15'!S361+'2016_20'!S361+'2020_21'!S361)/S$9 -> 0
C57: =DepnInputs!$C42 -> Land | E57: $m | F57: Real 2010 | M57: =('2011_15'!M362+'2016_20'!M362)/M$9 -> 0 | N57: =('2011_15'!N362+'2016_20'!N362)/N$9 -> 0 | O57: =('2011_15'!O362+'2016_20'!O362)/O$9 -> 0 | P57: =('2011_15'!P362+'2016_20'!P362)/P$9 -> 0 | Q57: =('2011_15'!Q362+'2016_20'!Q362)/Q$9 -> 0 | R57: =('2011_15'!R362+'2016_20'!R362)/R$9 -> 0 | S57: =('2011_15'!S362+'2016_20'!S362+'2020_21'!S362)/S$9 -> 0
C58: =DepnInputs!$C43 -> Supervisory cables | E58: $m | F58: Real 2010 | M58: =('2011_15'!M363+'2016_20'!M363)/M$9 -> 0 | N58: =('2011_15'!N363+'2016_20'!N363)/N$9 -> 0 | O58: =('2011_15'!O363+'2016_20'!O363)/O$9 -> 0 | P58: =('2011_15'!P363+'2016_20'!P363)/P$9 -> 0 | Q58: =('2011_15'!Q363+'2016_20'!Q363)/Q$9 -> 0 | R58: =('2011_15'!R363+'2016_20'!R363)/R$9 -> 0 | S58: =('2011_15'!S363+'2016_20'!S363+'2020_21'!S363)/S$9 -> 0
C59: =DepnInputs!$C44 -> Old SWER ACRs | E59: $m | F59: Real 2010 | M59: =('2011_15'!M364+'2016_20'!M364)/M$9 -> 0 | N59: =('2011_15'!N364+'2016_20'!N364)/N$9 -> 0 | O59: =('2011_15'!O364+'2016_20'!O364)/O$9 -> 0 | P59: =('2011_15'!P364+'2016_20'!P364)/P$9 -> 0 | Q59: =('2011_15'!Q364+'2016_20'!Q364)/Q$9 -> 0 | R59: =('2011_15'!R364+'2016_20'!R364)/R$9 -> 0 | S59: =('2011_15'!S364+'2016_20'!S364+'2020_21'!S364)/S$9 -> 0
C60: =DepnInputs!$C45 -> Accelerated depreciation assets | E60: $m | F60: Real 2010 | M60: =('2011_15'!M365+'2016_20'!M365)/M$9 -> 0 | N60: =('2011_15'!N365+'2016_20'!N365)/N$9 -> 0 | O60: =('2011_15'!O365+'2016_20'!O365)/O$9 -> 0 | P60: =('2011_15'!P365+'2016_20'!P365)/P$9 -> 0 | Q60: =('2011_15'!Q365+'2016_20'!Q365)/Q$9 -> 0 | R60: =('2011_15'!R365+'2016_20'!R365)/R$9 -> 0 | S60: =('2011_15'!S365+'2016_20'!S365+'2020_21'!S365)/S$9 -> 0
C61: =DepnInputs!$C46 -> 0 | E61: $m | F61: Real 2010 | M61: =('2011_15'!M366+'2016_20'!M366)/M$9 -> 0 | N61: =('2011_15'!N366+'2016_20'!N366)/N$9 -> 0 | O61: =('2011_15'!O366+'2016_20'!O366)/O$9 -> 0 | P61: =('2011_15'!P366+'2016_20'!P366)/P$9 -> 0 | Q61: =('2011_15'!Q366+'2016_20'!Q366)/Q$9 -> 0 | R61: =('2011_15'!R366+'2016_20'!R366)/R$9 -> 0 | S61: =('2011_15'!S366+'2016_20'!S366+'2020_21'!S366)/S$9 -> 0
C62: =DepnInputs!$C47 -> 0 | E62: $m | F62: Real 2010 | M62: =('2011_15'!M367+'2016_20'!M367)/M$9 -> 0 | N62: =('2011_15'!N367+'2016_20'!N367)/N$9 -> 0 | O62: =('2011_15'!O367+'2016_20'!O367)/O$9 -> 0 | P62: =('2011_15'!P367+'2016_20'!P367)/P$9 -> 0 | Q62: =('2011_15'!Q367+'2016_20'!Q367)/Q$9 -> 0 | R62: =('2011_15'!R367+'2016_20'!R367)/R$9 -> 0 | S62: =('2011_15'!S367+'2016_20'!S367+'2020_21'!S367)/S$9 -> 0
C63: =DepnInputs!$C48 -> 0 | E63: $m | F63: Real 2010 | M63: =('2011_15'!M368+'2016_20'!M368)/M$9 -> 0 | N63: =('2011_15'!N368+'2016_20'!N368)/N$9 -> 0 | O63: =('2011_15'!O368+'2016_20'!O368)/O$9 -> 0 | P63: =('2011_15'!P368+'2016_20'!P368)/P$9 -> 0 | Q63: =('2011_15'!Q368+'2016_20'!Q368)/Q$9 -> 0 | R63: =('2011_15'!R368+'2016_20'!R368)/R$9 -> 0 | S63: =('2011_15'!S368+'2016_20'!S368+'2020_21'!S368)/S$9 -> 0
C64: =DepnInputs!$C49 -> 0 | E64: $m | F64: Real 2010 | M64: =('2011_15'!M369+'2016_20'!M369)/M$9 -> 0 | N64: =('2011_15'!N369+'2016_20'!N369)/N$9 -> 0 | O64: =('2011_15'!O369+'2016_20'!O369)/O$9 -> 0 | P64: =('2011_15'!P369+'2016_20'!P369)/P$9 -> 0 | Q64: =('2011_15'!Q369+'2016_20'!Q369)/Q$9 -> 0 | R64: =('2011_15'!R369+'2016_20'!R369)/R$9 -> 0 | S64: =('2011_15'!S369+'2016_20'!S369+'2020_21'!S369)/S$9 -> 0
C65: =DepnInputs!$C50 -> 0 | E65: $m | F65: Real 2010 | M65: =('2011_15'!M370+'2016_20'!M370)/M$9 -> 0 | N65: =('2011_15'!N370+'2016_20'!N370)/N$9 -> 0 | O65: =('2011_15'!O370+'2016_20'!O370)/O$9 -> 0 | P65: =('2011_15'!P370+'2016_20'!P370)/P$9 -> 0 | Q65: =('2011_15'!Q370+'2016_20'!Q370)/Q$9 -> 0 | R65: =('2011_15'!R370+'2016_20'!R370)/R$9 -> 0 | S65: =('2011_15'!S370+'2016_20'!S370+'2020_21'!S370)/S$9 -> 0
C66: =DepnInputs!$C51 -> 0 | E66: $m | F66: Real 2010 | M66: =('2011_15'!M371+'2016_20'!M371)/M$9 -> 0 | N66: =('2011_15'!N371+'2016_20'!N371)/N$9 -> 0 | O66: =('2011_15'!O371+'2016_20'!O371)/O$9 -> 0 | P66: =('2011_15'!P371+'2016_20'!P371)/P$9 -> 0 | Q66: =('2011_15'!Q371+'2016_20'!Q371)/Q$9 -> 0 | R66: =('2011_15'!R371+'2016_20'!R371)/R$9 -> 0 | S66: =('2011_15'!S371+'2016_20'!S371+'2020_21'!S371)/S$9 -> 0
C67: =DepnInputs!$C52 -> 0 | E67: $m | F67: Real 2010 | M67: =('2011_15'!M372+'2016_20'!M372)/M$9 -> 0 | N67: =('2011_15'!N372+'2016_20'!N372)/N$9 -> 0 | O67: =('2011_15'!O372+'2016_20'!O372)/O$9 -> 0 | P67: =('2011_15'!P372+'2016_20'!P372)/P$9 -> 0 | Q67: =('2011_15'!Q372+'2016_20'!Q372)/Q$9 -> 0 | R67: =('2011_15'!R372+'2016_20'!R372)/R$9 -> 0 | S67: =('2011_15'!S372+'2016_20'!S372+'2020_21'!S372)/S$9 -> 0
C68: =DepnInputs!$C53 -> 0 | E68: $m | F68: Real 2010 | M68: =('2011_15'!M373+'2016_20'!M373)/M$9 -> 0 | N68: =('2011_15'!N373+'2016_20'!N373)/N$9 -> 0 | O68: =('2011_15'!O373+'2016_20'!O373)/O$9 -> 0 | P68: =('2011_15'!P373+'2016_20'!P373)/P$9 -> 0 | Q68: =('2011_15'!Q373+'2016_20'!Q373)/Q$9 -> 0 | R68: =('2011_15'!R373+'2016_20'!R373)/R$9 -> 0 | S68: =('2011_15'!S373+'2016_20'!S373+'2020_21'!S373)/S$9 -> 0
C69: =DepnInputs!$C54 -> Equity raising costs | E69: $m | F69: Real 2010 | M69: =('2011_15'!M374+'2016_20'!M374)/M$9 -> 0 | N69: =('2011_15'!N374+'2016_20'!N374)/N$9 -> 0 | O69: =('2011_15'!O374+'2016_20'!O374)/O$9 -> 0 | P69: =('2011_15'!P374+'2016_20'!P374)/P$9 -> 0 | Q69: =('2011_15'!Q374+'2016_20'!Q374)/Q$9 -> 0 | R69: =('2011_15'!R374+'2016_20'!R374)/R$9 -> 0 | S69: =('2011_15'!S374+'2016_20'!S374+'2020_21'!S374)/S$9 -> 0
C70: Total | M70: =SUM(M49:M69) -> -25.84757876 | N70: 0 | O70: 0 | P70: 0 | Q70: 0 | R70: 0 | S70: =SUM(S49:S69) -> -0.5399683314
C75: RAB Adjustments for final year of prior regulatory period
I78: =I$6 -> 2011 | J78: =J$6 -> 2012 | K78: 2013 | L78: 2014 | M78: 2015 | N78: 2016 | O78: 2017 | P78: 2018 | Q78: 2019 | R78: 2020 | S78: 2020.5
C80: =C49 -> Subtransmission | E80: $m | F80: Real 2010 | M80: =('2011_15'!M382+'2016_20'!M382)/M$9 -> 1.615497249 | N80: =('2011_15'!N382+'2016_20'!N382)/N$9 -> 0 | O80: =('2011_15'!O382+'2016_20'!O382)/O$9 -> 0 | P80: =('2011_15'!P382+'2016_20'!P382)/P$9 -> 0 | Q80: =('2011_15'!Q382+'2016_20'!Q382)/Q$9 -> 0 | R80: =('2011_15'!R382+'2016_20'!R382)/R$9 -> 0 | S80: =('2011_15'!S382+'2016_20'!S382+'2020_21'!S382)/S$9 -> 0
C81: =C50 -> Distribution system assets | E81: $m | F81: Real 2010 | M81: =('2011_15'!M383+'2016_20'!M383)/M$9 -> 0.8414588643 | N81: =('2011_15'!N383+'2016_20'!N383)/N$9 -> 0 | O81: =('2011_15'!O383+'2016_20'!O383)/O$9 -> 0 | P81: =('2011_15'!P383+'2016_20'!P383)/P$9 -> 0 | Q81: =('2011_15'!Q383+'2016_20'!Q383)/Q$9 -> 0 | R81: =('2011_15'!R383+'2016_20'!R383)/R$9 -> 0 | S81: =('2011_15'!S383+'2016_20'!S383+'2020_21'!S383)/S$9 -> 0
C82: Standard metering | E82: $m | F82: Real 2010 | M82: =('2011_15'!M384+'2016_20'!M384)/M$9 -> 1.71444288 | N82: =('2011_15'!N384+'2016_20'!N384)/N$9 -> 0 | O82: =('2011_15'!O384+'2016_20'!O384)/O$9 -> 0 | P82: =('2011_15'!P384+'2016_20'!P384)/P$9 -> 0 | Q82: =('2011_15'!Q384+'2016_20'!Q384)/Q$9 -> 0 | R82: =('2011_15'!R384+'2016_20'!R384)/R$9 -> 0 | S82: =('2011_15'!S384+'2016_20'!S384+'2020_21'!S384)/S$9 -> 0
C83: Public lighting | E83: $m | F83: Real 2010 | M83: =('2011_15'!M385+'2016_20'!M385)/M$9 -> 0.3397025003 | N83: =('2011_15'!N385+'2016_20'!N385)/N$9 -> 0 | O83: =('2011_15'!O385+'2016_20'!O385)/O$9 -> 0 | P83: =('2011_15'!P385+'2016_20'!P385)/P$9 -> 0 | Q83: =('2011_15'!Q385+'2016_20'!Q385)/Q$9 -> 0 | R83: =('2011_15'!R385+'2016_20'!R385)/R$9 -> 0 | S83: =('2011_15'!S385+'2016_20'!S385+'2020_21'!S385)/S$9 -> 0
C84: SCADA/Network control | E84: $m | F84: Real 2010 | M84: =('2011_15'!M386+'2016_20'!M386)/M$9 -> 0.1527214547 | N84: =('2011_15'!N386+'2016_20'!N386)/N$9 -> 0 | O84: =('2011_15'!O386+'2016_20'!O386)/O$9 -> 0 | P84: =('2011_15'!P386+'2016_20'!P386)/P$9 -> 0 | Q84: =('2011_15'!Q386+'2016_20'!Q386)/Q$9 -> 0 | R84: =('2011_15'!R386+'2016_20'!R386)/R$9 -> 0 | S84: =('2011_15'!S386+'2016_20'!S386+'2020_21'!S386)/S$9 -> 0
C85: Non-network general assets - IT | E85: $m | F85: Real 2010 | M85: =('2011_15'!M387+'2016_20'!M387)/M$9 -> 1.22885965 | N85: =('2011_15'!N387+'2016_20'!N387)/N$9 -> 0 | O85: =('2011_15'!O387+'2016_20'!O387)/O$9 -> 0 | P85: =('2011_15'!P387+'2016_20'!P387)/P$9 -> 0 | Q85: =('2011_15'!Q387+'2016_20'!Q387)/Q$9 -> 0 | R85: =('2011_15'!R387+'2016_20'!R387)/R$9 -> 0 | S85: =('2011_15'!S387+'2016_20'!S387+'2020_21'!S387)/S$9 -> 0
C86: Non-network general assets - Other | E86: $m | F86: Real 2010 | M86: =('2011_15'!M388+'2016_20'!M388)/M$9 -> 0.8739738347 | N86: =('2011_15'!N388+'2016_20'!N388)/N$9 -> 0 | O86: =('2011_15'!O388+'2016_20'!O388)/O$9 -> 0 | P86: =('2011_15'!P388+'2016_20'!P388)/P$9 -> 0 | Q86: =('2011_15'!Q388+'2016_20'!Q388)/Q$9 -> 0 | R86: =('2011_15'!R388+'2016_20'!R388)/R$9 -> 0 | S86: =('2011_15'!S388+'2016_20'!S388+'2020_21'!S388)/S$9 -> 0
C87: VBRC | E87: $m | F87: Real 2010 | M87: =('2011_15'!M389+'2016_20'!M389)/M$9 -> 0 | N87: =('2011_15'!N389+'2016_20'!N389)/N$9 -> 0 | O87: =('2011_15'!O389+'2016_20'!O389)/O$9 -> 0 | P87: =('2011_15'!P389+'2016_20'!P389)/P$9 -> 0 | Q87: =('2011_15'!Q389+'2016_20'!Q389)/Q$9 -> 0 | R87: =('2011_15'!R389+'2016_20'!R389)/R$9 -> 0 | S87: =('2011_15'!S389+'2016_20'!S389+'2020_21'!S389)/S$9 -> 0
C88: Land | E88: $m | F88: Real 2010 | M88: =('2011_15'!M390+'2016_20'!M390)/M$9 -> 0 | N88: =('2011_15'!N390+'2016_20'!N390)/N$9 -> 0 | O88: =('2011_15'!O390+'2016_20'!O390)/O$9 -> 0 | P88: =('2011_15'!P390+'2016_20'!P390)/P$9 -> 0 | Q88: =('2011_15'!Q390+'2016_20'!Q390)/Q$9 -> 0 | R88: =('2011_15'!R390+'2016_20'!R390)/R$9 -> 0 | S88: =('2011_15'!S390+'2016_20'!S390+'2020_21'!S390)/S$9 -> 0
C89: Supervisory cables | E89: $m | F89: Real 2010 | M89: =('2011_15'!M391+'2016_20'!M391)/M$9 -> 2.943954301 | N89: =('2011_15'!N391+'2016_20'!N391)/N$9 -> 0 | O89: =('2011_15'!O391+'2016_20'!O391)/O$9 -> 0 | P89: =('2011_15'!P391+'2016_20'!P391)/P$9 -> 0 | Q89: =('2011_15'!Q391+'2016_20'!Q391)/Q$9 -> 0 | R89: =('2011_15'!R391+'2016_20'!R391)/R$9 -> 0 | S89: =('2011_15'!S391+'2016_20'!S391+'2020_21'!S391)/S$9 -> 0
C90: Old SWER ACRs | E90: $m | F90: Real 2010 | M90: =('2011_15'!M392+'2016_20'!M392)/M$9 -> 12.79362237 | N90: =('2011_15'!N392+'2016_20'!N392)/N$9 -> 0 | O90: =('2011_15'!O392+'2016_20'!O392)/O$9 -> 0 | P90: =('2011_15'!P392+'2016_20'!P392)/P$9 -> 0 | Q90: =('2011_15'!Q392+'2016_20'!Q392)/Q$9 -> 0 | R90: =('2011_15'!R392+'2016_20'!R392)/R$9 -> 0 | S90: =('2011_15'!S392+'2016_20'!S392+'2020_21'!S392)/S$9 -> 0
C91: Accelerated depreciation assets | E91: $m | F91: Real 2010 | M91: =('2011_15'!M393+'2016_20'!M393)/M$9 -> 0 | N91: =('2011_15'!N393+'2016_20'!N393)/N$9 -> 0 | O91: =('2011_15'!O393+'2016_20'!O393)/O$9 -> 0 | P91: =('2011_15'!P393+'2016_20'!P393)/P$9 -> 0 | Q91: =('2011_15'!Q393+'2016_20'!Q393)/Q$9 -> 0 | R91: =('2011_15'!R393+'2016_20'!R393)/R$9 -> 0 | S91: =('2011_15'!S393+'2016_20'!S393+'2020_21'!S393)/S$9 -> 0
C92: 0 | E92: $m | F92: Real 2010 | M92: =('2011_15'!M394+'2016_20'!M394)/M$9 -> 0 | N92: =('2011_15'!N394+'2016_20'!N394)/N$9 -> 0 | O92: =('2011_15'!O394+'2016_20'!O394)/O$9 -> 0 | P92: =('2011_15'!P394+'2016_20'!P394)/P$9 -> 0 | Q92: =('2011_15'!Q394+'2016_20'!Q394)/Q$9 -> 0 | R92: =('2011_15'!R394+'2016_20'!R394)/R$9 -> 0 | S92: =('2011_15'!S394+'2016_20'!S394+'2020_21'!S394)/S$9 -> 0
C93: 0 | E93: $m | F93: Real 2010 | M93: =('2011_15'!M395+'2016_20'!M395)/M$9 -> 0 | N93: =('2011_15'!N395+'2016_20'!N395)/N$9 -> 0 | O93: =('2011_15'!O395+'2016_20'!O395)/O$9 -> 0 | P93: =('2011_15'!P395+'2016_20'!P395)/P$9 -> 0 | Q93: =('2011_15'!Q395+'2016_20'!Q395)/Q$9 -> 0 | R93: =('2011_15'!R395+'2016_20'!R395)/R$9 -> 0 | S93: =('2011_15'!S395+'2016_20'!S395+'2020_21'!S395)/S$9 -> 0
C94: 0 | E94: $m | F94: Real 2010 | M94: =('2011_15'!M396+'2016_20'!M396)/M$9 -> 0 | N94: =('2011_15'!N396+'2016_20'!N396)/N$9 -> 0 | O94: =('2011_15'!O396+'2016_20'!O396)/O$9 -> 0 | P94: =('2011_15'!P396+'2016_20'!P396)/P$9 -> 0 | Q94: =('2011_15'!Q396+'2016_20'!Q396)/Q$9 -> 0 | R94: =('2011_15'!R396+'2016_20'!R396)/R$9 -> 0 | S94: =('2011_15'!S396+'2016_20'!S396+'2020_21'!S396)/S$9 -> 0
C95: 0 | E95: $m | F95: Real 2010 | M95: =('2011_15'!M397+'2016_20'!M397)/M$9 -> 0 | N95: =('2011_15'!N397+'2016_20'!N397)/N$9 -> 0 | O95: =('2011_15'!O397+'2016_20'!O397)/O$9 -> 0 | P95: =('2011_15'!P397+'2016_20'!P397)/P$9 -> 0 | Q95: =('2011_15'!Q397+'2016_20'!Q397)/Q$9 -> 0 | R95: =('2011_15'!R397+'2016_20'!R397)/R$9 -> 0 | S95: =('2011_15'!S397+'2016_20'!S397+'2020_21'!S397)/S$9 -> 0
C96: 0 | E96: $m | F96: Real 2010 | M96: =('2011_15'!M398+'2016_20'!M398)/M$9 -> 0 | N96: =('2011_15'!N398+'2016_20'!N398)/N$9 -> 0 | O96: =('2011_15'!O398+'2016_20'!O398)/O$9 -> 0 | P96: =('2011_15'!P398+'2016_20'!P398)/P$9 -> 0 | Q96: =('2011_15'!Q398+'2016_20'!Q398)/Q$9 -> 0 | R96: =('2011_15'!R398+'2016_20'!R398)/R$9 -> 0 | S96: =('2011_15'!S398+'2016_20'!S398+'2020_21'!S398)/S$9 -> 0
C97: 0 | E97: $m | F97: Real 2010 | M97: =('2011_15'!M399+'2016_20'!M399)/M$9 -> 0 | N97: =('2011_15'!N399+'2016_20'!N399)/N$9 -> 0 | O97: =('2011_15'!O399+'2016_20'!O399)/O$9 -> 0 | P97: =('2011_15'!P399+'2016_20'!P399)/P$9 -> 0 | Q97: =('2011_15'!Q399+'2016_20'!Q399)/Q$9 -> 0 | R97: =('2011_15'!R399+'2016_20'!R399)/R$9 -> 0 | S97: =('2011_15'!S399+'2016_20'!S399+'2020_21'!S399)/S$9 -> 0
C98: 0 | E98: $m | F98: Real 2010 | M98: =('2011_15'!M400+'2016_20'!M400)/M$9 -> 0 | N98: =('2011_15'!N400+'2016_20'!N400)/N$9 -> 0 | O98: =('2011_15'!O400+'2016_20'!O400)/O$9 -> 0 | P98: =('2011_15'!P400+'2016_20'!P400)/P$9 -> 0 | Q98: =('2011_15'!Q400+'2016_20'!Q400)/Q$9 -> 0 | R98: =('2011_15'!R400+'2016_20'!R400)/R$9 -> 0 | S98: =('2011_15'!S400+'2016_20'!S400+'2020_21'!S400)/S$9 -> 0
C99: 0 | E99: $m | F99: Real 2010 | M99: =('2011_15'!M401+'2016_20'!M401)/M$9 -> 0 | N99: =('2011_15'!N401+'2016_20'!N401)/N$9 -> 0 | O99: =('2011_15'!O401+'2016_20'!O401)/O$9 -> 0 | P99: =('2011_15'!P401+'2016_20'!P401)/P$9 -> 0 | Q99: =('2011_15'!Q401+'2016_20'!Q401)/Q$9 -> 0 | R99: =('2011_15'!R401+'2016_20'!R401)/R$9 -> 0 | S99: =('2011_15'!S401+'2016_20'!S401+'2020_21'!S401)/S$9 -> 0
C100: Equity raising costs | E100: $m | F100: Real 2010 | M100: =('2011_15'!M402+'2016_20'!M402)/M$9 -> 0 | N100: =('2011_15'!N402+'2016_20'!N402)/N$9 -> 0 | O100: =('2011_15'!O402+'2016_20'!O402)/O$9 -> 0 | P100: =('2011_15'!P402+'2016_20'!P402)/P$9 -> 0 | Q100: =('2011_15'!Q402+'2016_20'!Q402)/Q$9 -> 0 | R100: =('2011_15'!R402+'2016_20'!R402)/R$9 -> 0 | S100: =('2011_15'!S402+'2016_20'!S402+'2020_21'!S402)/S$9 -> 0
C101: Total | M101: =SUM(M80:M100) -> 22.50423311 | N101: 0 | O101: 0 | P101: 0 | Q101: 0 | R101: 0 | S101: =SUM(S80:S100) -> 0

Sheet Depn_calc
A1: =DepnInputs!A1 -> Powercor Depreciation
A2: Calculation
D4: Depreciation Calculations | H4: Section check | I4: =IF(COUNTIF($A16:$A1292,"OK")=COUNTA($A15:$A1292)-COUNT($A15:$A1292),"OK","Check") -> OK
B5: Year | I5: 2010 | J5: =I5+1 -> 2011 | K5: =J5+1 -> 2012 | L5: 2013 | M5: 2014 | N5: 2015 | O5: 2016 | P5: 2017 | Q5: 2018 | R5: 2019 | S5: 2020 | T5: =S5+0.5 -> 2020.5 | U5: =T5+1 -> 2021.5 | V5: =U5+1 -> 2022.5 | W5: 2023.5 | X5: 2024.5 | Y5: 2025.5 | Z5: 2026.5 | AA5: 2027.5 | AB5: 2028.5 | AC5: 2029.5 | AD5: 2030.5 | AE5: 2031.5 | AF5: 2032.5 | AG5: 2033.5 | AH5: 2034.5 | AI5: 2035.5 | AJ5: 2036.5 | AK5: 2037.5 | AL5: 2038.5 | AM5: 2039.5 | AN5: 2040.5 | AO5: 2041.5 | AP5: 2042.5 | AQ5: 2043.5 | AR5: 2044.5 | AS5: 2045.5 | AT5: 2046.5 | AU5: 2047.5 | AV5: 2048.5 | AW5: 2049.5 | AX5: 2050.5 | AY5: 2051.5 | AZ5: 2052.5 | BA5: 2053.5 | BB5: 2054.5 | BC5: 2055.5 | BD5: 2056.5 | BE5: 2057.5 | BF5: 2058.5 | BG5: 2059.5 | BH5: 2060.5 | BI5: 2061.5 | BJ5: 2062.5 | BK5: 2063.5 | BL5: 2064.5 | BM5: 2065.5 | BN5: 2066.5 | BO5: 2067.5 | BP5: 2068.5 | BQ5: 2069.5 | BR5: 2070.5 | BS5: 2071.5 | BT5: 2072.5 | BU5: 2073.5 | BV5: 2074.5 | BW5: 2075.5 | BX5: 2076.5 | BY5: 2077.5 | BZ5: 2078.5 | CA5: 2079.5 | CB5: 2080.5 | CC5: 2081.5
D7: Total Depreciation | E7: $m Real 2010 | J7: =SUMIF($D$20:$D$1292, $D7, J$20:J$1292) -> 116.0785841 | K7: 124.2400168 | L7: 131.8161678 | M7: 140.2123229 | N7: 151.2729706 | O7: 161.2363495 | P7: 151.7942581 | Q7: 159.3707959 | R7: 168.2832856 | S7: 174.2539295 | T7: 85.96944938 | U7: 182.7106407 | V7: 176.8178192 | W7: 170.1536346 | X7: 162.1517994 | Y7: 157.7843288 | Z7: =SUMIF($D$20:$D$1292, $D7, Z$20:Z$1292) -> 152.4788191 | AA7: 146.8225401 | AB7: 146.0614678 | AC7: 144.6547112 | AD7: 142.2457762 | AE7: 139.1135082 | AF7: 135.4312265 | AG7: 131.7221214 | AH7: 127.9035373 | AI7: 125.465198 | AJ7: 62.27238487 | AK7: 48.51628523 | AL7: 48.18501467 | AM7: 47.37213851 | AN7: 45.83991868 | AO7: 44.92992588 | AP7: =SUMIF($D$20:$D$1292, $D7, AP$20:AP$1292) -> 43.87855298 | AQ7: 43.35639384 | AR7: 43.24065086 | AS7: 42.73541874 | AT7: 42.7498479 | AU7: 42.82335595 | AV7: 42.82335595 | AW7: 42.82335595 | AX7: 42.82335595 | AY7: 42.85672232 | AZ7: 43.12971129 | BA7: 43.29562084 | BB7: 43.29562084 | BC7: 43.29562084 | BD7: 43.25859793 | BE7: 43.17739862 | BF7: =SUMIF($D$20:$D$1292, $D7, BF$20:BF$1292) -> 43.04919509 | BG7: 42.88624723 | BH7: 43.05235681 | BI7: 42.70459252 | BJ7: 40.49895678 | BK7: 36.02080335 | BL7: 31.71744539 | BM7: 27.83990067 | BN7: 23.74457705 | BO7: 20.41848301 | BP7: 16.82143839 | BQ7: 12.49931723 | BR7: 8.443120167 | BS7: 4.261937881 | BT7: 1.136868377e-13 | BU7: 0 | BV7: =SUMIF($D$20:$D$1292, $D7, BV$20:BV$1292) -> 0 | BW7: 0 | BX7: 0 | BY7: 0 | BZ7: 0 | CA7: 0 | CB7: 0 | CC7: 0
D8: Capex | E8: $m Real 2010 | J8: 236.114133 | K8: 254.6282674 | L8: 278.3387984 | M8: 313.6493454 | N8: 283.6994449 | O8: 244.8828412 | P8: 288.7858947 | Q8: 295.4833117 | R8: 293.816658 | S8: 320.5160038 | T8: 187.558809 | U8: 0 | V8: 0 | W8: 0 | X8: 0 | Y8: 0 | Z8: 0 | AA8: 0 | AB8: 0 | AC8: 0 | AD8: 0 | AE8: 0 | AF8: 0 | AG8: 0 | AH8: 0 | AI8: 0 | AJ8: 0 | AK8: 0 | AL8: 0 | AM8: 0 | AN8: 0 | AO8: 0 | AP8: 0 | AQ8: 0 | AR8: 0 | AS8: 0 | AT8: 0 | AU8: 0 | AV8: 0 | AW8: 0 | AX8: 0 | AY8: 0 | AZ8: 0 | BA8: 0 | BB8: 0 | BC8: 0 | BD8: 0 | BE8: 0 | BF8: 0 | BG8: 0 | BH8: 0 | BI8: 0 | BJ8: 0 | BK8: 0 | BL8: 0 | BM8: 0 | BN8: 0 | BO8: 0 | BP8: 0 | BQ8: 0 | BR8: 0 | BS8: 0 | BT8: 0 | BU8: 0 | BV8: 0 | BW8: 0 | BX8: 0 | BY8: 0 | BZ8: 0 | CA8: 0 | CB8: 0 | CC8: 0
D10: Existing Assets Closing RAB | E10: $m Real 2010 | I10: =SUMIF($D$20:$D$577, $D10, I$20:I$577) -> 0 | J10: =SUMIF($D$20:$D$1292, $D10, J$20:J$1292) -> 2096.750591 | K10: 1980.672007 | L10: 1864.593423 | M10: 1748.514839 | N10: 1632.436255 | O10: 1528.664469 | P10: 1438.298326 | Q10: 1348.469672 | R10: 1258.641018 | S10: 1173.137028 | T10: 1135.202987 | U10: 1059.334906 | V10: 983.4668246 | W10: 908.1117466 | X10: 833.5758191 | Y10: 759.0398915 | Z10: =SUMIF($D$20:$D$1292, $D10, Z$20:Z$1292) -> 684.503964 | AA10: 609.9680365 | AB10: 535.4321089 | AC10: 460.8961814 | AD10: 386.3602538 | AE10: 311.8243263 | AF10: 237.2883988 | AG10: 162.7524712 | AH10: 88.21654367 | AI10: 13.68061613 | AJ10: -1.24789068e-13 | AK10: -1.24789068e-13 | AL10: -1.24789068e-13 | AM10: -1.24789068e-13 | AN10: -1.24789068e-13 | AO10: -1.24789068e-13 | AP10: =SUMIF($D$20:$D$1292, $D10, AP$20:AP$1292) -> -1.24789068e-13 | AQ10: -1.24789068e-13 | AR10: -1.24789068e-13 | AS10: -1.24789068e-13 | AT10: -1.24789068e-13 | AU10: -1.24789068e-13 | AV10: -1.24789068e-13 | AW10: -1.24789068e-13 | AX10: -1.24789068e-13 | AY10: -1.24789068e-13 | AZ10: -1.24789068e-13 | BA10: -1.24789068e-13 | BB10: -1.24789068e-13 | BC10: -1.24789068e-13 | BD10: -1.24789068e-13 | BE10: -1.24789068e-13 | BF10: =SUMIF($D$20:$D$1292, $D10, BF$20:BF$1292) -> -1.24789068e-13 | BG10: -1.24789068e-13 | BH10: -1.24789068e-13 | BI10: -1.24789068e-13 | BJ10: -1.24789068e-13 | BK10: -1.24789068e-13 | BL10: -1.24789068e-13 | BM10: -1.24789068e-13 | BN10: -1.24789068e-13 | BO10: -1.24789068e-13 | BP10: -1.24789068e-13 | BQ10: -1.24789068e-13 | BR10: -1.24789068e-13 | BS10: -1.24789068e-13 | BT10: -1.24789068e-13 | BU10: -1.24789068e-13 | BV10: =SUMIF($D$20:$D$1292, $D10, BV$20:BV$1292) -> -1.24789068e-13 | BW10: -1.24789068e-13 | BX10: -1.24789068e-13 | BY10: -1.24789068e-13 | BZ10: -1.24789068e-13 | CA10: -1.24789068e-13 | CB10: -1.24789068e-13 | CC10: -1.24789068e-13
D11: Post 2010 capex closing RAB | E11: $m Real 2010 | J11: 236.114133 | K11: 482.5809677 | L11: 745.1821824 | M11: 1034.697789 | N11: 1283.202847 | O11: 1479.504359 | P11: 1708.459073 | Q11: 1935.957754 | R11: 2152.87729 | S11: 2386.143142 | T11: 2525.072765 | U11: 2424.047769 | V11: 2328.915595 | W11: 2237.912204 | X11: 2150.29007 | Y11: 2066.381806 | Z11: 1987.404413 | AA11: 1914.083298 | AB11: 1841.523256 | AC11: 1770.369971 | AD11: 1701.62562 | AE11: 1636.013538 | AF11: 1574.083737 | AG11: 1515.863042 | AH11: 1461.46093 | AI11: 1409.497158 | AJ11: 1359.830201 | AK11: 1310.163245 | AL11: 1260.827559 | AM11: 1212.30475 | AN11: 1165.31416 | AO11: 1119.233563 | AP11: 1074.204339 | AQ11: 1029.697274 | AR11: 985.3059515 | AS11: 941.4198616 | AT11: 897.5928506 | AU11: 853.7658396 | AV11: 809.9388286 | AW11: 766.1118176 | AX11: 722.2848066 | AY11: 678.4577955 | AZ11: 634.6307845 | BA11: 590.8037735 | BB11: 546.9767625 | BC11: 503.1497515 | BD11: 459.3597634 | BE11: 415.6509746 | BF11: 372.0703894 | BG11: 328.652752 | BH11: 285.2351146 | BI11: 242.3657641 | BJ11: 201.7364624 | BK11: 165.5893473 | BL11: 133.7870919 | BM11: 105.9354153 | BN11: 82.18078686 | BO11: 61.76230385 | BP11: 44.94086546 | BQ11: 32.44154823 | BR11: 23.99842807 | BS11: 19.73649019 | BT11: 19.73649019 | BU11: 19.73649019 | BV11: 19.73649019 | BW11: 19.73649019 | BX11: 19.73649019 | BY11: 19.73649019 | BZ11: 19.73649019 | CA11: 19.73649019 | CB11: 19.73649019 | CC11: 19.73649019
D12: RAB adjustments | F12: RAB_adj | J12: =SUMIF($F$21:$F$1293, $F12, J$21:J$1293) -> 0 | K12: 0 | L12: 0 | M12: 0 | N12: -3.34334565 | O12: 0 | P12: 0 | Q12: 0 | R12: 0 | S12: 0 | T12: -0.5399683314 | U12: 0 | V12: 0 | W12: 0 | X12: 0 | Y12: 0 | Z12: 0 | AA12: 0 | AB12: 0 | AC12: 0 | AD12: 0 | AE12: 0 | AF12: 0 | AG12: 0 | AH12: 0 | AI12: 0 | AJ12: 0 | AK12: 0 | AL12: 0 | AM12: 0 | AN12: 0 | AO12: 0 | AP12: 0 | AQ12: 0 | AR12: 0 | AS12: 0 | AT12: 0 | AU12: 0 | AV12: 0 | AW12: 0 | AX12: 0 | AY12: 0 | AZ12: 0 | BA12: 0 | BB12: 0 | BC12: 0 | BD12: 0 | BE12: 0 | BF12: 0 | BG12: 0 | BH12: 0 | BI12: 0 | BJ12: 0 | BK12: 0 | BL12: 0 | BM12: 0 | BN12: 0 | BO12: 0 | BP12: 0 | BQ12: 0 | BR12: 0 | BS12: 0 | BT12: 0 | BU12: 0 | BV12: =SUMIF($F$21:$F$1293, $F12, BV$21:BV$1293) -> 0 | BW12: 0 | BX12: 0 | BY12: 0 | BZ12: 0 | CA12: 0 | CB12: 0 | CC12: 0
D13: Total Closing RAB | E13: $m Real 2010 | I13: =SUM(I10:I11) -> 0 | J13: =SUM(J10:J12) -> 2332.864724 | K13: =SUM(K10:K12) -> 2463.252975 | L13: 2609.775606 | M13: 2783.212628 | N13: 2912.295757 | O13: 3008.168828 | P13: 3146.757399 | Q13: 3284.427425 | R13: 3411.518308 | S13: 3559.28017 | T13: 3659.735784 | U13: 3483.382675 | V13: 3312.38242 | W13: 3146.02395 | X13: 2983.865889 | Y13: 2825.421697 | Z13: 2671.908377 | AA13: 2524.051335 | AB13: 2376.955365 | AC13: 2231.266152 | AD13: 2087.985874 | AE13: 1947.837864 | AF13: 1811.372136 | AG13: 1678.615513 | AH13: 1549.677474 | AI13: 1423.177774 | AJ13: 1359.830201 | AK13: 1310.163245 | AL13: 1260.827559 | AM13: 1212.30475 | AN13: 1165.31416 | AO13: 1119.233563 | AP13: 1074.204339 | AQ13: 1029.697274 | AR13: 985.3059515 | AS13: 941.4198616 | AT13: 897.5928506 | AU13: 853.7658396 | AV13: 809.9388286 | AW13: 766.1118176 | AX13: 722.2848066 | AY13: 678.4577955 | AZ13: 634.6307845 | BA13: 590.8037735 | BB13: 546.9767625 | BC13: 503.1497515 | BD13: 459.3597634 | BE13: 415.6509746 | BF13: 372.0703894 | BG13: 328.652752 | BH13: 285.2351146 | BI13: 242.3657641 | BJ13: 201.7364624 | BK13: 165.5893473 | BL13: 133.7870919 | BM13: 105.9354153 | BN13: 82.18078686 | BO13: 61.76230385 | BP13: 44.94086546 | BQ13: 32.44154823 | BR13: 23.99842807 | BS13: 19.73649019 | BT13: 19.73649019 | BU13: 19.73649019 | BV13: 19.73649019 | BW13: =SUM(BW10:BW12) -> 19.73649019 | BX13: 19.73649019 | BY13: 19.73649019 | BZ13: 19.73649019 | CA13: 19.73649019 | CB13: 19.73649019 | CC13: 19.73649019
D14: Part year factor | J14: =IF(J$5=DepnInputs!$E$7, 0.5,1) -> 1 | K14: =IF(K$5=DepnInputs!$E$7, 0.5,1) -> 1 | L14: =IF(L$5=DepnInputs!$E$7, 0.5,1) -> 1 | M14: =IF(M$5=DepnInputs!$E$7, 0.5,1) -> 1 | N14: =IF(N$5=DepnInputs!$E$7, 0.5,1) -> 1 | O14: =IF(O$5=DepnInputs!$E$7, 0.5,1) -> 1 | P14: =IF(P$5=DepnInputs!$E$7, 0.5,1) -> 1 | Q14: =IF(Q$5=DepnInputs!$E$7, 0.5,1) -> 1 | R14: =IF(R$5=DepnInputs!$E$7, 0.5,1) -> 1 | S14: =IF(S$5=DepnInputs!$E$7, 0.5,1) -> 1 | T14: =IF(T$5=DepnInputs!$E$7-0.5, 0.5,1) -> 0.5 | U14: =IF(U$5=DepnInputs!$E$7, 0.5,1) -> 1 | V14: =IF(V$5=DepnInputs!$E$7, 0.5,1) -> 1 | W14: =IF(W$5=DepnInputs!$E$7, 0.5,1) -> 1 | X14: =IF(X$5=DepnInputs!$E$7, 0.5,1) -> 1 | Y14: =IF(Y$5=DepnInputs!$E$7, 0.5,1) -> 1 | Z14: =IF(Z$5=DepnInputs!$E$7, 0.5,1) -> 1 | AA14: =IF(AA$5=DepnInputs!$E$7, 0.5,1) -> 1 | AB14: =IF(AB$5=DepnInputs!$E$7, 0.5,1) -> 1 | AC14: =IF(AC$5=DepnInputs!$E$7, 0.5,1) -> 1 | AD14: =IF(AD$5=DepnInputs!$E$7, 0.5,1) -> 1 | AE14: =IF(AE$5=DepnInputs!$E$7, 0.5,1) -> 1 | AF14: =IF(AF$5=DepnInputs!$E$7, 0.5,1) -> 1 | AG14: =IF(AG$5=DepnInputs!$E$7, 0.5,1) -> 1 | AH14: =IF(AH$5=DepnInputs!$E$7, 0.5,1) -> 1 | AI14: =IF(AI$5=DepnInputs!$E$7, 0.5,1) -> 1 | AJ14: =IF(AJ$5=DepnInputs!$E$7, 0.5,1) -> 1 | AK14: =IF(AK$5=DepnInputs!$E$7, 0.5,1) -> 1 | AL14: =IF(AL$5=DepnInputs!$E$7, 0.5,1) -> 1 | AM14: =IF(AM$5=DepnInputs!$E$7, 0.5,1) -> 1 | AN14: =IF(AN$5=DepnInputs!$E$7, 0.5,1) -> 1 | AO14: =IF(AO$5=DepnInputs!$E$7, 0.5,1) -> 1 | AP14: =IF(AP$5=DepnInputs!$E$7, 0.5,1) -> 1 | AQ14: =IF(AQ$5=DepnInputs!$E$7, 0.5,1) -> 1 | AR14: =IF(AR$5=DepnInputs!$E$7, 0.5,1) -> 1 | AS14: =IF(AS$5=DepnInputs!$E$7, 0.5,1) -> 1 | AT14: =IF(AT$5=DepnInputs!$E$7, 0.5,1) -> 1 | AU14: =IF(AU$5=DepnInputs!$E$7, 0.5,1) -> 1 | AV14: =IF(AV$5=DepnInputs!$E$7, 0.5,1) -> 1 | AW14: =IF(AW$5=DepnInputs!$E$7, 0.5,1) -> 1 | AX14: =IF(AX$5=DepnInputs!$E$7, 0.5,1) -> 1 | AY14: =IF(AY$5=DepnInputs!$E$7, 0.5,1) -> 1 | AZ14: =IF(AZ$5=DepnInputs!$E$7, 0.5,1) -> 1 | BA14: =IF(BA$5=DepnInputs!$E$7, 0.5,1) -> 1 | BB14: =IF(BB$5=DepnInputs!$E$7, 0.5,1) -> 1 | BC14: =IF(BC$5=DepnInputs!$E$7, 0.5,1) -> 1 | BD14: =IF(BD$5=DepnInputs!$E$7, 0.5,1) -> 1 | BE14: =IF(BE$5=DepnInputs!$E$7, 0.5,1) -> 1 | BF14: =IF(BF$5=DepnInputs!$E$7, 0.5,1) -> 1 | BG14: =IF(BG$5=DepnInputs!$E$7, 0.5,1) -> 1 | BH14: =IF(BH$5=DepnInputs!$E$7, 0.5,1) -> 1 | BI14: =IF(BI$5=DepnInputs!$E$7, 0.5,1) -> 1 | BJ14: =IF(BJ$5=DepnInputs!$E$7, 0.5,1) -> 1 | BK14: =IF(BK$5=DepnInputs!$E$7, 0.5,1) -> 1 | BL14: =IF(BL$5=DepnInputs!$E$7, 0.5,1) -> 1 | BM14: =IF(BM$5=DepnInputs!$E$7, 0.5,1) -> 1 | BN14: =IF(BN$5=DepnInputs!$E$7, 0.5,1) -> 1 | BO14: =IF(BO$5=DepnInputs!$E$7, 0.5,1) -> 1 | BP14: =IF(BP$5=DepnInputs!$E$7, 0.5,1) -> 1 | BQ14: =IF(BQ$5=DepnInputs!$E$7, 0.5,1) -> 1 | BR14: =IF(BR$5=DepnInputs!$E$7, 0.5,1) -> 1 | BS14: =IF(BS$5=DepnInputs!$E$7, 0.5,1) -> 1 | BT14: =IF(BT$5=DepnInputs!$E$7, 0.5,1) -> 1 | BU14: =IF(BU$5=DepnInputs!$E$7, 0.5,1) -> 1 | BV14: =IF(BV$5=DepnInputs!$E$7, 0.5,1) -> 1 | BW14: =IF(BW$5=DepnInputs!$E$7, 0.5,1) -> 1 | BX14: =IF(BX$5=DepnInputs!$E$7, 0.5,1) -> 1 | BY14: =IF(BY$5=DepnInputs!$E$7, 0.5,1) -> 1 | BZ14: =IF(BZ$5=DepnInputs!$E$7, 0.5,1) -> 1 | CA14: =IF(CA$5=DepnInputs!$E$7, 0.5,1) -> 1 | CB14: =IF(CB$5=DepnInputs!$E$7, 0.5,1) -> 1 | CC14: =IF(CC$5=DepnInputs!$E$7, 0.5,1) -> 1
N15: =N80 -> 350.3136342
A16: =IF(COUNTA($J16:$CC16)=COUNTIF($J16:$CC16,"OK"),"OK","Check") -> OK | D16: Check- Total Depreciation | J16: =IF(ROUND(J7-SUM(J$78,J$140,J$202,J$264,J$326,J$388,J$450,J$512,J$574,J636,J698,J760,J817,J874,J931,J988, J1045,J1102, J1159, J1221, J1283 ),2)=0,"OK","Check") -> OK | K16: OK | L16: OK | M16: OK | N16: OK | O16: OK | P16: OK | Q16: OK | R16: OK | S16: OK | T16: OK | U16: OK | V16: OK | W16: OK | X16: OK | Y16: OK | Z16: OK | AA16: OK | AB16: OK | AC16: OK | AD16: OK | AE16: OK | AF16: OK | AG16: OK | AH16: OK | AI16: OK | AJ16: OK | AK16: OK | AL16: OK | AM16: OK | AN16: OK | AO16: OK | AP16: OK | AQ16: OK | AR16: OK | AS16: OK | AT16: OK | AU16: OK | AV16: OK | AW16: OK | AX16: OK | AY16: OK | AZ16: OK | BA16: OK | BB16: OK | BC16: OK | BD16: OK | BE16: OK | BF16: OK | BG16: OK | BH16: OK | BI16: OK | BJ16: OK | BK16: OK | BL16: OK | BM16: OK | BN16: OK | BO16: OK | BP16: OK | BQ16: OK | BR16: OK | BS16: OK | BT16: OK | BU16: OK | BV16: =IF(ROUND(BV7-SUM(BV$78,BV$140,BV$202,BV$264,BV$326,BV$388,BV$450,BV$512,BV$574,BV636,BV698,BV760,BV817,BV874,BV931,BV988, BV1045,BV1102, BV1159, BV1221, BV1283 ),2)=0,"OK","Check") -> OK | BW16: OK | BX16: OK | BY16: OK | BZ16: OK | CA16: OK | CB16: OK | CC16: OK
A17: =IF(COUNTA($J17:$CC17)=COUNTIF($J17:$CC17,"OK"),"OK","Check") -> OK | D17: Check- Capex | J17: =IF(ROUND(J8-SUM(J44,J106,J168,J230,J292,J354,J416,J478,J540,J602,J664,J726,J783,J840,J897,J954, J1011, J1068, J1125, J1187, J1249),2)=0,"OK","Check") -> OK | K17: OK | L17: OK | M17: OK | N17: OK | O17: OK | P17: OK | Q17: OK | R17: OK | S17: OK | T17: OK | U17: OK | V17: OK | W17: OK | X17: OK | Y17: OK | Z17: OK | AA17: OK | AB17: OK | AC17: OK | AD17: OK | AE17: OK | AF17: OK | AG17: OK | AH17: OK | AI17: OK | AJ17: OK | AK17: OK | AL17: OK | AM17: OK | AN17: OK | AO17: OK | AP17: OK | AQ17: OK | AR17: OK | AS17: OK | AT17: OK | AU17: OK | AV17: OK | AW17: OK | AX17: OK | AY17: OK | AZ17: OK | BA17: OK | BB17: OK | BC17: OK | BD17: OK | BE17: OK | BF17: OK | BG17: OK | BH17: OK | BI17: OK | BJ17: OK | BK17: OK | BL17: OK | BM17: OK | BN17: OK | BO17: OK | BP17: OK | BQ17: OK | BR17: OK | BS17: OK | BT17: OK | BU17: OK | BV17: =IF(ROUND(BV8-SUM(BV44,BV106,BV168,BV230,BV292,BV354,BV416,BV478,BV540,BV602,BV664,BV726,BV783,BV840,BV897,BV954, BV1011, BV1068, BV1125, BV1187, BV1249),2)=0,"OK","Check") -> OK | BW17: OK | BX17: OK | BY17: OK | BZ17: OK | CA17: OK | CB17: OK | CC17: OK
A18: =IF(COUNTA($J18:$CC18)=COUNTIF($J18:$CC18,"OK"),"OK","Check") -> OK | D18: Check- Closing RAB | J18: =IF(ROUND(J13-SUM(J$80,J$142,J$204,J$266,J$328,J$390,J$452,J$514,J$576,J638,J700,J762,J819,J876,J933,J990, J1047, J1104, J1161, J1223, J1285),2)=0,"OK","Check") -> OK | K18: OK | L18: OK | M18: OK | N18: OK | O18: OK | P18: OK | Q18: OK | R18: OK | S18: OK | T18: OK | U18: OK | V18: OK | W18: OK | X18: OK | Y18: OK | Z18: OK | AA18: OK | AB18: OK | AC18: OK | AD18: OK | AE18: OK | AF18: OK | AG18: OK | AH18: OK | AI18: OK | AJ18: OK | AK18: OK | AL18: OK | AM18: OK | AN18: OK | AO18: OK | AP18: OK | AQ18: OK | AR18: OK | AS18: OK | AT18: OK | AU18: OK | AV18: OK | AW18: OK | AX18: OK | AY18: OK | AZ18: OK | BA18: OK | BB18: OK | BC18: OK | BD18: OK | BE18: OK | BF18: OK | BG18: OK | BH18: OK | BI18: OK | BJ18: OK | BK18: OK | BL18: OK | BM18: OK | BN18: OK | BO18: OK | BP18: OK | BQ18: OK | BR18: OK | BS18: OK | BT18: OK | BU18: OK | BV18: =IF(ROUND(BV13-SUM(BV$80,BV$142,BV$204,BV$266,BV$328,BV$390,BV$452,BV$514,BV$576,BV638,BV700,BV762,BV819,BV876,BV933,BV990, BV1047, BV1104, BV1161, BV1223, BV1285),2)=0,"OK","Check") -> OK | BW18: OK | BX18: OK | BY18: OK | BZ18: OK | CA18: OK | CB18: OK | CC18: OK
A20: =MATCH(B20,DepnInputs!$C$34:$C$54,0) -> 1 | B20: ='2011_15'!$C$19 -> Subtransmission | I20: 2010 | J20: =I20+1 -> 2011 | K20: 2012 | L20: 2013 | M20: 2014 | N20: 2015 | O20: 2016 | P20: 2017 | Q20: 2018 | R20: 2019 | S20: 2020 | T20: 2021 | U20: 2022 | V20: 2023 | W20: 2024 | X20: 2025 | Y20: 2026 | Z20: 2027 | AA20: 2028 | AB20: 2029 | AC20: 2030 | AD20: 2031 | AE20: 2032 | AF20: 2033 | AG20: 2034 | AH20: 2035 | AI20: 2036 | AJ20: 2037 | AK20: 2038 | AL20: 2039 | AM20: 2040 | AN20: 2041 | AO20: 2042 | AP20: 2043 | AQ20: 2044 | AR20: 2045 | AS20: 2046 | AT20: 2047 | AU20: 2048 | AV20: 2049 | AW20: 2050 | AX20: 2051 | AY20: 2052 | AZ20: 2053 | BA20: 2054 | BB20: 2055 | BC20: 2056 | BD20: 2057 | BE20: 2058 | BF20: 2059 | BG20: 2060 | BH20: 2061 | BI20: 2062 | BJ20: 2063 | BK20: 2064 | BL20: 2065 | BM20: 2066 | BN20: 2067 | BO20: 2068 | BP20: 2069 | BQ20: 2070 | BR20: 2071 | BS20: 2072 | BT20: 2073 | BU20: 2074 | BV20: =BU20+1 -> 2075 | BW20: 2076 | BX20: 2077 | BY20: 2078 | BZ20: 2079 | CA20: 2080 | CB20: 2081 | CC20: 2082
C22: Existing Assets at 2010 | G22: Rem life | H22: 2010 RAB
D23: Depreciation on Existing Opening RAB | E23: $m Real 2010 | G23: =INDEX(DepnInputs!$D$34:$D$54,A20) -> 26.44441797 | H23: =INDEX('2011_15'!$H$19:$H$39, A20) -> 181.8796403 | J23: =IF(OR($G23=0,$G23="n/a"),0,IF($H23>0,(MIN($H23/$G23,$H23-SUM($I23:I23))),(MAX($H23/$G23,$H23-SUM($I23:I23)))))*J$14 -> 6.87780841 | K23: =IF(OR($G23=0,$G23="n/a"),0,IF($H23>0,(MIN($H23/$G23,$H23-SUM($I23:J23))),(MAX($H23/$G23,$H23-SUM($I23:J23)))))*K$14 -> 6.87780841 | L23: =IF(OR($G23=0,$G23="n/a"),0,IF($H23>0,(MIN($H23/$G23,$H23-SUM($I23:K23))),(MAX($H23/$G23,$H23-SUM($I23:K23)))))*L$14 -> 6.87780841 | M23: =IF(OR($G23=0,$G23="n/a"),0,IF($H23>0,(MIN($H23/$G23,$H23-SUM($I23:L23))),(MAX($H23/$G23,$H23-SUM($I23:L23)))))*M$14 -> 6.87780841 | N23: =IF(OR($G23=0,$G23="n/a"),0,IF($H23>0,(MIN($H23/$G23,$H23-SUM($I23:M23))),(MAX($H23/$G23,$H23-SUM($I23:M23)))))*N$14 -> 6.87780841 | O23: =IF(OR($G23=0,$G23="n/a"),0,IF($H23>0,(MIN($H23/$G23,$H23-SUM($I23:N23))),(MAX($H23/$G23,$H23-SUM($I23:N23)))))*O$14 -> 6.87780841 | P23: =IF(OR($G23=0,$G23="n/a"),0,IF($H23>0,(MIN($H23/$G23,$H23-SUM($I23:O23))),(MAX($H23/$G23,$H23-SUM($I23:O23)))))*P$14 -> 6.87780841 | Q23: =IF(OR($G23=0,$G23="n/a"),0,IF($H23>0,(MIN($H23/$G23,$H23-SUM($I23:P23))),(MAX($H23/$G23,$H23-SUM($I23:P23)))))*Q$14 -> 6.87780841 | R23: =IF(OR($G23=0,$G23="n/a"),0,IF($H23>0,(MIN($H23/$G23,$H23-SUM($I23:Q23))),(MAX($H23/$G23,$H23-SUM($I23:Q23)))))*R$14 -> 6.87780841 | S23: =IF(OR($G23=0,$G23="n/a"),0,IF($H23>0,(MIN($H23/$G23,$H23-SUM($I23:R23))),(MAX($H23/$G23,$H23-SUM($I23:R23)))))*S$14 -> 6.87780841 | T23: =IF(OR($G23=0,$G23="n/a"),0,IF($H23>0,(MIN($H23/$G23,$H23-SUM($I23:S23))),(MAX($H23/$G23,$H23-SUM($I23:S23)))))*T$14 -> 3.438904205 | U23: =IF(OR($G23=0,$G23="n/a"),0,IF($H23>0,(MIN($H23/$G23,$H23-SUM($I23:T23))),(MAX($H23/$G23,$H23-SUM($I23:T23)))))*U$14 -> 6.87780841 | V23: =IF(OR($G23=0,$G23="n/a"),0,IF($H23>0,(MIN($H23/$G23,$H23-SUM($I23:U23))),(MAX($H23/$G23,$H23-SUM($I23:U23)))))*V$14 -> 6.87780841 | W23: =IF(OR($G23=0,$G23="n/a"),0,IF($H23>0,(MIN($H23/$G23,$H23-SUM($I23:V23))),(MAX($H23/$G23,$H23-SUM($I23:V23)))))*W$14 -> 6.87780841 | X23: =IF(OR($G23=0,$G23="n/a"),0,IF($H23>0,(MIN($H23/$G23,$H23-SUM($I23:W23))),(MAX($H23/$G23,$H23-SUM($I23:W23)))))*X$14 -> 6.87780841 | Y23: =IF(OR($G23=0,$G23="n/a"),0,IF($H23>0,(MIN($H23/$G23,$H23-SUM($I23:X23))),(MAX($H23/$G23,$H23-SUM($I23:X23)))))*Y$14 -> 6.87780841 | Z23: =IF(OR($G23=0,$G23="n/a"),0,IF($H23>0,(MIN($H23/$G23,$H23-SUM($I23:Y23))),(MAX($H23/$G23,$H23-SUM($I23:Y23)))))*Z$14 -> 6.87780841 | AA23: =IF(OR($G23=0,$G23="n/a"),0,IF($H23>0,(MIN($H23/$G23,$H23-SUM($I23:Z23))),(MAX($H23/$G23,$H23-SUM($I23:Z23)))))*AA$14 -> 6.87780841 | AB23: =IF(OR($G23=0,$G23="n/a"),0,IF($H23>0,(MIN($H23/$G23,$H23-SUM($I23:AA23))),(MAX($H23/$G23,$H23-SUM($I23:AA23)))))*AB$14 -> 6.87780841 | AC23: =IF(OR($G23=0,$G23="n/a"),0,IF($H23>0,(MIN($H23/$G23,$H23-SUM($I23:AB23))),(MAX($H23/$G23,$H23-SUM($I23:AB23)))))*AC$14 -> 6.87780841 | AD23: =IF(OR($G23=0,$G23="n/a"),0,IF($H23>0,(MIN($H23/$G23,$H23-SUM($I23:AC23))),(MAX($H23/$G23,$H23-SUM($I23:AC23)))))*AD$14 -> 6.87780841 | AE23: =IF(OR($G23=0,$G23="n/a"),0,IF($H23>0,(MIN($H23/$G23,$H23-SUM($I23:AD23))),(MAX($H23/$G23,$H23-SUM($I23:AD23)))))*AE$14 -> 6.87780841 | AF23: =IF(OR($G23=0,$G23="n/a"),0,IF($H23>0,(MIN($H23/$G23,$H23-SUM($I23:AE23))),(MAX($H23/$G23,$H23-SUM($I23:AE23)))))*AF$14 -> 6.87780841 | AG23: =IF(OR($G23=0,$G23="n/a"),0,IF($H23>0,(MIN($H23/$G23,$H23-SUM($I23:AF23))),(MAX($H23/$G23,$H23-SUM($I23:AF23)))))*AG$14 -> 6.87780841 | AH23: =IF(OR($G23=0,$G23="n/a"),0,IF($H23>0,(MIN($H23/$G23,$H23-SUM($I23:AG23))),(MAX($H23/$G23,$H23-SUM($I23:AG23)))))*AH$14 -> 6.87780841 | AI23: =IF(OR($G23=0,$G23="n/a"),0,IF($H23>0,(MIN($H23/$G23,$H23-SUM($I23:AH23))),(MAX($H23/$G23,$H23-SUM($I23:AH23)))))*AI$14 -> 6.87780841 | AJ23: =IF(OR($G23=0,$G23="n/a"),0,IF($H23>0,(MIN($H23/$G23,$H23-SUM($I23:AI23))),(MAX($H23/$G23,$H23-SUM($I23:AI23)))))*AJ$14 -> 6.495525861 | AK23: =IF(OR($G23=0,$G23="n/a"),0,IF($H23>0,(MIN($H23/$G23,$H23-SUM($I23:AJ23))),(MAX($H23/$G23,$H23-SUM($I23:AJ23)))))*AK$14 -> 0 | AL23: =IF(OR($G23=0,$G23="n/a"),0,IF($H23>0,(MIN($H23/$G23,$H23-SUM($I23:AK23))),(MAX($H23/$G23,$H23-SUM($I23:AK23)))))*AL$14 -> 0 | AM23: =IF(OR($G23=0,$G23="n/a"),0,IF($H23>0,(MIN($H23/$G23,$H23-SUM($I23:AL23))),(MAX($H23/$G23,$H23-SUM($I23:AL23)))))*AM$14 -> 0 | AN23: =IF(OR($G23=0,$G23="n/a"),0,IF($H23>0,(MIN($H23/$G23,$H23-SUM($I23:AM23))),(MAX($H23/$G23,$H23-SUM($I23:AM23)))))*AN$14 -> 0 | AO23: =IF(OR($G23=0,$G23="n/a"),0,IF($H23>0,(MIN($H23/$G23,$H23-SUM($I23:AN23))),(MAX($H23/$G23,$H23-SUM($I23:AN23)))))*AO$14 -> 0 | AP23: =IF(OR($G23=0,$G23="n/a"),0,IF($H23>0,(MIN($H23/$G23,$H23-SUM($I23:AO23))),(MAX($H23/$G23,$H23-SUM($I23:AO23)))))*AP$14 -> 0 | AQ23: =IF(OR($G23=0,$G23="n/a"),0,IF($H23>0,(MIN($H23/$G23,$H23-SUM($I23:AP23))),(MAX($H23/$G23,$H23-SUM($I23:AP23)))))*AQ$14 -> 0 | AR23: =IF(OR($G23=0,$G23="n/a"),0,IF($H23>0,(MIN($H23/$G23,$H23-SUM($I23:AQ23))),(MAX($H23/$G23,$H23-SUM($I23:AQ23)))))*AR$14 -> 0 | AS23: =IF(OR($G23=0,$G23="n/a"),0,IF($H23>0,(MIN($H23/$G23,$H23-SUM($I23:AR23))),(MAX($H23/$G23,$H23-SUM($I23:AR23)))))*AS$14 -> 0 | AT23: =IF(OR($G23=0,$G23="n/a"),0,IF($H23>0,(MIN($H23/$G23,$H23-SUM($I23:AS23))),(MAX($H23/$G23,$H23-SUM($I23:AS23)))))*AT$14 -> 0 | AU23: =IF(OR($G23=0,$G23="n/a"),0,IF($H23>0,(MIN($H23/$G23,$H23-SUM($I23:AT23))),(MAX($H23/$G23,$H23-SUM($I23:AT23)))))*AU$14 -> 0 | AV23: =IF(OR($G23=0,$G23="n/a"),0,IF($H23>0,(MIN($H23/$G23,$H23-SUM($I23:AU23))),(MAX($H23/$G23,$H23-SUM($I23:AU23)))))*AV$14 -> 0 | AW23: =IF(OR($G23=0,$G23="n/a"),0,IF($H23>0,(MIN($H23/$G23,$H23-SUM($I23:AV23))),(MAX($H23/$G23,$H23-SUM($I23:AV23)))))*AW$14 -> 0 | AX23: =IF(OR($G23=0,$G23="n/a"),0,IF($H23>0,(MIN($H23/$G23,$H23-SUM($I23:AW23))),(MAX($H23/$G23,$H23-SUM($I23:AW23)))))*AX$14 -> 0 | AY23: =IF(OR($G23=0,$G23="n/a"),0,IF($H23>0,(MIN($H23/$G23,$H23-SUM($I23:AX23))),(MAX($H23/$G23,$H23-SUM($I23:AX23)))))*AY$14 -> 0 | AZ23: =IF(OR($G23=0,$G23="n/a"),0,IF($H23>0,(MIN($H23/$G23,$H23-SUM($I23:AY23))),(MAX($H23/$G23,$H23-SUM($I23:AY23)))))*AZ$14 -> 0 | BA23: =IF(OR($G23=0,$G23="n/a"),0,IF($H23>0,(MIN($H23/$G23,$H23-SUM($I23:AZ23))),(MAX($H23/$G23,$H23-SUM($I23:AZ23)))))*BA$14 -> 0 | BB23: =IF(OR($G23=0,$G23="n/a"),0,IF($H23>0,(MIN($H23/$G23,$H23-SUM($I23:BA23))),(MAX($H23/$G23,$H23-SUM($I23:BA23)))))*BB$14 -> 0 | BC23: =IF(OR($G23=0,$G23="n/a"),0,IF($H23>0,(MIN($H23/$G23,$H23-SUM($I23:BB23))),(MAX($H23/$G23,$H23-SUM($I23:BB23)))))*BC$14 -> 0 | BD23: =IF(OR($G23=0,$G23="n/a"),0,IF($H23>0,(MIN($H23/$G23,$H23-SUM($I23:BC23))),(MAX($H23/$G23,$H23-SUM($I23:BC23)))))*BD$14 -> 0 | BE23: =IF(OR($G23=0,$G23="n/a"),0,IF($H23>0,(MIN($H23/$G23,$H23-SUM($I23:BD23))),(MAX($H23/$G23,$H23-SUM($I23:BD23)))))*BE$14 -> 0 | BF23: =IF(OR($G23=0,$G23="n/a"),0,IF($H23>0,(MIN($H23/$G23,$H23-SUM($I23:BE23))),(MAX($H23/$G23,$H23-SUM($I23:BE23)))))*BF$14 -> 0 | BG23: =IF(OR($G23=0,$G23="n/a"),0,IF($H23>0,(MIN($H23/$G23,$H23-SUM($I23:BF23))),(MAX($H23/$G23,$H23-SUM($I23:BF23)))))*BG$14 -> 0 | BH23: =IF(OR($G23=0,$G23="n/a"),0,IF($H23>0,(MIN($H23/$G23,$H23-SUM($I23:BG23))),(MAX($H23/$G23,$H23-SUM($I23:BG23)))))*BH$14 -> 0 | BI23: =IF(OR($G23=0,$G23="n/a"),0,IF($H23>0,(MIN($H23/$G23,$H23-SUM($I23:BH23))),(MAX($H23/$G23,$H23-SUM($I23:BH23)))))*BI$14 -> 0 | BJ23: =IF(OR($G23=0,$G23="n/a"),0,IF($H23>0,(MIN($H23/$G23,$H23-SUM($I23:BI23))),(MAX($H23/$G23,$H23-SUM($I23:BI23)))))*BJ$14 -> 0 | BK23: =IF(OR($G23=0,$G23="n/a"),0,IF($H23>0,(MIN($H23/$G23,$H23-SUM($I23:BJ23))),(MAX($H23/$G23,$H23-SUM($I23:BJ23)))))*BK$14 -> 0 | BL23: =IF(OR($G23=0,$G23="n/a"),0,IF($H23>0,(MIN($H23/$G23,$H23-SUM($I23:BK23))),(MAX($H23/$G23,$H23-SUM($I23:BK23)))))*BL$14 -> 0 | BM23: =IF(OR($G23=0,$G23="n/a"),0,IF($H23>0,(MIN($H23/$G23,$H23-SUM($I23:BL23))),(MAX($H23/$G23,$H23-SUM($I23:BL23)))))*BM$14 -> 0 | BN23: =IF(OR($G23=0,$G23="n/a"),0,IF($H23>0,(MIN($H23/$G23,$H23-SUM($I23:BM23))),(MAX($H23/$G23,$H23-SUM($I23:BM23)))))*BN$14 -> 0 | BO23: =IF(OR($G23=0,$G23="n/a"),0,IF($H23>0,(MIN($H23/$G23,$H23-SUM($I23:BN23))),(MAX($H23/$G23,$H23-SUM($I23:BN23)))))*BO$14 -> 0 | BP23: =IF(OR($G23=0,$G23="n/a"),0,IF($H23>0,(MIN($H23/$G23,$H23-SUM($I23:BO23))),(MAX($H23/$G23,$H23-SUM($I23:BO23)))))*BP$14 -> 0 | BQ23: =IF(OR($G23=0,$G23="n/a"),0,IF($H23>0,(MIN($H23/$G23,$H23-SUM($I23:BP23))),(MAX($H23/$G23,$H23-SUM($I23:BP23)))))*BQ$14 -> 0 | BR23: =IF(OR($G23=0,$G23="n/a"),0,IF($H23>0,(MIN($H23/$G23,$H23-SUM($I23:BQ23))),(MAX($H23/$G23,$H23-SUM($I23:BQ23)))))*BR$14 -> 0 | BS23: =IF(OR($G23=0,$G23="n/a"),0,IF($H23>0,(MIN($H23/$G23,$H23-SUM($I23:BR23))),(MAX($H23/$G23,$H23-SUM($I23:BR23)))))*BS$14 -> 0 | BT23: =IF(OR($G23=0,$G23="n/a"),0,IF($H23>0,(MIN($H23/$G23,$H23-SUM($I23:BS23))),(MAX($H23/$G23,$H23-SUM($I23:BS23)))))*BT$14 -> 0 | BU23: =IF(OR($G23=0,$G23="n/a"),0,IF($H23>0,(MIN($H23/$G23,$H23-SUM($I23:BT23))),(MAX($H23/$G23,$H23-SUM($I23:BT23)))))*BU$14 -> 0 | BV23: =IF(OR($G23=0,$G23="n/a"),0,IF($H23>0,(MIN($H23/$G23,$H23-SUM($I23:BU23))),(MAX($H23/$G23,$H23-SUM($I23:BU23)))))*BV$14 -> 0 | BW23: =IF(OR($G23=0,$G23="n/a"),0,IF($H23>0,(MIN($H23/$G23,$H23-SUM($I23:BV23))),(MAX($H23/$G23,$H23-SUM($I23:BV23)))))*BW$14 -> 0 | BX23: =IF(OR($G23=0,$G23="n/a"),0,IF($H23>0,(MIN($H23/$G23,$H23-SUM($I23:BW23))),(MAX($H23/$G23,$H23-SUM($I23:BW23)))))*BX$14 -> 0 | BY23: =IF(OR($G23=0,$G23="n/a"),0,IF($H23>0,(MIN($H23/$G23,$H23-SUM($I23:BX23))),(MAX($H23/$G23,$H23-SUM($I23:BX23)))))*BY$14 -> 0 | BZ23: =IF(OR($G23=0,$G23="n/a"),0,IF($H23>0,(MIN($H23/$G23,$H23-SUM($I23:BY23))),(MAX($H23/$G23,$H23-SUM($I23:BY23)))))*BZ$14 -> 0 | CA23: =IF(OR($G23=0,$G23="n/a"),0,IF($H23>0,(MIN($H23/$G23,$H23-SUM($I23:BZ23))),(MAX($H23/$G23,$H23-SUM($I23:BZ23)))))*CA$14 -> 0 | CB23: =IF(OR($G23=0,$G23="n/a"),0,IF($H23>0,(MIN($H23/$G23,$H23-SUM($I23:CA23))),(MAX($H23/$G23,$H23-SUM($I23:CA23)))))*CB$14 -> 0 | CC23: =IF(OR($G23=0,$G23="n/a"),0,IF($H23>0,(MIN($H23/$G23,$H23-SUM($I23:CB23))),(MAX($H23/$G23,$H23-SUM($I23:CB23)))))*CC$14 -> 0 | CE23: =IF(OR(ROUND(H23-SUM($J23:$CC23),2)=0,G23="n/a"),"OK","Check") -> OK
D24: Existing Assets Closing RAB | E24: $m Real 2010 | G24: =G23 -> 26.44441797 | J24: =IF(I$5=first_reg_period, $H23,I24)-J23 -> 175.0018319 | K24: 168.1240235 | L24: 161.2462151 | M24: 154.3684067 | N24: 147.4905983 | O24: 140.6127899 | P24: 133.7349814 | Q24: 126.857173 | R24: 119.9793646 | S24: 113.1015562 | T24: 109.662652 | U24: 102.7848436 | V24: 95.90703519 | W24: 89.02922678 | X24: 82.15141837 | Y24: 75.27360996 | Z24: 68.39580155 | AA24: 61.51799314 | AB24: 54.64018473 | AC24: 47.76237632 | AD24: 40.88456791 | AE24: 34.0067595 | AF24: 27.12895109 | AG24: 20.25114268 | AH24: 13.37333427 | AI24: 6.495525861 | AJ24: -1.065814104e-14 | AK24: -1.065814104e-14 | AL24: -1.065814104e-14 | AM24: -1.065814104e-14 | AN24: -1.065814104e-14 | AO24: -1.065814104e-14 | AP24: =IF(AO$5=first_reg_period, $H23,AO24)-AP23 -> -1.065814104e-14 | AQ24: -1.065814104e-14 | AR24: -1.065814104e-14 | AS24: -1.065814104e-14 | AT24: -1.065814104e-14 | AU24: -1.065814104e-14 | AV24: -1.065814104e-14 | AW24: -1.065814104e-14 | AX24: -1.065814104e-14 | AY24: -1.065814104e-14 | AZ24: -1.065814104e-14 | BA24: -1.065814104e-14 | BB24: -1.065814104e-14 | BC24: -1.065814104e-14 | BD24: -1.065814104e-14 | BE24: -1.065814104e-14 | BF24: -1.065814104e-14 | BG24: -1.065814104e-14 | BH24: -1.065814104e-14 | BI24: -1.065814104e-14 | BJ24: -1.065814104e-14 | BK24: -1.065814104e-14 | BL24: -1.065814104e-14 | BM24: -1.065814104e-14 | BN24: -1.065814104e-14 | BO24: -1.065814104e-14 | BP24: -1.065814104e-14 | BQ24: -1.065814104e-14 | BR24: -1.065814104e-14 | BS24: -1.065814104e-14 | BT24: -1.065814104e-14 | BU24: -1.065814104e-14 | BV24: =IF(BU$5=first_reg_period, $H23,BU24)-BV23 -> -1.065814104e-14 | BW24: -1.065814104e-14 | BX24: -1.065814104e-14 | BY24: -1.065814104e-14 | BZ24: -1.065814104e-14 | CA24: -1.065814104e-14 | CB24: -1.065814104e-14 | CC24: -1.065814104e-14
C26: Adjustments
D27: Capex adjustments for final year of prior reg period | F27: RAB_adj | J27: =IF(J$5<=third_reg_period, INDEX(Capex_2010!$I$49:$W$69,MATCH($B20,Capex_2010!$C$49:$C$69,0), MATCH(J$5, Capex_2010!$I$47:$W$47,0)),0) -> 0 | K27: =IF(K$5<=third_reg_period, INDEX(Capex_2010!$I$49:$W$69,MATCH($B20,Capex_2010!$C$49:$C$69,0), MATCH(K$5, Capex_2010!$I$47:$W$47,0)),0) -> 0 | L27: =IF(L$5<=third_reg_period, INDEX(Capex_2010!$I$49:$W$69,MATCH($B20,Capex_2010!$C$49:$C$69,0), MATCH(L$5, Capex_2010!$I$47:$W$47,0)),0) -> 0 | M27: =IF(M$5<=third_reg_period, INDEX(Capex_2010!$I$49:$W$69,MATCH($B20,Capex_2010!$C$49:$C$69,0), MATCH(M$5, Capex_2010!$I$47:$W$47,0)),0) -> 0 | N27: =IF(N$5<=third_reg_period, INDEX(Capex_2010!$I$49:$W$69,MATCH($B20,Capex_2010!$C$49:$C$69,0), MATCH(N$5, Capex_2010!$I$47:$W$47,0)),0) -> -14.94986215 | O27: =IF(O$5<=third_reg_period, INDEX(Capex_2010!$I$49:$W$69,MATCH($B20,Capex_2010!$C$49:$C$69,0), MATCH(O$5, Capex_2010!$I$47:$W$47,0)),0) -> 0 | P27: =IF(P$5<=third_reg_period, INDEX(Capex_2010!$I$49:$W$69,MATCH($B20,Capex_2010!$C$49:$C$69,0), MATCH(P$5, Capex_2010!$I$47:$W$47,0)),0) -> 0 | Q27: =IF(Q$5<=third_reg_period, INDEX(Capex_2010!$I$49:$W$69,MATCH($B20,Capex_2010!$C$49:$C$69,0), MATCH(Q$5, Capex_2010!$I$47:$W$47,0)),0) -> 0 | R27: =IF(R$5<=third_reg_period, INDEX(Capex_2010!$I$49:$W$69,MATCH($B20,Capex_2010!$C$49:$C$69,0), MATCH(R$5, Capex_2010!$I$47:$W$47,0)),0) -> 0 | S27: =IF(S$5<=third_reg_period, INDEX(Capex_2010!$I$49:$W$69,MATCH($B20,Capex_2010!$C$49:$C$69,0), MATCH(S$5, Capex_2010!$I$47:$W$47,0)),0) -> 0 | T27: =IF(T$5<=third_reg_period, INDEX(Capex_2010!$I$49:$W$69,MATCH($B20,Capex_2010!$C$49:$C$69,0), MATCH(T$5, Capex_2010!$I$47:$W$47,0)),0) -> -0.07760242886 | U27: =IF(U$5<=third_reg_period, INDEX(Capex_2010!$I$49:$W$69,MATCH($B20,Capex_2010!$C$49:$C$69,0), MATCH(U$5, Capex_2010!$I$47:$W$47,0)),0) -> 0 | V27: =IF(V$5<=third_reg_period, INDEX(Capex_2010!$I$49:$W$69,MATCH($B20,Capex_2010!$C$49:$C$69,0), MATCH(V$5, Capex_2010!$I$47:$W$47,0)),0) -> 0 | W27: =IF(W$5<=third_reg_period, INDEX(Capex_2010!$I$49:$W$69,MATCH($B20,Capex_2010!$C$49:$C$69,0), MATCH(W$5, Capex_2010!$I$47:$W$47,0)),0) -> 0 | X27: =IF(X$5<=third_reg_period, INDEX(Capex_2010!$I$49:$W$69,MATCH($B20,Capex_2010!$C$49:$C$69,0), MATCH(X$5, Capex_2010!$I$47:$W$47,0)),0) -> 0 | Y27: =IF(Y$5<=third_reg_period, INDEX(Capex_2010!$I$49:$W$69,MATCH($B20,Capex_2010!$C$49:$C$69,0), MATCH(Y$5, Capex_2010!$I$47:$W$47,0)),0) -> 0 | Z27: =IF(Z$5<=third_reg_period, INDEX(Capex_2010!$I$49:$W$69,MATCH($B20,Capex_2010!$C$49:$C$69,0), MATCH(Z$5, Capex_2010!$I$47:$W$47,0)),0) -> 0 | AA27: =IF(AA$5<=third_reg_period, INDEX(Capex_2010!$I$49:$W$69,MATCH($B20,Capex_2010!$C$49:$C$69,0), MATCH(AA$5, Capex_2010!$I$47:$W$47,0)),0) -> 0 | AB27: =IF(AB$5<=third_reg_period, INDEX(Capex_2010!$I$49:$W$69,MATCH($B20,Capex_2010!$C$49:$C$69,0), MATCH(AB$5, Capex_2010!$I$47:$W$47,0)),0) -> 0 | AC27: =IF(AC$5<=third_reg_period, INDEX(Capex_2010!$I$49:$W$69,MATCH($B20,Capex_2010!$C$49:$C$69,0), MATCH(AC$5, Capex_2010!$I$47:$W$47,0)),0) -> 0 | AD27: =IF(AD$5<=third_reg_period, INDEX(Capex_2010!$I$49:$W$69,MATCH($B20,Capex_2010!$C$49:$C$69,0), MATCH(AD$5, Capex_2010!$I$47:$W$47,0)),0) -> 0 | AE27: =IF(AE$5<=third_reg_period, INDEX(Capex_2010!$I$49:$W$69,MATCH($B20,Capex_2010!$C$49:$C$69,0), MATCH(AE$5, Capex_2010!$I$47:$W$47,0)),0) -> 0 | AF27: =IF(AF$5<=third_reg_period, INDEX(Capex_2010!$I$49:$W$69,MATCH($B20,Capex_2010!$C$49:$C$69,0), MATCH(AF$5, Capex_2010!$I$47:$W$47,0)),0) -> 0 | AG27: =IF(AG$5<=third_reg_period, INDEX(Capex_2010!$I$49:$W$69,MATCH($B20,Capex_2010!$C$49:$C$69,0), MATCH(AG$5, Capex_2010!$I$47:$W$47,0)),0) -> 0 | AH27: =IF(AH$5<=third_reg_period, INDEX(Capex_2010!$I$49:$W$69,MATCH($B20,Capex_2010!$C$49:$C$69,0), MATCH(AH$5, Capex_2010!$I$47:$W$47,0)),0) -> 0 | AI27: =IF(AI$5<=third_reg_period, INDEX(Capex_2010!$I$49:$W$69,MATCH($B20,Capex_2010!$C$49:$C$69,0), MATCH(AI$5, Capex_2010!$I$47:$W$47,0)),0) -> 0 | AJ27: =IF(AJ$5<=third_reg_period, INDEX(Capex_2010!$I$49:$W$69,MATCH($B20,Capex_2010!$C$49:$C$69,0), MATCH(AJ$5, Capex_2010!$I$47:$W$47,0)),0) -> 0 | AK27: =IF(AK$5<=third_reg_period, INDEX(Capex_2010!$I$49:$W$69,MATCH($B20,Capex_2010!$C$49:$C$69,0), MATCH(AK$5, Capex_2010!$I$47:$W$47,0)),0) -> 0 | AL27: =IF(AL$5<=third_reg_period, INDEX(Capex_2010!$I$49:$W$69,MATCH($B20,Capex_2010!$C$49:$C$69,0), MATCH(AL$5, Capex_2010!$I$47:$W$47,0)),0) -> 0 | AM27: =IF(AM$5<=third_reg_period, INDEX(Capex_2010!$I$49:$W$69,MATCH($B20,Capex_2010!$C$49:$C$69,0), MATCH(AM$5, Capex_2010!$I$47:$W$47,0)),0) -> 0 | AN27: =IF(AN$5<=third_reg_period, INDEX(Capex_2010!$I$49:$W$69,MATCH($B20,Capex_2010!$C$49:$C$69,0), MATCH(AN$5, Capex_2010!$I$47:$W$47,0)),0) -> 0 | AO27: =IF(AO$5<=third_reg_period, INDEX(Capex_2010!$I$49:$W$69,MATCH($B20,Capex_2010!$C$49:$C$69,0), MATCH(AO$5, Capex_2010!$I$47:$W$47,0)),0) -> 0 | AP27: =IF(AP$5<=third_reg_period, INDEX(Capex_2010!$I$49:$W$69,MATCH($B20,Capex_2010!$C$49:$C$69,0), MATCH(AP$5, Capex_2010!$I$47:$W$47,0)),0) -> 0 | AQ27: =IF(AQ$5<=third_reg_period, INDEX(Capex_2010!$I$49:$W$69,MATCH($B20,Capex_2010!$C$49:$C$69,0), MATCH(AQ$5, Capex_2010!$I$47:$W$47,0)),0) -> 0 | AR27: =IF(AR$5<=third_reg_period, INDEX(Capex_2010!$I$49:$W$69,MATCH($B20,Capex_2010!$C$49:$C$69,0), MATCH(AR$5, Capex_2010!$I$47:$W$47,0)),0) -> 0 | AS27: =IF(AS$5<=third_reg_period, INDEX(Capex_2010!$I$49:$W$69,MATCH($B20,Capex_2010!$C$49:$C$69,0), MATCH(AS$5, Capex_2010!$I$47:$W$47,0)),0) -> 0 | AT27: =IF(AT$5<=third_reg_period, INDEX(Capex_2010!$I$49:$W$69,MATCH($B20,Capex_2010!$C$49:$C$69,0), MATCH(AT$5, Capex_2010!$I$47:$W$47,0)),0) -> 0 | AU27: =IF(AU$5<=third_reg_period, INDEX(Capex_2010!$I$49:$W$69,MATCH($B20,Capex_2010!$C$49:$C$69,0), MATCH(AU$5, Capex_2010!$I$47:$W$47,0)),0) -> 0 | AV27: =IF(AV$5<=third_reg_period, INDEX(Capex_2010!$I$49:$W$69,MATCH($B20,Capex_2010!$C$49:$C$69,0), MATCH(AV$5, Capex_2010!$I$47:$W$47,0)),0) -> 0 | AW27: =IF(AW$5<=third_reg_period, INDEX(Capex_2010!$I$49:$W$69,MATCH($B20,Capex_2010!$C$49:$C$69,0), MATCH(AW$5, Capex_2010!$I$47:$W$47,0)),0) -> 0 | AX27: =IF(AX$5<=third_reg_period, INDEX(Capex_2010!$I$49:$W$69,MATCH($B20,Capex_2010!$C$49:$C$69,0), MATCH(AX$5, Capex_2010!$I$47:$W$47,0)),0) -> 0 | AY27: =IF(AY$5<=third_reg_period, INDEX(Capex_2010!$I$49:$W$69,MATCH($B20,Capex_2010!$C$49:$C$69,0), MATCH(AY$5, Capex_2010!$I$47:$W$47,0)),0) -> 0 | AZ27: =IF(AZ$5<=third_reg_period, INDEX(Capex_2010!$I$49:$W$69,MATCH($B20,Capex_2010!$C$49:$C$69,0), MATCH(AZ$5, Capex_2010!$I$47:$W$47,0)),0) -> 0 | BA27: =IF(BA$5<=third_reg_period, INDEX(Capex_2010!$I$49:$W$69,MATCH($B20,Capex_2010!$C$49:$C$69,0), MATCH(BA$5, Capex_2010!$I$47:$W$47,0)),0) -> 0 | BB27: =IF(BB$5<=third_reg_period, INDEX(Capex_2010!$I$49:$W$69,MATCH($B20,Capex_2010!$C$49:$C$69,0), MATCH(BB$5, Capex_2010!$I$47:$W$47,0)),0) -> 0 | BC27: =IF(BC$5<=third_reg_period, INDEX(Capex_2010!$I$49:$W$69,MATCH($B20,Capex_2010!$C$49:$C$69,0), MATCH(BC$5, Capex_2010!$I$47:$W$47,0)),0) -> 0 | BD27: =IF(BD$5<=third_reg_period, INDEX(Capex_2010!$I$49:$W$69,MATCH($B20,Capex_2010!$C$49:$C$69,0), MATCH(BD$5, Capex_2010!$I$47:$W$47,0)),0) -> 0 | BE27: =IF(BE$5<=third_reg_period, INDEX(Capex_2010!$I$49:$W$69,MATCH($B20,Capex_2010!$C$49:$C$69,0), MATCH(BE$5, Capex_2010!$I$47:$W$47,0)),0) -> 0 | BF27: =IF(BF$5<=third_reg_period, INDEX(Capex_2010!$I$49:$W$69,MATCH($B20,Capex_2010!$C$49:$C$69,0), MATCH(BF$5, Capex_2010!$I$47:$W$47,0)),0) -> 0 | BG27: =IF(BG$5<=third_reg_period, INDEX(Capex_2010!$I$49:$W$69,MATCH($B20,Capex_2010!$C$49:$C$69,0), MATCH(BG$5, Capex_2010!$I$47:$W$47,0)),0) -> 0 | BH27: =IF(BH$5<=third_reg_period, INDEX(Capex_2010!$I$49:$W$69,MATCH($B20,Capex_2010!$C$49:$C$69,0), MATCH(BH$5, Capex_2010!$I$47:$W$47,0)),0) -> 0 | BI27: =IF(BI$5<=third_reg_period, INDEX(Capex_2010!$I$49:$W$69,MATCH($B20,Capex_2010!$C$49:$C$69,0), MATCH(BI$5, Capex_2010!$I$47:$W$47,0)),0) -> 0 | BJ27: =IF(BJ$5<=third_reg_period, INDEX(Capex_2010!$I$49:$W$69,MATCH($B20,Capex_2010!$C$49:$C$69,0), MATCH(BJ$5, Capex_2010!$I$47:$W$47,0)),0) -> 0 | BK27: =IF(BK$5<=third_reg_period, INDEX(Capex_2010!$I$49:$W$69,MATCH($B20,Capex_2010!$C$49:$C$69,0), MATCH(BK$5, Capex_2010!$I$47:$W$47,0)),0) -> 0 | BL27: =IF(BL$5<=third_reg_period, INDEX(Capex_2010!$I$49:$W$69,MATCH($B20,Capex_2010!$C$49:$C$69,0), MATCH(BL$5, Capex_2010!$I$47:$W$47,0)),0) -> 0 | BM27: =IF(BM$5<=third_reg_period, INDEX(Capex_2010!$I$49:$W$69,MATCH($B20,Capex_2010!$C$49:$C$69,0), MATCH(BM$5, Capex_2010!$I$47:$W$47,0)),0) -> 0 | BN27: =IF(BN$5<=third_reg_period, INDEX(Capex_2010!$I$49:$W$69,MATCH($B20,Capex_2010!$C$49:$C$69,0), MATCH(BN$5, Capex_2010!$I$47:$W$47,0)),0) -> 0 | BO27: =IF(BO$5<=third_reg_period, INDEX(Capex_2010!$I$49:$W$69,MATCH($B20,Capex_2010!$C$49:$C$69,0), MATCH(BO$5, Capex_2010!$I$47:$W$47,0)),0) -> 0 | BP27: =IF(BP$5<=third_reg_period, INDEX(Capex_2010!$I$49:$W$69,MATCH($B20,Capex_2010!$C$49:$C$69,0), MATCH(BP$5, Capex_2010!$I$47:$W$47,0)),0) -> 0 | BQ27: =IF(BQ$5<=third_reg_period, INDEX(Capex_2010!$I$49:$W$69,MATCH($B20,Capex_2010!$C$49:$C$69,0), MATCH(BQ$5, Capex_2010!$I$47:$W$47,0)),0) -> 0 | BR27: =IF(BR$5<=third_reg_period, INDEX(Capex_2010!$I$49:$W$69,MATCH($B20,Capex_2010!$C$49:$C$69,0), MATCH(BR$5, Capex_2010!$I$47:$W$47,0)),0) -> 0 | BS27: =IF(BS$5<=third_reg_period, INDEX(Capex_2010!$I$49:$W$69,MATCH($B20,Capex_2010!$C$49:$C$69,0), MATCH(BS$5, Capex_2010!$I$47:$W$47,0)),0) -> 0 | BT27: =IF(BT$5<=third_reg_period, INDEX(Capex_2010!$I$49:$W$69,MATCH($B20,Capex_2010!$C$49:$C$69,0), MATCH(BT$5, Capex_2010!$I$47:$W$47,0)),0) -> 0 | BU27: =IF(BU$5<=third_reg_period, INDEX(Capex_2010!$I$49:$W$69,MATCH($B20,Capex_2010!$C$49:$C$69,0), MATCH(BU$5, Capex_2010!$I$47:$W$47,0)),0) -> 0 | BV27: =IF(BV$5<=third_reg_period, INDEX(Capex_2010!$I$49:$W$69,MATCH($B20,Capex_2010!$C$49:$C$69,0), MATCH(BV$5, Capex_2010!$I$47:$W$47,0)),0) -> 0 | BW27: =IF(BW$5<=third_reg_period, INDEX(Capex_2010!$I$49:$W$69,MATCH($B20,Capex_2010!$C$49:$C$69,0), MATCH(BW$5, Capex_2010!$I$47:$W$47,0)),0) -> 0 | BX27: =IF(BX$5<=third_reg_period, INDEX(Capex_2010!$I$49:$W$69,MATCH($B20,Capex_2010!$C$49:$C$69,0), MATCH(BX$5, Capex_2010!$I$47:$W$47,0)),0) -> 0 | BY27: =IF(BY$5<=third_reg_period, INDEX(Capex_2010!$I$49:$W$69,MATCH($B20,Capex_2010!$C$49:$C$69,0), MATCH(BY$5, Capex_2010!$I$47:$W$47,0)),0) -> 0 | BZ27: =IF(BZ$5<=third_reg_period, INDEX(Capex_2010!$I$49:$W$69,MATCH($B20,Capex_2010!$C$49:$C$69,0), MATCH(BZ$5, Capex_2010!$I$47:$W$47,0)),0) -> 0 | CA27: =IF(CA$5<=third_reg_period, INDEX(Capex_2010!$I$49:$W$69,MATCH($B20,Capex_2010!$C$49:$C$69,0), MATCH(CA$5, Capex_2010!$I$47:$W$47,0)),0) -> 0 | CB27: =IF(CB$5<=third_reg_period, INDEX(Capex_2010!$I$49:$W$69,MATCH($B20,Capex_2010!$C$49:$C$69,0), MATCH(CB$5, Capex_2010!$I$47:$W$47,0)),0) -> 0 | CC27: =IF(CC$5<=third_reg_period, INDEX(Capex_2010!$I$49:$W$69,MATCH($B20,Capex_2010!$C$49:$C$69,0), MATCH(CC$5, Capex_2010!$I$47:$W$47,0)),0) -> 0
G28: Std life | H28: Amount
D29: 2010 | E29: $m Real 2010 | G29: =IF(B20="land","n/a",IF(INDEX(DepnInputs!$E$34:$E$54,A20)="n/a",reg_period_length,INDEX(DepnInputs!$E$34:$E$54,A20))) -> 50 | H29: =INDEX($J27:$CC27, MATCH(VALUE(LEFT(D29,4))+5, $J$5:$CC$5,0)) -> -14.94986215 | J29: =IF(OR(J$5<=($D29+reg_period_length),$G29="n/a"),0,IF((J$5-$D29)>($G29),$H29-SUM(I29:$J29),$H29/($G29-reg_period_length)))*J$14 -> 0 | K29: =IF(OR(K$5<=($D29+reg_period_length),$G29="n/a"),0,IF((K$5-$D29)>($G29),$H29-SUM(J29:$J29),$H29/($G29-reg_period_length)))*K$14 -> 0 | L29: =IF(OR(L$5<=($D29+reg_period_length),$G29="n/a"),0,IF((L$5-$D29)>($G29),$H29-SUM($J29:K29),$H29/($G29-reg_period_length)))*L$14 -> 0 | M29: =IF(OR(M$5<=($D29+reg_period_length),$G29="n/a"),0,IF((M$5-$D29)>($G29),$H29-SUM($J29:L29),$H29/($G29-reg_period_length)))*M$14 -> 0 | N29: =IF(OR(N$5<=($D29+reg_period_length),$G29="n/a"),0,IF((N$5-$D29)>($G29),$H29-SUM($J29:M29),$H29/($G29-reg_period_length)))*N$14 -> 0 | O29: =IF(OR(O$5<=($D29+reg_period_length),$G29="n/a"),0,IF((O$5-$D29)>($G29),$H29-SUM($J29:N29),$H29/($G29-reg_period_length)))*O$14 -> -0.3322191588 | P29: =IF(OR(P$5<=($D29+reg_period_length),$G29="n/a"),0,IF((P$5-$D29)>($G29),$H29-SUM($J29:O29),$H29/($G29-reg_period_length)))*P$14 -> -0.3322191588 | Q29: =IF(OR(Q$5<=($D29+reg_period_length),$G29="n/a"),0,IF((Q$5-$D29)>($G29),$H29-SUM($J29:P29),$H29/($G29-reg_period_length)))*Q$14 -> -0.3322191588 | R29: =IF(OR(R$5<=($D29+reg_period_length),$G29="n/a"),0,IF((R$5-$D29)>($G29),$H29-SUM($J29:Q29),$H29/($G29-reg_period_length)))*R$14 -> -0.3322191588 | S29: =IF(OR(S$5<=($D29+reg_period_length),$G29="n/a"),0,IF((S$5-$D29)>($G29),$H29-SUM($J29:R29),$H29/($G29-reg_period_length)))*S$14 -> -0.3322191588 | T29: =IF(OR(T$5<=($D29+reg_period_length),$G29="n/a"),0,IF((T$5-$D29)>($G29),$H29-SUM($J29:S29),$H29/($G29-reg_period_length)))*T$14 -> -0.1661095794 | U29: =IF(OR(U$5<=($D29+reg_period_length),$G29="n/a"),0,IF((U$5-$D29)>($G29),$H29-SUM($J29:T29),$H29/($G29-reg_period_length)))*U$14 -> -0.3322191588 | V29: =IF(OR(V$5<=($D29+reg_period_length),$G29="n/a"),0,IF((V$5-$D29)>($G29),$H29-SUM($J29:U29),$H29/($G29-reg_period_length)))*V$14 -> -0.3322191588 | W29: =IF(OR(W$5<=($D29+reg_period_length),$G29="n/a"),0,IF((W$5-$D29)>($G29),$H29-SUM($J29:V29),$H29/($G29-reg_period_length)))*W$14 -> -0.3322191588 | X29: =IF(OR(X$5<=($D29+reg_period_length),$G29="n/a"),0,IF((X$5-$D29)>($G29),$H29-SUM($J29:W29),$H29/($G29-reg_period_length)))*X$14 -> -0.3322191588 | Y29: =IF(OR(Y$5<=($D29+reg_period_length),$G29="n/a"),0,IF((Y$5-$D29)>($G29),$H29-SUM($J29:X29),$H29/($G29-reg_period_length)))*Y$14 -> -0.3322191588 | Z29: =IF(OR(Z$5<=($D29+reg_period_length),$G29="n/a"),0,IF((Z$5-$D29)>($G29),$H29-SUM($J29:Y29),$H29/($G29-reg_period_length)))*Z$14 -> -0.3322191588 | AA29: =IF(OR(AA$5<=($D29+reg_period_length),$G29="n/a"),0,IF((AA$5-$D29)>($G29),$H29-SUM($J29:Z29),$H29/($G29-reg_period_length)))*AA$14 -> -0.3322191588 | AB29: =IF(OR(AB$5<=($D29+reg_period_length),$G29="n/a"),0,IF((AB$5-$D29)>($G29),$H29-SUM($J29:AA29),$H29/($G29-reg_period_length)))*AB$14 -> -0.3322191588 | AC29: =IF(OR(AC$5<=($D29+reg_period_length),$G29="n/a"),0,IF((AC$5-$D29)>($G29),$H29-SUM($J29:AB29),$H29/($G29-reg_period_length)))*AC$14 -> -0.3322191588 | AD29: =IF(OR(AD$5<=($D29+reg_period_length),$G29="n/a"),0,IF((AD$5-$D29)>($G29),$H29-SUM($J29:AC29),$H29/($G29-reg_period_length)))*AD$14 -> -0.3322191588 | AE29: =IF(OR(AE$5<=($D29+reg_period_length),$G29="n/a"),0,IF((AE$5-$D29)>($G29),$H29-SUM($J29:AD29),$H29/($G29-reg_period_length)))*AE$14 -> -0.3322191588 | AF29: =IF(OR(AF$5<=($D29+reg_period_length),$G29="n/a"),0,IF((AF$5-$D29)>($G29),$H29-SUM($J29:AE29),$H29/($G29-reg_period_length)))*AF$14 -> -0.3322191588 | AG29: =IF(OR(AG$5<=($D29+reg_period_length),$G29="n/a"),0,IF((AG$5-$D29)>($G29),$H29-SUM($J29:AF29),$H29/($G29-reg_period_length)))*AG$14 -> -0.3322191588 | AH29: =IF(OR(AH$5<=($D29+reg_period_length),$G29="n/a"),0,IF((AH$5-$D29)>($G29),$H29-SUM($J29:AG29),$H29/($G29-reg_period_length)))*AH$14 -> -0.3322191588 | AI29: =IF(OR(AI$5<=($D29+reg_period_length),$G29="n/a"),0,IF((AI$5-$D29)>($G29),$H29-SUM($J29:AH29),$H29/($G29-reg_period_length)))*AI$14 -> -0.3322191588 | AJ29: =IF(OR(AJ$5<=($D29+reg_period_length),$G29="n/a"),0,IF((AJ$5-$D29)>($G29),$H29-SUM($J29:AI29),$H29/($G29-reg_period_length)))*AJ$14 -> -0.3322191588 | AK29: =IF(OR(AK$5<=($D29+reg_period_length),$G29="n/a"),0,IF((AK$5-$D29)>($G29),$H29-SUM($J29:AJ29),$H29/($G29-reg_period_length)))*AK$14 -> -0.3322191588 | AL29: =IF(OR(AL$5<=($D29+reg_period_length),$G29="n/a"),0,IF((AL$5-$D29)>($G29),$H29-SUM($J29:AK29),$H29/($G29-reg_period_length)))*AL$14 -> -0.3322191588 | AM29: =IF(OR(AM$5<=($D29+reg_period_length),$G29="n/a"),0,IF((AM$5-$D29)>($G29),$H29-SUM($J29:AL29),$H29/($G29-reg_period_length)))*AM$14 -> -0.3322191588 | AN29: =IF(OR(AN$5<=($D29+reg_period_length),$G29="n/a"),0,IF((AN$5-$D29)>($G29),$H29-SUM($J29:AM29),$H29/($G29-reg_period_length)))*AN$14 -> -0.3322191588 | AO29: =IF(OR(AO$5<=($D29+reg_period_length),$G29="n/a"),0,IF((AO$5-$D29)>($G29),$H29-SUM($J29:AN29),$H29/($G29-reg_period_length)))*AO$14 -> -0.3322191588 | AP29: =IF(OR(AP$5<=($D29+reg_period_length),$G29="n/a"),0,IF((AP$5-$D29)>($G29),$H29-SUM($J29:AO29),$H29/($G29-reg_period_length)))*AP$14 -> -0.3322191588 | AQ29: =IF(OR(AQ$5<=($D29+reg_period_length),$G29="n/a"),0,IF((AQ$5-$D29)>($G29),$H29-SUM($J29:AP29),$H29/($G29-reg_period_length)))*AQ$14 -> -0.3322191588 | AR29: =IF(OR(AR$5<=($D29+reg_period_length),$G29="n/a"),0,IF((AR$5-$D29)>($G29),$H29-SUM($J29:AQ29),$H29/($G29-reg_period_length)))*AR$14 -> -0.3322191588 | AS29: =IF(OR(AS$5<=($D29+reg_period_length),$G29="n/a"),0,IF((AS$5-$D29)>($G29),$H29-SUM($J29:AR29),$H29/($G29-reg_period_length)))*AS$14 -> -0.3322191588 | AT29: =IF(OR(AT$5<=($D29+reg_period_length),$G29="n/a"),0,IF((AT$5-$D29)>($G29),$H29-SUM($J29:AS29),$H29/($G29-reg_period_length)))*AT$14 -> -0.3322191588 | AU29: =IF(OR(AU$5<=($D29+reg_period_length),$G29="n/a"),0,IF((AU$5-$D29)>($G29),$H29-SUM($J29:AT29),$H29/($G29-reg_period_length)))*AU$14 -> -0.3322191588 | AV29: =IF(OR(AV$5<=($D29+reg_period_length),$G29="n/a"),0,IF((AV$5-$D29)>($G29),$H29-SUM($J29:AU29),$H29/($G29-reg_period_length)))*AV$14 -> -0.3322191588 | AW29: =IF(OR(AW$5<=($D29+reg_period_length),$G29="n/a"),0,IF((AW$5-$D29)>($G29),$H29-SUM($J29:AV29),$H29/($G29-reg_period_length)))*AW$14 -> -0.3322191588 | AX29: =IF(OR(AX$5<=($D29+reg_period_length),$G29="n/a"),0,IF((AX$5-$D29)>($G29),$H29-SUM($J29:AW29),$H29/($G29-reg_period_length)))*AX$14 -> -0.3322191588 | AY29: =IF(OR(AY$5<=($D29+reg_period_length),$G29="n/a"),0,IF((AY$5-$D29)>($G29),$H29-SUM($J29:AX29),$H29/($G29-reg_period_length)))*AY$14 -> -0.3322191588 | AZ29: =IF(OR(AZ$5<=($D29+reg_period_length),$G29="n/a"),0,IF((AZ$5-$D29)>($G29),$H29-SUM($J29:AY29),$H29/($G29-reg_period_length)))*AZ$14 -> -0.3322191588 | BA29: =IF(OR(BA$5<=($D29+reg_period_length),$G29="n/a"),0,IF((BA$5-$D29)>($G29),$H29-SUM($J29:AZ29),$H29/($G29-reg_period_length)))*BA$14 -> -0.3322191588 | BB29: =IF(OR(BB$5<=($D29+reg_period_length),$G29="n/a"),0,IF((BB$5-$D29)>($G29),$H29-SUM($J29:BA29),$H29/($G29-reg_period_length)))*BB$14 -> -0.3322191588 | BC29: =IF(OR(BC$5<=($D29+reg_period_length),$G29="n/a"),0,IF((BC$5-$D29)>($G29),$H29-SUM($J29:BB29),$H29/($G29-reg_period_length)))*BC$14 -> -0.3322191588 | BD29: =IF(OR(BD$5<=($D29+reg_period_length),$G29="n/a"),0,IF((BD$5-$D29)>($G29),$H29-SUM($J29:BC29),$H29/($G29-reg_period_length)))*BD$14 -> -0.3322191588 | BE29: =IF(OR(BE$5<=($D29+reg_period_length),$G29="n/a"),0,IF((BE$5-$D29)>($G29),$H29-SUM($J29:BD29),$H29/($G29-reg_period_length)))*BE$14 -> -0.3322191588 | BF29: =IF(OR(BF$5<=($D29+reg_period_length),$G29="n/a"),0,IF((BF$5-$D29)>($G29),$H29-SUM($J29:BE29),$H29/($G29-reg_period_length)))*BF$14 -> -0.3322191588 | BG29: =IF(OR(BG$5<=($D29+reg_period_length),$G29="n/a"),0,IF((BG$5-$D29)>($G29),$H29-SUM($J29:BF29),$H29/($G29-reg_period_length)))*BG$14 -> -0.3322191588 | BH29: =IF(OR(BH$5<=($D29+reg_period_length),$G29="n/a"),0,IF((BH$5-$D29)>($G29),$H29-SUM($J29:BG29),$H29/($G29-reg_period_length)))*BH$14 -> -0.1661095794 | BI29: =IF(OR(BI$5<=($D29+reg_period_length),$G29="n/a"),0,IF((BI$5-$D29)>($G29),$H29-SUM($J29:BH29),$H29/($G29-reg_period_length)))*BI$14 -> 0 | BJ29: =IF(OR(BJ$5<=($D29+reg_period_length),$G29="n/a"),0,IF((BJ$5-$D29)>($G29),$H29-SUM($J29:BI29),$H29/($G29-reg_period_length)))*BJ$14 -> 0 | BK29: =IF(OR(BK$5<=($D29+reg_period_length),$G29="n/a"),0,IF((BK$5-$D29)>($G29),$H29-SUM($J29:BJ29),$H29/($G29-reg_period_length)))*BK$14 -> 0 | BL29: =IF(OR(BL$5<=($D29+reg_period_length),$G29="n/a"),0,IF((BL$5-$D29)>($G29),$H29-SUM($J29:BK29),$H29/($G29-reg_period_length)))*BL$14 -> 0 | BM29: =IF(OR(BM$5<=($D29+reg_period_length),$G29="n/a"),0,IF((BM$5-$D29)>($G29),$H29-SUM($J29:BL29),$H29/($G29-reg_period_length)))*BM$14 -> 0 | BN29: =IF(OR(BN$5<=($D29+reg_period_length),$G29="n/a"),0,IF((BN$5-$D29)>($G29),$H29-SUM($J29:BM29),$H29/($G29-reg_period_length)))*BN$14 -> 0 | BO29: =IF(OR(BO$5<=($D29+reg_period_length),$G29="n/a"),0,IF((BO$5-$D29)>($G29),$H29-SUM($J29:BN29),$H29/($G29-reg_period_length)))*BO$14 -> 0 | BP29: =IF(OR(BP$5<=($D29+reg_period_length),$G29="n/a"),0,IF((BP$5-$D29)>($G29),$H29-SUM($J29:BO29),$H29/($G29-reg_period_length)))*BP$14 -> 0 | BQ29: =IF(OR(BQ$5<=($D29+reg_period_length),$G29="n/a"),0,IF((BQ$5-$D29)>($G29),$H29-SUM($J29:BP29),$H29/($G29-reg_period_length)))*BQ$14 -> 0 | BR29: =IF(OR(BR$5<=($D29+reg_period_length),$G29="n/a"),0,IF((BR$5-$D29)>($G29),$H29-SUM($J29:BQ29),$H29/($G29-reg_period_length)))*BR$14 -> 0 | BS29: =IF(OR(BS$5<=($D29+reg_period_length),$G29="n/a"),0,IF((BS$5-$D29)>($G29),$H29-SUM($J29:BR29),$H29/($G29-reg_period_length)))*BS$14 -> 0 | BT29: =IF(OR(BT$5<=($D29+reg_period_length),$G29="n/a"),0,IF((BT$5-$D29)>($G29),$H29-SUM($J29:BS29),$H29/($G29-reg_period_length)))*BT$14 -> 0 | BU29: =IF(OR(BU$5<=($D29+reg_period_length),$G29="n/a"),0,IF((BU$5-$D29)>($G29),$H29-SUM($J29:BT29),$H29/($G29-reg_period_length)))*BU$14 -> 0 | BV29: =IF(OR(BV$5<=($D29+reg_period_length),$G29="n/a"),0,IF((BV$5-$D29)>($G29),$H29-SUM($J29:BU29),$H29/($G29-reg_period_length)))*BV$14 -> 0 | BW29: =IF(OR(BW$5<=($D29+reg_period_length),$G29="n/a"),0,IF((BW$5-$D29)>($G29),$H29-SUM($J29:BV29),$H29/($G29-reg_period_length)))*BW$14 -> 0 | BX29: =IF(OR(BX$5<=($D29+reg_period_length),$G29="n/a"),0,IF((BX$5-$D29)>($G29),$H29-SUM($J29:BW29),$H29/($G29-reg_period_length)))*BX$14 -> 0 | BY29: =IF(OR(BY$5<=($D29+reg_period_length),$G29="n/a"),0,IF((BY$5-$D29)>($G29),$H29-SUM($J29:BX29),$H29/($G29-reg_period_length)))*BY$14 -> 0 | BZ29: =IF(OR(BZ$5<=($D29+reg_period_length),$G29="n/a"),0,IF((BZ$5-$D29)>($G29),$H29-SUM($J29:BY29),$H29/($G29-reg_period_length)))*BZ$14 -> 0 | CA29: =IF(OR(CA$5<=($D29+reg_period_length),$G29="n/a"),0,IF((CA$5-$D29)>($G29),$H29-SUM($J29:BZ29),$H29/($G29-reg_period_length)))*CA$14 -> 0 | CB29: =IF(OR(CB$5<=($D29+reg_period_length),$G29="n/a"),0,IF((CB$5-$D29)>($G29),$H29-SUM($J29:CA29),$H29/($G29-reg_period_length)))*CB$14 -> 0 | CC29: =IF(OR(CC$5<=($D29+reg_period_length),$G29="n/a"),0,IF((CC$5-$D29)>($G29),$H29-SUM($J29:CB29),$H29/($G29-reg_period_length)))*CC$14 -> 0 | CE29: =IF(OR(ROUND(H29-SUM($J29:$CC29),2)=0,G29="n/a"),"OK","Check") -> OK
D30: 2015 | E30: $m Real 2010 | G30: =G29 -> 50 | H30: =INDEX($J27:$CC27, MATCH(VALUE(LEFT(D30,4))+reg_period_length+0.5, $J$5:$CC$5,0)) -> -0.07760242886 | J30: =IF(OR(J$5<=($D30+reg_period_length),$G30="n/a"),0,IF((J$5-$D30)>($G30),$H30-SUM(I30:$J30),$H30/($G30-reg_period_length)))*J$14 -> 0 | K30: =IF(OR(K$5<=($D30+reg_period_length),$G30="n/a"),0,IF((K$5-$D30)>($G30),$H30-SUM(J30:$J30),$H30/($G30-reg_period_length)))*K$14 -> 0 | L30: =IF(OR(L$5<=($D30+reg_period_length),$G30="n/a"),0,IF((L$5-$D30)>($G30),$H30-SUM($J30:K30),$H30/($G30-reg_period_length)))*L$14 -> 0 | M30: =IF(OR(M$5<=($D30+reg_period_length),$G30="n/a"),0,IF((M$5-$D30)>($G30),$H30-SUM($J30:L30),$H30/($G30-reg_period_length)))*M$14 -> 0 | N30: =IF(OR(N$5<=($D30+reg_period_length),$G30="n/a"),0,IF((N$5-$D30)>($G30),$H30-SUM($J30:M30),$H30/($G30-reg_period_length)))*N$14 -> 0 | O30: =IF(OR(O$5<=($D30+reg_period_length),$G30="n/a"),0,IF((O$5-$D30)>($G30),$H30-SUM($J30:N30),$H30/($G30-reg_period_length)))*O$14 -> 0 | P30: =IF(OR(P$5<=($D30+reg_period_length),$G30="n/a"),0,IF((P$5-$D30)>($G30),$H30-SUM($J30:O30),$H30/($G30-reg_period_length)))*P$14 -> 0 | Q30: =IF(OR(Q$5<=($D30+reg_period_length),$G30="n/a"),0,IF((Q$5-$D30)>($G30),$H30-SUM($J30:P30),$H30/($G30-reg_period_length)))*Q$14 -> 0 | R30: =IF(OR(R$5<=($D30+reg_period_length),$G30="n/a"),0,IF((R$5-$D30)>($G30),$H30-SUM($J30:Q30),$H30/($G30-reg_period_length)))*R$14 -> 0 | S30: =IF(OR(S$5<=($D30+reg_period_length),$G30="n/a"),0,IF((S$5-$D30)>($G30),$H30-SUM($J30:R30),$H30/($G30-reg_period_length)))*S$14 -> 0 | T30: =IF(OR(T$5<=($D30+reg_period_length+0.5),$G30="n/a"),0,IF((T$5-$D30)>($G30),$H30-SUM($J30:S30),$H30/($G30-reg_period_length+0.5)))*T$14 -> 0 | U30: =IF(OR(U$5<=($D30+reg_period_length),$G30="n/a"),0,IF((U$5-$D30)>($G30),$H30-SUM($J30:T30),$H30/($G30-reg_period_length)))*U$14 -> -0.001724498419 | V30: =IF(OR(V$5<=($D30+reg_period_length),$G30="n/a"),0,IF((V$5-$D30)>($G30),$H30-SUM($J30:U30),$H30/($G30-reg_period_length)))*V$14 -> -0.001724498419 | W30: =IF(OR(W$5<=($D30+reg_period_length),$G30="n/a"),0,IF((W$5-$D30)>($G30),$H30-SUM($J30:V30),$H30/($G30-reg_period_length)))*W$14 -> -0.001724498419 | X30: =IF(OR(X$5<=($D30+reg_period_length),$G30="n/a"),0,IF((X$5-$D30)>($G30),$H30-SUM($J30:W30),$H30/($G30-reg_period_length)))*X$14 -> -0.001724498419 | Y30: =IF(OR(Y$5<=($D30+reg_period_length),$G30="n/a"),0,IF((Y$5-$D30)>($G30),$H30-SUM($J30:X30),$H30/($G30-reg_period_length)))*Y$14 -> -0.001724498419 | Z30: =IF(OR(Z$5<=($D30+reg_period_length),$G30="n/a"),0,IF((Z$5-$D30)>($G30),$H30-SUM($J30:Y30),$H30/($G30-reg_period_length)))*Z$14 -> -0.001724498419 | AA30: =IF(OR(AA$5<=($D30+reg_period_length),$G30="n/a"),0,IF((AA$5-$D30)>($G30),$H30-SUM($J30:Z30),$H30/($G30-reg_period_length)))*AA$14 -> -0.001724498419 | AB30: =IF(OR(AB$5<=($D30+reg_period_length),$G30="n/a"),0,IF((AB$5-$D30)>($G30),$H30-SUM($J30:AA30),$H30/($G30-reg_period_length)))*AB$14 -> -0.001724498419 | AC30: =IF(OR(AC$5<=($D30+reg_period_length),$G30="n/a"),0,IF((AC$5-$D30)>($G30),$H30-SUM($J30:AB30),$H30/($G30-reg_period_length)))*AC$14 -> -0.001724498419 | AD30: =IF(OR(AD$5<=($D30+reg_period_length),$G30="n/a"),0,IF((AD$5-$D30)>($G30),$H30-SUM($J30:AC30),$H30/($G30-reg_period_length)))*AD$14 -> -0.001724498419 | AE30: =IF(OR(AE$5<=($D30+reg_period_length),$G30="n/a"),0,IF((AE$5-$D30)>($G30),$H30-SUM($J30:AD30),$H30/($G30-reg_period_length)))*AE$14 -> -0.001724498419 | AF30: =IF(OR(AF$5<=($D30+reg_period_length),$G30="n/a"),0,IF((AF$5-$D30)>($G30),$H30-SUM($J30:AE30),$H30/($G30-reg_period_length)))*AF$14 -> -0.001724498419 | AG30: =IF(OR(AG$5<=($D30+reg_period_length),$G30="n/a"),0,IF((AG$5-$D30)>($G30),$H30-SUM($J30:AF30),$H30/($G30-reg_period_length)))*AG$14 -> -0.001724498419 | AH30: =IF(OR(AH$5<=($D30+reg_period_length),$G30="n/a"),0,IF((AH$5-$D30)>($G30),$H30-SUM($J30:AG30),$H30/($G30-reg_period_length)))*AH$14 -> -0.001724498419 | AI30: =IF(OR(AI$5<=($D30+reg_period_length),$G30="n/a"),0,IF((AI$5-$D30)>($G30),$H30-SUM($J30:AH30),$H30/($G30-reg_period_length)))*AI$14 -> -0.001724498419 | AJ30: =IF(OR(AJ$5<=($D30+reg_period_length),$G30="n/a"),0,IF((AJ$5-$D30)>($G30),$H30-SUM($J30:AI30),$H30/($G30-reg_period_length)))*AJ$14 -> -0.001724498419 | AK30: =IF(OR(AK$5<=($D30+reg_period_length),$G30="n/a"),0,IF((AK$5-$D30)>($G30),$H30-SUM($J30:AJ30),$H30/($G30-reg_period_length)))*AK$14 -> -0.001724498419 | AL30: =IF(OR(AL$5<=($D30+reg_period_length),$G30="n/a"),0,IF((AL$5-$D30)>($G30),$H30-SUM($J30:AK30),$H30/($G30-reg_period_length)))*AL$14 -> -0.001724498419 | AM30: =IF(OR(AM$5<=($D30+reg_period_length),$G30="n/a"),0,IF((AM$5-$D30)>($G30),$H30-SUM($J30:AL30),$H30/($G30-reg_period_length)))*AM$14 -> -0.001724498419 | AN30: =IF(OR(AN$5<=($D30+reg_period_length),$G30="n/a"),0,IF((AN$5-$D30)>($G30),$H30-SUM($J30:AM30),$H30/($G30-reg_period_length)))*AN$14 -> -0.001724498419 | AO30: =IF(OR(AO$5<=($D30+reg_period_length),$G30="n/a"),0,IF((AO$5-$D30)>($G30),$H30-SUM($J30:AN30),$H30/($G30-reg_period_length)))*AO$14 -> -0.001724498419 | AP30: =IF(OR(AP$5<=($D30+reg_period_length),$G30="n/a"),0,IF((AP$5-$D30)>($G30),$H30-SUM($J30:AO30),$H30/($G30-reg_period_length)))*AP$14 -> -0.001724498419 | AQ30: =IF(OR(AQ$5<=($D30+reg_period_length),$G30="n/a"),0,IF((AQ$5-$D30)>($G30),$H30-SUM($J30:AP30),$H30/($G30-reg_period_length)))*AQ$14 -> -0.001724498419 | AR30: =IF(OR(AR$5<=($D30+reg_period_length),$G30="n/a"),0,IF((AR$5-$D30)>($G30),$H30-SUM($J30:AQ30),$H30/($G30-reg_period_length)))*AR$14 -> -0.001724498419 | AS30: =IF(OR(AS$5<=($D30+reg_period_length),$G30="n/a"),0,IF((AS$5-$D30)>($G30),$H30-SUM($J30:AR30),$H30/($G30-reg_period_length)))*AS$14 -> -0.001724498419 | AT30: =IF(OR(AT$5<=($D30+reg_period_length),$G30="n/a"),0,IF((AT$5-$D30)>($G30),$H30-SUM($J30:AS30),$H30/($G30-reg_period_length)))*AT$14 -> -0.001724498419 | AU30: =IF(OR(AU$5<=($D30+reg_period_length),$G30="n/a"),0,IF((AU$5-$D30)>($G30),$H30-SUM($J30:AT30),$H30/($G30-reg_period_length)))*AU$14 -> -0.001724498419 | AV30: =IF(OR(AV$5<=($D30+reg_period_length),$G30="n/a"),0,IF((AV$5-$D30)>($G30),$H30-SUM($J30:AU30),$H30/($G30-reg_period_length)))*AV$14 -> -0.001724498419 | AW30: =IF(OR(AW$5<=($D30+reg_period_length),$G30="n/a"),0,IF((AW$5-$D30)>($G30),$H30-SUM($J30:AV30),$H30/($G30-reg_period_length)))*AW$14 -> -0.001724498419 | AX30: =IF(OR(AX$5<=($D30+reg_period_length),$G30="n/a"),0,IF((AX$5-$D30)>($G30),$H30-SUM($J30:AW30),$H30/($G30-reg_period_length)))*AX$14 -> -0.001724498419 | AY30: =IF(OR(AY$5<=($D30+reg_period_length),$G30="n/a"),0,IF((AY$5-$D30)>($G30),$H30-SUM($J30:AX30),$H30/($G30-reg_period_length)))*AY$14 -> -0.001724498419 | AZ30: =IF(OR(AZ$5<=($D30+reg_period_length),$G30="n/a"),0,IF((AZ$5-$D30)>($G30),$H30-SUM($J30:AY30),$H30/($G30-reg_period_length)))*AZ$14 -> -0.001724498419 | BA30: =IF(OR(BA$5<=($D30+reg_period_length),$G30="n/a"),0,IF((BA$5-$D30)>($G30),$H30-SUM($J30:AZ30),$H30/($G30-reg_period_length)))*BA$14 -> -0.001724498419 | BB30: =IF(OR(BB$5<=($D30+reg_period_length),$G30="n/a"),0,IF((BB$5-$D30)>($G30),$H30-SUM($J30:BA30),$H30/($G30-reg_period_length)))*BB$14 -> -0.001724498419 | BC30: =IF(OR(BC$5<=($D30+reg_period_length),$G30="n/a"),0,IF((BC$5-$D30)>($G30),$H30-SUM($J30:BB30),$H30/($G30-reg_period_length)))*BC$14 -> -0.001724498419 | BD30: =IF(OR(BD$5<=($D30+reg_period_length),$G30="n/a"),0,IF((BD$5-$D30)>($G30),$H30-SUM($J30:BC30),$H30/($G30-reg_period_length)))*BD$14 -> -0.001724498419 | BE30: =IF(OR(BE$5<=($D30+reg_period_length),$G30="n/a"),0,IF((BE$5-$D30)>($G30),$H30-SUM($J30:BD30),$H30/($G30-reg_period_length)))*BE$14 -> -0.001724498419 | BF30: =IF(OR(BF$5<=($D30+reg_period_length),$G30="n/a"),0,IF((BF$5-$D30)>($G30),$H30-SUM($J30:BE30),$H30/($G30-reg_period_length)))*BF$14 -> -0.001724498419 | BG30: =IF(OR(BG$5<=($D30+reg_period_length),$G30="n/a"),0,IF((BG$5-$D30)>($G30),$H30-SUM($J30:BF30),$H30/($G30-reg_period_length)))*BG$14 -> -0.001724498419 | BH30: =IF(OR(BH$5<=($D30+reg_period_length),$G30="n/a"),0,IF((BH$5-$D30)>($G30),$H30-SUM($J30:BG30),$H30/($G30-reg_period_length)))*BH$14 -> -0.001724498419 | BI30: =IF(OR(BI$5<=($D30+reg_period_length),$G30="n/a"),0,IF((BI$5-$D30)>($G30),$H30-SUM($J30:BH30),$H30/($G30-reg_period_length)))*BI$14 -> -0.001724498419 | BJ30: =IF(OR(BJ$5<=($D30+reg_period_length),$G30="n/a"),0,IF((BJ$5-$D30)>($G30),$H30-SUM($J30:BI30),$H30/($G30-reg_period_length)))*BJ$14 -> -0.001724498419 | BK30: =IF(OR(BK$5<=($D30+reg_period_length),$G30="n/a"),0,IF((BK$5-$D30)>($G30),$H30-SUM($J30:BJ30),$H30/($G30-reg_period_length)))*BK$14 -> -0.001724498419 | BL30: =IF(OR(BL$5<=($D30+reg_period_length),$G30="n/a"),0,IF((BL$5-$D30)>($G30),$H30-SUM($J30:BK30),$H30/($G30-reg_period_length)))*BL$14 -> -0.001724498419 | BM30: =IF(OR(BM$5<=($D30+reg_period_length),$G30="n/a"),0,IF((BM$5-$D30)>($G30),$H30-SUM($J30:BL30),$H30/($G30-reg_period_length)))*BM$14 -> -0.001724498419 | BN30: =IF(OR(BN$5<=($D30+reg_period_length),$G30="n/a"),0,IF((BN$5-$D30)>($G30),$H30-SUM($J30:BM30),$H30/($G30-reg_period_length)))*BN$14 -> 0 | BO30: =IF(OR(BO$5<=($D30+reg_period_length),$G30="n/a"),0,IF((BO$5-$D30)>($G30),$H30-SUM($J30:BN30),$H30/($G30-reg_period_length)))*BO$14 -> 0 | BP30: =IF(OR(BP$5<=($D30+reg_period_length),$G30="n/a"),0,IF((BP$5-$D30)>($G30),$H30-SUM($J30:BO30),$H30/($G30-reg_period_length)))*BP$14 -> 0 | BQ30: =IF(OR(BQ$5<=($D30+reg_period_length),$G30="n/a"),0,IF((BQ$5-$D30)>($G30),$H30-SUM($J30:BP30),$H30/($G30-reg_period_length)))*BQ$14 -> 0 | BR30: =IF(OR(BR$5<=($D30+reg_period_length),$G30="n/a"),0,IF((BR$5-$D30)>($G30),$H30-SUM($J30:BQ30),$H30/($G30-reg_period_length)))*BR$14 -> 0 | BS30: =IF(OR(BS$5<=($D30+reg_period_length),$G30="n/a"),0,IF((BS$5-$D30)>($G30),$H30-SUM($J30:BR30),$H30/($G30-reg_period_length)))*BS$14 -> 0 | BT30: =IF(OR(BT$5<=($D30+reg_period_length),$G30="n/a"),0,IF((BT$5-$D30)>($G30),$H30-SUM($J30:BS30),$H30/($G30-reg_period_length)))*BT$14 -> 0 | BU30: =IF(OR(BU$5<=($D30+reg_period_length),$G30="n/a"),0,IF((BU$5-$D30)>($G30),$H30-SUM($J30:BT30),$H30/($G30-reg_period_length)))*BU$14 -> 0 | BV30: =IF(OR(BV$5<=($D30+reg_period_length),$G30="n/a"),0,IF((BV$5-$D30)>($G30),$H30-SUM($J30:BU30),$H30/($G30-reg_period_length)))*BV$14 -> 0 | BW30: =IF(OR(BW$5<=($D30+reg_period_length),$G30="n/a"),0,IF((BW$5-$D30)>($G30),$H30-SUM($J30:BV30),$H30/($G30-reg_period_length)))*BW$14 -> 0 | BX30: =IF(OR(BX$5<=($D30+reg_period_length),$G30="n/a"),0,IF((BX$5-$D30)>($G30),$H30-SUM($J30:BW30),$H30/($G30-reg_period_length)))*BX$14 -> 0 | BY30: =IF(OR(BY$5<=($D30+reg_period_length),$G30="n/a"),0,IF((BY$5-$D30)>($G30),$H30-SUM($J30:BX30),$H30/($G30-reg_period_length)))*BY$14 -> 0 | BZ30: =IF(OR(BZ$5<=($D30+reg_period_length),$G30="n/a"),0,IF((BZ$5-$D30)>($G30),$H30-SUM($J30:BY30),$H30/($G30-reg_period_length)))*BZ$14 -> 0 | CA30: =IF(OR(CA$5<=($D30+reg_period_length),$G30="n/a"),0,IF((CA$5-$D30)>($G30),$H30-SUM($J30:BZ30),$H30/($G30-reg_period_length)))*CA$14 -> 0 | CB30: =IF(OR(CB$5<=($D30+reg_period_length),$G30="n/a"),0,IF((CB$5-$D30)>($G30),$H30-SUM($J30:CA30),$H30/($G30-reg_period_length)))*CB$14 -> 0 | CC30: =IF(OR(CC$5<=($D30+reg_period_length),$G30="n/a"),0,IF((CC$5-$D30)>($G30),$H30-SUM($J30:CB30),$H30/($G30-reg_period_length)))*CC$14 -> 0 | CE30: =IF(OR(ROUND(H30-SUM($J30:$CC30),2)=0,G30="n/a"),"OK","Check") -> OK
D32: RAB adjustments for final year of prior reg period | F32: RAB_adj | J32: =IF(J$5<=third_reg_period, INDEX(Capex_2010!$I$80:$W$100,MATCH($B20,Capex_2010!$C$80:$C$100,0), MATCH(J$5, Capex_2010!$I$78:$W$78,0)),0) -> 0 | K32: =IF(K$5<=third_reg_period, INDEX(Capex_2010!$I$80:$W$100,MATCH($B20,Capex_2010!$C$80:$C$100,0), MATCH(K$5, Capex_2010!$I$78:$W$78,0)),0) -> 0 | L32: =IF(L$5<=third_reg_period, INDEX(Capex_2010!$I$80:$W$100,MATCH($B20,Capex_2010!$C$80:$C$100,0), MATCH(L$5, Capex_2010!$I$78:$W$78,0)),0) -> 0 | M32: =IF(M$5<=third_reg_period, INDEX(Capex_2010!$I$80:$W$100,MATCH($B20,Capex_2010!$C$80:$C$100,0), MATCH(M$5, Capex_2010!$I$78:$W$78,0)),0) -> 0 | N32: =IF(N$5<=third_reg_period, INDEX(Capex_2010!$I$80:$W$100,MATCH($B20,Capex_2010!$C$80:$C$100,0), MATCH(N$5, Capex_2010!$I$78:$W$78,0)),0) -> 1.615497249 | O32: =IF(O$5<=third_reg_period, INDEX(Capex_2010!$I$80:$W$100,MATCH($B20,Capex_2010!$C$80:$C$100,0), MATCH(O$5, Capex_2010!$I$78:$W$78,0)),0) -> 0 | P32: =IF(P$5<=third_reg_period, INDEX(Capex_2010!$I$80:$W$100,MATCH($B20,Capex_2010!$C$80:$C$100,0), MATCH(P$5, Capex_2010!$I$78:$W$78,0)),0) -> 0 | Q32: =IF(Q$5<=third_reg_period, INDEX(Capex_2010!$I$80:$W$100,MATCH($B20,Capex_2010!$C$80:$C$100,0), MATCH(Q$5, Capex_2010!$I$78:$W$78,0)),0) -> 0 | R32: =IF(R$5<=third_reg_period, INDEX(Capex_2010!$I$80:$W$100,MATCH($B20,Capex_2010!$C$80:$C$100,0), MATCH(R$5, Capex_2010!$I$78:$W$78,0)),0) -> 0 | S32: =IF(S$5<=third_reg_period, INDEX(Capex_2010!$I$80:$W$100,MATCH($B20,Capex_2010!$C$80:$C$100,0), MATCH(S$5, Capex_2010!$I$78:$W$78,0)),0) -> 0 | T32: =IF(T$5<=third_reg_period, INDEX(Capex_2010!$I$80:$W$100,MATCH($B20,Capex_2010!$C$80:$C$100,0), MATCH(T$5, Capex_2010!$I$78:$W$78,0)),0) -> 0 | U32: =IF(U$5<=third_reg_period, INDEX(Capex_2010!$I$80:$W$100,MATCH($B20,Capex_2010!$C$80:$C$100,0), MATCH(U$5, Capex_2010!$I$78:$W$78,0)),0) -> 0 | V32: =IF(V$5<=third_reg_period, INDEX(Capex_2010!$I$80:$W$100,MATCH($B20,Capex_2010!$C$80:$C$100,0), MATCH(V$5, Capex_2010!$I$78:$W$78,0)),0) -> 0 | W32: =IF(W$5<=third_reg_period, INDEX(Capex_2010!$I$80:$W$100,MATCH($B20,Capex_2010!$C$80:$C$100,0), MATCH(W$5, Capex_2010!$I$78:$W$78,0)),0) -> 0 | X32: =IF(X$5<=third_reg_period, INDEX(Capex_2010!$I$80:$W$100,MATCH($B20,Capex_2010!$C$80:$C$100,0), MATCH(X$5, Capex_2010!$I$78:$W$78,0)),0) -> 0 | Y32: =IF(Y$5<=third_reg_period, INDEX(Capex_2010!$I$80:$W$100,MATCH($B20,Capex_2010!$C$80:$C$100,0), MATCH(Y$5, Capex_2010!$I$78:$W$78,0)),0) -> 0 | Z32: =IF(Z$5<=third_reg_period, INDEX(Capex_2010!$I$80:$W$100,MATCH($B20,Capex_2010!$C$80:$C$100,0), MATCH(Z$5, Capex_2010!$I$78:$W$78,0)),0) -> 0 | AA32: =IF(AA$5<=third_reg_period, INDEX(Capex_2010!$I$80:$W$100,MATCH($B20,Capex_2010!$C$80:$C$100,0), MATCH(AA$5, Capex_2010!$I$78:$W$78,0)),0) -> 0 | AB32: =IF(AB$5<=third_reg_period, INDEX(Capex_2010!$I$80:$W$100,MATCH($B20,Capex_2010!$C$80:$C$100,0), MATCH(AB$5, Capex_2010!$I$78:$W$78,0)),0) -> 0 | AC32: =IF(AC$5<=third_reg_period, INDEX(Capex_2010!$I$80:$W$100,MATCH($B20,Capex_2010!$C$80:$C$100,0), MATCH(AC$5, Capex_2010!$I$78:$W$78,0)),0) -> 0 | AD32: =IF(AD$5<=third_reg_period, INDEX(Capex_2010!$I$80:$W$100,MATCH($B20,Capex_2010!$C$80:$C$100,0), MATCH(AD$5, Capex_2010!$I$78:$W$78,0)),0) -> 0 | AE32: =IF(AE$5<=third_reg_period, INDEX(Capex_2010!$I$80:$W$100,MATCH($B20,Capex_2010!$C$80:$C$100,0), MATCH(AE$5, Capex_2010!$I$78:$W$78,0)),0) -> 0 | AF32: =IF(AF$5<=third_reg_period, INDEX(Capex_2010!$I$80:$W$100,MATCH($B20,Capex_2010!$C$80:$C$100,0), MATCH(AF$5, Capex_2010!$I$78:$W$78,0)),0) -> 0 | AG32: =IF(AG$5<=third_reg_period, INDEX(Capex_2010!$I$80:$W$100,MATCH($B20,Capex_2010!$C$80:$C$100,0), MATCH(AG$5, Capex_2010!$I$78:$W$78,0)),0) -> 0 | AH32: =IF(AH$5<=third_reg_period, INDEX(Capex_2010!$I$80:$W$100,MATCH($B20,Capex_2010!$C$80:$C$100,0), MATCH(AH$5, Capex_2010!$I$78:$W$78,0)),0) -> 0 | AI32: =IF(AI$5<=third_reg_period, INDEX(Capex_2010!$I$80:$W$100,MATCH($B20,Capex_2010!$C$80:$C$100,0), MATCH(AI$5, Capex_2010!$I$78:$W$78,0)),0) -> 0 | AJ32: =IF(AJ$5<=third_reg_period, INDEX(Capex_2010!$I$80:$W$100,MATCH($B20,Capex_2010!$C$80:$C$100,0), MATCH(AJ$5, Capex_2010!$I$78:$W$78,0)),0) -> 0 | AK32: =IF(AK$5<=third_reg_period, INDEX(Capex_2010!$I$80:$W$100,MATCH($B20,Capex_2010!$C$80:$C$100,0), MATCH(AK$5, Capex_2010!$I$78:$W$78,0)),0) -> 0 | AL32: =IF(AL$5<=third_reg_period, INDEX(Capex_2010!$I$80:$W$100,MATCH($B20,Capex_2010!$C$80:$C$100,0), MATCH(AL$5, Capex_2010!$I$78:$W$78,0)),0) -> 0 | AM32: =IF(AM$5<=third_reg_period, INDEX(Capex_2010!$I$80:$W$100,MATCH($B20,Capex_2010!$C$80:$C$100,0), MATCH(AM$5, Capex_2010!$I$78:$W$78,0)),0) -> 0 | AN32: =IF(AN$5<=third_reg_period, INDEX(Capex_2010!$I$80:$W$100,MATCH($B20,Capex_2010!$C$80:$C$100,0), MATCH(AN$5, Capex_2010!$I$78:$W$78,0)),0) -> 0 | AO32: =IF(AO$5<=third_reg_period, INDEX(Capex_2010!$I$80:$W$100,MATCH($B20,Capex_2010!$C$80:$C$100,0), MATCH(AO$5, Capex_2010!$I$78:$W$78,0)),0) -> 0 | AP32: =IF(AP$5<=third_reg_period, INDEX(Capex_2010!$I$80:$W$100,MATCH($B20,Capex_2010!$C$80:$C$100,0), MATCH(AP$5, Capex_2010!$I$78:$W$78,0)),0) -> 0 | AQ32: =IF(AQ$5<=third_reg_period, INDEX(Capex_2010!$I$80:$W$100,MATCH($B20,Capex_2010!$C$80:$C$100,0), MATCH(AQ$5, Capex_2010!$I$78:$W$78,0)),0) -> 0 | AR32: =IF(AR$5<=third_reg_period, INDEX(Capex_2010!$I$80:$W$100,MATCH($B20,Capex_2010!$C$80:$C$100,0), MATCH(AR$5, Capex_2010!$I$78:$W$78,0)),0) -> 0 | AS32: =IF(AS$5<=third_reg_period, INDEX(Capex_2010!$I$80:$W$100,MATCH($B20,Capex_2010!$C$80:$C$100,0), MATCH(AS$5, Capex_2010!$I$78:$W$78,0)),0) -> 0 | AT32: =IF(AT$5<=third_reg_period, INDEX(Capex_2010!$I$80:$W$100,MATCH($B20,Capex_2010!$C$80:$C$100,0), MATCH(AT$5, Capex_2010!$I$78:$W$78,0)),0) -> 0 | AU32: =IF(AU$5<=third_reg_period, INDEX(Capex_2010!$I$80:$W$100,MATCH($B20,Capex_2010!$C$80:$C$100,0), MATCH(AU$5, Capex_2010!$I$78:$W$78,0)),0) -> 0 | AV32: =IF(AV$5<=third_reg_period, INDEX(Capex_2010!$I$80:$W$100,MATCH($B20,Capex_2010!$C$80:$C$100,0), MATCH(AV$5, Capex_2010!$I$78:$W$78,0)),0) -> 0 | AW32: =IF(AW$5<=third_reg_period, INDEX(Capex_2010!$I$80:$W$100,MATCH($B20,Capex_2010!$C$80:$C$100,0), MATCH(AW$5, Capex_2010!$I$78:$W$78,0)),0) -> 0 | AX32: =IF(AX$5<=third_reg_period, INDEX(Capex_2010!$I$80:$W$100,MATCH($B20,Capex_2010!$C$80:$C$100,0), MATCH(AX$5, Capex_2010!$I$78:$W$78,0)),0) -> 0 | AY32: =IF(AY$5<=third_reg_period, INDEX(Capex_2010!$I$80:$W$100,MATCH($B20,Capex_2010!$C$80:$C$100,0), MATCH(AY$5, Capex_2010!$I$78:$W$78,0)),0) -> 0 | AZ32: =IF(AZ$5<=third_reg_period, INDEX(Capex_2010!$I$80:$W$100,MATCH($B20,Capex_2010!$C$80:$C$100,0), MATCH(AZ$5, Capex_2010!$I$78:$W$78,0)),0) -> 0 | BA32: =IF(BA$5<=third_reg_period, INDEX(Capex_2010!$I$80:$W$100,MATCH($B20,Capex_2010!$C$80:$C$100,0), MATCH(BA$5, Capex_2010!$I$78:$W$78,0)),0) -> 0 | BB32: =IF(BB$5<=third_reg_period, INDEX(Capex_2010!$I$80:$W$100,MATCH($B20,Capex_2010!$C$80:$C$100,0), MATCH(BB$5, Capex_2010!$I$78:$W$78,0)),0) -> 0 | BC32: =IF(BC$5<=third_reg_period, INDEX(Capex_2010!$I$80:$W$100,MATCH($B20,Capex_2010!$C$80:$C$100,0), MATCH(BC$5, Capex_2010!$I$78:$W$78,0)),0) -> 0 | BD32: =IF(BD$5<=third_reg_period, INDEX(Capex_2010!$I$80:$W$100,MATCH($B20,Capex_2010!$C$80:$C$100,0), MATCH(BD$5, Capex_2010!$I$78:$W$78,0)),0) -> 0 | BE32: =IF(BE$5<=third_reg_period, INDEX(Capex_2010!$I$80:$W$100,MATCH($B20,Capex_2010!$C$80:$C$100,0), MATCH(BE$5, Capex_2010!$I$78:$W$78,0)),0) -> 0 | BF32: =IF(BF$5<=third_reg_period, INDEX(Capex_2010!$I$80:$W$100,MATCH($B20,Capex_2010!$C$80:$C$100,0), MATCH(BF$5, Capex_2010!$I$78:$W$78,0)),0) -> 0 | BG32: =IF(BG$5<=third_reg_period, INDEX(Capex_2010!$I$80:$W$100,MATCH($B20,Capex_2010!$C$80:$C$100,0), MATCH(BG$5, Capex_2010!$I$78:$W$78,0)),0) -> 0 | BH32: =IF(BH$5<=third_reg_period, INDEX(Capex_2010!$I$80:$W$100,MATCH($B20,Capex_2010!$C$80:$C$100,0), MATCH(BH$5, Capex_2010!$I$78:$W$78,0)),0) -> 0 | BI32: =IF(BI$5<=third_reg_period, INDEX(Capex_2010!$I$80:$W$100,MATCH($B20,Capex_2010!$C$80:$C$100,0), MATCH(BI$5, Capex_2010!$I$78:$W$78,0)),0) -> 0 | BJ32: =IF(BJ$5<=third_reg_period, INDEX(Capex_2010!$I$80:$W$100,MATCH($B20,Capex_2010!$C$80:$C$100,0), MATCH(BJ$5, Capex_2010!$I$78:$W$78,0)),0) -> 0 | BK32: =IF(BK$5<=third_reg_period, INDEX(Capex_2010!$I$80:$W$100,MATCH($B20,Capex_2010!$C$80:$C$100,0), MATCH(BK$5, Capex_2010!$I$78:$W$78,0)),0) -> 0 | BL32: =IF(BL$5<=third_reg_period, INDEX(Capex_2010!$I$80:$W$100,MATCH($B20,Capex_2010!$C$80:$C$100,0), MATCH(BL$5, Capex_2010!$I$78:$W$78,0)),0) -> 0 | BM32: =IF(BM$5<=third_reg_period, INDEX(Capex_2010!$I$80:$W$100,MATCH($B20,Capex_2010!$C$80:$C$100,0), MATCH(BM$5, Capex_2010!$I$78:$W$78,0)),0) -> 0 | BN32: =IF(BN$5<=third_reg_period, INDEX(Capex_2010!$I$80:$W$100,MATCH($B20,Capex_2010!$C$80:$C$100,0), MATCH(BN$5, Capex_2010!$I$78:$W$78,0)),0) -> 0 | BO32: =IF(BO$5<=third_reg_period, INDEX(Capex_2010!$I$80:$W$100,MATCH($B20,Capex_2010!$C$80:$C$100,0), MATCH(BO$5, Capex_2010!$I$78:$W$78,0)),0) -> 0 | BP32: =IF(BP$5<=third_reg_period, INDEX(Capex_2010!$I$80:$W$100,MATCH($B20,Capex_2010!$C$80:$C$100,0), MATCH(BP$5, Capex_2010!$I$78:$W$78,0)),0) -> 0 | BQ32: =IF(BQ$5<=third_reg_period, INDEX(Capex_2010!$I$80:$W$100,MATCH($B20,Capex_2010!$C$80:$C$100,0), MATCH(BQ$5, Capex_2010!$I$78:$W$78,0)),0) -> 0 | BR32: =IF(BR$5<=third_reg_period, INDEX(Capex_2010!$I$80:$W$100,MATCH($B20,Capex_2010!$C$80:$C$100,0), MATCH(BR$5, Capex_2010!$I$78:$W$78,0)),0) -> 0 | BS32: =IF(BS$5<=third_reg_period, INDEX(Capex_2010!$I$80:$W$100,MATCH($B20,Capex_2010!$C$80:$C$100,0), MATCH(BS$5, Capex_2010!$I$78:$W$78,0)),0) -> 0 | BT32: =IF(BT$5<=third_reg_period, INDEX(Capex_2010!$I$80:$W$100,MATCH($B20,Capex_2010!$C$80:$C$100,0), MATCH(BT$5, Capex_2010!$I$78:$W$78,0)),0) -> 0 | BU32: =IF(BU$5<=third_reg_period, INDEX(Capex_2010!$I$80:$W$100,MATCH($B20,Capex_2010!$C$80:$C$100,0), MATCH(BU$5, Capex_2010!$I$78:$W$78,0)),0) -> 0 | BV32: =IF(BV$5<=third_reg_period, INDEX(Capex_2010!$I$80:$W$100,MATCH($B20,Capex_2010!$C$80:$C$100,0), MATCH(BV$5, Capex_2010!$I$78:$W$78,0)),0) -> 0 | BW32: =IF(BW$5<=third_reg_period, INDEX(Capex_2010!$I$80:$W$100,MATCH($B20,Capex_2010!$C$80:$C$100,0), MATCH(BW$5, Capex_2010!$I$78:$W$78,0)),0) -> 0 | BX32: =IF(BX$5<=third_reg_period, INDEX(Capex_2010!$I$80:$W$100,MATCH($B20,Capex_2010!$C$80:$C$100,0), MATCH(BX$5, Capex_2010!$I$78:$W$78,0)),0) -> 0 | BY32: =IF(BY$5<=third_reg_period, INDEX(Capex_2010!$I$80:$W$100,MATCH($B20,Capex_2010!$C$80:$C$100,0), MATCH(BY$5, Capex_2010!$I$78:$W$78,0)),0) -> 0 | BZ32: =IF(BZ$5<=third_reg_period, INDEX(Capex_2010!$I$80:$W$100,MATCH($B20,Capex_2010!$C$80:$C$100,0), MATCH(BZ$5, Capex_2010!$I$78:$W$78,0)),0) -> 0 | CA32: =IF(CA$5<=third_reg_period, INDEX(Capex_2010!$I$80:$W$100,MATCH($B20,Capex_2010!$C$80:$C$100,0), MATCH(CA$5, Capex_2010!$I$78:$W$78,0)),0) -> 0 | CB32: =IF(CB$5<=third_reg_period, INDEX(Capex_2010!$I$80:$W$100,MATCH($B20,Capex_2010!$C$80:$C$100,0), MATCH(CB$5, Capex_2010!$I$78:$W$78,0)),0) -> 0 | CC32: =IF(CC$5<=third_reg_period, INDEX(Capex_2010!$I$80:$W$100,MATCH($B20,Capex_2010!$C$80:$C$100,0), MATCH(CC$5, Capex_2010!$I$78:$W$78,0)),0) -> 0
G33: =G22 -> Rem life | H33: Amount
D34: 2010 | E34: $m Real 2010 | G34: =G23 -> 26.44441797 | H34: =INDEX($J32:$CC32, MATCH(VALUE(LEFT(D34,4))+5, $J$5:$CC$5,0)) -> 1.615497249 | J34: =IF(OR(J$5<=($D34+reg_period_length),$G34="n/a"),0,IF((J$5-$D34)>($G34),$H34-SUM(I34:$J34),$H34/($G34-reg_period_length)))*J$14 -> 0 | K34: =IF(OR(K$5<=($D34+reg_period_length),$G34="n/a"),0,IF((K$5-$D34)>($G34),$H34-SUM(J34:$J34),$H34/($G34-reg_period_length)))*K$14 -> 0 | L34: =IF(OR(L$5<=($D34+reg_period_length),$G34="n/a"),0,IF((L$5-$D34)>($G34),$H34-SUM($J34:K34),$H34/($G34-reg_period_length)))*L$14 -> 0 | M34: =IF(OR(M$5<=($D34+reg_period_length),$G34="n/a"),0,IF((M$5-$D34)>($G34),$H34-SUM($J34:L34),$H34/($G34-reg_period_length)))*M$14 -> 0 | N34: =IF(OR(N$5<=($D34+reg_period_length),$G34="n/a"),0,IF((N$5-$D34)>($G34),$H34-SUM($J34:M34),$H34/($G34-reg_period_length)))*N$14 -> 0 | O34: =IF(OR(O$5<=($D34+reg_period_length),$G34="n/a"),0,IF((O$5-$D34)>($G34),$H34-SUM($J34:N34),$H34/($G34-reg_period_length)))*O$14 -> 0.0753341616 | P34: =IF(OR(P$5<=($D34+reg_period_length),$G34="n/a"),0,IF((P$5-$D34)>($G34),$H34-SUM($J34:O34),$H34/($G34-reg_period_length)))*P$14 -> 0.0753341616 | Q34: =IF(OR(Q$5<=($D34+reg_period_length),$G34="n/a"),0,IF((Q$5-$D34)>($G34),$H34-SUM($J34:P34),$H34/($G34-reg_period_length)))*Q$14 -> 0.0753341616 | R34: =IF(OR(R$5<=($D34+reg_period_length),$G34="n/a"),0,IF((R$5-$D34)>($G34),$H34-SUM($J34:Q34),$H34/($G34-reg_period_length)))*R$14 -> 0.0753341616 | S34: =IF(OR(S$5<=($D34+reg_period_length),$G34="n/a"),0,IF((S$5-$D34)>($G34),$H34-SUM($J34:R34),$H34/($G34-reg_period_length)))*S$14 -> 0.0753341616 | T34: =IF(OR(T$5<=($D34+reg_period_length),$G34="n/a"),0,IF((T$5-$D34)>($G34),$H34-SUM($J34:S34),$H34/($G34-reg_period_length)))*T$14 -> 0.0376670808 | U34: =IF(OR(U$5<=($D34+reg_period_length),$G34="n/a"),0,IF((U$5-$D34)>($G34),$H34-SUM($J34:T34),$H34/($G34-reg_period_length)))*U$14 -> 0.0753341616 | V34: =IF(OR(V$5<=($D34+reg_period_length),$G34="n/a"),0,IF((V$5-$D34)>($G34),$H34-SUM($J34:U34),$H34/($G34-reg_period_length)))*V$14 -> 0.0753341616 | W34: =IF(OR(W$5<=($D34+reg_period_length),$G34="n/a"),0,IF((W$5-$D34)>($G34),$H34-SUM($J34:V34),$H34/($G34-reg_period_length)))*W$14 -> 0.0753341616 | X34: =IF(OR(X$5<=($D34+reg_period_length),$G34="n/a"),0,IF((X$5-$D34)>($G34),$H34-SUM($J34:W34),$H34/($G34-reg_period_length)))*X$14 -> 0.0753341616 | Y34: =IF(OR(Y$5<=($D34+reg_period_length),$G34="n/a"),0,IF((Y$5-$D34)>($G34),$H34-SUM($J34:X34),$H34/($G34-reg_period_length)))*Y$14 -> 0.0753341616 | Z34: =IF(OR(Z$5<=($D34+reg_period_length),$G34="n/a"),0,IF((Z$5-$D34)>($G34),$H34-SUM($J34:Y34),$H34/($G34-reg_period_length)))*Z$14 -> 0.0753341616 | AA34: =IF(OR(AA$5<=($D34+reg_period_length),$G34="n/a"),0,IF((AA$5-$D34)>($G34),$H34-SUM($J34:Z34),$H34/($G34-reg_period_length)))*AA$14 -> 0.0753341616 | AB34: =IF(OR(AB$5<=($D34+reg_period_length),$G34="n/a"),0,IF((AB$5-$D34)>($G34),$H34-SUM($J34:AA34),$H34/($G34-reg_period_length)))*AB$14 -> 0.0753341616 | AC34: =IF(OR(AC$5<=($D34+reg_period_length),$G34="n/a"),0,IF((AC$5-$D34)>($G34),$H34-SUM($J34:AB34),$H34/($G34-reg_period_length)))*AC$14 -> 0.0753341616 | AD34: =IF(OR(AD$5<=($D34+reg_period_length),$G34="n/a"),0,IF((AD$5-$D34)>($G34),$H34-SUM($J34:AC34),$H34/($G34-reg_period_length)))*AD$14 -> 0.0753341616 | AE34: =IF(OR(AE$5<=($D34+reg_period_length),$G34="n/a"),0,IF((AE$5-$D34)>($G34),$H34-SUM($J34:AD34),$H34/($G34-reg_period_length)))*AE$14 -> 0.0753341616 | AF34: =IF(OR(AF$5<=($D34+reg_period_length),$G34="n/a"),0,IF((AF$5-$D34)>($G34),$H34-SUM($J34:AE34),$H34/($G34-reg_period_length)))*AF$14 -> 0.0753341616 | AG34: =IF(OR(AG$5<=($D34+reg_period_length),$G34="n/a"),0,IF((AG$5-$D34)>($G34),$H34-SUM($J34:AF34),$H34/($G34-reg_period_length)))*AG$14 -> 0.0753341616 | AH34: =IF(OR(AH$5<=($D34+reg_period_length),$G34="n/a"),0,IF((AH$5-$D34)>($G34),$H34-SUM($J34:AG34),$H34/($G34-reg_period_length)))*AH$14 -> 0.0753341616 | AI34: =IF(OR(AI$5<=($D34+reg_period_length),$G34="n/a"),0,IF((AI$5-$D34)>($G34),$H34-SUM($J34:AH34),$H34/($G34-reg_period_length)))*AI$14 -> 0.0753341616 | AJ34: =IF(OR(AJ$5<=($D34+reg_period_length),$G34="n/a"),0,IF((AJ$5-$D34)>($G34),$H34-SUM($J34:AI34),$H34/($G34-reg_period_length)))*AJ$14 -> 0.07114693602 | AK34: =IF(OR(AK$5<=($D34+reg_period_length),$G34="n/a"),0,IF((AK$5-$D34)>($G34),$H34-SUM($J34:AJ34),$H34/($G34-reg_period_length)))*AK$14 -> 0 | AL34: =IF(OR(AL$5<=($D34+reg_period_length),$G34="n/a"),0,IF((AL$5-$D34)>($G34),$H34-SUM($J34:AK34),$H34/($G34-reg_period_length)))*AL$14 -> 0 | AM34: =IF(OR(AM$5<=($D34+reg_period_length),$G34="n/a"),0,IF((AM$5-$D34)>($G34),$H34-SUM($J34:AL34),$H34/($G34-reg_period_length)))*AM$14 -> 0 | AN34: =IF(OR(AN$5<=($D34+reg_period_length),$G34="n/a"),0,IF((AN$5-$D34)>($G34),$H34-SUM($J34:AM34),$H34/($G34-reg_period_length)))*AN$14 -> 0 | AO34: =IF(OR(AO$5<=($D34+reg_period_length),$G34="n/a"),0,IF((AO$5-$D34)>($G34),$H34-SUM($J34:AN34),$H34/($G34-reg_period_length)))*AO$14 -> 0 | AP34: =IF(OR(AP$5<=($D34+reg_period_length),$G34="n/a"),0,IF((AP$5-$D34)>($G34),$H34-SUM($J34:AO34),$H34/($G34-reg_period_length)))*AP$14 -> 0 | AQ34: =IF(OR(AQ$5<=($D34+reg_period_length),$G34="n/a"),0,IF((AQ$5-$D34)>($G34),$H34-SUM($J34:AP34),$H34/($G34-reg_period_length)))*AQ$14 -> 0 | AR34: =IF(OR(AR$5<=($D34+reg_period_length),$G34="n/a"),0,IF((AR$5-$D34)>($G34),$H34-SUM($J34:AQ34),$H34/($G34-reg_period_length)))*AR$14 -> 0 | AS34: =IF(OR(AS$5<=($D34+reg_period_length),$G34="n/a"),0,IF((AS$5-$D34)>($G34),$H34-SUM($J34:AR34),$H34/($G34-reg_period_length)))*AS$14 -> 0 | AT34: =IF(OR(AT$5<=($D34+reg_period_length),$G34="n/a"),0,IF((AT$5-$D34)>($G34),$H34-SUM($J34:AS34),$H34/($G34-reg_period_length)))*AT$14 -> 0 | AU34: =IF(OR(AU$5<=($D34+reg_period_length),$G34="n/a"),0,IF((AU$5-$D34)>($G34),$H34-SUM($J34:AT34),$H34/($G34-reg_period_length)))*AU$14 -> 0 | AV34: =IF(OR(AV$5<=($D34+reg_period_length),$G34="n/a"),0,IF((AV$5-$D34)>($G34),$H34-SUM($J34:AU34),$H34/($G34-reg_period_length)))*AV$14 -> 0 | AW34: =IF(OR(AW$5<=($D34+reg_period_length),$G34="n/a"),0,IF((AW$5-$D34)>($G34),$H34-SUM($J34:AV34),$H34/($G34-reg_period_length)))*AW$14 -> 0 | AX34: =IF(OR(AX$5<=($D34+reg_period_length),$G34="n/a"),0,IF((AX$5-$D34)>($G34),$H34-SUM($J34:AW34),$H34/($G34-reg_period_length)))*AX$14 -> 0 | AY34: =IF(OR(AY$5<=($D34+reg_period_length),$G34="n/a"),0,IF((AY$5-$D34)>($G34),$H34-SUM($J34:AX34),$H34/($G34-reg_period_length)))*AY$14 -> 0 | AZ34: =IF(OR(AZ$5<=($D34+reg_period_length),$G34="n/a"),0,IF((AZ$5-$D34)>($G34),$H34-SUM($J34:AY34),$H34/($G34-reg_period_length)))*AZ$14 -> 0 | BA34: =IF(OR(BA$5<=($D34+reg_period_length),$G34="n/a"),0,IF((BA$5-$D34)>($G34),$H34-SUM($J34:AZ34),$H34/($G34-reg_period_length)))*BA$14 -> 0 | BB34: =IF(OR(BB$5<=($D34+reg_period_length),$G34="n/a"),0,IF((BB$5-$D34)>($G34),$H34-SUM($J34:BA34),$H34/($G34-reg_period_length)))*BB$14 -> 0 | BC34: =IF(OR(BC$5<=($D34+reg_period_length),$G34="n/a"),0,IF((BC$5-$D34)>($G34),$H34-SUM($J34:BB34),$H34/($G34-reg_period_length)))*BC$14 -> 0 | BD34: =IF(OR(BD$5<=($D34+reg_period_length),$G34="n/a"),0,IF((BD$5-$D34)>($G34),$H34-SUM($J34:BC34),$H34/($G34-reg_period_length)))*BD$14 -> 0 | BE34: =IF(OR(BE$5<=($D34+reg_period_length),$G34="n/a"),0,IF((BE$5-$D34)>($G34),$H34-SUM($J34:BD34),$H34/($G34-reg_period_length)))*BE$14 -> 0 | BF34: =IF(OR(BF$5<=($D34+reg_period_length),$G34="n/a"),0,IF((BF$5-$D34)>($G34),$H34-SUM($J34:BE34),$H34/($G34-reg_period_length)))*BF$14 -> 0 | BG34: =IF(OR(BG$5<=($D34+reg_period_length),$G34="n/a"),0,IF((BG$5-$D34)>($G34),$H34-SUM($J34:BF34),$H34/($G34-reg_period_length)))*BG$14 -> 0 | BH34: =IF(OR(BH$5<=($D34+reg_period_length),$G34="n/a"),0,IF((BH$5-$D34)>($G34),$H34-SUM($J34:BG34),$H34/($G34-reg_period_length)))*BH$14 -> 0 | BI34: =IF(OR(BI$5<=($D34+reg_period_length),$G34="n/a"),0,IF((BI$5-$D34)>($G34),$H34-SUM($J34:BH34),$H34/($G34-reg_period_length)))*BI$14 -> 0 | BJ34: =IF(OR(BJ$5<=($D34+reg_period_length),$G34="n/a"),0,IF((BJ$5-$D34)>($G34),$H34-SUM($J34:BI34),$H34/($G34-reg_period_length)))*BJ$14 -> 0 | BK34: =IF(OR(BK$5<=($D34+reg_period_length),$G34="n/a"),0,IF((BK$5-$D34)>($G34),$H34-SUM($J34:BJ34),$H34/($G34-reg_period_length)))*BK$14 -> 0 | BL34: =IF(OR(BL$5<=($D34+reg_period_length),$G34="n/a"),0,IF((BL$5-$D34)>($G34),$H34-SUM($J34:BK34),$H34/($G34-reg_period_length)))*BL$14 -> 0 | BM34: =IF(OR(BM$5<=($D34+reg_period_length),$G34="n/a"),0,IF((BM$5-$D34)>($G34),$H34-SUM($J34:BL34),$H34/($G34-reg_period_length)))*BM$14 -> 0 | BN34: =IF(OR(BN$5<=($D34+reg_period_length),$G34="n/a"),0,IF((BN$5-$D34)>($G34),$H34-SUM($J34:BM34),$H34/($G34-reg_period_length)))*BN$14 -> 0 | BO34: =IF(OR(BO$5<=($D34+reg_period_length),$G34="n/a"),0,IF((BO$5-$D34)>($G34),$H34-SUM($J34:BN34),$H34/($G34-reg_period_length)))*BO$14 -> 0 | BP34: =IF(OR(BP$5<=($D34+reg_period_length),$G34="n/a"),0,IF((BP$5-$D34)>($G34),$H34-SUM($J34:BO34),$H34/($G34-reg_period_length)))*BP$14 -> 0 | BQ34: =IF(OR(BQ$5<=($D34+reg_period_length),$G34="n/a"),0,IF((BQ$5-$D34)>($G34),$H34-SUM($J34:BP34),$H34/($G34-reg_period_length)))*BQ$14 -> 0 | BR34: =IF(OR(BR$5<=($D34+reg_period_length),$G34="n/a"),0,IF((BR$5-$D34)>($G34),$H34-SUM($J34:BQ34),$H34/($G34-reg_period_length)))*BR$14 -> 0 | BS34: =IF(OR(BS$5<=($D34+reg_period_length),$G34="n/a"),0,IF((BS$5-$D34)>($G34),$H34-SUM($J34:BR34),$H34/($G34-reg_period_length)))*BS$14 -> 0 | BT34: =IF(OR(BT$5<=($D34+reg_period_length),$G34="n/a"),0,IF((BT$5-$D34)>($G34),$H34-SUM($J34:BS34),$H34/($G34-reg_period_length)))*BT$14 -> 0 | BU34: =IF(OR(BU$5<=($D34+reg_period_length),$G34="n/a"),0,IF((BU$5-$D34)>($G34),$H34-SUM($J34:BT34),$H34/($G34-reg_period_length)))*BU$14 -> 0 | BV34: =IF(OR(BV$5<=($D34+reg_period_length),$G34="n/a"),0,IF((BV$5-$D34)>($G34),$H34-SUM($J34:BU34),$H34/($G34-reg_period_length)))*BV$14 -> 0 | BW34: =IF(OR(BW$5<=($D34+reg_period_length),$G34="n/a"),0,IF((BW$5-$D34)>($G34),$H34-SUM($J34:BV34),$H34/($G34-reg_period_length)))*BW$14 -> 0 | BX34: =IF(OR(BX$5<=($D34+reg_period_length),$G34="n/a"),0,IF((BX$5-$D34)>($G34),$H34-SUM($J34:BW34),$H34/($G34-reg_period_length)))*BX$14 -> 0 | BY34: =IF(OR(BY$5<=($D34+reg_period_length),$G34="n/a"),0,IF((BY$5-$D34)>($G34),$H34-SUM($J34:BX34),$H34/($G34-reg_period_length)))*BY$14 -> 0 | BZ34: =IF(OR(BZ$5<=($D34+reg_period_length),$G34="n/a"),0,IF((BZ$5-$D34)>($G34),$H34-SUM($J34:BY34),$H34/($G34-reg_period_length)))*BZ$14 -> 0 | CA34: =IF(OR(CA$5<=($D34+reg_period_length),$G34="n/a"),0,IF((CA$5-$D34)>($G34),$H34-SUM($J34:BZ34),$H34/($G34-reg_period_length)))*CA$14 -> 0 | CB34: =IF(OR(CB$5<=($D34+reg_period_length),$G34="n/a"),0,IF((CB$5-$D34)>($G34),$H34-SUM($J34:CA34),$H34/($G34-reg_period_length)))*CB$14 -> 0 | CC34: =IF(OR(CC$5<=($D34+reg_period_length),$G34="n/a"),0,IF((CC$5-$D34)>($G34),$H34-SUM($J34:CB34),$H34/($G34-reg_period_length)))*CC$14 -> 0 | CE34: =IF(OR(ROUND(H34-SUM($J34:$CC34),2)=0,G34="n/a"),"OK","Check") -> OK
D35: 2015 | E35: $m Real 2010 | G35: =IF(G34="n/a","n/a",MAX(G34-5,1)) -> 21.44441797 | H35: =INDEX($J32:$CC32, MATCH(VALUE(LEFT(D35,4))+reg_period_length, $J$5:$CC$5,0)) -> 0 | J35: =IF(OR(J$5<=($D35+reg_period_length),$G35="n/a"),0,IF((J$5-$D35)>($G35),$H35-SUM(I35:$J35),$H35/($G35-reg_period_length)))*J$14 -> 0 | K35: =IF(OR(K$5<=($D35+reg_period_length),$G35="n/a"),0,IF((K$5-$D35)>($G35),$H35-SUM(J35:$J35),$H35/($G35-reg_period_length)))*K$14 -> 0 | L35: =IF(OR(L$5<=($D35+reg_period_length),$G35="n/a"),0,IF((L$5-$D35)>($G35),$H35-SUM($J35:K35),$H35/($G35-reg_period_length)))*L$14 -> 0 | M35: =IF(OR(M$5<=($D35+reg_period_length),$G35="n/a"),0,IF((M$5-$D35)>($G35),$H35-SUM($J35:L35),$H35/($G35-reg_period_length)))*M$14 -> 0 | N35: =IF(OR(N$5<=($D35+reg_period_length),$G35="n/a"),0,IF((N$5-$D35)>($G35),$H35-SUM($J35:M35),$H35/($G35-reg_period_length)))*N$14 -> 0 | O35: =IF(OR(O$5<=($D35+reg_period_length),$G35="n/a"),0,IF((O$5-$D35)>($G35),$H35-SUM($J35:N35),$H35/($G35-reg_period_length)))*O$14 -> 0 | P35: =IF(OR(P$5<=($D35+reg_period_length),$G35="n/a"),0,IF((P$5-$D35)>($G35),$H35-SUM($J35:O35),$H35/($G35-reg_period_length)))*P$14 -> 0 | Q35: =IF(OR(Q$5<=($D35+reg_period_length),$G35="n/a"),0,IF((Q$5-$D35)>($G35),$H35-SUM($J35:P35),$H35/($G35-reg_period_length)))*Q$14 -> 0 | R35: =IF(OR(R$5<=($D35+reg_period_length),$G35="n/a"),0,IF((R$5-$D35)>($G35),$H35-SUM($J35:Q35),$H35/($G35-reg_period_length)))*R$14 -> 0 | S35: =IF(OR(S$5<=($D35+reg_period_length),$G35="n/a"),0,IF((S$5-$D35)>($G35),$H35-SUM($J35:R35),$H35/($G35-reg_period_length)))*S$14 -> 0 | T35: =IF(OR(T$5<=($D35+reg_period_length),$G35="n/a"),0,IF((T$5-$D35)>($G35),$H35-SUM($J35:S35),$H35/($G35-reg_period_length)))*T$14 -> 0 | U35: =IF(OR(U$5<=($D35+reg_period_length),$G35="n/a"),0,IF((U$5-$D35)>($G35),$H35-SUM($J35:T35),$H35/($G35-reg_period_length)))*U$14 -> 0 | V35: =IF(OR(V$5<=($D35+reg_period_length),$G35="n/a"),0,IF((V$5-$D35)>($G35),$H35-SUM($J35:U35),$H35/($G35-reg_period_length)))*V$14 -> 0 | W35: =IF(OR(W$5<=($D35+reg_period_length),$G35="n/a"),0,IF((W$5-$D35)>($G35),$H35-SUM($J35:V35),$H35/($G35-reg_period_length)))*W$14 -> 0 | X35: =IF(OR(X$5<=($D35+reg_period_length),$G35="n/a"),0,IF((X$5-$D35)>($G35),$H35-SUM($J35:W35),$H35/($G35-reg_period_length)))*X$14 -> 0 | Y35: =IF(OR(Y$5<=($D35+reg_period_length),$G35="n/a"),0,IF((Y$5-$D35)>($G35),$H35-SUM($J35:X35),$H35/($G35-reg_period_length)))*Y$14 -> 0 | Z35: =IF(OR(Z$5<=($D35+reg_period_length),$G35="n/a"),0,IF((Z$5-$D35)>($G35),$H35-SUM($J35:Y35),$H35/($G35-reg_period_length)))*Z$14 -> 0 | AA35: =IF(OR(AA$5<=($D35+reg_period_length),$G35="n/a"),0,IF((AA$5-$D35)>($G35),$H35-SUM($J35:Z35),$H35/($G35-reg_period_length)))*AA$14 -> 0 | AB35: =IF(OR(AB$5<=($D35+reg_period_length),$G35="n/a"),0,IF((AB$5-$D35)>($G35),$H35-SUM($J35:AA35),$H35/($G35-reg_period_length)))*AB$14 -> 0 | AC35: =IF(OR(AC$5<=($D35+reg_period_length),$G35="n/a"),0,IF((AC$5-$D35)>($G35),$H35-SUM($J35:AB35),$H35/($G35-reg_period_length)))*AC$14 -> 0 | AD35: =IF(OR(AD$5<=($D35+reg_period_length),$G35="n/a"),0,IF((AD$5-$D35)>($G35),$H35-SUM($J35:AC35),$H35/($G35-reg_period_length)))*AD$14 -> 0 | AE35: =IF(OR(AE$5<=($D35+reg_period_length),$G35="n/a"),0,IF((AE$5-$D35)>($G35),$H35-SUM($J35:AD35),$H35/($G35-reg_period_length)))*AE$14 -> 0 | AF35: =IF(OR(AF$5<=($D35+reg_period_length),$G35="n/a"),0,IF((AF$5-$D35)>($G35),$H35-SUM($J35:AE35),$H35/($G35-reg_period_length)))*AF$14 -> 0 | AG35: =IF(OR(AG$5<=($D35+reg_period_length),$G35="n/a"),0,IF((AG$5-$D35)>($G35),$H35-SUM($J35:AF35),$H35/($G35-reg_period_length)))*AG$14 -> 0 | AH35: =IF(OR(AH$5<=($D35+reg_period_length),$G35="n/a"),0,IF((AH$5-$D35)>($G35),$H35-SUM($J35:AG35),$H35/($G35-reg_period_length)))*AH$14 -> 0 | AI35: =IF(OR(AI$5<=($D35+reg_period_length),$G35="n/a"),0,IF((AI$5-$D35)>($G35),$H35-SUM($J35:AH35),$H35/($G35-reg_period_length)))*AI$14 -> 0 | AJ35: =IF(OR(AJ$5<=($D35+reg_period_length),$G35="n/a"),0,IF((AJ$5-$D35)>($G35),$H35-SUM($J35:AI35),$H35/($G35-reg_period_length)))*AJ$14 -> 0 | AK35: =IF(OR(AK$5<=($D35+reg_period_length),$G35="n/a"),0,IF((AK$5-$D35)>($G35),$H35-SUM($J35:AJ35),$H35/($G35-reg_period_length)))*AK$14 -> 0 | AL35: =IF(OR(AL$5<=($D35+reg_period_length),$G35="n/a"),0,IF((AL$5-$D35)>($G35),$H35-SUM($J35:AK35),$H35/($G35-reg_period_length)))*AL$14 -> 0 | AM35: =IF(OR(AM$5<=($D35+reg_period_length),$G35="n/a"),0,IF((AM$5-$D35)>($G35),$H35-SUM($J35:AL35),$H35/($G35-reg_period_length)))*AM$14 -> 0 | AN35: =IF(OR(AN$5<=($D35+reg_period_length),$G35="n/a"),0,IF((AN$5-$D35)>($G35),$H35-SUM($J35:AM35),$H35/($G35-reg_period_length)))*AN$14 -> 0 | AO35: =IF(OR(AO$5<=($D35+reg_period_length),$G35="n/a"),0,IF((AO$5-$D35)>($G35),$H35-SUM($J35:AN35),$H35/($G35-reg_period_length)))*AO$14 -> 0 | AP35: =IF(OR(AP$5<=($D35+reg_period_length),$G35="n/a"),0,IF((AP$5-$D35)>($G35),$H35-SUM($J35:AO35),$H35/($G35-reg_period_length)))*AP$14 -> 0 | AQ35: =IF(OR(AQ$5<=($D35+reg_period_length),$G35="n/a"),0,IF((AQ$5-$D35)>($G35),$H35-SUM($J35:AP35),$H35/($G35-reg_period_length)))*AQ$14 -> 0 | AR35: =IF(OR(AR$5<=($D35+reg_period_length),$G35="n/a"),0,IF((AR$5-$D35)>($G35),$H35-SUM($J35:AQ35),$H35/($G35-reg_period_length)))*AR$14 -> 0 | AS35: =IF(OR(AS$5<=($D35+reg_period_length),$G35="n/a"),0,IF((AS$5-$D35)>($G35),$H35-SUM($J35:AR35),$H35/($G35-reg_period_length)))*AS$14 -> 0 | AT35: =IF(OR(AT$5<=($D35+reg_period_length),$G35="n/a"),0,IF((AT$5-$D35)>($G35),$H35-SUM($J35:AS35),$H35/($G35-reg_period_length)))*AT$14 -> 0 | AU35: =IF(OR(AU$5<=($D35+reg_period_length),$G35="n/a"),0,IF((AU$5-$D35)>($G35),$H35-SUM($J35:AT35),$H35/($G35-reg_period_length)))*AU$14 -> 0 | AV35: =IF(OR(AV$5<=($D35+reg_period_length),$G35="n/a"),0,IF((AV$5-$D35)>($G35),$H35-SUM($J35:AU35),$H35/($G35-reg_period_length)))*AV$14 -> 0 | AW35: =IF(OR(AW$5<=($D35+reg_period_length),$G35="n/a"),0,IF((AW$5-$D35)>($G35),$H35-SUM($J35:AV35),$H35/($G35-reg_period_length)))*AW$14 -> 0 | AX35: =IF(OR(AX$5<=($D35+reg_period_length),$G35="n/a"),0,IF((AX$5-$D35)>($G35),$H35-SUM($J35:AW35),$H35/($G35-reg_period_length)))*AX$14 -> 0 | AY35: =IF(OR(AY$5<=($D35+reg_period_length),$G35="n/a"),0,IF((AY$5-$D35)>($G35),$H35-SUM($J35:AX35),$H35/($G35-reg_period_length)))*AY$14 -> 0 | AZ35: =IF(OR(AZ$5<=($D35+reg_period_length),$G35="n/a"),0,IF((AZ$5-$D35)>($G35),$H35-SUM($J35:AY35),$H35/($G35-reg_period_length)))*AZ$14 -> 0 | BA35: =IF(OR(BA$5<=($D35+reg_period_length),$G35="n/a"),0,IF((BA$5-$D35)>($G35),$H35-SUM($J35:AZ35),$H35/($G35-reg_period_length)))*BA$14 -> 0 | BB35: =IF(OR(BB$5<=($D35+reg_period_length),$G35="n/a"),0,IF((BB$5-$D35)>($G35),$H35-SUM($J35:BA35),$H35/($G35-reg_period_length)))*BB$14 -> 0 | BC35: =IF(OR(BC$5<=($D35+reg_period_length),$G35="n/a"),0,IF((BC$5-$D35)>($G35),$H35-SUM($J35:BB35),$H35/($G35-reg_period_length)))*BC$14 -> 0 | BD35: =IF(OR(BD$5<=($D35+reg_period_length),$G35="n/a"),0,IF((BD$5-$D35)>($G35),$H35-SUM($J35:BC35),$H35/($G35-reg_period_length)))*BD$14 -> 0 | BE35: =IF(OR(BE$5<=($D35+reg_period_length),$G35="n/a"),0,IF((BE$5-$D35)>($G35),$H35-SUM($J35:BD35),$H35/($G35-reg_period_length)))*BE$14 -> 0 | BF35: =IF(OR(BF$5<=($D35+reg_period_length),$G35="n/a"),0,IF((BF$5-$D35)>($G35),$H35-SUM($J35:BE35),$H35/($G35-reg_period_length)))*BF$14 -> 0 | BG35: =IF(OR(BG$5<=($D35+reg_period_length),$G35="n/a"),0,IF((BG$5-$D35)>($G35),$H35-SUM($J35:BF35),$H35/($G35-reg_period_length)))*BG$14 -> 0 | BH35: =IF(OR(BH$5<=($D35+reg_period_length),$G35="n/a"),0,IF((BH$5-$D35)>($G35),$H35-SUM($J35:BG35),$H35/($G35-reg_period_length)))*BH$14 -> 0 | BI35: =IF(OR(BI$5<=($D35+reg_period_length),$G35="n/a"),0,IF((BI$5-$D35)>($G35),$H35-SUM($J35:BH35),$H35/($G35-reg_period_length)))*BI$14 -> 0 | BJ35: =IF(OR(BJ$5<=($D35+reg_period_length),$G35="n/a"),0,IF((BJ$5-$D35)>($G35),$H35-SUM($J35:BI35),$H35/($G35-reg_period_length)))*BJ$14 -> 0 | BK35: =IF(OR(BK$5<=($D35+reg_period_length),$G35="n/a"),0,IF((BK$5-$D35)>($G35),$H35-SUM($J35:BJ35),$H35/($G35-reg_period_length)))*BK$14 -> 0 | BL35: =IF(OR(BL$5<=($D35+reg_period_length),$G35="n/a"),0,IF((BL$5-$D35)>($G35),$H35-SUM($J35:BK35),$H35/($G35-reg_period_length)))*BL$14 -> 0 | BM35: =IF(OR(BM$5<=($D35+reg_period_length),$G35="n/a"),0,IF((BM$5-$D35)>($G35),$H35-SUM($J35:BL35),$H35/($G35-reg_period_length)))*BM$14 -> 0 | BN35: =IF(OR(BN$5<=($D35+reg_period_length),$G35="n/a"),0,IF((BN$5-$D35)>($G35),$H35-SUM($J35:BM35),$H35/($G35-reg_period_length)))*BN$14 -> 0 | BO35: =IF(OR(BO$5<=($D35+reg_period_length),$G35="n/a"),0,IF((BO$5-$D35)>($G35),$H35-SUM($J35:BN35),$H35/($G35-reg_period_length)))*BO$14 -> 0 | BP35: =IF(OR(BP$5<=($D35+reg_period_length),$G35="n/a"),0,IF((BP$5-$D35)>($G35),$H35-SUM($J35:BO35),$H35/($G35-reg_period_length)))*BP$14 -> 0 | BQ35: =IF(OR(BQ$5<=($D35+reg_period_length),$G35="n/a"),0,IF((BQ$5-$D35)>($G35),$H35-SUM($J35:BP35),$H35/($G35-reg_period_length)))*BQ$14 -> 0 | BR35: =IF(OR(BR$5<=($D35+reg_period_length),$G35="n/a"),0,IF((BR$5-$D35)>($G35),$H35-SUM($J35:BQ35),$H35/($G35-reg_period_length)))*BR$14 -> 0 | BS35: =IF(OR(BS$5<=($D35+reg_period_length),$G35="n/a"),0,IF((BS$5-$D35)>($G35),$H35-SUM($J35:BR35),$H35/($G35-reg_period_length)))*BS$14 -> 0 | BT35: =IF(OR(BT$5<=($D35+reg_period_length),$G35="n/a"),0,IF((BT$5-$D35)>($G35),$H35-SUM($J35:BS35),$H35/($G35-reg_period_length)))*BT$14 -> 0 | BU35: =IF(OR(BU$5<=($D35+reg_period_length),$G35="n/a"),0,IF((BU$5-$D35)>($G35),$H35-SUM($J35:BT35),$H35/($G35-reg_period_length)))*BU$14 -> 0 | BV35: =IF(OR(BV$5<=($D35+reg_period_length),$G35="n/a"),0,IF((BV$5-$D35)>($G35),$H35-SUM($J35:BU35),$H35/($G35-reg_period_length)))*BV$14 -> 0 | BW35: =IF(OR(BW$5<=($D35+reg_period_length),$G35="n/a"),0,IF((BW$5-$D35)>($G35),$H35-SUM($J35:BV35),$H35/($G35-reg_period_length)))*BW$14 -> 0 | BX35: =IF(OR(BX$5<=($D35+reg_period_length),$G35="n/a"),0,IF((BX$5-$D35)>($G35),$H35-SUM($J35:BW35),$H35/($G35-reg_period_length)))*BX$14 -> 0 | BY35: =IF(OR(BY$5<=($D35+reg_period_length),$G35="n/a"),0,IF((BY$5-$D35)>($G35),$H35-SUM($J35:BX35),$H35/($G35-reg_period_length)))*BY$14 -> 0 | BZ35: =IF(OR(BZ$5<=($D35+reg_period_length),$G35="n/a"),0,IF((BZ$5-$D35)>($G35),$H35-SUM($J35:BY35),$H35/($G35-reg_period_length)))*BZ$14 -> 0 | CA35: =IF(OR(CA$5<=($D35+reg_period_length),$G35="n/a"),0,IF((CA$5-$D35)>($G35),$H35-SUM($J35:BZ35),$H35/($G35-reg_period_length)))*CA$14 -> 0 | CB35: =IF(OR(CB$5<=($D35+reg_period_length),$G35="n/a"),0,IF((CB$5-$D35)>($G35),$H35-SUM($J35:CA35),$H35/($G35-reg_period_length)))*CB$14 -> 0 | CC35: =IF(OR(CC$5<=($D35+reg_period_length),$G35="n/a"),0,IF((CC$5-$D35)>($G35),$H35-SUM($J35:CB35),$H35/($G35-reg_period_length)))*CC$14 -> 0 | CE35: =IF(OR(ROUND(H35-SUM($J35:$CC35),2)=0,G35="n/a"),"OK","Check") -> OK
C37: Accelerated Depreciation
D38: REFCL accel depn adjustment | E38: $m Real 2010
D39: Depreciation adjustment for accelerated depreciation assets | E39: $m Real 2010 | CE39: =IF(ROUND(SUM(J39:CC39)-SUM(J40:CC40),2)=0,"OK","Check") -> OK
D40: RAB adjustment for accelerated depreciation assets | E40: $m Real 2010 | F40: RAB_adj
C42: Post 2010 Capex
A44: =IF(COUNTA($CE47:$CE76)=COUNTIF($CE47:$CE76,"OK"),"OK","Check") -> OK | D44: Capex | J44: =INDEX(Capex_2010!I$18:I$38,MATCH($B20,Capex_2010!$C$18:$C$38,0)) -> 54.82869071 | K44: =INDEX(Capex_2010!J$18:J$38,MATCH($B20,Capex_2010!$C$18:$C$38,0)) -> 31.35339775 | L44: =INDEX(Capex_2010!K$18:K$38,MATCH($B20,Capex_2010!$C$18:$C$38,0)) -> 88.33563109 | M44: =INDEX(Capex_2010!L$18:L$38,MATCH($B20,Capex_2010!$C$18:$C$38,0)) -> 18.12869702 | N44: =INDEX(Capex_2010!M$18:M$38,MATCH($B20,Capex_2010!$C$18:$C$38,0)) -> 33.67448258 | O44: =INDEX(Capex_2010!N$18:N$38,MATCH($B20,Capex_2010!$C$18:$C$38,0)) -> 16.53072786 | P44: =INDEX(Capex_2010!O$18:O$38,MATCH($B20,Capex_2010!$C$18:$C$38,0)) -> 36.39082035 | Q44: =INDEX(Capex_2010!P$18:P$38,MATCH($B20,Capex_2010!$C$18:$C$38,0)) -> 41.81908649 | R44: =INDEX(Capex_2010!Q$18:Q$38,MATCH($B20,Capex_2010!$C$18:$C$38,0)) -> 62.90869205 | S44: =INDEX(Capex_2010!R$18:R$38,MATCH($B20,Capex_2010!$C$18:$C$38,0)) -> 43.09351903 | T44: =INDEX(Capex_2010!S$18:S$38,MATCH($B20,Capex_2010!$C$18:$C$38,0)) -> 25.82887203 | U44: =INDEX(Capex_2010!T$18:T$38,MATCH($B20,Capex_2010!$C$18:$C$38,0)) -> 0 | V44: =INDEX(Capex_2010!U$18:U$38,MATCH($B20,Capex_2010!$C$18:$C$38,0)) -> 0 | W44: =INDEX(Capex_2010!V$18:V$38,MATCH($B20,Capex_2010!$C$18:$C$38,0)) -> 0 | X44: =INDEX(Capex_2010!W$18:W$38,MATCH($B20,Capex_2010!$C$18:$C$38,0)) -> 0 | Y44: =INDEX(Capex_2010!X$18:X$38,MATCH($B20,Capex_2010!$C$18:$C$38,0)) -> 0 | Z44: =INDEX(Capex_2010!Y$18:Y$38,MATCH($B20,Capex_2010!$C$18:$C$38,0)) -> 0 | AA44: =INDEX(Capex_2010!Z$18:Z$38,MATCH($B20,Capex_2010!$C$18:$C$38,0)) -> 0 | AB44: =INDEX(Capex_2010!AA$18:AA$38,MATCH($B20,Capex_2010!$C$18:$C$38,0)) -> 0 | AC44: =INDEX(Capex_2010!AB$18:AB$38,MATCH($B20,Capex_2010!$C$18:$C$38,0)) -> 0 | AD44: =INDEX(Capex_2010!AC$18:AC$38,MATCH($B20,Capex_2010!$C$18:$C$38,0)) -> 0 | AE44: =INDEX(Capex_2010!AD$18:AD$38,MATCH($B20,Capex_2010!$C$18:$C$38,0)) -> 0 | AF44: =INDEX(Capex_2010!AE$18:AE$38,MATCH($B20,Capex_2010!$C$18:$C$38,0)) -> 0 | AG44: =INDEX(Capex_2010!AF$18:AF$38,MATCH($B20,Capex_2010!$C$18:$C$38,0)) -> 0 | AH44: =INDEX(Capex_2010!AG$18:AG$38,MATCH($B20,Capex_2010!$C$18:$C$38,0)) -> 0 | AI44: =INDEX(Capex_2010!AH$18:AH$38,MATCH($B20,Capex_2010!$C$18:$C$38,0)) -> 0 | AJ44: =INDEX(Capex_2010!AI$18:AI$38,MATCH($B20,Capex_2010!$C$18:$C$38,0)) -> 0 | AK44: =INDEX(Capex_2010!AJ$18:AJ$38,MATCH($B20,Capex_2010!$C$18:$C$38,0)) -> 0 | AL44: =INDEX(Capex_2010!AK$18:AK$38,MATCH($B20,Capex_2010!$C$18:$C$38,0)) -> 0 | AM44: =INDEX(Capex_2010!AL$18:AL$38,MATCH($B20,Capex_2010!$C$18:$C$38,0)) -> 0 | AN44: =INDEX(Capex_2010!AM$18:AM$38,MATCH($B20,Capex_2010!$C$18:$C$38,0)) -> 0 | AO44: =INDEX(Capex_2010!AN$18:AN$38,MATCH($B20,Capex_2010!$C$18:$C$38,0)) -> 0 | AP44: =INDEX(Capex_2010!AO$18:AO$38,MATCH($B20,Capex_2010!$C$18:$C$38,0)) -> 0 | AQ44: =INDEX(Capex_2010!AP$18:AP$38,MATCH($B20,Capex_2010!$C$18:$C$38,0)) -> 0 | AR44: =INDEX(Capex_2010!AQ$18:AQ$38,MATCH($B20,Capex_2010!$C$18:$C$38,0)) -> 0 | AS44: =INDEX(Capex_2010!AR$18:AR$38,MATCH($B20,Capex_2010!$C$18:$C$38,0)) -> 0 | AT44: =INDEX(Capex_2010!AS$18:AS$38,MATCH($B20,Capex_2010!$C$18:$C$38,0)) -> 0 | AU44: =INDEX(Capex_2010!AT$18:AT$38,MATCH($B20,Capex_2010!$C$18:$C$38,0)) -> 0 | AV44: =INDEX(Capex_2010!AU$18:AU$38,MATCH($B20,Capex_2010!$C$18:$C$38,0)) -> 0 | AW44: =INDEX(Capex_2010!AV$18:AV$38,MATCH($B20,Capex_2010!$C$18:$C$38,0)) -> 0 | AX44: =INDEX(Capex_2010!AW$18:AW$38,MATCH($B20,Capex_2010!$C$18:$C$38,0)) -> 0 | AY44: =INDEX(Capex_2010!AX$18:AX$38,MATCH($B20,Capex_2010!$C$18:$C$38,0)) -> 0 | AZ44: =INDEX(Capex_2010!AY$18:AY$38,MATCH($B20,Capex_2010!$C$18:$C$38,0)) -> 0 | BA44: =INDEX(Capex_2010!AZ$18:AZ$38,MATCH($B20,Capex_2010!$C$18:$C$38,0)) -> 0 | BB44: =INDEX(Capex_2010!BA$18:BA$38,MATCH($B20,Capex_2010!$C$18:$C$38,0)) -> 0 | BC44: =INDEX(Capex_2010!BB$18:BB$38,MATCH($B20,Capex_2010!$C$18:$C$38,0)) -> 0 | BD44: =INDEX(Capex_2010!BC$18:BC$38,MATCH($B20,Capex_2010!$C$18:$C$38,0)) -> 0 | BE44: =INDEX(Capex_2010!BD$18:BD$38,MATCH($B20,Capex_2010!$C$18:$C$38,0)) -> 0 | BF44: =INDEX(Capex_2010!BE$18:BE$38,MATCH($B20,Capex_2010!$C$18:$C$38,0)) -> 0 | BG44: =INDEX(Capex_2010!BF$18:BF$38,MATCH($B20,Capex_2010!$C$18:$C$38,0)) -> 0 | BH44: =INDEX(Capex_2010!BG$18:BG$38,MATCH($B20,Capex_2010!$C$18:$C$38,0)) -> 0 | BI44: =INDEX(Capex_2010!BH$18:BH$38,MATCH($B20,Capex_2010!$C$18:$C$38,0)) -> 0 | BJ44: =INDEX(Capex_2010!BI$18:BI$38,MATCH($B20,Capex_2010!$C$18:$C$38,0)) -> 0 | BK44: =INDEX(Capex_2010!BJ$18:BJ$38,MATCH($B20,Capex_2010!$C$18:$C$38,0)) -> 0 | BL44: =INDEX(Capex_2010!BK$18:BK$38,MATCH($B20,Capex_2010!$C$18:$C$38,0)) -> 0 | BM44: =INDEX(Capex_2010!BL$18:BL$38,MATCH($B20,Capex_2010!$C$18:$C$38,0)) -> 0 | BN44: =INDEX(Capex_2010!BM$18:BM$38,MATCH($B20,Capex_2010!$C$18:$C$38,0)) -> 0 | BO44: =INDEX(Capex_2010!BN$18:BN$38,MATCH($B20,Capex_2010!$C$18:$C$38,0)) -> 0 | BP44: =INDEX(Capex_2010!BO$18:BO$38,MATCH($B20,Capex_2010!$C$18:$C$38,0)) -> 0 | BQ44: =INDEX(Capex_2010!BP$18:BP$38,MATCH($B20,Capex_2010!$C$18:$C$38,0)) -> 0 | BR44: =INDEX(Capex_2010!BQ$18:BQ$38,MATCH($B20,Capex_2010!$C$18:$C$38,0)) -> 0 | BS44: =INDEX(Capex_2010!BR$18:BR$38,MATCH($B20,Capex_2010!$C$18:$C$38,0)) -> 0 | BT44: =INDEX(Capex_2010!BS$18:BS$38,MATCH($B20,Capex_2010!$C$18:$C$38,0)) -> 0 | BU44: =INDEX(Capex_2010!BT$18:BT$38,MATCH($B20,Capex_2010!$C$18:$C$38,0)) -> 0 | BV44: =INDEX(Capex_2010!BU$18:BU$38,MATCH($B20,Capex_2010!$C$18:$C$38,0)) -> 0 | BW44: =INDEX(Capex_2010!BV$18:BV$38,MATCH($B20,Capex_2010!$C$18:$C$38,0)) -> 0 | BX44: =INDEX(Capex_2010!BW$18:BW$38,MATCH($B20,Capex_2010!$C$18:$C$38,0)) -> 0 | BY44: =INDEX(Capex_2010!BX$18:BX$38,MATCH($B20,Capex_2010!$C$18:$C$38,0)) -> 0 | BZ44: =INDEX(Capex_2010!BY$18:BY$38,MATCH($B20,Capex_2010!$C$18:$C$38,0)) -> 0 | CA44: =INDEX(Capex_2010!BZ$18:BZ$38,MATCH($B20,Capex_2010!$C$18:$C$38,0)) -> 0 | CB44: =INDEX(Capex_2010!CA$18:CA$38,MATCH($B20,Capex_2010!$C$18:$C$38,0)) -> 0 | CC44: =INDEX(Capex_2010!CB$18:CB$38,MATCH($B20,Capex_2010!$C$18:$C$38,0)) -> 0
D46: Depreciation calculation | G46: Std life | H46: Capex
D47: 2011 | E47: $m Real 2010 | G47: =INDEX(DepnInputs!$E$34:$E$54,A20) -> 50 | H47: =TRANSPOSE(J44:AM44) -> 54.82869071 | J47: =IF(OR(J$5<=$D47,$G47="n/a"),0,IF(SUM($D47,$G47+0.5)>J$5,$H47/$G47,$H47-SUM($I47:I47)))*J$14 -> 0 | K47: =IF(OR(K$5<=$D47,$G47="n/a"),0,IF(SUM($D47,$G47+0.5)>K$5,$H47/$G47,$H47-SUM($I47:J47)))*K$14 -> 1.096573814 | L47: =IF(OR(L$5<=$D47,$G47="n/a"),0,IF(SUM($D47,$G47+0.5)>L$5,$H47/$G47,$H47-SUM($I47:K47)))*L$14 -> 1.096573814 | M47: =IF(OR(M$5<=$D47,$G47="n/a"),0,IF(SUM($D47,$G47+0.5)>M$5,$H47/$G47,$H47-SUM($I47:L47)))*M$14 -> 1.096573814 | N47: =IF(OR(N$5<=$D47,$G47="n/a"),0,IF(SUM($D47,$G47+0.5)>N$5,$H47/$G47,$H47-SUM($I47:M47)))*N$14 -> 1.096573814 | O47: =IF(OR(O$5<=$D47,$G47="n/a"),0,IF(SUM($D47,$G47+0.5)>O$5,$H47/$G47,$H47-SUM($I47:N47)))*O$14 -> 1.096573814 | P47: =IF(OR(P$5<=$D47,$G47="n/a"),0,IF(SUM($D47,$G47+0.5)>P$5,$H47/$G47,$H47-SUM($I47:O47)))*P$14 -> 1.096573814 | Q47: =IF(OR(Q$5<=$D47,$G47="n/a"),0,IF(SUM($D47,$G47+0.5)>Q$5,$H47/$G47,$H47-SUM($I47:P47)))*Q$14 -> 1.096573814 | R47: =IF(OR(R$5<=$D47,$G47="n/a"),0,IF(SUM($D47,$G47+0.5)>R$5,$H47/$G47,$H47-SUM($I47:Q47)))*R$14 -> 1.096573814 | S47: =IF(OR(S$5<=$D47,$G47="n/a"),0,IF(SUM($D47,$G47+0.5)>S$5,$H47/$G47,$H47-SUM($I47:R47)))*S$14 -> 1.096573814 | T47: =IF(OR(T$5<=$D47,$G47="n/a"),0,IF(SUM($D47,$G47+0.5)>T$5,$H47/$G47,$H47-SUM($I47:S47)))*T$14 -> 0.5482869071 | U47: =IF(OR(U$5<=$D47,$G47="n/a"),0,IF(SUM($D47,$G47+0.5)>U$5,$H47/$G47,$H47-SUM($I47:T47)))*U$14 -> 1.096573814 | V47: =IF(OR(V$5<=$D47,$G47="n/a"),0,IF(SUM($D47,$G47+0.5)>V$5,$H47/$G47,$H47-SUM($I47:U47)))*V$14 -> 1.096573814 | W47: =IF(OR(W$5<=$D47,$G47="n/a"),0,IF(SUM($D47,$G47+0.5)>W$5,$H47/$G47,$H47-SUM($I47:V47)))*W$14 -> 1.096573814 | X47: =IF(OR(X$5<=$D47,$G47="n/a"),0,IF(SUM($D47,$G47+0.5)>X$5,$H47/$G47,$H47-SUM($I47:W47)))*X$14 -> 1.096573814 | Y47: =IF(OR(Y$5<=$D47,$G47="n/a"),0,IF(SUM($D47,$G47+0.5)>Y$5,$H47/$G47,$H47-SUM($I47:X47)))*Y$14 -> 1.096573814 | Z47: =IF(OR(Z$5<=$D47,$G47="n/a"),0,IF(SUM($D47,$G47+0.5)>Z$5,$H47/$G47,$H47-SUM($I47:Y47)))*Z$14 -> 1.096573814 | AA47: =IF(OR(AA$5<=$D47,$G47="n/a"),0,IF(SUM($D47,$G47+0.5)>AA$5,$H47/$G47,$H47-SUM($I47:Z47)))*AA$14 -> 1.096573814 | AB47: =IF(OR(AB$5<=$D47,$G47="n/a"),0,IF(SUM($D47,$G47+0.5)>AB$5,$H47/$G47,$H47-SUM($I47:AA47)))*AB$14 -> 1.096573814 | AC47: =IF(OR(AC$5<=$D47,$G47="n/a"),0,IF(SUM($D47,$G47+0.5)>AC$5,$H47/$G47,$H47-SUM($I47:AB47)))*AC$14 -> 1.096573814 | AD47: =IF(OR(AD$5<=$D47,$G47="n/a"),0,IF(SUM($D47,$G47+0.5)>AD$5,$H47/$G47,$H47-SUM($I47:AC47)))*AD$14 -> 1.096573814 | AE47: =IF(OR(AE$5<=$D47,$G47="n/a"),0,IF(SUM($D47,$G47+0.5)>AE$5,$H47/$G47,$H47-SUM($I47:AD47)))*AE$14 -> 1.096573814 | AF47: =IF(OR(AF$5<=$D47,$G47="n/a"),0,IF(SUM($D47,$G47+0.5)>AF$5,$H47/$G47,$H47-SUM($I47:AE47)))*AF$14 -> 1.096573814 | AG47: =IF(OR(AG$5<=$D47,$G47="n/a"),0,IF(SUM($D47,$G47+0.5)>AG$5,$H47/$G47,$H47-SUM($I47:AF47)))*AG$14 -> 1.096573814 | AH47: =IF(OR(AH$5<=$D47,$G47="n/a"),0,IF(SUM($D47,$G47+0.5)>AH$5,$H47/$G47,$H47-SUM($I47:AG47)))*AH$14 -> 1.096573814 | AI47: =IF(OR(AI$5<=$D47,$G47="n/a"),0,IF(SUM($D47,$G47+0.5)>AI$5,$H47/$G47,$H47-SUM($I47:AH47)))*AI$14 -> 1.096573814 | AJ47: =IF(OR(AJ$5<=$D47,$G47="n/a"),0,IF(SUM($D47,$G47+0.5)>AJ$5,$H47/$G47,$H47-SUM($I47:AI47)))*AJ$14 -> 1.096573814 | AK47: =IF(OR(AK$5<=$D47,$G47="n/a"),0,IF(SUM($D47,$G47+0.5)>AK$5,$H47/$G47,$H47-SUM($I47:AJ47)))*AK$14 -> 1.096573814 | AL47: =IF(OR(AL$5<=$D47,$G47="n/a"),0,IF(SUM($D47,$G47+0.5)>AL$5,$H47/$G47,$H47-SUM($I47:AK47)))*AL$14 -> 1.096573814 | AM47: =IF(OR(AM$5<=$D47,$G47="n/a"),0,IF(SUM($D47,$G47+0.5)>AM$5,$H47/$G47,$H47-SUM($I47:AL47)))*AM$14 -> 1.096573814 | AN47: =IF(OR(AN$5<=$D47,$G47="n/a"),0,IF(SUM($D47,$G47+0.5)>AN$5,$H47/$G47,$H47-SUM($I47:AM47)))*AN$14 -> 1.096573814 | AO47: =IF(OR(AO$5<=$D47,$G47="n/a"),0,IF(SUM($D47,$G47+0.5)>AO$5,$H47/$G47,$H47-SUM($I47:AN47)))*AO$14 -> 1.096573814 | AP47: =IF(OR(AP$5<=$D47,$G47="n/a"),0,IF(SUM($D47,$G47+0.5)>AP$5,$H47/$G47,$H47-SUM($I47:AO47)))*AP$14 -> 1.096573814 | AQ47: =IF(OR(AQ$5<=$D47,$G47="n/a"),0,IF(SUM($D47,$G47+0.5)>AQ$5,$H47/$G47,$H47-SUM($I47:AP47)))*AQ$14 -> 1.096573814 | AR47: =IF(OR(AR$5<=$D47,$G47="n/a"),0,IF(SUM($D47,$G47+0.5)>AR$5,$H47/$G47,$H47-SUM($I47:AQ47)))*AR$14 -> 1.096573814 | AS47: =IF(OR(AS$5<=$D47,$G47="n/a"),0,IF(SUM($D47,$G47+0.5)>AS$5,$H47/$G47,$H47-SUM($I47:AR47)))*AS$14 -> 1.096573814 | AT47: =IF(OR(AT$5<=$D47,$G47="n/a"),0,IF(SUM($D47,$G47+0.5)>AT$5,$H47/$G47,$H47-SUM($I47:AS47)))*AT$14 -> 1.096573814 | AU47: =IF(OR(AU$5<=$D47,$G47="n/a"),0,IF(SUM($D47,$G47+0.5)>AU$5,$H47/$G47,$H47-SUM($I47:AT47)))*AU$14 -> 1.096573814 | AV47: =IF(OR(AV$5<=$D47,$G47="n/a"),0,IF(SUM($D47,$G47+0.5)>AV$5,$H47/$G47,$H47-SUM($I47:AU47)))*AV$14 -> 1.096573814 | AW47: =IF(OR(AW$5<=$D47,$G47="n/a"),0,IF(SUM($D47,$G47+0.5)>AW$5,$H47/$G47,$H47-SUM($I47:AV47)))*AW$14 -> 1.096573814 | AX47: =IF(OR(AX$5<=$D47,$G47="n/a"),0,IF(SUM($D47,$G47+0.5)>AX$5,$H47/$G47,$H47-SUM($I47:AW47)))*AX$14 -> 1.096573814 | AY47: =IF(OR(AY$5<=$D47,$G47="n/a"),0,IF(SUM($D47,$G47+0.5)>AY$5,$H47/$G47,$H47-SUM($I47:AX47)))*AY$14 -> 1.096573814 | AZ47: =IF(OR(AZ$5<=$D47,$G47="n/a"),0,IF(SUM($D47,$G47+0.5)>AZ$5,$H47/$G47,$H47-SUM($I47:AY47)))*AZ$14 -> 1.096573814 | BA47: =IF(OR(BA$5<=$D47,$G47="n/a"),0,IF(SUM($D47,$G47+0.5)>BA$5,$H47/$G47,$H47-SUM($I47:AZ47)))*BA$14 -> 1.096573814 | BB47: =IF(OR(BB$5<=$D47,$G47="n/a"),0,IF(SUM($D47,$G47+0.5)>BB$5,$H47/$G47,$H47-SUM($I47:BA47)))*BB$14 -> 1.096573814 | BC47: =IF(OR(BC$5<=$D47,$G47="n/a"),0,IF(SUM($D47,$G47+0.5)>BC$5,$H47/$G47,$H47-SUM($I47:BB47)))*BC$14 -> 1.096573814 | BD47: =IF(OR(BD$5<=$D47,$G47="n/a"),0,IF(SUM($D47,$G47+0.5)>BD$5,$H47/$G47,$H47-SUM($I47:BC47)))*BD$14 -> 1.096573814 | BE47: =IF(OR(BE$5<=$D47,$G47="n/a"),0,IF(SUM($D47,$G47+0.5)>BE$5,$H47/$G47,$H47-SUM($I47:BD47)))*BE$14 -> 1.096573814 | BF47: =IF(OR(BF$5<=$D47,$G47="n/a"),0,IF(SUM($D47,$G47+0.5)>BF$5,$H47/$G47,$H47-SUM($I47:BE47)))*BF$14 -> 1.096573814 | BG47: =IF(OR(BG$5<=$D47,$G47="n/a"),0,IF(SUM($D47,$G47+0.5)>BG$5,$H47/$G47,$H47-SUM($I47:BF47)))*BG$14 -> 1.096573814 | BH47: =IF(OR(BH$5<=$D47,$G47="n/a"),0,IF(SUM($D47,$G47+0.5)>BH$5,$H47/$G47,$H47-SUM($I47:BG47)))*BH$14 -> 1.096573814 | BI47: =IF(OR(BI$5<=$D47,$G47="n/a"),0,IF(SUM($D47,$G47+0.5)>BI$5,$H47/$G47,$H47-SUM($I47:BH47)))*BI$14 -> 0.5482869071 | BJ47: =IF(OR(BJ$5<=$D47,$G47="n/a"),0,IF(SUM($D47,$G47+0.5)>BJ$5,$H47/$G47,$H47-SUM($I47:BI47)))*BJ$14 -> 0 | BK47: =IF(OR(BK$5<=$D47,$G47="n/a"),0,IF(SUM($D47,$G47+0.5)>BK$5,$H47/$G47,$H47-SUM($I47:BJ47)))*BK$14 -> 0 | BL47: =IF(OR(BL$5<=$D47,$G47="n/a"),0,IF(SUM($D47,$G47+0.5)>BL$5,$H47/$G47,$H47-SUM($I47:BK47)))*BL$14 -> 0 | BM47: =IF(OR(BM$5<=$D47,$G47="n/a"),0,IF(SUM($D47,$G47+0.5)>BM$5,$H47/$G47,$H47-SUM($I47:BL47)))*BM$14 -> 0 | BN47: =IF(OR(BN$5<=$D47,$G47="n/a"),0,IF(SUM($D47,$G47+0.5)>BN$5,$H47/$G47,$H47-SUM($I47:BM47)))*BN$14 -> 0 | BO47: =IF(OR(BO$5<=$D47,$G47="n/a"),0,IF(SUM($D47,$G47+0.5)>BO$5,$H47/$G47,$H47-SUM($I47:BN47)))*BO$14 -> 0 | BP47: =IF(OR(BP$5<=$D47,$G47="n/a"),0,IF(SUM($D47,$G47+0.5)>BP$5,$H47/$G47,$H47-SUM($I47:BO47)))*BP$14 -> 0 | BQ47: =IF(OR(BQ$5<=$D47,$G47="n/a"),0,IF(SUM($D47,$G47+0.5)>BQ$5,$H47/$G47,$H47-SUM($I47:BP47)))*BQ$14 -> 0 | BR47: =IF(OR(BR$5<=$D47,$G47="n/a"),0,IF(SUM($D47,$G47+0.5)>BR$5,$H47/$G47,$H47-SUM($I47:BQ47)))*BR$14 -> 0 | BS47: =IF(OR(BS$5<=$D47,$G47="n/a"),0,IF(SUM($D47,$G47+0.5)>BS$5,$H47/$G47,$H47-SUM($I47:BR47)))*BS$14 -> 0 | BT47: =IF(OR(BT$5<=$D47,$G47="n/a"),0,IF(SUM($D47,$G47+0.5)>BT$5,$H47/$G47,$H47-SUM($I47:BS47)))*BT$14 -> 0 | BU47: =IF(OR(BU$5<=$D47,$G47="n/a"),0,IF(SUM($D47,$G47+0.5)>BU$5,$H47/$G47,$H47-SUM($I47:BT47)))*BU$14 -> 0 | BV47: =IF(OR(BV$5<=$D47,$G47="n/a"),0,IF(SUM($D47,$G47+0.5)>BV$5,$H47/$G47,$H47-SUM($I47:BU47)))*BV$14 -> 0 | BW47: =IF(OR(BW$5<=$D47,$G47="n/a"),0,IF(SUM($D47,$G47+0.5)>BW$5,$H47/$G47,$H47-SUM($I47:BV47)))*BW$14 -> 0 | BX47: =IF(OR(BX$5<=$D47,$G47="n/a"),0,IF(SUM($D47,$G47+0.5)>BX$5,$H47/$G47,$H47-SUM($I47:BW47)))*BX$14 -> 0 | BY47: =IF(OR(BY$5<=$D47,$G47="n/a"),0,IF(SUM($D47,$G47+0.5)>BY$5,$H47/$G47,$H47-SUM($I47:BX47)))*BY$14 -> 0 | BZ47: =IF(OR(BZ$5<=$D47,$G47="n/a"),0,IF(SUM($D47,$G47+0.5)>BZ$5,$H47/$G47,$H47-SUM($I47:BY47)))*BZ$14 -> 0 | CA47: =IF(OR(CA$5<=$D47,$G47="n/a"),0,IF(SUM($D47,$G47+0.5)>CA$5,$H47/$G47,$H47-SUM($I47:BZ47)))*CA$14 -> 0 | CB47: =IF(OR(CB$5<=$D47,$G47="n/a"),0,IF(SUM($D47,$G47+0.5)>CB$5,$H47/$G47,$H47-SUM($I47:CA47)))*CB$14 -> 0 | CC47: =IF(OR(CC$5<=$D47,$G47="n/a"),0,IF(SUM($D47,$G47+0.5)>CC$5,$H47/$G47,$H47-SUM($I47:CB47)))*CC$14 -> 0 | CE47: =IF(OR(ROUND(H47-SUM($J47:$CC47),2)=0,G47="n/a"),"OK","Check") -> OK
D48: =D47+1 -> 2012 | E48: $m Real 2010 | G48: =G47 -> 50 | H48: 31.35339775 | J48: =IF(OR(J$5<=$D48,$G48="n/a"),0,IF(SUM($D48,$G48+0.5)>J$5,$H48/$G48,$H48-SUM($I48:I48)))*J$14 -> 0 | K48: =IF(OR(K$5<=$D48,$G48="n/a"),0,IF(SUM($D48,$G48+0.5)>K$5,$H48/$G48,$H48-SUM($I48:J48)))*K$14 -> 0 | L48: =IF(OR(L$5<=$D48,$G48="n/a"),0,IF(SUM($D48,$G48+0.5)>L$5,$H48/$G48,$H48-SUM($I48:K48)))*L$14 -> 0.627067955 | M48: =IF(OR(M$5<=$D48,$G48="n/a"),0,IF(SUM($D48,$G48+0.5)>M$5,$H48/$G48,$H48-SUM($I48:L48)))*M$14 -> 0.627067955 | N48: =IF(OR(N$5<=$D48,$G48="n/a"),0,IF(SUM($D48,$G48+0.5)>N$5,$H48/$G48,$H48-SUM($I48:M48)))*N$14 -> 0.627067955 | O48: =IF(OR(O$5<=$D48,$G48="n/a"),0,IF(SUM($D48,$G48+0.5)>O$5,$H48/$G48,$H48-SUM($I48:N48)))*O$14 -> 0.627067955 | P48: =IF(OR(P$5<=$D48,$G48="n/a"),0,IF(SUM($D48,$G48+0.5)>P$5,$H48/$G48,$H48-SUM($I48:O48)))*P$14 -> 0.627067955 | Q48: =IF(OR(Q$5<=$D48,$G48="n/a"),0,IF(SUM($D48,$G48+0.5)>Q$5,$H48/$G48,$H48-SUM($I48:P48)))*Q$14 -> 0.627067955 | R48: =IF(OR(R$5<=$D48,$G48="n/a"),0,IF(SUM($D48,$G48+0.5)>R$5,$H48/$G48,$H48-SUM($I48:Q48)))*R$14 -> 0.627067955 | S48: =IF(OR(S$5<=$D48,$G48="n/a"),0,IF(SUM($D48,$G48+0.5)>S$5,$H48/$G48,$H48-SUM($I48:R48)))*S$14 -> 0.627067955 | T48: =IF(OR(T$5<=$D48,$G48="n/a"),0,IF(SUM($D48,$G48+0.5)>T$5,$H48/$G48,$H48-SUM($I48:S48)))*T$14 -> 0.3135339775 | U48: =IF(OR(U$5<=$D48,$G48="n/a"),0,IF(SUM($D48,$G48+0.5)>U$5,$H48/$G48,$H48-SUM($I48:T48)))*U$14 -> 0.627067955 | V48: =IF(OR(V$5<=$D48,$G48="n/a"),0,IF(SUM($D48,$G48+0.5)>V$5,$H48/$G48,$H48-SUM($I48:U48)))*V$14 -> 0.627067955 | W48: =IF(OR(W$5<=$D48,$G48="n/a"),0,IF(SUM($D48,$G48+0.5)>W$5,$H48/$G48,$H48-SUM($I48:V48)))*W$14 -> 0.627067955 | X48: =IF(OR(X$5<=$D48,$G48="n/a"),0,IF(SUM($D48,$G48+0.5)>X$5,$H48/$G48,$H48-SUM($I48:W48)))*X$14 -> 0.627067955 | Y48: =IF(OR(Y$5<=$D48,$G48="n/a"),0,IF(SUM($D48,$G48+0.5)>Y$5,$H48/$G48,$H48-SUM($I48:X48)))*Y$14 -> 0.627067955 | Z48: =IF(OR(Z$5<=$D48,$G48="n/a"),0,IF(SUM($D48,$G48+0.5)>Z$5,$H48/$G48,$H48-SUM($I48:Y48)))*Z$14 -> 0.627067955 | AA48: =IF(OR(AA$5<=$D48,$G48="n/a"),0,IF(SUM($D48,$G48+0.5)>AA$5,$H48/$G48,$H48-SUM($I48:Z48)))*AA$14 -> 0.627067955 | AB48: =IF(OR(AB$5<=$D48,$G48="n/a"),0,IF(SUM($D48,$G48+0.5)>AB$5,$H48/$G48,$H48-SUM($I48:AA48)))*AB$14 -> 0.627067955 | AC48: =IF(OR(AC$5<=$D48,$G48="n/a"),0,IF(SUM($D48,$G48+0.5)>AC$5,$H48/$G48,$H48-SUM($I48:AB48)))*AC$14 -> 0.627067955 | AD48: =IF(OR(AD$5<=$D48,$G48="n/a"),0,IF(SUM($D48,$G48+0.5)>AD$5,$H48/$G48,$H48-SUM($I48:AC48)))*AD$14 -> 0.627067955 | AE48: =IF(OR(AE$5<=$D48,$G48="n/a"),0,IF(SUM($D48,$G48+0.5)>AE$5,$H48/$G48,$H48-SUM($I48:AD48)))*AE$14 -> 0.627067955 | AF48: =IF(OR(AF$5<=$D48,$G48="n/a"),0,IF(SUM($D48,$G48+0.5)>AF$5,$H48/$G48,$H48-SUM($I48:AE48)))*AF$14 -> 0.627067955 | AG48: =IF(OR(AG$5<=$D48,$G48="n/a"),0,IF(SUM($D48,$G48+0.5)>AG$5,$H48/$G48,$H48-SUM($I48:AF48)))*AG$14 -> 0.627067955 | AH48: =IF(OR(AH$5<=$D48,$G48="n/a"),0,IF(SUM($D48,$G48+0.5)>AH$5,$H48/$G48,$H48-SUM($I48:AG48)))*AH$14 -> 0.627067955 | AI48: =IF(OR(AI$5<=$D48,$G48="n/a"),0,IF(SUM($D48,$G48+0.5)>AI$5,$H48/$G48,$H48-SUM($I48:AH48)))*AI$14 -> 0.627067955 | AJ48: =IF(OR(AJ$5<=$D48,$G48="n/a"),0,IF(SUM($D48,$G48+0.5)>AJ$5,$H48/$G48,$H48-SUM($I48:AI48)))*AJ$14 -> 0.627067955 | AK48: =IF(OR(AK$5<=$D48,$G48="n/a"),0,IF(SUM($D48,$G48+0.5)>AK$5,$H48/$G48,$H48-SUM($I48:AJ48)))*AK$14 -> 0.627067955 | AL48: =IF(OR(AL$5<=$D48,$G48="n/a"),0,IF(SUM($D48,$G48+0.5)>AL$5,$H48/$G48,$H48-SUM($I48:AK48)))*AL$14 -> 0.627067955 | AM48: =IF(OR(AM$5<=$D48,$G48="n/a"),0,IF(SUM($D48,$G48+0.5)>AM$5,$H48/$G48,$H48-SUM($I48:AL48)))*AM$14 -> 0.627067955 | AN48: =IF(OR(AN$5<=$D48,$G48="n/a"),0,IF(SUM($D48,$G48+0.5)>AN$5,$H48/$G48,$H48-SUM($I48:AM48)))*AN$14 -> 0.627067955 | AO48: =IF(OR(AO$5<=$D48,$G48="n/a"),0,IF(SUM($D48,$G48+0.5)>AO$5,$H48/$G48,$H48-SUM($I48:AN48)))*AO$14 -> 0.627067955 | AP48: =IF(OR(AP$5<=$D48,$G48="n/a"),0,IF(SUM($D48,$G48+0.5)>AP$5,$H48/$G48,$H48-SUM($I48:AO48)))*AP$14 -> 0.627067955 | AQ48: =IF(OR(AQ$5<=$D48,$G48="n/a"),0,IF(SUM($D48,$G48+0.5)>AQ$5,$H48/$G48,$H48-SUM($I48:AP48)))*AQ$14 -> 0.627067955 | AR48: =IF(OR(AR$5<=$D48,$G48="n/a"),0,IF(SUM($D48,$G48+0.5)>AR$5,$H48/$G48,$H48-SUM($I48:AQ48)))*AR$14 -> 0.627067955 | AS48: =IF(OR(AS$5<=$D48,$G48="n/a"),0,IF(SUM($D48,$G48+0.5)>AS$5,$H48/$G48,$H48-SUM($I48:AR48)))*AS$14 -> 0.627067955 | AT48: =IF(OR(AT$5<=$D48,$G48="n/a"),0,IF(SUM($D48,$G48+0.5)>AT$5,$H48/$G48,$H48-SUM($I48:AS48)))*AT$14 -> 0.627067955 | AU48: =IF(OR(AU$5<=$D48,$G48="n/a"),0,IF(SUM($D48,$G48+0.5)>AU$5,$H48/$G48,$H48-SUM($I48:AT48)))*AU$14 -> 0.627067955 | AV48: =IF(OR(AV$5<=$D48,$G48="n/a"),0,IF(SUM($D48,$G48+0.5)>AV$5,$H48/$G48,$H48-SUM($I48:AU48)))*AV$14 -> 0.627067955 | AW48: =IF(OR(AW$5<=$D48,$G48="n/a"),0,IF(SUM($D48,$G48+0.5)>AW$5,$H48/$G48,$H48-SUM($I48:AV48)))*AW$14 -> 0.627067955 | AX48: =IF(OR(AX$5<=$D48,$G48="n/a"),0,IF(SUM($D48,$G48+0.5)>AX$5,$H48/$G48,$H48-SUM($I48:AW48)))*AX$14 -> 0.627067955 | AY48: =IF(OR(AY$5<=$D48,$G48="n/a"),0,IF(SUM($D48,$G48+0.5)>AY$5,$H48/$G48,$H48-SUM($I48:AX48)))*AY$14 -> 0.627067955 | AZ48: =IF(OR(AZ$5<=$D48,$G48="n/a"),0,IF(SUM($D48,$G48+0.5)>AZ$5,$H48/$G48,$H48-SUM($I48:AY48)))*AZ$14 -> 0.627067955 | BA48: =IF(OR(BA$5<=$D48,$G48="n/a"),0,IF(SUM($D48,$G48+0.5)>BA$5,$H48/$G48,$H48-SUM($I48:AZ48)))*BA$14 -> 0.627067955 | BB48: =IF(OR(BB$5<=$D48,$G48="n/a"),0,IF(SUM($D48,$G48+0.5)>BB$5,$H48/$G48,$H48-SUM($I48:BA48)))*BB$14 -> 0.627067955 | BC48: =IF(OR(BC$5<=$D48,$G48="n/a"),0,IF(SUM($D48,$G48+0.5)>BC$5,$H48/$G48,$H48-SUM($I48:BB48)))*BC$14 -> 0.627067955 | BD48: =IF(OR(BD$5<=$D48,$G48="n/a"),0,IF(SUM($D48,$G48+0.5)>BD$5,$H48/$G48,$H48-SUM($I48:BC48)))*BD$14 -> 0.627067955 | BE48: =IF(OR(BE$5<=$D48,$G48="n/a"),0,IF(SUM($D48,$G48+0.5)>BE$5,$H48/$G48,$H48-SUM($I48:BD48)))*BE$14 -> 0.627067955 | BF48: =IF(OR(BF$5<=$D48,$G48="n/a"),0,IF(SUM($D48,$G48+0.5)>BF$5,$H48/$G48,$H48-SUM($I48:BE48)))*BF$14 -> 0.627067955 | BG48: =IF(OR(BG$5<=$D48,$G48="n/a"),0,IF(SUM($D48,$G48+0.5)>BG$5,$H48/$G48,$H48-SUM($I48:BF48)))*BG$14 -> 0.627067955 | BH48: =IF(OR(BH$5<=$D48,$G48="n/a"),0,IF(SUM($D48,$G48+0.5)>BH$5,$H48/$G48,$H48-SUM($I48:BG48)))*BH$14 -> 0.627067955 | BI48: =IF(OR(BI$5<=$D48,$G48="n/a"),0,IF(SUM($D48,$G48+0.5)>BI$5,$H48/$G48,$H48-SUM($I48:BH48)))*BI$14 -> 0.627067955 | BJ48: =IF(OR(BJ$5<=$D48,$G48="n/a"),0,IF(SUM($D48,$G48+0.5)>BJ$5,$H48/$G48,$H48-SUM($I48:BI48)))*BJ$14 -> 0.3135339775 | BK48: =IF(OR(BK$5<=$D48,$G48="n/a"),0,IF(SUM($D48,$G48+0.5)>BK$5,$H48/$G48,$H48-SUM($I48:BJ48)))*BK$14 -> 0 | BL48: =IF(OR(BL$5<=$D48,$G48="n/a"),0,IF(SUM($D48,$G48+0.5)>BL$5,$H48/$G48,$H48-SUM($I48:BK48)))*BL$14 -> 0 | BM48: =IF(OR(BM$5<=$D48,$G48="n/a"),0,IF(SUM($D48,$G48+0.5)>BM$5,$H48/$G48,$H48-SUM($I48:BL48)))*BM$14 -> 0 | BN48: =IF(OR(BN$5<=$D48,$G48="n/a"),0,IF(SUM($D48,$G48+0.5)>BN$5,$H48/$G48,$H48-SUM($I48:BM48)))*BN$14 -> 0 | BO48: =IF(OR(BO$5<=$D48,$G48="n/a"),0,IF(SUM($D48,$G48+0.5)>BO$5,$H48/$G48,$H48-SUM($I48:BN48)))*BO$14 -> 0 | BP48: =IF(OR(BP$5<=$D48,$G48="n/a"),0,IF(SUM($D48,$G48+0.5)>BP$5,$H48/$G48,$H48-SUM($I48:BO48)))*BP$14 -> 0 | BQ48: =IF(OR(BQ$5<=$D48,$G48="n/a"),0,IF(SUM($D48,$G48+0.5)>BQ$5,$H48/$G48,$H48-SUM($I48:BP48)))*BQ$14 -> 0 | BR48: =IF(OR(BR$5<=$D48,$G48="n/a"),0,IF(SUM($D48,$G48+0.5)>BR$5,$H48/$G48,$H48-SUM($I48:BQ48)))*BR$14 -> 0 | BS48: =IF(OR(BS$5<=$D48,$G48="n/a"),0,IF(SUM($D48,$G48+0.5)>BS$5,$H48/$G48,$H48-SUM($I48:BR48)))*BS$14 -> 0 | BT48: =IF(OR(BT$5<=$D48,$G48="n/a"),0,IF(SUM($D48,$G48+0.5)>BT$5,$H48/$G48,$H48-SUM($I48:BS48)))*BT$14 -> 0 | BU48: =IF(OR(BU$5<=$D48,$G48="n/a"),0,IF(SUM($D48,$G48+0.5)>BU$5,$H48/$G48,$H48-SUM($I48:BT48)))*BU$14 -> 0 | BV48: =IF(OR(BV$5<=$D48,$G48="n/a"),0,IF(SUM($D48,$G48+0.5)>BV$5,$H48/$G48,$H48-SUM($I48:BU48)))*BV$14 -> 0 | BW48: =IF(OR(BW$5<=$D48,$G48="n/a"),0,IF(SUM($D48,$G48+0.5)>BW$5,$H48/$G48,$H48-SUM($I48:BV48)))*BW$14 -> 0 | BX48: =IF(OR(BX$5<=$D48,$G48="n/a"),0,IF(SUM($D48,$G48+0.5)>BX$5,$H48/$G48,$H48-SUM($I48:BW48)))*BX$14 -> 0 | BY48: =IF(OR(BY$5<=$D48,$G48="n/a"),0,IF(SUM($D48,$G48+0.5)>BY$5,$H48/$G48,$H48-SUM($I48:BX48)))*BY$14 -> 0 | BZ48: =IF(OR(BZ$5<=$D48,$G48="n/a"),0,IF(SUM($D48,$G48+0.5)>BZ$5,$H48/$G48,$H48-SUM($I48:BY48)))*BZ$14 -> 0 | CA48: =IF(OR(CA$5<=$D48,$G48="n/a"),0,IF(SUM($D48,$G48+0.5)>CA$5,$H48/$G48,$H48-SUM($I48:BZ48)))*CA$14 -> 0 | CB48: =IF(OR(CB$5<=$D48,$G48="n/a"),0,IF(SUM($D48,$G48+0.5)>CB$5,$H48/$G48,$H48-SUM($I48:CA48)))*CB$14 -> 0 | CC48: =IF(OR(CC$5<=$D48,$G48="n/a"),0,IF(SUM($D48,$G48+0.5)>CC$5,$H48/$G48,$H48-SUM($I48:CB48)))*CC$14 -> 0 | CE48: OK
D49: =D48+1 -> 2013 | E49: $m Real 2010 | G49: =G48 -> 50 | H49: 88.33563109 | J49: =IF(OR(J$5<=$D49,$G49="n/a"),0,IF(SUM($D49,$G49+0.5)>J$5,$H49/$G49,$H49-SUM($I49:I49)))*J$14 -> 0 | K49: =IF(OR(K$5<=$D49,$G49="n/a"),0,IF(SUM($D49,$G49+0.5)>K$5,$H49/$G49,$H49-SUM($I49:J49)))*K$14 -> 0 | L49: =IF(OR(L$5<=$D49,$G49="n/a"),0,IF(SUM($D49,$G49+0.5)>L$5,$H49/$G49,$H49-SUM($I49:K49)))*L$14 -> 0 | M49: =IF(OR(M$5<=$D49,$G49="n/a"),0,IF(SUM($D49,$G49+0.5)>M$5,$H49/$G49,$H49-SUM($I49:L49)))*M$14 -> 1.766712622 | N49: =IF(OR(N$5<=$D49,$G49="n/a"),0,IF(SUM($D49,$G49+0.5)>N$5,$H49/$G49,$H49-SUM($I49:M49)))*N$14 -> 1.766712622 | O49: =IF(OR(O$5<=$D49,$G49="n/a"),0,IF(SUM($D49,$G49+0.5)>O$5,$H49/$G49,$H49-SUM($I49:N49)))*O$14 -> 1.766712622 | P49: =IF(OR(P$5<=$D49,$G49="n/a"),0,IF(SUM($D49,$G49+0.5)>P$5,$H49/$G49,$H49-SUM($I49:O49)))*P$14 -> 1.766712622 | Q49: =IF(OR(Q$5<=$D49,$G49="n/a"),0,IF(SUM($D49,$G49+0.5)>Q$5,$H49/$G49,$H49-SUM($I49:P49)))*Q$14 -> 1.766712622 | R49: =IF(OR(R$5<=$D49,$G49="n/a"),0,IF(SUM($D49,$G49+0.5)>R$5,$H49/$G49,$H49-SUM($I49:Q49)))*R$14 -> 1.766712622 | S49: =IF(OR(S$5<=$D49,$G49="n/a"),0,IF(SUM($D49,$G49+0.5)>S$5,$H49/$G49,$H49-SUM($I49:R49)))*S$14 -> 1.766712622 | T49: =IF(OR(T$5<=$D49,$G49="n/a"),0,IF(SUM($D49,$G49+0.5)>T$5,$H49/$G49,$H49-SUM($I49:S49)))*T$14 -> 0.8833563109 | U49: =IF(OR(U$5<=$D49,$G49="n/a"),0,IF(SUM($D49,$G49+0.5)>U$5,$H49/$G49,$H49-SUM($I49:T49)))*U$14 -> 1.766712622 | V49: =IF(OR(V$5<=$D49,$G49="n/a"),0,IF(SUM($D49,$G49+0.5)>V$5,$H49/$G49,$H49-SUM($I49:U49)))*V$14 -> 1.766712622 | W49: =IF(OR(W$5<=$D49,$G49="n/a"),0,IF(SUM($D49,$G49+0.5)>W$5,$H49/$G49,$H49-SUM($I49:V49)))*W$14 -> 1.766712622 | X49: =IF(OR(X$5<=$D49,$G49="n/a"),0,IF(SUM($D49,$G49+0.5)>X$5,$H49/$G49,$H49-SUM($I49:W49)))*X$14 -> 1.766712622 | Y49: =IF(OR(Y$5<=$D49,$G49="n/a"),0,IF(SUM($D49,$G49+0.5)>Y$5,$H49/$G49,$H49-SUM($I49:X49)))*Y$14 -> 1.766712622 | Z49: =IF(OR(Z$5<=$D49,$G49="n/a"),0,IF(SUM($D49,$G49+0.5)>Z$5,$H49/$G49,$H49-SUM($I49:Y49)))*Z$14 -> 1.766712622 | AA49: =IF(OR(AA$5<=$D49,$G49="n/a"),0,IF(SUM($D49,$G49+0.5)>AA$5,$H49/$G49,$H49-SUM($I49:Z49)))*AA$14 -> 1.766712622 | AB49: =IF(OR(AB$5<=$D49,$G49="n/a"),0,IF(SUM($D49,$G49+0.5)>AB$5,$H49/$G49,$H49-SUM($I49:AA49)))*AB$14 -> 1.766712622 | AC49: =IF(OR(AC$5<=$D49,$G49="n/a"),0,IF(SUM($D49,$G49+0.5)>AC$5,$H49/$G49,$H49-SUM($I49:AB49)))*AC$14 -> 1.766712622 | AD49: =IF(OR(AD$5<=$D49,$G49="n/a"),0,IF(SUM($D49,$G49+0.5)>AD$5,$H49/$G49,$H49-SUM($I49:AC49)))*AD$14 -> 1.766712622 | AE49: =IF(OR(AE$5<=$D49,$G49="n/a"),0,IF(SUM($D49,$G49+0.5)>AE$5,$H49/$G49,$H49-SUM($I49:AD49)))*AE$14 -> 1.766712622 | AF49: =IF(OR(AF$5<=$D49,$G49="n/a"),0,IF(SUM($D49,$G49+0.5)>AF$5,$H49/$G49,$H49-SUM($I49:AE49)))*AF$14 -> 1.766712622 | AG49: =IF(OR(AG$5<=$D49,$G49="n/a"),0,IF(SUM($D49,$G49+0.5)>AG$5,$H49/$G49,$H49-SUM($I49:AF49)))*AG$14 -> 1.766712622 | AH49: =IF(OR(AH$5<=$D49,$G49="n/a"),0,IF(SUM($D49,$G49+0.5)>AH$5,$H49/$G49,$H49-SUM($I49:AG49)))*AH$14 -> 1.766712622 | AI49: =IF(OR(AI$5<=$D49,$G49="n/a"),0,IF(SUM($D49,$G49+0.5)>AI$5,$H49/$G49,$H49-SUM($I49:AH49)))*AI$14 -> 1.766712622 | AJ49: =IF(OR(AJ$5<=$D49,$G49="n/a"),0,IF(SUM($D49,$G49+0.5)>AJ$5,$H49/$G49,$H49-SUM($I49:AI49)))*AJ$14 -> 1.766712622 | AK49: =IF(OR(AK$5<=$D49,$G49="n/a"),0,IF(SUM($D49,$G49+0.5)>AK$5,$H49/$G49,$H49-SUM($I49:AJ49)))*AK$14 -> 1.766712622 | AL49: =IF(OR(AL$5<=$D49,$G49="n/a"),0,IF(SUM($D49,$G49+0.5)>AL$5,$H49/$G49,$H49-SUM($I49:AK49)))*AL$14 -> 1.766712622 | AM49: =IF(OR(AM$5<=$D49,$G49="n/a"),0,IF(SUM($D49,$G49+0.5)>AM$5,$H49/$G49,$H49-SUM($I49:AL49)))*AM$14 -> 1.766712622 | AN49: =IF(OR(AN$5<=$D49,$G49="n/a"),0,IF(SUM($D49,$G49+0.5)>AN$5,$H49/$G49,$H49-SUM($I49:AM49)))*AN$14 -> 1.766712622 | AO49: =IF(OR(AO$5<=$D49,$G49="n/a"),0,IF(SUM($D49,$G49+0.5)>AO$5,$H49/$G49,$H49-SUM($I49:AN49)))*AO$14 -> 1.766712622 | AP49: =IF(OR(AP$5<=$D49,$G49="n/a"),0,IF(SUM($D49,$G49+0.5)>AP$5,$H49/$G49,$H49-SUM($I49:AO49)))*AP$14 -> 1.766712622 | AQ49: =IF(OR(AQ$5<=$D49,$G49="n/a"),0,IF(SUM($D49,$G49+0.5)>AQ$5,$H49/$G49,$H49-SUM($I49:AP49)))*AQ$14 -> 1.766712622 | AR49: =IF(OR(AR$5<=$D49,$G49="n/a"),0,IF(SUM($D49,$G49+0.5)>AR$5,$H49/$G49,$H49-SUM($I49:AQ49)))*AR$14 -> 1.766712622 | AS49: =IF(OR(AS$5<=$D49,$G49="n/a"),0,IF(SUM($D49,$G49+0.5)>AS$5,$H49/$G49,$H49-SUM($I49:AR49)))*AS$14 -> 1.766712622 | AT49: =IF(OR(AT$5<=$D49,$G49="n/a"),0,IF(SUM($D49,$G49+0.5)>AT$5,$H49/$G49,$H49-SUM($I49:AS49)))*AT$14 -> 1.766712622 | AU49: =IF(OR(AU$5<=$D49,$G49="n/a"),0,IF(SUM($D49,$G49+0.5)>AU$5,$H49/$G49,$H49-SUM($I49:AT49)))*AU$14 -> 1.766712622 | AV49: =IF(OR(AV$5<=$D49,$G49="n/a"),0,IF(SUM($D49,$G49+0.5)>AV$5,$H49/$G49,$H49-SUM($I49:AU49)))*AV$14 -> 1.766712622 | AW49: =IF(OR(AW$5<=$D49,$G49="n/a"),0,IF(SUM($D49,$G49+0.5)>AW$5,$H49/$G49,$H49-SUM($I49:AV49)))*AW$14 -> 1.766712622 | AX49: =IF(OR(AX$5<=$D49,$G49="n/a"),0,IF(SUM($D49,$G49+0.5)>AX$5,$H49/$G49,$H49-SUM($I49:AW49)))*AX$14 -> 1.766712622 | AY49: =IF(OR(AY$5<=$D49,$G49="n/a"),0,IF(SUM($D49,$G49+0.5)>AY$5,$H49/$G49,$H49-SUM($I49:AX49)))*AY$14 -> 1.766712622 | AZ49: =IF(OR(AZ$5<=$D49,$G49="n/a"),0,IF(SUM($D49,$G49+0.5)>AZ$5,$H49/$G49,$H49-SUM($I49:AY49)))*AZ$14 -> 1.766712622 | BA49: =IF(OR(BA$5<=$D49,$G49="n/a"),0,IF(SUM($D49,$G49+0.5)>BA$5,$H49/$G49,$H49-SUM($I49:AZ49)))*BA$14 -> 1.766712622 | BB49: =IF(OR(BB$5<=$D49,$G49="n/a"),0,IF(SUM($D49,$G49+0.5)>BB$5,$H49/$G49,$H49-SUM($I49:BA49)))*BB$14 -> 1.766712622 | BC49: =IF(OR(BC$5<=$D49,$G49="n/a"),0,IF(SUM($D49,$G49+0.5)>BC$5,$H49/$G49,$H49-SUM($I49:BB49)))*BC$14 -> 1.766712622 | BD49: =IF(OR(BD$5<=$D49,$G49="n/a"),0,IF(SUM($D49,$G49+0.5)>BD$5,$H49/$G49,$H49-SUM($I49:BC49)))*BD$14 -> 1.766712622 | BE49: =IF(OR(BE$5<=$D49,$G49="n/a"),0,IF(SUM($D49,$G49+0.5)>BE$5,$H49/$G49,$H49-SUM($I49:BD49)))*BE$14 -> 1.766712622 | BF49: =IF(OR(BF$5<=$D49,$G49="n/a"),0,IF(SUM($D49,$G49+0.5)>BF$5,$H49/$G49,$H49-SUM($I49:BE49)))*BF$14 -> 1.766712622 | BG49: =IF(OR(BG$5<=$D49,$G49="n/a"),0,IF(SUM($D49,$G49+0.5)>BG$5,$H49/$G49,$H49-SUM($I49:BF49)))*BG$14 -> 1.766712622 | BH49: =IF(OR(BH$5<=$D49,$G49="n/a"),0,IF(SUM($D49,$G49+0.5)>BH$5,$H49/$G49,$H49-SUM($I49:BG49)))*BH$14 -> 1.766712622 | BI49: =IF(OR(BI$5<=$D49,$G49="n/a"),0,IF(SUM($D49,$G49+0.5)>BI$5,$H49/$G49,$H49-SUM($I49:BH49)))*BI$14 -> 1.766712622 | BJ49: =IF(OR(BJ$5<=$D49,$G49="n/a"),0,IF(SUM($D49,$G49+0.5)>BJ$5,$H49/$G49,$H49-SUM($I49:BI49)))*BJ$14 -> 1.766712622 | BK49: =IF(OR(BK$5<=$D49,$G49="n/a"),0,IF(SUM($D49,$G49+0.5)>BK$5,$H49/$G49,$H49-SUM($I49:BJ49)))*BK$14 -> 0.8833563109 | BL49: =IF(OR(BL$5<=$D49,$G49="n/a"),0,IF(SUM($D49,$G49+0.5)>BL$5,$H49/$G49,$H49-SUM($I49:BK49)))*BL$14 -> 0 | BM49: =IF(OR(BM$5<=$D49,$G49="n/a"),0,IF(SUM($D49,$G49+0.5)>BM$5,$H49/$G49,$H49-SUM($I49:BL49)))*BM$14 -> 0 | BN49: =IF(OR(BN$5<=$D49,$G49="n/a"),0,IF(SUM($D49,$G49+0.5)>BN$5,$H49/$G49,$H49-SUM($I49:BM49)))*BN$14 -> 0 | BO49: =IF(OR(BO$5<=$D49,$G49="n/a"),0,IF(SUM($D49,$G49+0.5)>BO$5,$H49/$G49,$H49-SUM($I49:BN49)))*BO$14 -> 0 | BP49: =IF(OR(BP$5<=$D49,$G49="n/a"),0,IF(SUM($D49,$G49+0.5)>BP$5,$H49/$G49,$H49-SUM($I49:BO49)))*BP$14 -> 0 | BQ49: =IF(OR(BQ$5<=$D49,$G49="n/a"),0,IF(SUM($D49,$G49+0.5)>BQ$5,$H49/$G49,$H49-SUM($I49:BP49)))*BQ$14 -> 0 | BR49: =IF(OR(BR$5<=$D49,$G49="n/a"),0,IF(SUM($D49,$G49+0.5)>BR$5,$H49/$G49,$H49-SUM($I49:BQ49)))*BR$14 -> 0 | BS49: =IF(OR(BS$5<=$D49,$G49="n/a"),0,IF(SUM($D49,$G49+0.5)>BS$5,$H49/$G49,$H49-SUM($I49:BR49)))*BS$14 -> 0 | BT49: =IF(OR(BT$5<=$D49,$G49="n/a"),0,IF(SUM($D49,$G49+0.5)>BT$5,$H49/$G49,$H49-SUM($I49:BS49)))*BT$14 -> 0 | BU49: =IF(OR(BU$5<=$D49,$G49="n/a"),0,IF(SUM($D49,$G49+0.5)>BU$5,$H49/$G49,$H49-SUM($I49:BT49)))*BU$14 -> 0 | BV49: =IF(OR(BV$5<=$D49,$G49="n/a"),0,IF(SUM($D49,$G49+0.5)>BV$5,$H49/$G49,$H49-SUM($I49:BU49)))*BV$14 -> 0 | BW49: =IF(OR(BW$5<=$D49,$G49="n/a"),0,IF(SUM($D49,$G49+0.5)>BW$5,$H49/$G49,$H49-SUM($I49:BV49)))*BW$14 -> 0 | BX49: =IF(OR(BX$5<=$D49,$G49="n/a"),0,IF(SUM($D49,$G49+0.5)>BX$5,$H49/$G49,$H49-SUM($I49:BW49)))*BX$14 -> 0 | BY49: =IF(OR(BY$5<=$D49,$G49="n/a"),0,IF(SUM($D49,$G49+0.5)>BY$5,$H49/$G49,$H49-SUM($I49:BX49)))*BY$14 -> 0 | BZ49: =IF(OR(BZ$5<=$D49,$G49="n/a"),0,IF(SUM($D49,$G49+0.5)>BZ$5,$H49/$G49,$H49-SUM($I49:BY49)))*BZ$14 -> 0 | CA49: =IF(OR(CA$5<=$D49,$G49="n/a"),0,IF(SUM($D49,$G49+0.5)>CA$5,$H49/$G49,$H49-SUM($I49:BZ49)))*CA$14 -> 0 | CB49: =IF(OR(CB$5<=$D49,$G49="n/a"),0,IF(SUM($D49,$G49+0.5)>CB$5,$H49/$G49,$H49-SUM($I49:CA49)))*CB$14 -> 0 | CC49: =IF(OR(CC$5<=$D49,$G49="n/a"),0,IF(SUM($D49,$G49+0.5)>CC$5,$H49/$G49,$H49-SUM($I49:CB49)))*CC$14 -> 0 | CE49: OK
D50: 2014 | E50: $m Real 2010 | G50: 50 | H50: 18.12869702 | J50: =IF(OR(J$5<=$D50,$G50="n/a"),0,IF(SUM($D50,$G50+0.5)>J$5,$H50/$G50,$H50-SUM($I50:I50)))*J$14 -> 0 | K50: =IF(OR(K$5<=$D50,$G50="n/a"),0,IF(SUM($D50,$G50+0.5)>K$5,$H50/$G50,$H50-SUM($I50:J50)))*K$14 -> 0 | L50: =IF(OR(L$5<=$D50,$G50="n/a"),0,IF(SUM($D50,$G50+0.5)>L$5,$H50/$G50,$H50-SUM($I50:K50)))*L$14 -> 0 | M50: =IF(OR(M$5<=$D50,$G50="n/a"),0,IF(SUM($D50,$G50+0.5)>M$5,$H50/$G50,$H50-SUM($I50:L50)))*M$14 -> 0 | N50: =IF(OR(N$5<=$D50,$G50="n/a"),0,IF(SUM($D50,$G50+0.5)>N$5,$H50/$G50,$H50-SUM($I50:M50)))*N$14 -> 0.3625739403 | O50: =IF(OR(O$5<=$D50,$G50="n/a"),0,IF(SUM($D50,$G50+0.5)>O$5,$H50/$G50,$H50-SUM($I50:N50)))*O$14 -> 0.3625739403 | P50: =IF(OR(P$5<=$D50,$G50="n/a"),0,IF(SUM($D50,$G50+0.5)>P$5,$H50/$G50,$H50-SUM($I50:O50)))*P$14 -> 0.3625739403 | Q50: =IF(OR(Q$5<=$D50,$G50="n/a"),0,IF(SUM($D50,$G50+0.5)>Q$5,$H50/$G50,$H50-SUM($I50:P50)))*Q$14 -> 0.3625739403 | R50: =IF(OR(R$5<=$D50,$G50="n/a"),0,IF(SUM($D50,$G50+0.5)>R$5,$H50/$G50,$H50-SUM($I50:Q50)))*R$14 -> 0.3625739403 | S50: =IF(OR(S$5<=$D50,$G50="n/a"),0,IF(SUM($D50,$G50+0.5)>S$5,$H50/$G50,$H50-SUM($I50:R50)))*S$14 -> 0.3625739403 | T50: =IF(OR(T$5<=$D50,$G50="n/a"),0,IF(SUM($D50,$G50+0.5)>T$5,$H50/$G50,$H50-SUM($I50:S50)))*T$14 -> 0.1812869702 | U50: =IF(OR(U$5<=$D50,$G50="n/a"),0,IF(SUM($D50,$G50+0.5)>U$5,$H50/$G50,$H50-SUM($I50:T50)))*U$14 -> 0.3625739403 | V50: =IF(OR(V$5<=$D50,$G50="n/a"),0,IF(SUM($D50,$G50+0.5)>V$5,$H50/$G50,$H50-SUM($I50:U50)))*V$14 -> 0.3625739403 | W50: =IF(OR(W$5<=$D50,$G50="n/a"),0,IF(SUM($D50,$G50+0.5)>W$5,$H50/$G50,$H50-SUM($I50:V50)))*W$14 -> 0.3625739403 | X50: =IF(OR(X$5<=$D50,$G50="n/a"),0,IF(SUM($D50,$G50+0.5)>X$5,$H50/$G50,$H50-SUM($I50:W50)))*X$14 -> 0.3625739403 | Y50: =IF(OR(Y$5<=$D50,$G50="n/a"),0,IF(SUM($D50,$G50+0.5)>Y$5,$H50/$G50,$H50-SUM($I50:X50)))*Y$14 -> 0.3625739403 | Z50: =IF(OR(Z$5<=$D50,$G50="n/a"),0,IF(SUM($D50,$G50+0.5)>Z$5,$H50/$G50,$H50-SUM($I50:Y50)))*Z$14 -> 0.3625739403 | AA50: =IF(OR(AA$5<=$D50,$G50="n/a"),0,IF(SUM($D50,$G50+0.5)>AA$5,$H50/$G50,$H50-SUM($I50:Z50)))*AA$14 -> 0.3625739403 | AB50: =IF(OR(AB$5<=$D50,$G50="n/a"),0,IF(SUM($D50,$G50+0.5)>AB$5,$H50/$G50,$H50-SUM($I50:AA50)))*AB$14 -> 0.3625739403 | AC50: =IF(OR(AC$5<=$D50,$G50="n/a"),0,IF(SUM($D50,$G50+0.5)>AC$5,$H50/$G50,$H50-SUM($I50:AB50)))*AC$14 -> 0.3625739403 | AD50: =IF(OR(AD$5<=$D50,$G50="n/a"),0,IF(SUM($D50,$G50+0.5)>AD$5,$H50/$G50,$H50-SUM($I50:AC50)))*AD$14 -> 0.3625739403 | AE50: =IF(OR(AE$5<=$D50,$G50="n/a"),0,IF(SUM($D50,$G50+0.5)>AE$5,$H50/$G50,$H50-SUM($I50:AD50)))*AE$14 -> 0.3625739403 | AF50: =IF(OR(AF$5<=$D50,$G50="n/a"),0,IF(SUM($D50,$G50+0.5)>AF$5,$H50/$G50,$H50-SUM($I50:AE50)))*AF$14 -> 0.3625739403 | AG50: =IF(OR(AG$5<=$D50,$G50="n/a"),0,IF(SUM($D50,$G50+0.5)>AG$5,$H50/$G50,$H50-SUM($I50:AF50)))*AG$14 -> 0.3625739403 | AH50: =IF(OR(AH$5<=$D50,$G50="n/a"),0,IF(SUM($D50,$G50+0.5)>AH$5,$H50/$G50,$H50-SUM($I50:AG50)))*AH$14 -> 0.3625739403 | AI50: =IF(OR(AI$5<=$D50,$G50="n/a"),0,IF(SUM($D50,$G50+0.5)>AI$5,$H50/$G50,$H50-SUM($I50:AH50)))*AI$14 -> 0.3625739403 | AJ50: =IF(OR(AJ$5<=$D50,$G50="n/a"),0,IF(SUM($D50,$G50+0.5)>AJ$5,$H50/$G50,$H50-SUM($I50:AI50)))*AJ$14 -> 0.3625739403 | AK50: =IF(OR(AK$5<=$D50,$G50="n/a"),0,IF(SUM($D50,$G50+0.5)>AK$5,$H50/$G50,$H50-SUM($I50:AJ50)))*AK$14 -> 0.3625739403 | AL50: =IF(OR(AL$5<=$D50,$G50="n/a"),0,IF(SUM($D50,$G50+0.5)>AL$5,$H50/$G50,$H50-SUM($I50:AK50)))*AL$14 -> 0.3625739403 | AM50: =IF(OR(AM$5<=$D50,$G50="n/a"),0,IF(SUM($D50,$G50+0.5)>AM$5,$H50/$G50,$H50-SUM($I50:AL50)))*AM$14 -> 0.3625739403 | AN50: =IF(OR(AN$5<=$D50,$G50="n/a"),0,IF(SUM($D50,$G50+0.5)>AN$5,$H50/$G50,$H50-SUM($I50:AM50)))*AN$14 -> 0.3625739403 | AO50: =IF(OR(AO$5<=$D50,$G50="n/a"),0,IF(SUM($D50,$G50+0.5)>AO$5,$H50/$G50,$H50-SUM($I50:AN50)))*AO$14 -> 0.3625739403 | AP50: =IF(OR(AP$5<=$D50,$G50="n/a"),0,IF(SUM($D50,$G50+0.5)>AP$5,$H50/$G50,$H50-SUM($I50:AO50)))*AP$14 -> 0.3625739403 | AQ50: =IF(OR(AQ$5<=$D50,$G50="n/a"),0,IF(SUM($D50,$G50+0.5)>AQ$5,$H50/$G50,$H50-SUM($I50:AP50)))*AQ$14 -> 0.3625739403 | AR50: =IF(OR(AR$5<=$D50,$G50="n/a"),0,IF(SUM($D50,$G50+0.5)>AR$5,$H50/$G50,$H50-SUM($I50:AQ50)))*AR$14 -> 0.3625739403 | AS50: =IF(OR(AS$5<=$D50,$G50="n/a"),0,IF(SUM($D50,$G50+0.5)>AS$5,$H50/$G50,$H50-SUM($I50:AR50)))*AS$14 -> 0.3625739403 | AT50: =IF(OR(AT$5<=$D50,$G50="n/a"),0,IF(SUM($D50,$G50+0.5)>AT$5,$H50/$G50,$H50-SUM($I50:AS50)))*AT$14 -> 0.3625739403 | AU50: =IF(OR(AU$5<=$D50,$G50="n/a"),0,IF(SUM($D50,$G50+0.5)>AU$5,$H50/$G50,$H50-SUM($I50:AT50)))*AU$14 -> 0.3625739403 | AV50: =IF(OR(AV$5<=$D50,$G50="n/a"),0,IF(SUM($D50,$G50+0.5)>AV$5,$H50/$G50,$H50-SUM($I50:AU50)))*AV$14 -> 0.3625739403 | AW50: =IF(OR(AW$5<=$D50,$G50="n/a"),0,IF(SUM($D50,$G50+0.5)>AW$5,$H50/$G50,$H50-SUM($I50:AV50)))*AW$14 -> 0.3625739403 | AX50: =IF(OR(AX$5<=$D50,$G50="n/a"),0,IF(SUM($D50,$G50+0.5)>AX$5,$H50/$G50,$H50-SUM($I50:AW50)))*AX$14 -> 0.3625739403 | AY50: =IF(OR(AY$5<=$D50,$G50="n/a"),0,IF(SUM($D50,$G50+0.5)>AY$5,$H50/$G50,$H50-SUM($I50:AX50)))*AY$14 -> 0.3625739403 | AZ50: =IF(OR(AZ$5<=$D50,$G50="n/a"),0,IF(SUM($D50,$G50+0.5)>AZ$5,$H50/$G50,$H50-SUM($I50:AY50)))*AZ$14 -> 0.3625739403 | BA50: =IF(OR(BA$5<=$D50,$G50="n/a"),0,IF(SUM($D50,$G50+0.5)>BA$5,$H50/$G50,$H50-SUM($I50:AZ50)))*BA$14 -> 0.3625739403 | BB50: =IF(OR(BB$5<=$D50,$G50="n/a"),0,IF(SUM($D50,$G50+0.5)>BB$5,$H50/$G50,$H50-SUM($I50:BA50)))*BB$14 -> 0.3625739403 | BC50: =IF(OR(BC$5<=$D50,$G50="n/a"),0,IF(SUM($D50,$G50+0.5)>BC$5,$H50/$G50,$H50-SUM($I50:BB50)))*BC$14 -> 0.3625739403 | BD50: =IF(OR(BD$5<=$D50,$G50="n/a"),0,IF(SUM($D50,$G50+0.5)>BD$5,$H50/$G50,$H50-SUM($I50:BC50)))*BD$14 -> 0.3625739403 | BE50: =IF(OR(BE$5<=$D50,$G50="n/a"),0,IF(SUM($D50,$G50+0.5)>BE$5,$H50/$G50,$H50-SUM($I50:BD50)))*BE$14 -> 0.3625739403 | BF50: =IF(OR(BF$5<=$D50,$G50="n/a"),0,IF(SUM($D50,$G50+0.5)>BF$5,$H50/$G50,$H50-SUM($I50:BE50)))*BF$14 -> 0.3625739403 | BG50: =IF(OR(BG$5<=$D50,$G50="n/a"),0,IF(SUM($D50,$G50+0.5)>BG$5,$H50/$G50,$H50-SUM($I50:BF50)))*BG$14 -> 0.3625739403 | BH50: =IF(OR(BH$5<=$D50,$G50="n/a"),0,IF(SUM($D50,$G50+0.5)>BH$5,$H50/$G50,$H50-SUM($I50:BG50)))*BH$14 -> 0.3625739403 | BI50: =IF(OR(BI$5<=$D50,$G50="n/a"),0,IF(SUM($D50,$G50+0.5)>BI$5,$H50/$G50,$H50-SUM($I50:BH50)))*BI$14 -> 0.3625739403 | BJ50: =IF(OR(BJ$5<=$D50,$G50="n/a"),0,IF(SUM($D50,$G50+0.5)>BJ$5,$H50/$G50,$H50-SUM($I50:BI50)))*BJ$14 -> 0.3625739403 | BK50: =IF(OR(BK$5<=$D50,$G50="n/a"),0,IF(SUM($D50,$G50+0.5)>BK$5,$H50/$G50,$H50-SUM($I50:BJ50)))*BK$14 -> 0.3625739403 | BL50: =IF(OR(BL$5<=$D50,$G50="n/a"),0,IF(SUM($D50,$G50+0.5)>BL$5,$H50/$G50,$H50-SUM($I50:BK50)))*BL$14 -> 0.1812869702 | BM50: =IF(OR(BM$5<=$D50,$G50="n/a"),0,IF(SUM($D50,$G50+0.5)>BM$5,$H50/$G50,$H50-SUM($I50:BL50)))*BM$14 -> 0 | BN50: =IF(OR(BN$5<=$D50,$G50="n/a"),0,IF(SUM($D50,$G50+0.5)>BN$5,$H50/$G50,$H50-SUM($I50:BM50)))*BN$14 -> 0 | BO50: =IF(OR(BO$5<=$D50,$G50="n/a"),0,IF(SUM($D50,$G50+0.5)>BO$5,$H50/$G50,$H50-SUM($I50:BN50)))*BO$14 -> 0 | BP50: =IF(OR(BP$5<=$D50,$G50="n/a"),0,IF(SUM($D50,$G50+0.5)>BP$5,$H50/$G50,$H50-SUM($I50:BO50)))*BP$14 -> 0 | BQ50: =IF(OR(BQ$5<=$D50,$G50="n/a"),0,IF(SUM($D50,$G50+0.5)>BQ$5,$H50/$G50,$H50-SUM($I50:BP50)))*BQ$14 -> 0 | BR50: =IF(OR(BR$5<=$D50,$G50="n/a"),0,IF(SUM($D50,$G50+0.5)>BR$5,$H50/$G50,$H50-SUM($I50:BQ50)))*BR$14 -> 0 | BS50: =IF(OR(BS$5<=$D50,$G50="n/a"),0,IF(SUM($D50,$G50+0.5)>BS$5,$H50/$G50,$H50-SUM($I50:BR50)))*BS$14 -> 0 | BT50: =IF(OR(BT$5<=$D50,$G50="n/a"),0,IF(SUM($D50,$G50+0.5)>BT$5,$H50/$G50,$H50-SUM($I50:BS50)))*BT$14 -> 0 | BU50: =IF(OR(BU$5<=$D50,$G50="n/a"),0,IF(SUM($D50,$G50+0.5)>BU$5,$H50/$G50,$H50-SUM($I50:BT50)))*BU$14 -> 0 | BV50: =IF(OR(BV$5<=$D50,$G50="n/a"),0,IF(SUM($D50,$G50+0.5)>BV$5,$H50/$G50,$H50-SUM($I50:BU50)))*BV$14 -> 0 | BW50: =IF(OR(BW$5<=$D50,$G50="n/a"),0,IF(SUM($D50,$G50+0.5)>BW$5,$H50/$G50,$H50-SUM($I50:BV50)))*BW$14 -> 0 | BX50: =IF(OR(BX$5<=$D50,$G50="n/a"),0,IF(SUM($D50,$G50+0.5)>BX$5,$H50/$G50,$H50-SUM($I50:BW50)))*BX$14 -> 0 | BY50: =IF(OR(BY$5<=$D50,$G50="n/a"),0,IF(SUM($D50,$G50+0.5)>BY$5,$H50/$G50,$H50-SUM($I50:BX50)))*BY$14 -> 0 | BZ50: =IF(OR(BZ$5<=$D50,$G50="n/a"),0,IF(SUM($D50,$G50+0.5)>BZ$5,$H50/$G50,$H50-SUM($I50:BY50)))*BZ$14 -> 0 | CA50: =IF(OR(CA$5<=$D50,$G50="n/a"),0,IF(SUM($D50,$G50+0.5)>CA$5,$H50/$G50,$H50-SUM($I50:BZ50)))*CA$14 -> 0 | CB50: =IF(OR(CB$5<=$D50,$G50="n/a"),0,IF(SUM($D50,$G50+0.5)>CB$5,$H50/$G50,$H50-SUM($I50:CA50)))*CB$14 -> 0 | CC50: =IF(OR(CC$5<=$D50,$G50="n/a"),0,IF(SUM($D50,$G50+0.5)>CC$5,$H50/$G50,$H50-SUM($I50:CB50)))*CC$14 -> 0 | CE50: OK
D51: 2015 | E51: $m Real 2010 | G51: 50 | H51: 33.67448258 | J51: =IF(OR(J$5<=$D51,$G51="n/a"),0,IF(SUM($D51,$G51+0.5)>J$5,$H51/$G51,$H51-SUM($I51:I51)))*J$14 -> 0 | K51: =IF(OR(K$5<=$D51,$G51="n/a"),0,IF(SUM($D51,$G51+0.5)>K$5,$H51/$G51,$H51-SUM($I51:J51)))*K$14 -> 0 | L51: =IF(OR(L$5<=$D51,$G51="n/a"),0,IF(SUM($D51,$G51+0.5)>L$5,$H51/$G51,$H51-SUM($I51:K51)))*L$14 -> 0 | M51: =IF(OR(M$5<=$D51,$G51="n/a"),0,IF(SUM($D51,$G51+0.5)>M$5,$H51/$G51,$H51-SUM($I51:L51)))*M$14 -> 0 | N51: =IF(OR(N$5<=$D51,$G51="n/a"),0,IF(SUM($D51,$G51+0.5)>N$5,$H51/$G51,$H51-SUM($I51:M51)))*N$14 -> 0 | O51: =IF(OR(O$5<=$D51,$G51="n/a"),0,IF(SUM($D51,$G51+0.5)>O$5,$H51/$G51,$H51-SUM($I51:N51)))*O$14 -> 0.6734896516 | P51: =IF(OR(P$5<=$D51,$G51="n/a"),0,IF(SUM($D51,$G51+0.5)>P$5,$H51/$G51,$H51-SUM($I51:O51)))*P$14 -> 0.6734896516 | Q51: =IF(OR(Q$5<=$D51,$G51="n/a"),0,IF(SUM($D51,$G51+0.5)>Q$5,$H51/$G51,$H51-SUM($I51:P51)))*Q$14 -> 0.6734896516 | R51: =IF(OR(R$5<=$D51,$G51="n/a"),0,IF(SUM($D51,$G51+0.5)>R$5,$H51/$G51,$H51-SUM($I51:Q51)))*R$14 -> 0.6734896516 | S51: =IF(OR(S$5<=$D51,$G51="n/a"),0,IF(SUM($D51,$G51+0.5)>S$5,$H51/$G51,$H51-SUM($I51:R51)))*S$14 -> 0.6734896516 | T51: =IF(OR(T$5<=$D51,$G51="n/a"),0,IF(SUM($D51,$G51+0.5)>T$5,$H51/$G51,$H51-SUM($I51:S51)))*T$14 -> 0.3367448258 | U51: =IF(OR(U$5<=$D51,$G51="n/a"),0,IF(SUM($D51,$G51+0.5)>U$5,$H51/$G51,$H51-SUM($I51:T51)))*U$14 -> 0.6734896516 | V51: =IF(OR(V$5<=$D51,$G51="n/a"),0,IF(SUM($D51,$G51+0.5)>V$5,$H51/$G51,$H51-SUM($I51:U51)))*V$14 -> 0.6734896516 | W51: =IF(OR(W$5<=$D51,$G51="n/a"),0,IF(SUM($D51,$G51+0.5)>W$5,$H51/$G51,$H51-SUM($I51:V51)))*W$14 -> 0.6734896516 | X51: =IF(OR(X$5<=$D51,$G51="n/a"),0,IF(SUM($D51,$G51+0.5)>X$5,$H51/$G51,$H51-SUM($I51:W51)))*X$14 -> 0.6734896516 | Y51: =IF(OR(Y$5<=$D51,$G51="n/a"),0,IF(SUM($D51,$G51+0.5)>Y$5,$H51/$G51,$H51-SUM($I51:X51)))*Y$14 -> 0.6734896516 | Z51: =IF(OR(Z$5<=$D51,$G51="n/a"),0,IF(SUM($D51,$G51+0.5)>Z$5,$H51/$G51,$H51-SUM($I51:Y51)))*Z$14 -> 0.6734896516 | AA51: =IF(OR(AA$5<=$D51,$G51="n/a"),0,IF(SUM($D51,$G51+0.5)>AA$5,$H51/$G51,$H51-SUM($I51:Z51)))*AA$14 -> 0.6734896516 | AB51: =IF(OR(AB$5<=$D51,$G51="n/a"),0,IF(SUM($D51,$G51+0.5)>AB$5,$H51/$G51,$H51-SUM($I51:AA51)))*AB$14 -> 0.6734896516 | AC51: =IF(OR(AC$5<=$D51,$G51="n/a"),0,IF(SUM($D51,$G51+0.5)>AC$5,$H51/$G51,$H51-SUM($I51:AB51)))*AC$14 -> 0.6734896516 | AD51: =IF(OR(AD$5<=$D51,$G51="n/a"),0,IF(SUM($D51,$G51+0.5)>AD$5,$H51/$G51,$H51-SUM($I51:AC51)))*AD$14 -> 0.6734896516 | AE51: =IF(OR(AE$5<=$D51,$G51="n/a"),0,IF(SUM($D51,$G51+0.5)>AE$5,$H51/$G51,$H51-SUM($I51:AD51)))*AE$14 -> 0.6734896516 | AF51: =IF(OR(AF$5<=$D51,$G51="n/a"),0,IF(SUM($D51,$G51+0.5)>AF$5,$H51/$G51,$H51-SUM($I51:AE51)))*AF$14 -> 0.6734896516 | AG51: =IF(OR(AG$5<=$D51,$G51="n/a"),0,IF(SUM($D51,$G51+0.5)>AG$5,$H51/$G51,$H51-SUM($I51:AF51)))*AG$14 -> 0.6734896516 | AH51: =IF(OR(AH$5<=$D51,$G51="n/a"),0,IF(SUM($D51,$G51+0.5)>AH$5,$H51/$G51,$H51-SUM($I51:AG51)))*AH$14 -> 0.6734896516 | AI51: =IF(OR(AI$5<=$D51,$G51="n/a"),0,IF(SUM($D51,$G51+0.5)>AI$5,$H51/$G51,$H51-SUM($I51:AH51)))*AI$14 -> 0.6734896516 | AJ51: =IF(OR(AJ$5<=$D51,$G51="n/a"),0,IF(SUM($D51,$G51+0.5)>AJ$5,$H51/$G51,$H51-SUM($I51:AI51)))*AJ$14 -> 0.6734896516 | AK51: =IF(OR(AK$5<=$D51,$G51="n/a"),0,IF(SUM($D51,$G51+0.5)>AK$5,$H51/$G51,$H51-SUM($I51:AJ51)))*AK$14 -> 0.6734896516 | AL51: =IF(OR(AL$5<=$D51,$G51="n/a"),0,IF(SUM($D51,$G51+0.5)>AL$5,$H51/$G51,$H51-SUM($I51:AK51)))*AL$14 -> 0.6734896516 | AM51: =IF(OR(AM$5<=$D51,$G51="n/a"),0,IF(SUM($D51,$G51+0.5)>AM$5,$H51/$G51,$H51-SUM($I51:AL51)))*AM$14 -> 0.6734896516 | AN51: =IF(OR(AN$5<=$D51,$G51="n/a"),0,IF(SUM($D51,$G51+0.5)>AN$5,$H51/$G51,$H51-SUM($I51:AM51)))*AN$14 -> 0.6734896516 | AO51: =IF(OR(AO$5<=$D51,$G51="n/a"),0,IF(SUM($D51,$G51+0.5)>AO$5,$H51/$G51,$H51-SUM($I51:AN51)))*AO$14 -> 0.6734896516 | AP51: =IF(OR(AP$5<=$D51,$G51="n/a"),0,IF(SUM($D51,$G51+0.5)>AP$5,$H51/$G51,$H51-SUM($I51:AO51)))*AP$14 -> 0.6734896516 | AQ51: =IF(OR(AQ$5<=$D51,$G51="n/a"),0,IF(SUM($D51,$G51+0.5)>AQ$5,$H51/$G51,$H51-SUM($I51:AP51)))*AQ$14 -> 0.6734896516 | AR51: =IF(OR(AR$5<=$D51,$G51="n/a"),0,IF(SUM($D51,$G51+0.5)>AR$5,$H51/$G51,$H51-SUM($I51:AQ51)))*AR$14 -> 0.6734896516 | AS51: =IF(OR(AS$5<=$D51,$G51="n/a"),0,IF(SUM($D51,$G51+0.5)>AS$5,$H51/$G51,$H51-SUM($I51:AR51)))*AS$14 -> 0.6734896516 | AT51: =IF(OR(AT$5<=$D51,$G51="n/a"),0,IF(SUM($D51,$G51+0.5)>AT$5,$H51/$G51,$H51-SUM($I51:AS51)))*AT$14 -> 0.6734896516 | AU51: =IF(OR(AU$5<=$D51,$G51="n/a"),0,IF(SUM($D51,$G51+0.5)>AU$5,$H51/$G51,$H51-SUM($I51:AT51)))*AU$14 -> 0.6734896516 | AV51: =IF(OR(AV$5<=$D51,$G51="n/a"),0,IF(SUM($D51,$G51+0.5)>AV$5,$H51/$G51,$H51-SUM($I51:AU51)))*AV$14 -> 0.6734896516 | AW51: =IF(OR(AW$5<=$D51,$G51="n/a"),0,IF(SUM($D51,$G51+0.5)>AW$5,$H51/$G51,$H51-SUM($I51:AV51)))*AW$14 -> 0.6734896516 | AX51: =IF(OR(AX$5<=$D51,$G51="n/a"),0,IF(SUM($D51,$G51+0.5)>AX$5,$H51/$G51,$H51-SUM($I51:AW51)))*AX$14 -> 0.6734896516 | AY51: =IF(OR(AY$5<=$D51,$G51="n/a"),0,IF(SUM($D51,$G51+0.5)>AY$5,$H51/$G51,$H51-SUM($I51:AX51)))*AY$14 -> 0.6734896516 | AZ51: =IF(OR(AZ$5<=$D51,$G51="n/a"),0,IF(SUM($D51,$G51+0.5)>AZ$5,$H51/$G51,$H51-SUM($I51:AY51)))*AZ$14 -> 0.6734896516 | BA51: =IF(OR(BA$5<=$D51,$G51="n/a"),0,IF(SUM($D51,$G51+0.5)>BA$5,$H51/$G51,$H51-SUM($I51:AZ51)))*BA$14 -> 0.6734896516 | BB51: =IF(OR(BB$5<=$D51,$G51="n/a"),0,IF(SUM($D51,$G51+0.5)>BB$5,$H51/$G51,$H51-SUM($I51:BA51)))*BB$14 -> 0.6734896516 | BC51: =IF(OR(BC$5<=$D51,$G51="n/a"),0,IF(SUM($D51,$G51+0.5)>BC$5,$H51/$G51,$H51-SUM($I51:BB51)))*BC$14 -> 0.6734896516 | BD51: =IF(OR(BD$5<=$D51,$G51="n/a"),0,IF(SUM($D51,$G51+0.5)>BD$5,$H51/$G51,$H51-SUM($I51:BC51)))*BD$14 -> 0.6734896516 | BE51: =IF(OR(BE$5<=$D51,$G51="n/a"),0,IF(SUM($D51,$G51+0.5)>BE$5,$H51/$G51,$H51-SUM($I51:BD51)))*BE$14 -> 0.6734896516 | BF51: =IF(OR(BF$5<=$D51,$G51="n/a"),0,IF(SUM($D51,$G51+0.5)>BF$5,$H51/$G51,$H51-SUM($I51:BE51)))*BF$14 -> 0.6734896516 | BG51: =IF(OR(BG$5<=$D51,$G51="n/a"),0,IF(SUM($D51,$G51+0.5)>BG$5,$H51/$G51,$H51-SUM($I51:BF51)))*BG$14 -> 0.6734896516 | BH51: =IF(OR(BH$5<=$D51,$G51="n/a"),0,IF(SUM($D51,$G51+0.5)>BH$5,$H51/$G51,$H51-SUM($I51:BG51)))*BH$14 -> 0.6734896516 | BI51: =IF(OR(BI$5<=$D51,$G51="n/a"),0,IF(SUM($D51,$G51+0.5)>BI$5,$H51/$G51,$H51-SUM($I51:BH51)))*BI$14 -> 0.6734896516 | BJ51: =IF(OR(BJ$5<=$D51,$G51="n/a"),0,IF(SUM($D51,$G51+0.5)>BJ$5,$H51/$G51,$H51-SUM($I51:BI51)))*BJ$14 -> 0.6734896516 | BK51: =IF(OR(BK$5<=$D51,$G51="n/a"),0,IF(SUM($D51,$G51+0.5)>BK$5,$H51/$G51,$H51-SUM($I51:BJ51)))*BK$14 -> 0.6734896516 | BL51: =IF(OR(BL$5<=$D51,$G51="n/a"),0,IF(SUM($D51,$G51+0.5)>BL$5,$H51/$G51,$H51-SUM($I51:BK51)))*BL$14 -> 0.6734896516 | BM51: =IF(OR(BM$5<=$D51,$G51="n/a"),0,IF(SUM($D51,$G51+0.5)>BM$5,$H51/$G51,$H51-SUM($I51:BL51)))*BM$14 -> 0.3367448258 | BN51: =IF(OR(BN$5<=$D51,$G51="n/a"),0,IF(SUM($D51,$G51+0.5)>BN$5,$H51/$G51,$H51-SUM($I51:BM51)))*BN$14 -> 0 | BO51: =IF(OR(BO$5<=$D51,$G51="n/a"),0,IF(SUM($D51,$G51+0.5)>BO$5,$H51/$G51,$H51-SUM($I51:BN51)))*BO$14 -> 0 | BP51: =IF(OR(BP$5<=$D51,$G51="n/a"),0,IF(SUM($D51,$G51+0.5)>BP$5,$H51/$G51,$H51-SUM($I51:BO51)))*BP$14 -> 0 | BQ51: =IF(OR(BQ$5<=$D51,$G51="n/a"),0,IF(SUM($D51,$G51+0.5)>BQ$5,$H51/$G51,$H51-SUM($I51:BP51)))*BQ$14 -> 0 | BR51: =IF(OR(BR$5<=$D51,$G51="n/a"),0,IF(SUM($D51,$G51+0.5)>BR$5,$H51/$G51,$H51-SUM($I51:BQ51)))*BR$14 -> 0 | BS51: =IF(OR(BS$5<=$D51,$G51="n/a"),0,IF(SUM($D51,$G51+0.5)>BS$5,$H51/$G51,$H51-SUM($I51:BR51)))*BS$14 -> 0 | BT51: =IF(OR(BT$5<=$D51,$G51="n/a"),0,IF(SUM($D51,$G51+0.5)>BT$5,$H51/$G51,$H51-SUM($I51:BS51)))*BT$14 -> 0 | BU51: =IF(OR(BU$5<=$D51,$G51="n/a"),0,IF(SUM($D51,$G51+0.5)>BU$5,$H51/$G51,$H51-SUM($I51:BT51)))*BU$14 -> 0 | BV51: =IF(OR(BV$5<=$D51,$G51="n/a"),0,IF(SUM($D51,$G51+0.5)>BV$5,$H51/$G51,$H51-SUM($I51:BU51)))*BV$14 -> 0 | BW51: =IF(OR(BW$5<=$D51,$G51="n/a"),0,IF(SUM($D51,$G51+0.5)>BW$5,$H51/$G51,$H51-SUM($I51:BV51)))*BW$14 -> 0 | BX51: =IF(OR(BX$5<=$D51,$G51="n/a"),0,IF(SUM($D51,$G51+0.5)>BX$5,$H51/$G51,$H51-SUM($I51:BW51)))*BX$14 -> 0 | BY51: =IF(OR(BY$5<=$D51,$G51="n/a"),0,IF(SUM($D51,$G51+0.5)>BY$5,$H51/$G51,$H51-SUM($I51:BX51)))*BY$14 -> 0 | BZ51: =IF(OR(BZ$5<=$D51,$G51="n/a"),0,IF(SUM($D51,$G51+0.5)>BZ$5,$H51/$G51,$H51-SUM($I51:BY51)))*BZ$14 -> 0 | CA51: =IF(OR(CA$5<=$D51,$G51="n/a"),0,IF(SUM($D51,$G51+0.5)>CA$5,$H51/$G51,$H51-SUM($I51:BZ51)))*CA$14 -> 0 | CB51: =IF(OR(CB$5<=$D51,$G51="n/a"),0,IF(SUM($D51,$G51+0.5)>CB$5,$H51/$G51,$H51-SUM($I51:CA51)))*CB$14 -> 0 | CC51: =IF(OR(CC$5<=$D51,$G51="n/a"),0,IF(SUM($D51,$G51+0.5)>CC$5,$H51/$G51,$H51-SUM($I51:CB51)))*CC$14 -> 0 | CE51: OK
D52: 2016 | E52: $m Real 2010 | G52: 50 | H52: 16.53072786 | J52: =IF(OR(J$5<=$D52,$G52="n/a"),0,IF(SUM($D52,$G52+0.5)>J$5,$H52/$G52,$H52-SUM($I52:I52)))*J$14 -> 0 | K52: =IF(OR(K$5<=$D52,$G52="n/a"),0,IF(SUM($D52,$G52+0.5)>K$5,$H52/$G52,$H52-SUM($I52:J52)))*K$14 -> 0 | L52: =IF(OR(L$5<=$D52,$G52="n/a"),0,IF(SUM($D52,$G52+0.5)>L$5,$H52/$G52,$H52-SUM($I52:K52)))*L$14 -> 0 | M52: =IF(OR(M$5<=$D52,$G52="n/a"),0,IF(SUM($D52,$G52+0.5)>M$5,$H52/$G52,$H52-SUM($I52:L52)))*M$14 -> 0 | N52: =IF(OR(N$5<=$D52,$G52="n/a"),0,IF(SUM($D52,$G52+0.5)>N$5,$H52/$G52,$H52-SUM($I52:M52)))*N$14 -> 0 | O52: =IF(OR(O$5<=$D52,$G52="n/a"),0,IF(SUM($D52,$G52+0.5)>O$5,$H52/$G52,$H52-SUM($I52:N52)))*O$14 -> 0 | P52: =IF(OR(P$5<=$D52,$G52="n/a"),0,IF(SUM($D52,$G52+0.5)>P$5,$H52/$G52,$H52-SUM($I52:O52)))*P$14 -> 0.3306145573 | Q52: =IF(OR(Q$5<=$D52,$G52="n/a"),0,IF(SUM($D52,$G52+0.5)>Q$5,$H52/$G52,$H52-SUM($I52:P52)))*Q$14 -> 0.3306145573 | R52: =IF(OR(R$5<=$D52,$G52="n/a"),0,IF(SUM($D52,$G52+0.5)>R$5,$H52/$G52,$H52-SUM($I52:Q52)))*R$14 -> 0.3306145573 | S52: =IF(OR(S$5<=$D52,$G52="n/a"),0,IF(SUM($D52,$G52+0.5)>S$5,$H52/$G52,$H52-SUM($I52:R52)))*S$14 -> 0.3306145573 | T52: =IF(OR(T$5<=$D52,$G52="n/a"),0,IF(SUM($D52,$G52+0.5)>T$5,$H52/$G52,$H52-SUM($I52:S52)))*T$14 -> 0.1653072786 | U52: =IF(OR(U$5<=$D52,$G52="n/a"),0,IF(SUM($D52,$G52+0.5)>U$5,$H52/$G52,$H52-SUM($I52:T52)))*U$14 -> 0.3306145573 | V52: =IF(OR(V$5<=$D52,$G52="n/a"),0,IF(SUM($D52,$G52+0.5)>V$5,$H52/$G52,$H52-SUM($I52:U52)))*V$14 -> 0.3306145573 | W52: =IF(OR(W$5<=$D52,$G52="n/a"),0,IF(SUM($D52,$G52+0.5)>W$5,$H52/$G52,$H52-SUM($I52:V52)))*W$14 -> 0.3306145573 | X52: =IF(OR(X$5<=$D52,$G52="n/a"),0,IF(SUM($D52,$G52+0.5)>X$5,$H52/$G52,$H52-SUM($I52:W52)))*X$14 -> 0.3306145573 | Y52: =IF(OR(Y$5<=$D52,$G52="n/a"),0,IF(SUM($D52,$G52+0.5)>Y$5,$H52/$G52,$H52-SUM($I52:X52)))*Y$14 -> 0.3306145573 | Z52: =IF(OR(Z$5<=$D52,$G52="n/a"),0,IF(SUM($D52,$G52+0.5)>Z$5,$H52/$G52,$H52-SUM($I52:Y52)))*Z$14 -> 0.3306145573 | AA52: =IF(OR(AA$5<=$D52,$G52="n/a"),0,IF(SUM($D52,$G52+0.5)>AA$5,$H52/$G52,$H52-SUM($I52:Z52)))*AA$14 -> 0.3306145573 | AB52: =IF(OR(AB$5<=$D52,$G52="n/a"),0,IF(SUM($D52,$G52+0.5)>AB$5,$H52/$G52,$H52-SUM($I52:AA52)))*AB$14 -> 0.3306145573 | AC52: =IF(OR(AC$5<=$D52,$G52="n/a"),0,IF(SUM($D52,$G52+0.5)>AC$5,$H52/$G52,$H52-SUM($I52:AB52)))*AC$14 -> 0.3306145573 | AD52: =IF(OR(AD$5<=$D52,$G52="n/a"),0,IF(SUM($D52,$G52+0.5)>AD$5,$H52/$G52,$H52-SUM($I52:AC52)))*AD$14 -> 0.3306145573 | AE52: =IF(OR(AE$5<=$D52,$G52="n/a"),0,IF(SUM($D52,$G52+0.5)>AE$5,$H52/$G52,$H52-SUM($I52:AD52)))*AE$14 -> 0.3306145573 | AF52: =IF(OR(AF$5<=$D52,$G52="n/a"),0,IF(SUM($D52,$G52+0.5)>AF$5,$H52/$G52,$H52-SUM($I52:AE52)))*AF$14 -> 0.3306145573 | AG52: =IF(OR(AG$5<=$D52,$G52="n/a"),0,IF(SUM($D52,$G52+0.5)>AG$5,$H52/$G52,$H52-SUM($I52:AF52)))*AG$14 -> 0.3306145573 | AH52: =IF(OR(AH$5<=$D52,$G52="n/a"),0,IF(SUM($D52,$G52+0.5)>AH$5,$H52/$G52,$H52-SUM($I52:AG52)))*AH$14 -> 0.3306145573 | AI52: =IF(OR(AI$5<=$D52,$G52="n/a"),0,IF(SUM($D52,$G52+0.5)>AI$5,$H52/$G52,$H52-SUM($I52:AH52)))*AI$14 -> 0.3306145573 | AJ52: =IF(OR(AJ$5<=$D52,$G52="n/a"),0,IF(SUM($D52,$G52+0.5)>AJ$5,$H52/$G52,$H52-SUM($I52:AI52)))*AJ$14 -> 0.3306145573 | AK52: =IF(OR(AK$5<=$D52,$G52="n/a"),0,IF(SUM($D52,$G52+0.5)>AK$5,$H52/$G52,$H52-SUM($I52:AJ52)))*AK$14 -> 0.3306145573 | AL52: =IF(OR(AL$5<=$D52,$G52="n/a"),0,IF(SUM($D52,$G52+0.5)>AL$5,$H52/$G52,$H52-SUM($I52:AK52)))*AL$14 -> 0.3306145573 | AM52: =IF(OR(AM$5<=$D52,$G52="n/a"),0,IF(SUM($D52,$G52+0.5)>AM$5,$H52/$G52,$H52-SUM($I52:AL52)))*AM$14 -> 0.3306145573 | AN52: =IF(OR(AN$5<=$D52,$G52="n/a"),0,IF(SUM($D52,$G52+0.5)>AN$5,$H52/$G52,$H52-SUM($I52:AM52)))*AN$14 -> 0.3306145573 | AO52: =IF(OR(AO$5<=$D52,$G52="n/a"),0,IF(SUM($D52,$G52+0.5)>AO$5,$H52/$G52,$H52-SUM($I52:AN52)))*AO$14 -> 0.3306145573 | AP52: =IF(OR(AP$5<=$D52,$G52="n/a"),0,IF(SUM($D52,$G52+0.5)>AP$5,$H52/$G52,$H52-SUM($I52:AO52)))*AP$14 -> 0.3306145573 | AQ52: =IF(OR(AQ$5<=$D52,$G52="n/a"),0,IF(SUM($D52,$G52+0.5)>AQ$5,$H52/$G52,$H52-SUM($I52:AP52)))*AQ$14 -> 0.3306145573 | AR52: =IF(OR(AR$5<=$D52,$G52="n/a"),0,IF(SUM($D52,$G52+0.5)>AR$5,$H52/$G52,$H52-SUM($I52:AQ52)))*AR$14 -> 0.3306145573 | AS52: =IF(OR(AS$5<=$D52,$G52="n/a"),0,IF(SUM($D52,$G52+0.5)>AS$5,$H52/$G52,$H52-SUM($I52:AR52)))*AS$14 -> 0.3306145573 | AT52: =IF(OR(AT$5<=$D52,$G52="n/a"),0,IF(SUM($D52,$G52+0.5)>AT$5,$H52/$G52,$H52-SUM($I52:AS52)))*AT$14 -> 0.3306145573 | AU52: =IF(OR(AU$5<=$D52,$G52="n/a"),0,IF(SUM($D52,$G52+0.5)>AU$5,$H52/$G52,$H52-SUM($I52:AT52)))*AU$14 -> 0.3306145573 | AV52: =IF(OR(AV$5<=$D52,$G52="n/a"),0,IF(SUM($D52,$G52+0.5)>AV$5,$H52/$G52,$H52-SUM($I52:AU52)))*AV$14 -> 0.3306145573 | AW52: =IF(OR(AW$5<=$D52,$G52="n/a"),0,IF(SUM($D52,$G52+0.5)>AW$5,$H52/$G52,$H52-SUM($I52:AV52)))*AW$14 -> 0.3306145573 | AX52: =IF(OR(AX$5<=$D52,$G52="n/a"),0,IF(SUM($D52,$G52+0.5)>AX$5,$H52/$G52,$H52-SUM($I52:AW52)))*AX$14 -> 0.3306145573 | AY52: =IF(OR(AY$5<=$D52,$G52="n/a"),0,IF(SUM($D52,$G52+0.5)>AY$5,$H52/$G52,$H52-SUM($I52:AX52)))*AY$14 -> 0.3306145573 | AZ52: =IF(OR(AZ$5<=$D52,$G52="n/a"),0,IF(SUM($D52,$G52+0.5)>AZ$5,$H52/$G52,$H52-SUM($I52:AY52)))*AZ$14 -> 0.3306145573 | BA52: =IF(OR(BA$5<=$D52,$G52="n/a"),0,IF(SUM($D52,$G52+0.5)>BA$5,$H52/$G52,$H52-SUM($I52:AZ52)))*BA$14 -> 0.3306145573 | BB52: =IF(OR(BB$5<=$D52,$G52="n/a"),0,IF(SUM($D52,$G52+0.5)>BB$5,$H52/$G52,$H52-SUM($I52:BA52)))*BB$14 -> 0.3306145573 | BC52: =IF(OR(BC$5<=$D52,$G52="n/a"),0,IF(SUM($D52,$G52+0.5)>BC$5,$H52/$G52,$H52-SUM($I52:BB52)))*BC$14 -> 0.3306145573 | BD52: =IF(OR(BD$5<=$D52,$G52="n/a"),0,IF(SUM($D52,$G52+0.5)>BD$5,$H52/$G52,$H52-SUM($I52:BC52)))*BD$14 -> 0.3306145573 | BE52: =IF(OR(BE$5<=$D52,$G52="n/a"),0,IF(SUM($D52,$G52+0.5)>BE$5,$H52/$G52,$H52-SUM($I52:BD52)))*BE$14 -> 0.3306145573 | BF52: =IF(OR(BF$5<=$D52,$G52="n/a"),0,IF(SUM($D52,$G52+0.5)>BF$5,$H52/$G52,$H52-SUM($I52:BE52)))*BF$14 -> 0.3306145573 | BG52: =IF(OR(BG$5<=$D52,$G52="n/a"),0,IF(SUM($D52,$G52+0.5)>BG$5,$H52/$G52,$H52-SUM($I52:BF52)))*BG$14 -> 0.3306145573 | BH52: =IF(OR(BH$5<=$D52,$G52="n/a"),0,IF(SUM($D52,$G52+0.5)>BH$5,$H52/$G52,$H52-SUM($I52:BG52)))*BH$14 -> 0.3306145573 | BI52: =IF(OR(BI$5<=$D52,$G52="n/a"),0,IF(SUM($D52,$G52+0.5)>BI$5,$H52/$G52,$H52-SUM($I52:BH52)))*BI$14 -> 0.3306145573 | BJ52: =IF(OR(BJ$5<=$D52,$G52="n/a"),0,IF(SUM($D52,$G52+0.5)>BJ$5,$H52/$G52,$H52-SUM($I52:BI52)))*BJ$14 -> 0.3306145573 | BK52: =IF(OR(BK$5<=$D52,$G52="n/a"),0,IF(SUM($D52,$G52+0.5)>BK$5,$H52/$G52,$H52-SUM($I52:BJ52)))*BK$14 -> 0.3306145573 | BL52: =IF(OR(BL$5<=$D52,$G52="n/a"),0,IF(SUM($D52,$G52+0.5)>BL$5,$H52/$G52,$H52-SUM($I52:BK52)))*BL$14 -> 0.3306145573 | BM52: =IF(OR(BM$5<=$D52,$G52="n/a"),0,IF(SUM($D52,$G52+0.5)>BM$5,$H52/$G52,$H52-SUM($I52:BL52)))*BM$14 -> 0.3306145573 | BN52: =IF(OR(BN$5<=$D52,$G52="n/a"),0,IF(SUM($D52,$G52+0.5)>BN$5,$H52/$G52,$H52-SUM($I52:BM52)))*BN$14 -> 0.1653072786 | BO52: =IF(OR(BO$5<=$D52,$G52="n/a"),0,IF(SUM($D52,$G52+0.5)>BO$5,$H52/$G52,$H52-SUM($I52:BN52)))*BO$14 -> 0 | BP52: =IF(OR(BP$5<=$D52,$G52="n/a"),0,IF(SUM($D52,$G52+0.5)>BP$5,$H52/$G52,$H52-SUM($I52:BO52)))*BP$14 -> 0 | BQ52: =IF(OR(BQ$5<=$D52,$G52="n/a"),0,IF(SUM($D52,$G52+0.5)>BQ$5,$H52/$G52,$H52-SUM($I52:BP52)))*BQ$14 -> 0 | BR52: =IF(OR(BR$5<=$D52,$G52="n/a"),0,IF(SUM($D52,$G52+0.5)>BR$5,$H52/$G52,$H52-SUM($I52:BQ52)))*BR$14 -> 0 | BS52: =IF(OR(BS$5<=$D52,$G52="n/a"),0,IF(SUM($D52,$G52+0.5)>BS$5,$H52/$G52,$H52-SUM($I52:BR52)))*BS$14 -> 0 | BT52: =IF(OR(BT$5<=$D52,$G52="n/a"),0,IF(SUM($D52,$G52+0.5)>BT$5,$H52/$G52,$H52-SUM($I52:BS52)))*BT$14 -> 0 | BU52: =IF(OR(BU$5<=$D52,$G52="n/a"),0,IF(SUM($D52,$G52+0.5)>BU$5,$H52/$G52,$H52-SUM($I52:BT52)))*BU$14 -> 0 | BV52: =IF(OR(BV$5<=$D52,$G52="n/a"),0,IF(SUM($D52,$G52+0.5)>BV$5,$H52/$G52,$H52-SUM($I52:BU52)))*BV$14 -> 0 | BW52: =IF(OR(BW$5<=$D52,$G52="n/a"),0,IF(SUM($D52,$G52+0.5)>BW$5,$H52/$G52,$H52-SUM($I52:BV52)))*BW$14 -> 0 | BX52: =IF(OR(BX$5<=$D52,$G52="n/a"),0,IF(SUM($D52,$G52+0.5)>BX$5,$H52/$G52,$H52-SUM($I52:BW52)))*BX$14 -> 0 | BY52: =IF(OR(BY$5<=$D52,$G52="n/a"),0,IF(SUM($D52,$G52+0.5)>BY$5,$H52/$G52,$H52-SUM($I52:BX52)))*BY$14 -> 0 | BZ52: =IF(OR(BZ$5<=$D52,$G52="n/a"),0,IF(SUM($D52,$G52+0.5)>BZ$5,$H52/$G52,$H52-SUM($I52:BY52)))*BZ$14 -> 0 | CA52: =IF(OR(CA$5<=$D52,$G52="n/a"),0,IF(SUM($D52,$G52+0.5)>CA$5,$H52/$G52,$H52-SUM($I52:BZ52)))*CA$14 -> 0 | CB52: =IF(OR(CB$5<=$D52,$G52="n/a"),0,IF(SUM($D52,$G52+0.5)>CB$5,$H52/$G52,$H52-SUM($I52:CA52)))*CB$14 -> 0 | CC52: =IF(OR(CC$5<=$D52,$G52="n/a"),0,IF(SUM($D52,$G52+0.5)>CC$5,$H52/$G52,$H52-SUM($I52:CB52)))*CC$14 -> 0 | CE52: OK
D53: 2017 | E53: $m Real 2010 | G53: 50 | H53: 36.39082035 | J53: =IF(OR(J$5<=$D53,$G53="n/a"),0,IF(SUM($D53,$G53+0.5)>J$5,$H53/$G53,$H53-SUM($I53:I53)))*J$14 -> 0 | K53: =IF(OR(K$5<=$D53,$G53="n/a"),0,IF(SUM($D53,$G53+0.5)>K$5,$H53/$G53,$H53-SUM($I53:J53)))*K$14 -> 0 | L53: =IF(OR(L$5<=$D53,$G53="n/a"),0,IF(SUM($D53,$G53+0.5)>L$5,$H53/$G53,$H53-SUM($I53:K53)))*L$14 -> 0 | M53: =IF(OR(M$5<=$D53,$G53="n/a"),0,IF(SUM($D53,$G53+0.5)>M$5,$H53/$G53,$H53-SUM($I53:L53)))*M$14 -> 0 | N53: =IF(OR(N$5<=$D53,$G53="n/a"),0,IF(SUM($D53,$G53+0.5)>N$5,$H53/$G53,$H53-SUM($I53:M53)))*N$14 -> 0 | O53: =IF(OR(O$5<=$D53,$G53="n/a"),0,IF(SUM($D53,$G53+0.5)>O$5,$H53/$G53,$H53-SUM($I53:N53)))*O$14 -> 0 | P53: =IF(OR(P$5<=$D53,$G53="n/a"),0,IF(SUM($D53,$G53+0.5)>P$5,$H53/$G53,$H53-SUM($I53:O53)))*P$14 -> 0 | Q53: =IF(OR(Q$5<=$D53,$G53="n/a"),0,IF(SUM($D53,$G53+0.5)>Q$5,$H53/$G53,$H53-SUM($I53:P53)))*Q$14 -> 0.727816407 | R53: =IF(OR(R$5<=$D53,$G53="n/a"),0,IF(SUM($D53,$G53+0.5)>R$5,$H53/$G53,$H53-SUM($I53:Q53)))*R$14 -> 0.727816407 | S53: =IF(OR(S$5<=$D53,$G53="n/a"),0,IF(SUM($D53,$G53+0.5)>S$5,$H53/$G53,$H53-SUM($I53:R53)))*S$14 -> 0.727816407 | T53: =IF(OR(T$5<=$D53,$G53="n/a"),0,IF(SUM($D53,$G53+0.5)>T$5,$H53/$G53,$H53-SUM($I53:S53)))*T$14 -> 0.3639082035 | U53: =IF(OR(U$5<=$D53,$G53="n/a"),0,IF(SUM($D53,$G53+0.5)>U$5,$H53/$G53,$H53-SUM($I53:T53)))*U$14 -> 0.727816407 | V53: =IF(OR(V$5<=$D53,$G53="n/a"),0,IF(SUM($D53,$G53+0.5)>V$5,$H53/$G53,$H53-SUM($I53:U53)))*V$14 -> 0.727816407 | W53: =IF(OR(W$5<=$D53,$G53="n/a"),0,IF(SUM($D53,$G53+0.5)>W$5,$H53/$G53,$H53-SUM($I53:V53)))*W$14 -> 0.727816407 | X53: =IF(OR(X$5<=$D53,$G53="n/a"),0,IF(SUM($D53,$G53+0.5)>X$5,$H53/$G53,$H53-SUM($I53:W53)))*X$14 -> 0.727816407 | Y53: =IF(OR(Y$5<=$D53,$G53="n/a"),0,IF(SUM($D53,$G53+0.5)>Y$5,$H53/$G53,$H53-SUM($I53:X53)))*Y$14 -> 0.727816407 | Z53: =IF(OR(Z$5<=$D53,$G53="n/a"),0,IF(SUM($D53,$G53+0.5)>Z$5,$H53/$G53,$H53-SUM($I53:Y53)))*Z$14 -> 0.727816407 | AA53: =IF(OR(AA$5<=$D53,$G53="n/a"),0,IF(SUM($D53,$G53+0.5)>AA$5,$H53/$G53,$H53-SUM($I53:Z53)))*AA$14 -> 0.727816407 | AB53: =IF(OR(AB$5<=$D53,$G53="n/a"),0,IF(SUM($D53,$G53+0.5)>AB$5,$H53/$G53,$H53-SUM($I53:AA53)))*AB$14 -> 0.727816407 | AC53: =IF(OR(AC$5<=$D53,$G53="n/a"),0,IF(SUM($D53,$G53+0.5)>AC$5,$H53/$G53,$H53-SUM($I53:AB53)))*AC$14 -> 0.727816407 | AD53: =IF(OR(AD$5<=$D53,$G53="n/a"),0,IF(SUM($D53,$G53+0.5)>AD$5,$H53/$G53,$H53-SUM($I53:AC53)))*AD$14 -> 0.727816407 | AE53: =IF(OR(AE$5<=$D53,$G53="n/a"),0,IF(SUM($D53,$G53+0.5)>AE$5,$H53/$G53,$H53-SUM($I53:AD53)))*AE$14 -> 0.727816407 | AF53: =IF(OR(AF$5<=$D53,$G53="n/a"),0,IF(SUM($D53,$G53+0.5)>AF$5,$H53/$G53,$H53-SUM($I53:AE53)))*AF$14 -> 0.727816407 | AG53: =IF(OR(AG$5<=$D53,$G53="n/a"),0,IF(SUM($D53,$G53+0.5)>AG$5,$H53/$G53,$H53-SUM($I53:AF53)))*AG$14 -> 0.727816407 | AH53: =IF(OR(AH$5<=$D53,$G53="n/a"),0,IF(SUM($D53,$G53+0.5)>AH$5,$H53/$G53,$H53-SUM($I53:AG53)))*AH$14 -> 0.727816407 | AI53: =IF(OR(AI$5<=$D53,$G53="n/a"),0,IF(SUM($D53,$G53+0.5)>AI$5,$H53/$G53,$H53-SUM($I53:AH53)))*AI$14 -> 0.727816407 | AJ53: =IF(OR(AJ$5<=$D53,$G53="n/a"),0,IF(SUM($D53,$G53+0.5)>AJ$5,$H53/$G53,$H53-SUM($I53:AI53)))*AJ$14 -> 0.727816407 | AK53: =IF(OR(AK$5<=$D53,$G53="n/a"),0,IF(SUM($D53,$G53+0.5)>AK$5,$H53/$G53,$H53-SUM($I53:AJ53)))*AK$14 -> 0.727816407 | AL53: =IF(OR(AL$5<=$D53,$G53="n/a"),0,IF(SUM($D53,$G53+0.5)>AL$5,$H53/$G53,$H53-SUM($I53:AK53)))*AL$14 -> 0.727816407 | AM53: =IF(OR(AM$5<=$D53,$G53="n/a"),0,IF(SUM($D53,$G53+0.5)>AM$5,$H53/$G53,$H53-SUM($I53:AL53)))*AM$14 -> 0.727816407 | AN53: =IF(OR(AN$5<=$D53,$G53="n/a"),0,IF(SUM($D53,$G53+0.5)>AN$5,$H53/$G53,$H53-SUM($I53:AM53)))*AN$14 -> 0.727816407 | AO53: =IF(OR(AO$5<=$D53,$G53="n/a"),0,IF(SUM($D53,$G53+0.5)>AO$5,$H53/$G53,$H53-SUM($I53:AN53)))*AO$14 -> 0.727816407 | AP53: =IF(OR(AP$5<=$D53,$G53="n/a"),0,IF(SUM($D53,$G53+0.5)>AP$5,$H53/$G53,$H53-SUM($I53:AO53)))*AP$14 -> 0.727816407 | AQ53: =IF(OR(AQ$5<=$D53,$G53="n/a"),0,IF(SUM($D53,$G53+0.5)>AQ$5,$H53/$G53,$H53-SUM($I53:AP53)))*AQ$14 -> 0.727816407 | AR53: =IF(OR(AR$5<=$D53,$G53="n/a"),0,IF(SUM($D53,$G53+0.5)>AR$5,$H53/$G53,$H53-SUM($I53:AQ53)))*AR$14 -> 0.727816407 | AS53: =IF(OR(AS$5<=$D53,$G53="n/a"),0,IF(SUM($D53,$G53+0.5)>AS$5,$H53/$G53,$H53-SUM($I53:AR53)))*AS$14 -> 0.727816407 | AT53: =IF(OR(AT$5<=$D53,$G53="n/a"),0,IF(SUM($D53,$G53+0.5)>AT$5,$H53/$G53,$H53-SUM($I53:AS53)))*AT$14 -> 0.727816407 | AU53: =IF(OR(AU$5<=$D53,$G53="n/a"),0,IF(SUM($D53,$G53+0.5)>AU$5,$H53/$G53,$H53-SUM($I53:AT53)))*AU$14 -> 0.727816407 | AV53: =IF(OR(AV$5<=$D53,$G53="n/a"),0,IF(SUM($D53,$G53+0.5)>AV$5,$H53/$G53,$H53-SUM($I53:AU53)))*AV$14 -> 0.727816407 | AW53: =IF(OR(AW$5<=$D53,$G53="n/a"),0,IF(SUM($D53,$G53+0.5)>AW$5,$H53/$G53,$H53-SUM($I53:AV53)))*AW$14 -> 0.727816407 | AX53: =IF(OR(AX$5<=$D53,$G53="n/a"),0,IF(SUM($D53,$G53+0.5)>AX$5,$H53/$G53,$H53-SUM($I53:AW53)))*AX$14 -> 0.727816407 | AY53: =IF(OR(AY$5<=$D53,$G53="n/a"),0,IF(SUM($D53,$G53+0.5)>AY$5,$H53/$G53,$H53-SUM($I53:AX53)))*AY$14 -> 0.727816407 | AZ53: =IF(OR(AZ$5<=$D53,$G53="n/a"),0,IF(SUM($D53,$G53+0.5)>AZ$5,$H53/$G53,$H53-SUM($I53:AY53)))*AZ$14 -> 0.727816407 | BA53: =IF(OR(BA$5<=$D53,$G53="n/a"),0,IF(SUM($D53,$G53+0.5)>BA$5,$H53/$G53,$H53-SUM($I53:AZ53)))*BA$14 -> 0.727816407 | BB53: =IF(OR(BB$5<=$D53,$G53="n/a"),0,IF(SUM($D53,$G53+0.5)>BB$5,$H53/$G53,$H53-SUM($I53:BA53)))*BB$14 -> 0.727816407 | BC53: =IF(OR(BC$5<=$D53,$G53="n/a"),0,IF(SUM($D53,$G53+0.5)>BC$5,$H53/$G53,$H53-SUM($I53:BB53)))*BC$14 -> 0.727816407 | BD53: =IF(OR(BD$5<=$D53,$G53="n/a"),0,IF(SUM($D53,$G53+0.5)>BD$5,$H53/$G53,$H53-SUM($I53:BC53)))*BD$14 -> 0.727816407 | BE53: =IF(OR(BE$5<=$D53,$G53="n/a"),0,IF(SUM($D53,$G53+0.5)>BE$5,$H53/$G53,$H53-SUM($I53:BD53)))*BE$14 -> 0.727816407 | BF53: =IF(OR(BF$5<=$D53,$G53="n/a"),0,IF(SUM($D53,$G53+0.5)>BF$5,$H53/$G53,$H53-SUM($I53:BE53)))*BF$14 -> 0.727816407 | BG53: =IF(OR(BG$5<=$D53,$G53="n/a"),0,IF(SUM($D53,$G53+0.5)>BG$5,$H53/$G53,$H53-SUM($I53:BF53)))*BG$14 -> 0.727816407 | BH53: =IF(OR(BH$5<=$D53,$G53="n/a"),0,IF(SUM($D53,$G53+0.5)>BH$5,$H53/$G53,$H53-SUM($I53:BG53)))*BH$14 -> 0.727816407 | BI53: =IF(OR(BI$5<=$D53,$G53="n/a"),0,IF(SUM($D53,$G53+0.5)>BI$5,$H53/$G53,$H53-SUM($I53:BH53)))*BI$14 -> 0.727816407 | BJ53: =IF(OR(BJ$5<=$D53,$G53="n/a"),0,IF(SUM($D53,$G53+0.5)>BJ$5,$H53/$G53,$H53-SUM($I53:BI53)))*BJ$14 -> 0.727816407 | BK53: =IF(OR(BK$5<=$D53,$G53="n/a"),0,IF(SUM($D53,$G53+0.5)>BK$5,$H53/$G53,$H53-SUM($I53:BJ53)))*BK$14 -> 0.727816407 | BL53: =IF(OR(BL$5<=$D53,$G53="n/a"),0,IF(SUM($D53,$G53+0.5)>BL$5,$H53/$G53,$H53-SUM($I53:BK53)))*BL$14 -> 0.727816407 | BM53: =IF(OR(BM$5<=$D53,$G53="n/a"),0,IF(SUM($D53,$G53+0.5)>BM$5,$H53/$G53,$H53-SUM($I53:BL53)))*BM$14 -> 0.727816407 | BN53: =IF(OR(BN$5<=$D53,$G53="n/a"),0,IF(SUM($D53,$G53+0.5)>BN$5,$H53/$G53,$H53-SUM($I53:BM53)))*BN$14 -> 0.727816407 | BO53: =IF(OR(BO$5<=$D53,$G53="n/a"),0,IF(SUM($D53,$G53+0.5)>BO$5,$H53/$G53,$H53-SUM($I53:BN53)))*BO$14 -> 0.3639082035 | BP53: =IF(OR(BP$5<=$D53,$G53="n/a"),0,IF(SUM($D53,$G53+0.5)>BP$5,$H53/$G53,$H53-SUM($I53:BO53)))*BP$14 -> 0 | BQ53: =IF(OR(BQ$5<=$D53,$G53="n/a"),0,IF(SUM($D53,$G53+0.5)>BQ$5,$H53/$G53,$H53-SUM($I53:BP53)))*BQ$14 -> 0 | BR53: =IF(OR(BR$5<=$D53,$G53="n/a"),0,IF(SUM($D53,$G53+0.5)>BR$5,$H53/$G53,$H53-SUM($I53:BQ53)))*BR$14 -> 0 | BS53: =IF(OR(BS$5<=$D53,$G53="n/a"),0,IF(SUM($D53,$G53+0.5)>BS$5,$H53/$G53,$H53-SUM($I53:BR53)))*BS$14 -> 0 | BT53: =IF(OR(BT$5<=$D53,$G53="n/a"),0,IF(SUM($D53,$G53+0.5)>BT$5,$H53/$G53,$H53-SUM($I53:BS53)))*BT$14 -> 0 | BU53: =IF(OR(BU$5<=$D53,$G53="n/a"),0,IF(SUM($D53,$G53+0.5)>BU$5,$H53/$G53,$H53-SUM($I53:BT53)))*BU$14 -> 0 | BV53: =IF(OR(BV$5<=$D53,$G53="n/a"),0,IF(SUM($D53,$G53+0.5)>BV$5,$H53/$G53,$H53-SUM($I53:BU53)))*BV$14 -> 0 | BW53: =IF(OR(BW$5<=$D53,$G53="n/a"),0,IF(SUM($D53,$G53+0.5)>BW$5,$H53/$G53,$H53-SUM($I53:BV53)))*BW$14 -> 0 | BX53: =IF(OR(BX$5<=$D53,$G53="n/a"),0,IF(SUM($D53,$G53+0.5)>BX$5,$H53/$G53,$H53-SUM($I53:BW53)))*BX$14 -> 0 | BY53: =IF(OR(BY$5<=$D53,$G53="n/a"),0,IF(SUM($D53,$G53+0.5)>BY$5,$H53/$G53,$H53-SUM($I53:BX53)))*BY$14 -> 0 | BZ53: =IF(OR(BZ$5<=$D53,$G53="n/a"),0,IF(SUM($D53,$G53+0.5)>BZ$5,$H53/$G53,$H53-SUM($I53:BY53)))*BZ$14 -> 0 | CA53: =IF(OR(CA$5<=$D53,$G53="n/a"),0,IF(SUM($D53,$G53+0.5)>CA$5,$H53/$G53,$H53-SUM($I53:BZ53)))*CA$14 -> 0 | CB53: =IF(OR(CB$5<=$D53,$G53="n/a"),0,IF(SUM($D53,$G53+0.5)>CB$5,$H53/$G53,$H53-SUM($I53:CA53)))*CB$14 -> 0 | CC53: =IF(OR(CC$5<=$D53,$G53="n/a"),0,IF(SUM($D53,$G53+0.5)>CC$5,$H53/$G53,$H53-SUM($I53:CB53)))*CC$14 -> 0 | CE53: OK
